Workbook

Sheet Contents
A1: 80 | M1: ESC USE ONLY
D2: ESSENTIAL SERVICES COMMISSION
D3: Water Price Review
D4: Financial Model Template
B7: Table of Contents | F7: Water Business: | H7: =+N24 -> GWM Water | I7: =+O24 -> GWMW
B8: Section & Sheet Titles | F8: Regulatory Period: | H8: 2023-24 to 2027-28 (Fifth) | N8: [Decision] | O8: [Month] | P8: [Year] | Q8: [Version]
F9: Model Name: | H9: =I7&"_Price Review Template_"&O9&P9&Q9 -> GWMW_Price Review Template_Oct2021 - v1 | N9: Draft | O9: Oct | P9: 2021 | Q9: - v1 | R9: << Select
B10: 1 | C10: Model Quality Check | F10: Decision type: | H10: =+N9&" Decision" -> Draft Decision | N10: Draft | O10: Jan | P10: 2016 | Q10: - v1
B11: 2 | C11: Key Assumptions Price Control | N11: Final | O11: Feb | P11: 2017 | Q11: - v1.2
B12: 3 | C12: Expenditure - Detail | F12: Model Key: | O12: Mar | P12: 2018 | Q12: - v2
B13: 4 | C13: Operating Expenditure - Forecast | O13: Apr | P13: 2019 | Q13: - v2.1
B14: 5 | C14: Operating Expenditure - Breakdown | G14: BLUE | H14: =+I7&" - DATA INPUT CELL" -> GWMW - DATA INPUT CELL | O14: May | P14: 2020 | Q14: - v3
B15: 6 | C15: Capital Expenditure - Forecast Input | O15: Jun | P15: 2021 | Q15: - v3.1
B16: 7 | C16: Capital Expenditure - Asset Category Breakdown | G16: PURPLE | H16: NOTES / INSTRUCTIONS | O16: Jul | P16: 2022 | Q16: - v4
B17: 8 | C17: Expenditure Summary | O17: Aug | P17: 2023 | Q17: - v4.1
B18: 9 | C18: Rolled forward regulatory asset base (RAB) | G18: GREY | H18: MODEL PARAMETERS / ASSUMPTIONS | O18: Sep | Q18: - v5
B19: 10 | C19: Previous period adjustments | O19: Oct | Q19: - v5.1
B20: 11 | C20: Revenue forecast (price caps) | G20: WHITE | H20: FORMULA / HARDCODED VALUES | O20: Nov | Q20: - v6
B21: 12 | C21: Revenue forecast (tariff basket) | O21: Dec | Q21: - v6.1
B22: 13 | C22: Non Prescribed Services | G22: ORANGE | H22: FORMULA DIFFERENT TO ADJACENT CELL
B23: 14 | C23: Cash, debt and tax assumptions | N23: [Business]
B24: 15 | C24: Revenue requirement detail | G24: GREEN | H24: DATA FROM 2018 DECISION OR PERFORMANCE REPORT | N24: GWM Water | O24: =+VLOOKUP(N24,N25:O42,2,FALSE) -> GWMW
B25: 16 | C25: Financial indicators | N25: Barwon Water | O25: BW | P25: Urban model
B26: 17 | C26: Outcomes | G26: RED | H26: ERROR CHECK | N26: Central Highlands Water | O26: CHW | P26: Urban model
B27: 18 | C27: Guaranteed Service Levels (GSL) | N27: Greater Western Water | O27: GWW | P27: Urban model
B28: 19 | C28: Dashboard - Pricing | N28: Coliban Water | O28: CW | P28: Urban model
B29: 20 | C29: Dashboard - Opex | N29: East Gippsland Water | O29: EGW | P29: Urban model
B30: 21 | C30: Dashboard - Capex | N30: Gippsland Water | O30: CGW | P30: Urban model
B31: 22 | C31: Dashboard - Data | N31: Goulburn Valley Water | O31: GVW | P31: Urban model
B32: 23 | C32: Household Bill | M32: >>>> | N32: GWM Water | O32: GWMW | P32: GWMW model
N33: Lower Murray Water - Urban | O33: LMW-U | P33: Urban model
N34: Lower Murray Water - Rural | O34: LMW-R | P34: LMW-R model
N35: North East Water | O35: NEW | P35: Urban model
N36: South East Water | O36: SEW | P36: Urban model
N37: South Gippsland Water | O37: SGW | P37: Urban model
N38: Southern Rural Water | O38: SRW | P38: SRW model
N39: Wannon Water | O39: WNW | P39: Urban model
N40: Westernport Water | O40: WPW | P40: Urban model
N41: Yarra Valley Water | O41: YVW | P41: Urban model
P42: Urban model

Sheet Adjustments log (hidden)
A3: 1 | B3: Operating expenditure
B4: $m 2022-23
C6: 2023-24 | D6: 2024-25 | E6: 2025-26 | F6: 2026-27 | G6: 2027-28 | H6: Total
B7: Proposed - controllable operating expenditure | H7: =SUM(C7:G7) -> 0
B8: DD adjustments
B9: xx | H9: =SUM(C9:G9) -> 0
B10: xx | H10: =SUM(C10:G10) -> 0
B11: xx | H11: =SUM(C11:G11) -> 0
B12: xx | H12: =SUM(C12:G12) -> 0
B13: xx | H13: =SUM(C13:G13) -> 0
B14: FD adjustments
B15: xx | H15: =SUM(C15:G15) -> 0
B16: xx | H16: =SUM(C16:G16) -> 0
B17: xx | H17: =SUM(C17:G17) -> 0
B18: xx | H18: =SUM(C18:G18) -> 0
B19: xx | H19: 0
B20: Total adjustments | C20: =SUM(C8:C19) -> 0 | D20: 0 | E20: 0 | F20: 0 | G20: 0 | H20: 0
B21: Final decision - controllable operating expenditure | C21: =C7+C20 -> 0 | D21: 0 | E21: 0 | F21: 0 | G21: 0 | H21: 0
B23: Proposed - non-controllable operating expenditure | H23: =SUM(C23:G23) -> 0
B24: DD adjustments
B25: xx | H25: =SUM(C25:G25) -> 0
B26: xx | H26: =SUM(C26:G26) -> 0
B27: xx | H27: =SUM(C27:G27) -> 0
B28: xx | H28: =SUM(C28:G28) -> 0
B29: FD adjustments
B30: xx | H30: =SUM(C30:G30) -> 0
B31: xx | H31: =SUM(C31:G31) -> 0
B32: Total adjustments | C32: =SUM(C24:C31) -> 0 | D32: 0 | E32: 0 | F32: 0 | G32: 0 | H32: 0
B33: Final decision - non-controllable operating expenditure | C33: =C23+C32 -> 0 | D33: 0 | E33: 0 | F33: 0 | G33: 0 | H33: 0
B35: Proposed - total operating expenditure | C35: =C7+C23 -> 0 | D35: 0 | E35: 0 | F35: 0 | G35: 0 | H35: 0
B36: Total adjustments | C36: =C20+C32 -> 0 | D36: 0 | E36: 0 | F36: 0 | G36: 0 | H36: 0
B37: Final decision - total operating expenditure | C37: =SUM(C35:C36) -> 0 | D37: 0 | E37: 0 | F37: 0 | G37: 0 | H37: 0
B39: Check
A42: 2 | B42: Capital expenditure
B43: $m 2022-23
C45: 2023-24 | D45: 2024-25 | E45: 2025-26 | F45: 2026-27 | G45: 2027-28 | H45: Total
B46: Proposed - capital expenditure | H46: =SUM(C46:G46) -> 0
B47: DD adjustments
B48: xx | H48: =SUM(C48:G48) -> 0
B49: xx | H49: =SUM(C49:G49) -> 0
B50: xx | H50: =SUM(C50:G50) -> 0
B51: xx | H51: =SUM(C51:G51) -> 0
B52: FD adjustments
B53: xx | H53: =SUM(C53:G53) -> 0
B54: xx
B55: Total adjustments | C55: =SUM(C47:C54) -> 0 | D55: 0 | E55: 0 | F55: 0 | G55: 0 | H55: 0
B56: Draft decision - capital expenditure | C56: =C46+C55 -> 0 | D56: 0 | E56: 0 | F56: 0 | G56: 0 | H56: 0
B58: Check

Sheet Model Quality Check
A1: 80 | B1: Model Quality Check
B2: =+Contents!H7 -> GWM Water
B3: Go to Table of Contents
K4: FIRST REG PERIOD | O4: SECOND REG PERIOD | T4: THIRD REG PERIOD | Y4: FOURTH REG PERIOD | AD4: FIFTH REG PERIOD | AI4: SIXTH REG PERIOD
F6: Straight Line | J6: 2006 | K6: 2007 | L6: 2008 | M6: 2009 | N6: 2010 | O6: 2011 | P6: 2012 | Q6: 2013 | R6: 2014 | S6: 2015 | T6: 2016 | U6: 2017 | V6: 2018 | W6: 2019 | X6: 2020 | Y6: 2021 | Z6: 2022 | AA6: 2023 | AB6: 2024 | AC6: 2025 | AD6: 2026 | AE6: 2027 | AF6: 2028 | AG6: =AF6+1 -> 2029 | AH6: =AG6+1 -> 2030 | AI6: 2031 | AJ6: 2032 | AK6: 2033
F7: Declining Balance | J7: =+CONCATENATE(J6-1,"-",RIGHT(J6,2)) -> 2005-06 | K7: 2006-07 | L7: 2007-08 | M7: 2008-09 | N7: 2009-10 | O7: 2010-11 | P7: 2011-12 | Q7: 2012-13 | R7: 2013-14 | S7: 2014-15 | T7: 2015-16 | U7: 2016-17 | V7: 2017-18 | W7: 2018-19 | X7: 2019-20 | Y7: 2020-21 | Z7: 2021-22 | AA7: 2022-23 | AB7: 2023-24 | AC7: 2024-25 | AD7: 2025-26 | AE7: 2026-27 | AF7: 2027-28 | AG7: 2028-29 | AH7: =+CONCATENATE(AH6-1,"-",RIGHT(AH6,2)) -> 2029-30 | AI7: 2030-31 | AJ7: 2031-32 | AK7: 2032-33
D9: Model ready for submission: | I9: =SUM(AA15:AK49) -> 11 | V9: (If No, please ensure that the error check is corrected at the source)
D11: All financial indicators satisfied: | I11: =SUM(AB54:AK59) -> 1 | V11: (If No, please ensure that the error check is corrected at the source)
E14: 1. | F14: Opex_FO
G15: Reconciliation to 'Opex_Breakdown' tab row 39 | AB15: =Opex_FO!AC104 -> 0 | AC15: =Opex_FO!AD104 -> 0 | AD15: =Opex_FO!AE104 -> 0 | AE15: =Opex_FO!AF104 -> 0 | AF15: =Opex_FO!AG104 -> 0 | AG15: =Opex_FO!AH104 -> 0 | AH15: =Opex_FO!AI104 -> 0 | AI15: =Opex_FO!AJ104 -> 0 | AJ15: =Opex_FO!AK104 -> 0 | AK15: =Opex_FO!AL104 -> 0
E17: 2. | F17: Opex_Breakdown
G18: Reconciliation to 'Opex_FO' tab row 99 | AB18: =Opex_Breakdown!AC44 -> 0 | AC18: =Opex_Breakdown!AD44 -> 0 | AD18: =Opex_Breakdown!AE44 -> 0 | AE18: =Opex_Breakdown!AF44 -> 0 | AF18: =Opex_Breakdown!AG44 -> 0 | AG18: =Opex_Breakdown!AH44 -> 0 | AH18: =Opex_Breakdown!AI44 -> 0 | AI18: =Opex_Breakdown!AJ44 -> 0 | AJ18: =Opex_Breakdown!AK44 -> 0 | AK18: =Opex_Breakdown!AL44 -> 0
G20: Reconciliation of Opex by service and function | AB20: =Opex_Breakdown!AC29 -> 0 | AC20: =Opex_Breakdown!AD29 -> 0 | AD20: =Opex_Breakdown!AE29 -> 0 | AE20: =Opex_Breakdown!AF29 -> 0 | AF20: =Opex_Breakdown!AG29 -> 0 | AG20: =Opex_Breakdown!AH29 -> 0 | AH20: =Opex_Breakdown!AI29 -> 0 | AI20: =Opex_Breakdown!AJ29 -> 0 | AJ20: =Opex_Breakdown!AK29 -> 0 | AK20: =Opex_Breakdown!AL29 -> 0
E22: 3. | F22: Capex_FO input
G23: Reconciliation of total prescribed capex between cost driver and capital type | AB23: ='Capex_FO input'!D26 -> 0 | AC23: ='Capex_FO input'!E26 -> 0 | AD23: ='Capex_FO input'!F26 -> 0 | AE23: ='Capex_FO input'!G26 -> 0 | AF23: ='Capex_FO input'!H26 -> 0 | AG23: ='Capex_FO input'!I26 -> 0 | AH23: ='Capex_FO input'!J26 -> 0 | AI23: ='Capex_FO input'!K26 -> 0 | AJ23: ='Capex_FO input'!L26 -> 0 | AK23: ='Capex_FO input'!M26 -> 0
E25: 4. | F25: Capex_FO_AC
G26: Reconciliation to 'Capex_FO input' tab row 29 | AA26: =Capex_FO_AC!AB32 -> 0 | AB26: =Capex_FO_AC!AC32 -> 0 | AC26: =Capex_FO_AC!AD32 -> 0 | AD26: =Capex_FO_AC!AE32 -> 0 | AE26: =Capex_FO_AC!AF32 -> 0 | AF26: =Capex_FO_AC!AG32 -> 0 | AG26: =Capex_FO_AC!AH32 -> 0 | AH26: =Capex_FO_AC!AI32 -> 0 | AI26: =Capex_FO_AC!AJ32 -> 0 | AJ26: =Capex_FO_AC!AK32 -> 0 | AK26: =Capex_FO_AC!AL32 -> 0
E28: 5. | F28: RollForward_FO
G29: Reconciliation of existing assets book value to RAB | AB29: =IF(ROUND(RollForward_FO!G84,2)=ROUND(RollForward_FO!G82,2),0,1) -> 1
E31: 6. | F31: RevenuePriceCap_FO
G32: Price control - Fifth period | AB32: =IF(KeyAssumptionsPriceControl_FO!I48=1,IF(RevenuePriceCap_FO!AD34="PRICE CONTROL OK",0,1),0) -> 0 | AC32: =IF(KeyAssumptionsPriceControl_FO!I48=1,RevenuePriceCap_FO!AD34,"") -> PRICE CONTROL OK
G34: Price control - Sixth period | AB34: =IF(KeyAssumptionsPriceControl_FO!I48=1,IF(RevenuePriceCap_FO!AI34="PRICE CONTROL OK",0,1),0) -> 0 | AC34: =IF(KeyAssumptionsPriceControl_FO!I48=1,RevenuePriceCap_FO!AI34,"") -> PRICE CONTROL OK
G36: Tariff revenue reconciliation | AB36: =RevenuePriceCap_FO!AC457 -> 0 | AC36: =RevenuePriceCap_FO!AD457 -> 0 | AD36: =RevenuePriceCap_FO!AE457 -> 0 | AE36: =RevenuePriceCap_FO!AF457 -> 0 | AF36: =RevenuePriceCap_FO!AG457 -> 0 | AG36: =RevenuePriceCap_FO!AH457 -> 0 | AH36: =RevenuePriceCap_FO!AI457 -> 0 | AI36: =RevenuePriceCap_FO!AJ457 -> 0 | AJ36: =RevenuePriceCap_FO!AK457 -> 0 | AK36: =RevenuePriceCap_FO!AL457 -> 0
E38: 7. | F38: RevenueTariffBasket_FO
G39: Price control - Fifth period | AB39: =IF(KeyAssumptionsPriceControl_FO!I48=2,IF(RevenueTariffBasket_FO!AD34="PRICE CONTROL OK",0,1),0) -> 0 | AC39: =IF(KeyAssumptionsPriceControl_FO!I48=2,RevenueTariffBasket_FO!AD34,"") -> 
G41: Price control - Sixth period | AB41: =IF(KeyAssumptionsPriceControl_FO!I48=2,IF(RevenueTariffBasket_FO!AI34="PRICE CONTROL OK",0,1),0) -> 0 | AC41: =IF(KeyAssumptionsPriceControl_FO!I48=2,RevenueTariffBasket_FO!AI34,"") -> 
G43: Tariff revenue reconciliation | AB43: =RevenueTariffBasket_FO!AC460 -> 0 | AC43: =RevenueTariffBasket_FO!AD460 -> 0 | AD43: =RevenueTariffBasket_FO!AE460 -> 0 | AE43: =RevenueTariffBasket_FO!AF460 -> 0 | AF43: =RevenueTariffBasket_FO!AG460 -> 0 | AG43: =RevenueTariffBasket_FO!AH460 -> 0 | AH43: =RevenueTariffBasket_FO!AI460 -> 0 | AI43: =RevenueTariffBasket_FO!AJ460 -> 0 | AJ43: =RevenueTariffBasket_FO!AK460 -> 0 | AK43: =RevenueTariffBasket_FO!AL460 -> 0
E45: 8. | F45: Rev&RAV_FO
G46: Rolled forward RAV reconciliation | AB46: ='Rev&RAV_FO'!AC80 -> 0 | AC46: ='Rev&RAV_FO'!AD80 -> 0 | AD46: ='Rev&RAV_FO'!AE80 -> 0 | AE46: ='Rev&RAV_FO'!AF80 -> 0 | AF46: ='Rev&RAV_FO'!AG80 -> 0 | AG46: ='Rev&RAV_FO'!AH80 -> 0 | AH46: ='Rev&RAV_FO'!AI80 -> 0 | AI46: ='Rev&RAV_FO'!AJ80 -> 0 | AJ46: ='Rev&RAV_FO'!AK80 -> 0 | AK46: ='Rev&RAV_FO'!AL80 -> 0
E48: 9. | F48: GSL
G49: Reconciliation to 'Opex_Breakdown' tab row 25 | AB49: =IF(ROUND(GSL!AC40,2)=ROUND(GSL!AC39,2),0,1) -> 1 | AC49: =IF(ROUND(GSL!AD40,2)=ROUND(GSL!AD39,2),0,1) -> 1 | AD49: =IF(ROUND(GSL!AE40,2)=ROUND(GSL!AE39,2),0,1) -> 1 | AE49: =IF(ROUND(GSL!AF40,2)=ROUND(GSL!AF39,2),0,1) -> 1 | AF49: =IF(ROUND(GSL!AG40,2)=ROUND(GSL!AG39,2),0,1) -> 1 | AG49: =IF(ROUND(GSL!AH40,2)=ROUND(GSL!AH39,2),0,1) -> 1 | AH49: =IF(ROUND(GSL!AI40,2)=ROUND(GSL!AI39,2),0,1) -> 1 | AI49: =IF(ROUND(GSL!AJ40,2)=ROUND(GSL!AJ39,2),0,1) -> 1 | AJ49: =IF(ROUND(GSL!AK40,2)=ROUND(GSL!AK39,2),0,1) -> 1 | AK49: =IF(ROUND(GSL!AL40,2)=ROUND(GSL!AL39,2),0,1) -> 1
E53: 1. | F53: Primary Indicator
G54: FFO interest cover | AB54: =Indicators_FO!AC$226 -> 0 | AC54: =Indicators_FO!AD$226 -> 0 | AD54: =Indicators_FO!AE$226 -> 0 | AE54: =Indicators_FO!AF$226 -> 0 | AF54: =Indicators_FO!AG$226 -> 0 | AG54: =Indicators_FO!AH$226 -> 0 | AH54: =Indicators_FO!AI$226 -> 0 | AI54: =Indicators_FO!AJ$226 -> 0 | AJ54: =Indicators_FO!AK$226 -> 0 | AK54: =Indicators_FO!AL$226 -> 0
E56: 2. | F56: Secondary indicators
G57: Net debt / RAV | AB57: =Indicators_FO!AC$235 -> 0 | AC57: =Indicators_FO!AD$235 -> 0 | AD57: =Indicators_FO!AE$235 -> 0 | AE57: =Indicators_FO!AF$235 -> 0 | AF57: =Indicators_FO!AG$235 -> 0 | AG57: =Indicators_FO!AH$235 -> 0 | AH57: =Indicators_FO!AI$235 -> 0 | AI57: =Indicators_FO!AJ$235 -> 0 | AJ57: =Indicators_FO!AK$235 -> 0 | AK57: =Indicators_FO!AL$235 -> 0
G58: FFO / Net debt | AB58: =Indicators_FO!AC$243 -> 0 | AC58: =Indicators_FO!AD$243 -> 0 | AD58: =Indicators_FO!AE$243 -> 0 | AE58: =Indicators_FO!AF$243 -> 0 | AF58: =Indicators_FO!AG$243 -> 0 | AG58: =Indicators_FO!AH$243 -> 0 | AH58: =Indicators_FO!AI$243 -> 0 | AI58: =Indicators_FO!AJ$243 -> 0 | AJ58: =Indicators_FO!AK$243 -> 0 | AK58: =Indicators_FO!AL$243 -> 0
G59: Internal financing ratio | AB59: =Indicators_FO!AC$252 -> 1 | AC59: =Indicators_FO!AD$252 -> 0 | AD59: =Indicators_FO!AE$252 -> 0 | AE59: =Indicators_FO!AF$252 -> 0 | AF59: =Indicators_FO!AG$252 -> 0 | AG59: =Indicators_FO!AH$252 -> 0 | AH59: =Indicators_FO!AI$252 -> 0 | AI59: =Indicators_FO!AJ$252 -> 0 | AJ59: =Indicators_FO!AK$252 -> 0 | AK59: =Indicators_FO!AL$252 -> 0

Sheet KeyAssumptionsPriceControl_FO
A1: 80 | B1: Key Assumptions Price Control
B2: =+Contents!H7 -> GWM Water
B3: Go to Table of Contents
L4: FIRST REG PERIOD | P4: SECOND REG PERIOD | U4: THIRD REG PERIOD | Z4: FOURTH REG PERIOD | AE4: FIFTH REG PERIOD | AJ4: SIXTH REG PERIOD
F6: Straight Line | K6: 2006 | L6: 2007 | M6: 2008 | N6: 2009 | O6: 2010 | P6: 2011 | Q6: 2012 | R6: 2013 | S6: 2014 | T6: 2015 | U6: 2016 | V6: 2017 | W6: 2018 | X6: 2019 | Y6: 2020 | Z6: 2021 | AA6: 2022 | AB6: 2023 | AC6: 2024 | AD6: 2025 | AE6: 2026 | AF6: 2027 | AG6: 2028 | AH6: =AG6+1 -> 2029 | AI6: =AH6+1 -> 2030 | AJ6: =AI6+1 -> 2031 | AK6: =AJ6+1 -> 2032 | AL6: =AK6+1 -> 2033
F7: Declining Balance | I7: 2003-04 | J7: 2004-05 | K7: =+CONCATENATE(K6-1,"-",RIGHT(K6,2)) -> 2005-06 | L7: =+CONCATENATE(L6-1,"-",RIGHT(L6,2)) -> 2006-07 | M7: 2007-08 | N7: 2008-09 | O7: 2009-10 | P7: 2010-11 | Q7: 2011-12 | R7: 2012-13 | S7: 2013-14 | T7: 2014-15 | U7: =+CONCATENATE(U6-1,"-",RIGHT(U6,2)) -> 2015-16 | V7: 2016-17 | W7: 2017-18 | X7: 2018-19 | Y7: 2019-20 | Z7: 2020-21 | AA7: 2021-22 | AB7: 2022-23 | AC7: 2023-24 | AD7: 2024-25 | AE7: 2025-26 | AF7: 2026-27 | AG7: 2027-28 | AH7: 2028-29 | AI7: 2029-30 | AJ7: 2030-31 | AK7: 2031-32 | AL7: 2032-33
E11: Inflation assumptions
AB12: Estimate
F13: March quarter annual CPI | I13: 141.3 | J13: 144.1 | K13: 147.5 | L13: 151.9 | M13: 155.6 | N13: 162.2 | O13: 166.2 | P13: 171 | Q13: 176.7 | R13: 99.9 | S13: 102.4 | T13: 105.4 | U13: 106.8 | V13: 108.2 | W13: 110.5 | X13: 112.6 | Y13: 114.1 | Z13: 116.6 | AA13: 117.9 | AB13: 123.9
F14: Inflation | J14: =+J13/I13-1 -> 0.01981599434 | K14: 0.02359472588 | L14: 0.02983050847 | M14: 0.02435813035 | N14: 0.04241645244 | O14: 0.02466091245 | P14: 0.02888086643 | Q14: 0.03333333333 | R14: 0.01584606678 | S14: =+IF(S13=0,$AC$44,S13/R13-1) -> 0.02502502503 | T14: 0.029296875 | U14: 0.01328273245 | V14: 0.01310861423 | W14: 0.02125693161 | X14: 0.01900452489 | Y14: 0.01332149201 | Z14: 0.02191060473 | AA14: 0.01114922813 | AB14: 0.05089058524 | AC14: 0.03 | AD14: 0.03 | AE14: 0.03 | AF14: 0.03 | AG14: 0.03 | AH14: 0.03 | AI14: 0.03 | AJ14: 0.03 | AK14: 0.03 | AL14: 0.03
F15: Inflation factor | I15: 0.7871866295 | J15: 0.8027855153 | K15: 0.8217270195 | L15: 0.8462395543 | M15: 0.8668523677 | N15: 0.9036211699 | O15: 0.9259052925 | P15: 0.9526462396 | Q15: 0.9844011142 | R15: =+R13/$AB$13 -> 0.8062953995 | S15: =+S13/$AB$13 -> 0.8264729621 | T15: 0.8506860371 | U15: 0.8619854722 | V15: 0.8732849072 | W15: 0.8918482647 | X15: 0.9087974173 | Y15: 0.9209039548 | Z15: 0.9410815174 | AA15: 0.9515738499 | AB15: =+AB13/$AB$13 -> 1 | AC15: =+AB15*(1+AC14) -> 1.03 | AD15: =+AC15*(1+AD14) -> 1.0609 | AE15: 1.092727 | AF15: 1.12550881 | AG15: 1.159274074 | AH15: =+AG15*(1+AH14) -> 1.194052297 | AI15: =+AH15*(1+AI14) -> 1.229873865 | AJ15: =+AI15*(1+AJ14) -> 1.266770081 | AK15: =+AJ15*(1+AK14) -> 1.304773184 | AL15: =+AK15*(1+AL14) -> 1.343916379
I16: CPI index re-referenced in 2012-13, shaded values have been hardcoded to lock in RAB value.
E21: Cost of debt - 10 year trailing average (Nominal)
AA22: Estimate | AB22: Estimate | AC22: Estimate | AD22: Estimate | AE22: Estimate | AF22: Estimate | AG22: Estimate | AH22: Estimate | AI22: Estimate | AJ22: Estimate | AK22: Estimate | AL22: Estimate
E23: Cost of debt | L23: 0.06981666667 | M23: 0.07414 | N23: 0.0691525788 | O23: 0.07361870984 | P23: 0.07046784142 | Q23: 0.06308887941 | R23: 0.0526945046 | S23: 0.070525 | T23: 0.05360833333 | U23: 0.05270138413 | V23: 0.04908333333 | W23: 0.045283 | X23: 0.046133 | Y23: 0.03305833333 | Z23: 0.03045 | AA23: 0.037533 | AB23: =AA23 -> 0.037533 | AC23: 0.037533 | AD23: 0.037533 | AE23: 0.037533 | AF23: 0.037533 | AG23: 0.037533 | AH23: 0.037533 | AI23: 0.037533 | AJ23: 0.037533 | AK23: 0.037533 | AL23: 0.037533
E24: Re-financing weightings - average 10 yrs | L24: =1/10 -> 0.1 | M24: =1/10 -> 0.1 | N24: =1/10 -> 0.1 | O24: =1/10 -> 0.1 | P24: =1/10 -> 0.1 | Q24: 0.1 | R24: 0.1 | S24: 0.1 | T24: 0.1 | U24: 0.1 | V24: 0.1 | W24: 0.1 | X24: 0.1 | Y24: 0.1 | Z24: 0.1 | AA24: 0.1 | AB24: 0.1 | AC24: 0.1 | AD24: 0.1 | AE24: 0.1 | AF24: 0.1 | AG24: 0.1 | AH24: 0.1 | AI24: 0.1 | AJ24: 0.1 | AK24: 0.1 | AL24: 0.1
E26: Cost of debt - 10 year trailing average | V26: =IF(U23<>"",SUMPRODUCT(L23:U23,L24:U24),"") -> 0.06498138982 | W26: =IF(V23<>"",SUMPRODUCT(M23:V23,M24:V24),"") -> 0.06290805649 | X26: =IF(W23<>"",SUMPRODUCT(N23:W23,N24:W24),"") -> 0.06002235649 | Y26: =IF(X23<>"",SUMPRODUCT(O23:X23,O24:X24),"") -> 0.05772039861 | Z26: =IF(Y23<>"",SUMPRODUCT(P23:Y23,P24:Y24),"") -> 0.05366436096 | AA26: 0.04966257681 | AB26: 0.04710698887 | AC26: =IF(AB23<>"",SUMPRODUCT(S23:AB23,S24:AB24),"") -> 0.04559083841 | AD26: =IF(AC23<>"",SUMPRODUCT(T23:AC23,T24:AC24),"") -> 0.04229163841 | AE26: 0.04068410508 | AF26: 0.03916726667 | AG26: 0.03801223333 | AH26: 0.03723723333 | AI26: 0.03637723333 | AJ26: 0.0368247 | AK26: 0.037533 | AL26: 0.037533
E30: WACC assumptions (retained for historical purposes only) | Z30: Regulatory Rate of Return (RRR) - Nominal
K32: 1st period | M32: 2nd period | O32: 3rd period | Z32: Cost of Debt | AC32: =+AC26 -> 0.04559083841 | AD32: =+AD26 -> 0.04229163841 | AE32: 0.04068410508 | AF32: 0.03916726667 | AG32: 0.03801223333 | AH32: 0.03723723333 | AI32: 0.03637723333 | AJ32: 0.0368247 | AK32: 0.037533 | AL32: 0.037533
E33: Parameters
F34: Risk Free Rate (Real) | K34: =Determination_Lookup!W8 -> 0.0267 | M34: =Determination_Lookup!X8 -> 0.0323 | O34: =Determination_Lookup!Y8 -> 0.005959
F35: Debt Premium | K35: =Determination_Lookup!W9 -> 0.0116 | M35: =Determination_Lookup!X9 -> 0.0175 | O35: =Determination_Lookup!Y9 -> 0.0399
F36: Equity Premium | K36: =Determination_Lookup!W10 -> 0.06 | M36: =Determination_Lookup!X10 -> 0.06 | O36: =Determination_Lookup!Y10 -> 0.06 | Z36: Regulatory Rate of Return (RRR) - Real
F37: Equity Beta | K37: =Determination_Lookup!W11 -> 0.75 | M37: =Determination_Lookup!X11 -> 0.65 | O37: =Determination_Lookup!Y11 -> 0.65
F38: Gearing (Debt/Assets) | K38: =Determination_Lookup!W12 -> 0.6 | M38: =Determination_Lookup!X12 -> 0.6 | O38: =Determination_Lookup!Y12 -> 0.6 | Z38: Cost of Debt | AC38: =(1+AC32)/(1+AC44)-1 -> 0.01513673632 | AD38: =(1+AD32)/(1+AD44)-1 -> 0.01193362953 | AE38: 0.01037291755 | AF38: 0.0089002589 | AG38: 0.007778867314 | AH38: 0.007026440129 | AI38: 0.006191488673 | AJ38: 0.00662592233 | AK38: 0.007313592233 | AL38: 0.007313592233
F39: Forecast Inflation | K39: =Determination_Lookup!W13 -> 0.0255 | M39: =Determination_Lookup!X13 -> 0.029 | O39: =Determination_Lookup!Y13 -> 0.0275
F40: Franking credit value | K40: =Determination_Lookup!W14 -> 0.5 | M40: =Determination_Lookup!X14 -> 0.5 | O40: =Determination_Lookup!Y14 -> 0.5 | Z40: Return on Equity | AC40: =IF(AE64<>0,(AE64/100),IF(AE62<>0,(AE62/100),(AE60/100))) -> 0.045 | AD40: =+$AC$40 -> 0.045 | AE40: 0.045 | AF40: 0.045 | AG40: 0.045 | AH40: 0.045 | AI40: 0.045 | AJ40: 0.045 | AK40: 0.045 | AL40: 0.045
E42: 'Vanilla' After Tax WACC (Real) | K42: =ROUND(((K34+K36*K37)*(1-K38))+((K34+K35)*K38),3) -> 0.052 | M42: =ROUND(((M34+M36*M37)*(1-M38))+((M34+M35)*M38),3) -> 0.058 | O42: =ROUND(((O34+O36*O37)*(1-O38))+((O34+O35)*O38),3) -> 0.045 | Z42: RRR (real) | AC42: =ROUND((AC40*(1-AC43)+AC38*AC43),4) -> 0.0271 | AD42: 0.0252 | AE42: 0.0242 | AF42: 0.0233 | AG42: 0.0227 | AH42: 0.0222 | AI42: 0.0217 | AJ42: 0.022 | AK42: 0.0224 | AL42: 0.0224
Z43: Gearing | AC43: 0.6 | AD43: =+AC43 -> 0.6 | AE43: 0.6 | AF43: 0.6 | AG43: 0.6 | AH43: 0.6 | AI43: 0.6 | AJ43: 0.6 | AK43: 0.6 | AL43: 0.6
Z44: Forecast Inflation | AC44: 0.03 | AD44: 0.03 | AE44: 0.03 | AF44: 0.03 | AG44: 0.03 | AH44: 0.03 | AI44: 0.03 | AJ44: 0.03 | AK44: 0.03 | AL44: 0.03
L45: Regulatory Rate of Return (RRR) [retained for historical purposes only]
E46: Form of price control selected
O47: 4th period
E48: Price caps | I48: 1 | L48: Cost of Debt | O48: =Determination_Lookup!W25 -> 0.03618998679 | Z48: PREMO Assessment Matrix (linked to Regulatory Rate of Return calculation above)
L49: Return on Equity | O49: =Determination_Lookup!W26 -> 0.049
E50: Revenue cap / Hybrid Tariff Basket | L50: Gearing | O50: =Determination_Lookup!W27 -> 0.6
L51: Forecast Inflation | O51: =Determination_Lookup!W28 -> 0.023 | AB51: Water business self-assessment
L52: RRR (real) | O52: =Determination_Lookup!W29 -> 0.0413
AB53: Leading | AC53: Advanced | AD53: Standard | AE53: Basic
Z54: ESC assessment of submission | AA54: Leading | AB54: 4.9
AA55: Advanced | AB55: 4.3 | AC55: 4.5
AA56: Standard | AB56: 3.7 | AC56: 3.9 | AD56: 4.1
AA57: Basic | AD57: 3.5 | AE57: 3.7
Z60: Water business self-assessment (Maximum allowable ROE) | AD60: Advanced | AE60: =+VLOOKUP(AD60,$AD$71:$AE$75,2,FALSE) -> 4.5
Z62: ROE Override (Must be less than Maximum allowable ROE) | AE62: =+IF(AD62<=AE60,AD62,"CHECK") -> 0
Z64: ESC assessment of submission | AD64: [Select] | AE64: =IFERROR(IF(AD64=AD60,AE60,VLOOKUP(AD60&AD64,AD78:AE82,2,FALSE)),0) -> 0
AD66: Difference | AE66: =IFERROR(IF(AE64=0,"",AE64-AE60),"") -> 
Z69: ESC USE ONLY
AD70: Business self assessment
AD71: [Select]
AD72: Leading | AE72: =+AB54 -> 4.9
AD73: Advanced | AE73: =+AC55 -> 4.5
AD74: Standard | AE74: =+AD56 -> 4.1
AD75: Basic | AE75: =+AE57 -> 3.7
AD77: downgrading
AD78: =AD53&AA57 -> StandardBasic | AE78: =+AD57 -> 3.5
AD79: =+AC53&AA56 -> AdvancedStandard | AE79: =+AC56 -> 3.9
AD80: =+AB53&AA55 -> LeadingAdvanced | AE80: =+AB55 -> 4.3
AD81: =+AB53&AA56 -> LeadingStandard | AE81: =+AB56 -> 3.7
AD82: =+AD60&"Basic" -> AdvancedBasic | AE82: CHECK

Sheet Expenditure_Detail
B1: Expenditure - Detail
B2: =+Model_Name -> GWM Water
B3: Go to Table of Contents
L4: FIRST REG PERIOD | P4: SECOND REG PERIOD | U4: THIRD REG PERIOD | Z4: FOURTH REG PERIOD | AE4: FIFTH REG PERIOD | AJ4: SIXTH REG PERIOD
K5: 2006 | L5: 2007 | M5: 2008 | N5: 2009 | O5: 2010 | P5: 2011 | Q5: 2012 | R5: 2013 | S5: 2014 | T5: 2015 | U5: 2016 | V5: 2017 | W5: 2018 | X5: 2019 | Y5: 2020 | Z5: 2021 | AA5: 2022 | AB5: 2023 | AC5: 2024 | AD5: 2025 | AE5: 2026 | AF5: 2027 | AG5: 2028 | AH5: =AG5+1 -> 2029 | AI5: =AH5+1 -> 2030 | AJ5: =AI5+1 -> 2031 | AK5: =AJ5+1 -> 2032 | AL5: =AK5+1 -> 2033
B6: $m, 01/01/23 | K6: =+CONCATENATE(K5-1,"-",RIGHT(K5,2)) -> 2005-06 | L6: =+CONCATENATE(L5-1,"-",RIGHT(L5,2)) -> 2006-07 | M6: 2007-08 | N6: 2008-09 | O6: 2009-10 | P6: 2010-11 | Q6: 2011-12 | R6: 2012-13 | S6: 2013-14 | T6: 2014-15 | U6: 2015-16 | V6: 2016-17 | W6: 2017-18 | X6: 2018-19 | Y6: 2019-20 | Z6: 2020-21 | AA6: 2021-22 | AB6: 2022-23 | AC6: 2023-24 | AD6: 2024-25 | AE6: 2025-26 | AF6: 2026-27 | AG6: 2027-28 | AH6: 2028-29 | AI6: 2029-30 | AJ6: 2030-31 | AK6: 2031-32 | AL6: 2032-33
B8: This worksheet outlines the key cost drivers of operating expenditure - capitalised costs are excluded. This tab does not link to the Rev&RAV_FO worksheet
C11: Expenditure Summary
D13: Total Labour costs | W13: =W34 -> 19.04180592 | X13: =X34 -> 19.38740503 | Y13: 21.20722179 | Z13: 20.54475584 | AA13: 20.31942596 | AB13: 24.67952756 | AC13: 22.19085106 | AD13: 22.03962469 | AE13: 21.8899408 | AF13: 21.74180041 | AG13: 21.59520318 | AH13: 21.45014926 | AI13: 21.30663844 | AJ13: 21.16467049 | AK13: 21.02424564 | AL13: 20.88536423
D14: Total Energy costs | W14: =W92 -> 2.49208389 | X14: =X92 -> 3.63304804 | Y14: 3.22366273 | Z14: 2.9378758 | AA14: 2.92700983 | AB14: 2.780203 | AC14: 2.64119285 | AD14: 2.509133207 | AE14: 2.997705647 | AF14: 2.783574012 | AG14: 2.535176834 | AH14: 2.535176834 | AI14: 2.535176834 | AJ14: 2.535176834 | AK14: 2.535176834 | AL14: 2.535176834
D15: Total IT costs | W15: =W103 -> 4.07994476 | X15: =X103 -> 3.82101616 | Y15: 3.94268104 | Z15: 4.64161184 | AA15: 5.41856878 | AB15: 5.54180956 | AC15: 5.82429326 | AD15: 6.12778306 | AE15: 6.12071354 | AF15: 6.10804438 | AG15: 6.10114342 | AH15: 6.0887482 | AI15: 6.07651204 | AJ15: 6.06443448 | AK15: 6.05251536 | AL15: 6.04075448
D16: Total Chemical costs | W16: =W114 -> 0.5389378 | X16: =X114 -> 0.61103478 | Y16: 0.57347267 | Z16: 0.55669831 | AA16: 0.68872173 | AB16: 0.57347233 | AC16: 0.57347233 | AD16: 0.5746833 | AE16: 0.58513351 | AF16: 0.58513351 | AG16: 0.58513351 | AH16: 0.58483351 | AI16: 0.58453651 | AJ16: 0.58424251 | AK16: 0.58395151 | AL16: 0.58366351
C21: Labour assumptions
D23: Current FTEs (at 30 June) | W23: 195.15 | X23: 189.77 | Y23: 198.42 | Z23: 189.28 | AA23: 188.94
D24: Actual and forecast labour costs for current FTEs ($m) | W24: 19.04180592 | X24: 19.38740503 | Y24: 21.20722179 | Z24: 20.54475584 | AA24: 20.31942596 | AB24: 22.49947676 | AC24: 22.34516391 | AD24: 22.1923943 | AE24: 22.04116755 | AF24: 21.89148398 | AG24: 21.74334358 | AH24: 21.59674642 | AI24: 21.45169243 | AJ24: 21.30818146 | AK24: 21.16621355 | AL24: 21.02578889
D25: Cost per FTE ($000) | W25: =+W24/W23*10^3 -> 97.5752289 | X25: 102.1626444 | Y25: 106.8804646 | Z25: 108.5416095 | AA25: =+AA24/$AA$23*10^3 -> 107.5443313 | AB25: =+AB24/$AA$23*10^3 -> 119.0826546 | AC25: 118.2659252 | AD25: 117.4573637 | AE25: 116.6569681 | AF25: 115.86474 | AG25: 115.0806795 | AH25: 114.3047868 | AI25: 113.5370617 | AJ25: 112.7775032 | AK25: 112.0261117 | AL25: 111.2828882
D26: Annual growth in labour costs for current FTEs | X26: =+X25/W25-1 -> 0.0470141404 | Y26: 0.04617950363 | Z26: 0.01554208108 | AA26: -0.009187980077 | AB26: 0.1072889955 | AC26: =+AC25/AB25-1 -> -0.006858508384 | AD26: -0.006836808654 | AE26: -0.006814350356 | AF26: -0.006791090792 | AG26: -0.006767033251 | AH26: -0.006742162697 | AI26: -0.006716474194 | AJ26: -0.006689960266 | AK26: -0.006662600948 | AL26: -0.006634377928
D28: Change in FTEs in future periods (net no. annual change) | AB28: 12.1472576 | AC28: 1.662081443 | AD28: 1.680285939 | AE28: 1.698872373 | AF28: 1.71785799 | AG28: 1.737250896 | AH28: 1.757063271 | AI28: 1.777305472 | AJ28: 1.79798867 | AK28: 1.819127057 | AL28: 1.840734882
D29: Increase or decrease in labour costs ($m) | AB29: 2.1800508 | AC29: -0.15431285 | AD29: -0.15276961 | AE29: -0.15122675 | AF29: -0.14968357 | AG29: -0.1481404 | AH29: -0.14659716 | AI29: -0.14505399 | AJ29: -0.14351097 | AK29: -0.14196791 | AL29: -0.14042466
D33: Total FTEs | W33: =+W23 -> 195.15 | X33: 189.77 | Y33: 198.42 | Z33: 189.28 | AA33: 188.94 | AB33: =+$AA$23+SUM($AB28:AB28) -> 201.0872576 | AC33: =+$AA$23+SUM($AB28:AC28) -> 202.749339 | AD33: =+$AA$23+SUM($AB28:AD28) -> 204.429625 | AE33: =+$AA$23+SUM($AB28:AE28) -> 206.1284974 | AF33: =+$AA$23+SUM($AB28:AF28) -> 207.8463553 | AG33: =+$AA$23+SUM($AB28:AG28) -> 209.5836062 | AH33: =+$AA$23+SUM($AB28:AH28) -> 211.3406695 | AI33: =+$AA$23+SUM($AB28:AI28) -> 213.117975 | AJ33: =+$AA$23+SUM($AB28:AJ28) -> 214.9159637 | AK33: =+$AA$23+SUM($AB28:AK28) -> 216.7350907 | AL33: =+$AA$23+SUM($AB28:AL28) -> 218.5758256
D34: Total labour costs ($m) | W34: =+W24 -> 19.04180592 | X34: 19.38740503 | Y34: 21.20722179 | Z34: 20.54475584 | AA34: 20.31942596 | AB34: =+AB29+AB24 -> 24.67952756 | AC34: =+AC29+AC24 -> 22.19085106 | AD34: 22.03962469 | AE34: 21.8899408 | AF34: 21.74180041 | AG34: 21.59520318 | AH34: =+AH29+AH24 -> 21.45014926 | AI34: =+AI29+AI24 -> 21.30663844 | AJ34: =+AJ29+AJ24 -> 21.16467049 | AK34: =+AK29+AK24 -> 21.02424564 | AL34: =+AL29+AL24 -> 20.88536423
D35: Cost per FTE | W35: =+W34/W33 -> 0.0975752289 | X35: 0.1021626444 | Y35: 0.1068804646 | Z35: 0.1085416095 | AA35: 0.1075443313 | AB35: 0.1227304398 | AC35: 0.1094496839 | AD35: 0.1078103269 | AE35: 0.1061956065 | AF35: 0.1046051559 | AG35: 0.1030386086 | AH35: =+AH34/AH33 -> 0.1014956057 | AI35: =+AI34/AI33 -> 0.09997579248 | AJ35: =+AJ34/AJ33 -> 0.09847881996 | AK35: =+AK34/AK33 -> 0.09700434559 | AL35: =+AL34/AL33 -> 0.09555203177
D36: Annual growth in total labour costs | X36: =+X34/W34-1 -> 0.0181494923 | Y36: 0.09386592776 | Z36: -0.03123775271 | AA36: -0.01096775653 | AB36: 0.214577991 | AC36: -0.100839714 | AD36: -0.006814807129 | AE36: -0.006791580715 | AF36: -0.006767509851 | AG36: -0.006742644456 | AH36: -0.006716950926 | AI36: -0.006690434563 | AJ36: -0.006663085329 | AK36: -0.0066348706 | AL36: -0.006605773752
D37: Annual growth in total labour costs per FTE | X37: =+X35/W35-1 -> 0.0470141404 | Y37: 0.04617950363 | Z37: 0.01554208108 | AA37: -0.009187980077 | AB37: 0.1412078933 | AC37: =+AC35/AB35-1 -> -0.1082107744 | AD37: -0.01497817931 | AE37: -0.01497741802 | AF37: -0.01497661396 | AG37: -0.01497581337 | AH37: -0.01497499784 | AI37: -0.01497417753 | AJ37: -0.0149733499 | AK37: -0.0149725024 | AL37: -0.01497163671
C42: Energy assumptions
D44: Electricity - traditional sources
D46: BASE LOAD
D48: Large sites
D49: Total kWh | W49: 9862900.251 | X49: 11930370.88 | Y49: 10142013.17 | Z49: 10494028.97 | AA49: 10658808.99 | AB49: 9368214.35 | AC49: 8698844.589 | AD49: 8382627.589 | AE49: 8066410.589 | AF49: 7908302.089 | AG49: 7750193.589 | AH49: 7592085.089 | AI49: 7433976.589 | AJ49: 7433976.589 | AK49: 7433976.589 | AL49: 7433976.589
D50: Total electricity costs ($m) | W50: 2.49208389 | X50: 3.152512495 | Y50: 2.396118703 | Z50: 2.178440291 | AA50: 2.154321048 | AB50: 1.96333522 | AC50: 1.865168459 | AD50: 1.771910036 | AE50: 1.926320512 | AF50: 1.733688461 | AG50: 1.560319615 | AH50: 1.560319615 | AI50: 1.560319615 | AJ50: 1.560319615 | AK50: 1.560319615 | AL50: 1.560319615
D51: Average c/kWh | W51: =+W50/W49*100*10^6 -> 25.26725229 | X51: 26.42426229 | Y51: 23.62567139 | Z51: 20.75885532 | AA51: 20.21164888 | AB51: 20.95741138 | AC51: =+AC50/AC49*100*10^6 -> 21.44156548 | AD51: 21.13788328 | AE51: 23.88076445 | AF51: 21.92238538 | AG51: 20.13265342 | AH51: 20.55192476 | AI51: 20.98903052 | AJ51: 20.98903052 | AK51: 20.98903052 | AL51: 20.98903052
D52: % increase p.a. | X52: =+X51/W51-1 -> 0.0457908911 | Y52: -0.1059098973 | Z52: -0.1213432636 | AA52: -0.0263601448 | AB52: 0.03689765729 | AC52: =+AC51/AB51-1 -> 0.02310180864 | AD52: -0.01416324753 | AE52: 0.1297613923 | AF52: -0.08200654851 | AG52: -0.08163947154 | AH52: 0.02082543835 | AI52: 0.0212683613 | AJ52: 0 | AK52: 0 | AL52: 0
D54: Medium sites
D55: Total kWh
D56: Total electricity costs ($m)
D57: Average c/kWh | W57: =+W56/W55*100*10^6 ->  | AC57: =+AC56/AC55*100*10^6 -> 
D58: % increase p.a. | X58: =+X57/W57-1 ->  | AC58: =+AC57/AB57-1 -> 
D60: Small sites
D61: Total kWh | W61: 3351546.377 | X61: 4124694.639 | Y61: 3829125.846 | Z61: 3678816.895 | AA61: 4018536.062 | AB61: 3427126.41 | AC61: 3396019.387 | AD61: 3340216.387 | AE61: 3284413.387 | AF61: 3256511.887 | AG61: 3228610.387 | AH61: 3200708.887 | AI61: 3172807.387 | AJ61: 3172807.387 | AK61: 3172807.387 | AL61: 3172807.387
D62: Total electricity costs ($m) | W62: 0 | X62: 0.4805355455 | Y62: 0.8275440273 | Z62: 0.7594355091 | AA62: 0.7726887818 | AB62: 0.81686778 | AC62: 0.776024391 | AD62: 0.7372231714 | AE62: 0.8336481343 | AF62: 0.7502833209 | AG62: 0.6752549888 | AH62: 0.6752549888 | AI62: 0.6752549888 | AJ62: 0.6752549888 | AK62: 0.6752549888 | AL62: 0.6752549888
D63: Average c/kWh | W63: =+W62/W61*100*10^6 -> 0 | X63: 11.65020899 | Y63: 21.61182632 | Z63: 20.64347128 | AA63: 19.22811616 | AB63: 23.83535599 | AC63: =+AC62/AC61*100*10^6 -> 22.85100002 | AD63: 22.07112013 | AE63: 25.3819491 | AF63: 23.03947742 | AG63: 20.91472515 | AH63: 21.09704483 | AI63: 21.28257112 | AJ63: 21.28257112 | AK63: 21.28257112 | AL63: 21.28257112
D64: % increase p.a. | X64: =+X63/W63-1 ->  | Y64: 0.8550591102 | Z64: -0.04480671939 | AA64: -0.06856187614 | AB64: 0.2396095277 | AC64: =+AC63/AB63-1 -> -0.04129814405 | AD64: -0.03412891746 | AE64: 0.1500072925 | AF64: -0.09228888121 | AG64: -0.09222224208 | AH64: 0.008717287633 | AI64: 0.008793946998 | AJ64: 0 | AK64: 0 | AL64: 0
D67: NEW PROJECTS
D69: Large sites
D70: Total kWh | AC70: 0 | AD70: 0 | AE70: 674817.805 | AF70: 850422.6066 | AG70: 850422.6066 | AH70: 850422.6066 | AI70: 850422.6066 | AJ70: 850422.6066 | AK70: 850422.6066 | AL70: 850422.6066
D71: Total electricity costs ($m) | AC71: 0 | AD71: 0 | AE71: 0.237737 | AF71: 0.29960223 | AG71: 0.29960223 | AH71: 0.29960223 | AI71: 0.29960223 | AJ71: 0.29960223 | AK71: 0.29960223 | AL71: 0.29960223
D72: Average c/kWh | W72: =+W71/W70*100*10^6 ->  | AC72: =+AC71/AC70*100*10^6 ->  | AE72: 35.22980547 | AF72: 35.22980547 | AG72: 35.22980547 | AH72: 35.22980547 | AI72: 35.22980547 | AJ72: 35.22980547 | AK72: 35.22980547 | AL72: 35.22980547
D73: % increase p.a. | X73: =+X72/W72-1 ->  | AC73: =+AC72/AB72-1 ->  | AF73: 0 | AG73: 0 | AH73: 0 | AI73: 0 | AJ73: 0 | AK73: 0 | AL73: 0
D75: Medium sites
D76: Total kWh
D77: Total electricity costs ($m)
D78: Average c/kWh | W78: =+W77/W76*100*10^6 ->  | AC78: =+AC77/AC76*100*10^6 -> 
D79: % increase p.a. | W79: =+W78/V78-1 ->  | AC79: =+AC78/AB78-1 -> 
D81: Small sites
D82: Total kWh
D83: Total electricity costs ($m)
D84: Average c/kWh | W84: =+W83/W82*100*10^6 ->  | AH84: =+AH83/AH82*100*10^6 ->  | AI84: =+AI83/AI82*100*10^6 ->  | AJ84: =+AJ83/AJ82*100*10^6 ->  | AK84: =+AK83/AK82*100*10^6 ->  | AL84: =+AL83/AL82*100*10^6 -> 
D85: % increase p.a. | X85: =+X84/W84-1 ->  | AC85: =+AC84/AB84-1 -> 
D88: Greenhouse Gas Offsets
D89: % increase p.a. | W89: =W88/V88-1 ->  | AH89: =AH88/AG88-1 ->  | AI89: =AI88/AH88-1 ->  | AJ89: =AJ88/AI88-1 ->  | AK89: =AK88/AJ88-1 ->  | AL89: =AL88/AK88-1 -> 
D92: TOTAL ENERGY COSTS | W92: =+SUM(W50,W56,W62,W71,W77,W83,W88) -> 2.49208389 | X92: 3.63304804 | Y92: 3.22366273 | Z92: 2.9378758 | AA92: 2.92700983 | AB92: 2.780203 | AC92: 2.64119285 | AD92: 2.509133207 | AE92: 2.997705647 | AF92: 2.783574012 | AG92: 2.535176834 | AH92: =+SUM(AH50,AH56,AH62,AH71,AH77,AH83,AH88) -> 2.535176834 | AI92: =+SUM(AI50,AI56,AI62,AI71,AI77,AI83,AI88) -> 2.535176834 | AJ92: =+SUM(AJ50,AJ56,AJ62,AJ71,AJ77,AJ83,AJ88) -> 2.535176834 | AK92: =+SUM(AK50,AK56,AK62,AK71,AK77,AK83,AK88) -> 2.535176834 | AL92: =+SUM(AL50,AL56,AL62,AL71,AL77,AL83,AL88) -> 2.535176834
D93: % increase p.a. | W93: =W92/V92-1 ->  | X93: 0.4578353701 | Y93: -0.112683704 | Z93: -0.08865286289 | AA93: -0.003698580451 | AB93: -0.05015590604 | AC93: -0.05 | AD93: -0.05 | AE93: 0.1947176171 | AF93: -0.07143184152 | AG93: -0.08923677873 | AH93: =AH92/AG92-1 -> 0 | AI93: =AI92/AH92-1 -> 0 | AJ93: =AJ92/AI92-1 -> 0 | AK93: =AK92/AJ92-1 -> 0 | AL93: =AL92/AK92-1 -> 0
C98: IT cost assumptions
D100: Water related IT costs | W100: 1.62410033 | X100: 1.55111674 | Y100: 1.11231551 | Z100: 1.71102114 | AA100: 2.18295543 | AB100: 2.27472524 | AC100: 2.38079648 | AD100: 2.50366628 | AE100: 2.50037228 | AF100: 2.49237083 | AG100: 2.48912572 | AH100: 2.48123116 | AI100: 2.47340129 | AJ100: 2.46563628 | AK100: 2.45793624 | AL100: 2.45030145
D101: Sewerage and trade waste related IT costs | W101: 2.03997238 | X101: 1.91050808 | Y101: 1.97134052 | Z101: 2.32080592 | AA101: 2.70928439 | AB101: 2.77090478 | AC101: 2.91214663 | AD101: 3.06389153 | AE101: 3.06035677 | AF101: 3.05402219 | AG101: 3.05057171 | AH101: 3.0443741 | AI101: 3.03825602 | AJ101: 3.03221724 | AK101: 3.02625768 | AL101: 3.02037724
D102: Other IT costs | W102: 0.41587205 | X102: 0.35939134 | Y102: 0.85902501 | Z102: 0.60978478 | AA102: 0.52632896 | AB102: 0.49617954 | AC102: 0.53135015 | AD102: 0.56022525 | AE102: 0.55998449 | AF102: 0.56165136 | AG102: 0.56144599 | AH102: 0.56314294 | AI102: 0.56485473 | AJ102: 0.56658096 | AK102: 0.56832144 | AL102: 0.57007579
D103: Total IT costs | W103: =SUM(W100:W102) -> 4.07994476 | X103: 3.82101616 | Y103: 3.94268104 | Z103: 4.64161184 | AA103: 5.41856878 | AB103: 5.54180956 | AC103: =SUM(AC100:AC102) -> 5.82429326 | AD103: 6.12778306 | AE103: 6.12071354 | AF103: 6.10804438 | AG103: 6.10114342 | AH103: 6.0887482 | AI103: 6.07651204 | AJ103: 6.06443448 | AK103: 6.05251536 | AL103: 6.04075448
D104: % increase p.a. | X104: =X103/W103-1 -> -0.06346375141 | Y104: 0.03184097499 | Z104: 0.1772729757 | AA104: 0.1673894687 | AB104: 0.02274415718 | AC104: 0.0509731879 | AD104: 0.05210757537 | AE104: -0.00115368314 | AF104: -0.002069882852 | AG104: -0.001129814974 | AH104: =AH103/AG103-1 -> -0.002031622459 | AI104: =AI103/AH103-1 -> -0.002009634755 | AJ104: =AJ103/AI103-1 -> -0.00198758102 | AK104: =AK103/AJ103-1 -> -0.00196541327 | AL104: =AL103/AK103-1 -> -0.001943139224
C109: Chemical cost assumptions
D111: Water related chemical costs | W111: 0.46953127 | X111: 0.50934498 | Y111: 0.47047988 | Z111: 0.50431765 | AA111: 0.59162472 | AB111: 0.47637532 | AC111: 0.47637532 | AD111: 0.47758629 | AE111: 0.4880365 | AF111: 0.4880365 | AG111: 0.4880365 | AH111: 0.4877365 | AI111: 0.4874395 | AJ111: 0.4871455 | AK111: 0.4868545 | AL111: 0.4865665
D112: Sewerage and trade waste related chemical costs | W112: 0.00928728 | X112: 0.04163517 | Y112: 0.01963522 | Z112: 0.00511114 | AA112: 0.02334182 | AB112: 0.02334182 | AC112: 0.02334182 | AD112: 0.02334182 | AE112: 0.02334182 | AF112: 0.02334182 | AG112: 0.02334182 | AH112: 0.02334182 | AI112: 0.02334182 | AJ112: 0.02334182 | AK112: 0.02334182 | AL112: 0.02334182
D113: Other chemical costs | W113: 0.06011925 | X113: 0.06005463 | Y113: 0.08335757 | Z113: 0.04726952 | AA113: 0.07375519 | AB113: 0.07375519 | AC113: 0.07375519 | AD113: 0.07375519 | AE113: 0.07375519 | AF113: 0.07375519 | AG113: 0.07375519 | AH113: 0.07375519 | AI113: 0.07375519 | AJ113: 0.07375519 | AK113: 0.07375519 | AL113: 0.07375519
D114: Total chemical costs | W114: =SUM(W111:W113) -> 0.5389378 | X114: 0.61103478 | Y114: 0.57347267 | Z114: 0.55669831 | AA114: 0.68872173 | AB114: 0.57347233 | AC114: =SUM(AC111:AC113) -> 0.57347233 | AD114: 0.5746833 | AE114: 0.58513351 | AF114: 0.58513351 | AG114: 0.58513351 | AH114: 0.58483351 | AI114: 0.58453651 | AJ114: 0.58424251 | AK114: 0.58395151 | AL114: 0.58366351
D115: % increase p.a. | X115: =X114/W114-1 -> 0.1337760684 | Y115: -0.06147294922 | Z115: -0.02925049593 | AA115: 0.2371543395 | AB115: -0.1673381207 | AC115: 0 | AD115: 0.002111645038 | AE115: 0.01818429385 | AF115: 0 | AG115: 0 | AH115: =AH114/AG114-1 -> -0.0005127035025 | AI115: =AI114/AH114-1 -> -0.0005078368372 | AJ115: =AJ114/AI114-1 -> -0.0005029625951 | AK115: =AK114/AJ114-1 -> -0.0004980808398 | AL115: =AL114/AK114-1 -> -0.000493191635

Sheet Opex_FO
B1: Operating Expenditure - Forecast
B2: =+Model_Name -> GWM Water
B3: Go to Table of Contents
L4: FIRST REG PERIOD | P4: SECOND REG PERIOD | U4: THIRD REG PERIOD | Z4: FOURTH REG PERIOD | AE4: FIFTH REG PERIOD | AJ4: SIXTH REG PERIOD
K5: 2006 | L5: 2007 | M5: 2008 | N5: 2009 | O5: 2010 | P5: 2011 | Q5: 2012 | R5: 2013 | S5: 2014 | T5: 2015 | U5: 2016 | V5: 2017 | W5: 2018 | X5: 2019 | Y5: 2020 | Z5: 2021 | AA5: 2022 | AB5: 2023 | AC5: 2024 | AD5: 2025 | AE5: 2026 | AF5: 2027 | AG5: 2028 | AH5: =AG5+1 -> 2029 | AI5: =AH5+1 -> 2030 | AJ5: =AI5+1 -> 2031 | AK5: =AJ5+1 -> 2032 | AL5: =AK5+1 -> 2033
B6: $m, 01/01/23 | K6: =+CONCATENATE(K5-1,"-",RIGHT(K5,2)) -> 2005-06 | L6: =+CONCATENATE(L5-1,"-",RIGHT(L5,2)) -> 2006-07 | M6: 2007-08 | N6: 2008-09 | O6: 2009-10 | P6: 2010-11 | Q6: 2011-12 | R6: 2012-13 | S6: 2013-14 | T6: 2014-15 | U6: 2015-16 | V6: 2016-17 | W6: 2017-18 | X6: 2018-19 | Y6: 2019-20 | Z6: 2020-21 | AA6: 2021-22 | AB6: 2022-23 | AC6: 2023-24 | AD6: 2024-25 | AE6: 2025-26 | AF6: 2026-27 | AG6: 2027-28 | AH6: 2028-29 | AI6: 2029-30 | AJ6: 2030-31 | AK6: 2031-32 | AL6: 2032-33
B8: URBAN
C9: Parameters | F9: 4th period | H9: 5th period
D11: Cost efficiency improvement rate (% per annum) | F11: =Determination_Lookup!X33 -> 0.015 | H11: =SUM(AC11:AG11)/5 -> 0.01408043939 | AC11: 0.01035126911 | AD11: 0.01304153338 | AE11: 0.01790342778 | AF11: 0.01532664597 | AG11: 0.01377932072 | AH11: 0.01 | AI11: 0.009499411776 | AJ11: 0.0096180918 | AK11: 0.009476960466 | AL11: 0.009354905015
D13: Customer growth forecast (% per annum) | F13: =Determination_Lookup!X34 -> 0.005 | H13: =SUM(AC13:AG13)/5 -> 0.004898995973 | X13: =IF(X15="","",X15/W15-1) -> 0.003801922956 | Y13: 0.003286693586 | Z13: 0.00467989517 | AA13: 0.004037016334 | AB13: 0.004911265781 | AC13: 0.004947229551 | AD13: 0.004952710565 | AE13: 0.00483923641 | AF13: 0.004963658926 | AG13: 0.004792144411 | AH13: 0.004857067619 | AI13: 0.004862708558 | AJ13: 0.004810199942 | AK13: 0.004758334295 | AL13: 0.004620992509
E14: Net baseline opex growth | F14: =IFERROR(F13-F11,"-") -> -0.01 | H14: =IFERROR(H13-H11,"-") -> -0.009181443421
D15: Water customers (No.) - Residential & Non-Residential - [BED 1] | W15: =Determination_Lookup!M22 -> 31826 | X15: =Determination_Lookup!N22 -> 31947 | Y15: =Determination_Lookup!O22 -> 32052 | Z15: 32202 | AA15: 32332 | AB15: =+AA$15*(1+AB$13) -> 32490.79105 | AC15: 32651.53045 | AD15: 32813.24403 | AE15: 32972.03507 | AF15: 33135.69701 | AG15: 33294.48805 | AH15: 33456.20163 | AI15: 33618.88939 | AJ15: 33780.60297 | AK15: 33941.34237 | AL15: 34098.18506
D17: Sewer customers (No.) - Residential & Non-Residential - [BED 2] | W17: =Determination_Lookup!M23 -> 25833 | X17: =Determination_Lookup!N23 -> 26043 | Y17: =Determination_Lookup!O23 -> 26126 | Z17: 26290 | AA17: 26299 | AB17: =+AA$17*(1+AB$13) -> 26428.16138 | AC17: 26558.90756 | AD17: 26690.44614 | AE17: 26819.60752 | AF17: 26952.7309 | AG17: 27081.89228 | AH17: 27213.43087 | AI17: 27345.76185 | AJ17: 27477.30043 | AK17: 27608.04661 | AL17: 27735.62319
D19: Total metered volume of water delivered to customers (ML) - [BED 10] | W19: =Determination_Lookup!M24 -> 9296.01948 | X19: =Determination_Lookup!N24 -> 10138.8 | Y19: =Determination_Lookup!O24 -> 9769.25 | Z19: 8900 | AA19: 9091.8 | AB19: 9136.452246 | AC19: 9181.652373 | AD19: 9227.126439 | AE19: 9271.778686 | AF19: 9317.800633 | AG19: 9362.452879 | AH19: 9407.926946 | AI19: 9453.674953 | AJ19: 9499.149019 | AK19: 9544.349146 | AL19: 9588.453512
D20: Residential, Non-Residential & Recycled (Residential & Non-Residential)
C24: Baseline Forecast
B27: URBAN | D27: Baseline year - total controllable operating expenditure in 2021-22 - Urban: | AA27: =+Opex_Breakdown!AA12+Opex_Breakdown!AA13+Opex_Breakdown!AA14 -> 31.12308007
AD28: ="Comparison with approved "&$AE$32&" total controllable opex" -> Comparison with approved 2021-22 total controllable opex
D29: Adjustments for non-recurring expenditure items incurred in 2021-22 and any efficiency savings to be realised from 2021-22: | AD29: per 2018 determination model (Urban & Rural)
D31: 1 | E31: Reduction in Analysis and Sampling which increased in prior years due to the pandemic including more efficient sampling program | AA31: 0.2146058812
D32: 2 | AE32: =$AA$6 -> 2021-22 | AF32: Difference | AG32: %
D33: 3
D34: 4 | AE34: =Determination_Lookup!$Q$20 -> 34.48035724 | AF34: =+(AA38+AA56)-AE34 -> 1.213323473 | AG34: =+AF34/AE34 -> 0.03518883127
D35: 5
AA36: =SUM(AA31:AA35) -> 0.2146058812 | AD36: ($, 2022-23)
D38: Baseline controllable operating expenditure (2021-22) - Urban | AA38: =+AA27-AA36 -> 30.90847419
D40: Adjusted Baseline controllable operating expenditure (Forecast) - Urban | AB40: =+AA38*(1+$AB$13-$F$11) -> 30.59664681 | AC40: =+AB$40*(1+AC$13-AC$11) -> 30.43130132 | AD40: 30.18514791 | AE40: 29.79080336 | AF40: 29.48208165 | AG40: 29.21712099 | AH40: 29.06685931 | AI40: 28.93208491 | AJ40: 28.79298257 | AK40: 28.65711925 | AL40: 28.52145896
B45: RURAL | D45: Baseline year - total controllable operating expenditure in 2021-22 - Rural: | AA45: =+Opex_Breakdown!AA15+Opex_Breakdown!AA16+Opex_Breakdown!AA17+Opex_Breakdown!AA18 -> 4.78520653
D47: Adjustments for non-recurring expenditure items incurred in 2021-22 and any efficiency savings to be realised from 2021-22:
D49: 1
D50: 2
D51: 3
D52: 4
D53: 5
AA54: =SUM(AA49:AA53) -> 0
D56: Baseline controllable operating expenditure (2021-22) - Rural | AA56: =+AA45-AA54 -> 4.78520653
D58: Adjusted Baseline controllable operating expenditure (Forecast) - Rural | AB58: =AA56 -> 4.78520653 | AC58: =+AB58 -> 4.78520653 | AD58: =+AC58 -> 4.78520653 | AE58: =+AD58 -> 4.78520653 | AF58: 4.78520653 | AG58: 4.78520653 | AH58: 4.78520653 | AI58: 4.78520653 | AJ58: 4.78520653 | AK58: 4.78520653 | AL58: 4.78520653
C62: Operating expenditure - reconciliation
D65: Adjusted Baseline controllable operating expenditure (Forecast) | AC65: =+AC40+AC58 -> 35.21650785 | AD65: =+AD40+AD58 -> 34.97035444 | AE65: 34.57600989 | AF65: 34.26728818 | AG65: 34.00232752 | AH65: =+AH40+AH58 -> 33.85206584 | AI65: =+AI40+AI58 -> 33.71729144 | AJ65: =+AJ40+AJ58 -> 33.5781891 | AK65: =+AK40+AK58 -> 33.44232578 | AL65: =+AL40+AL58 -> 33.30666549
H66: Controllable
D67: Forecast variations to baseline operating expenditure (above or below baseline) | H67: only
D69: 1 | E69: East Grampians Rural Water Supply - opex | H69: Domestic and stock | AC69: 0 | AD69: 0.365086 | AE69: 0.365086 | AF69: 0.365086 | AG69: 0.365086 | AH69: 0.35838674 | AI69: 0.35803726 | AJ69: 0.35769196 | AK69: 0.35735082 | AL69: 0.35701385
D70: 2 | E70: Green energy costs (net of future 5% productivity) | H70: Urban Water | AC70: 0 | AD70: 0 | AE70: 0.50174876 | AF70: 0.47666133 | AG70: 0.45199925 | AH70: 0.42939929 | AI70: 0.40602933 | AJ70: 0.38572785 | AK70: 0.36644146 | AL70: 0.34811938
D71: 3 | E71: Cost adjustments based on IWM and Schneider projections | H71: Urban Water | AC71: 0.0044081 | AD71: 0.00235054 | AE71: 0.01223231 | AF71: 0.01697898 | AG71: -0.04014322 | AH71: 0 | AI71: 0 | AJ71: 0 | AK71: 0 | AL71: 0
D72: 4 | E72: New treatment - Elmhurst Scenario 2 - R2017-6510 | H72: Urban Water | AC72: 0 | AD72: 0.0036329 | AE72: 0.0036329 | AF72: 0.0036329 | AG72: 0.0036329 | AH72: -0.0026499 | AI72: -0.00258708 | AJ72: -0.00252425 | AK72: -0.00246142 | AL72: -0.00239859
D73: 5 | E73: New treatment - Kaniva - R2017-6510 - escalated | H73: Urban Water | AC73: 0 | AD73: 0 | AE73: 0.11218097 | AF73: 0.11218097 | AG73: 0.11218097 | AH73: 0.10559817 | AI73: 0.10536399 | AJ73: 0.10513282 | AK73: 0.10490465 | AL73: 0.10467948
D74: 6 | E74: New treatment - Moyston - R2017-6510 escalated | H74: Urban Water | AC74: 0 | AD74: 0 | AE74: 0.02081415 | AF74: 0.02081415 | AG74: 0.02081415 | AH74: 0.01453135 | AI74: 0.01459417 | AJ74: 0.014657 | AK74: 0.01471983 | AL74: 0.01478266
D75: 7 | E75: New treatment - R2022-25414 Opex Berriwillock and Culgoa | H75: Urban Water | AC75: 0 | AD75: 0 | AE75: 0 | AF75: 0 | AG75: 0.03875 | AH75: 0.03875 | AI75: 0.03875 | AJ75: 0.03875 | AK75: 0.03875 | AL75: 0.03875
D76: 8 | E76: SaaS fees | H76: Urban Water | AC76: 0.2 | AD76: 0.4 | AE76: 0.4 | AF76: 0.4 | AG76: 0.4 | AH76: 0.4 | AI76: 0.4 | AJ76: 0.4 | AK76: 0.4 | AL76: 0.4
D77: 9 | H77: [Service]
D78: 10 | E78: Rural cost efficiency amount | H78: Domestic and stock | AC78: -0.03223974586 | AD78: -0.09651989146 | AE78: -0.1759599825 | AF78: -0.2479463132 | AG78: -0.3116398574 | AH78: -0.3567691897 | AI78: -0.3997669897 | AJ78: -0.4394183642 | AK78: -0.4812375231 | AL78: -0.5187265063
D79: 11 | H79: [Service]
D80: 12 | H80: [Service]
D81: 13 | H81: [Service]
D82: 14 | H82: [Service]
D83: 15 | H83: [Service]
D85: Total changes required to baseline operating expenditure | AC85: =SUM(AC69:AC84) -> 0.1721683541 | AD85: 0.6745495485 | AE85: 1.239735107 | AF85: 1.147408017 | AG85: 1.040680193 | AH85: =SUM(AH69:AH84) -> 0.9872464603 | AI85: =SUM(AI69:AI84) -> 0.9204206803 | AJ85: =SUM(AJ69:AJ84) -> 0.8600170158 | AK85: =SUM(AK69:AK84) -> 0.7984678169 | AL85: =SUM(AL69:AL84) -> 0.7422202737
D88: Total controllable operating expenditure | AC88: =+AC85+AC65 -> 35.3886762 | AD88: 35.64490399 | AE88: 35.815745 | AF88: 35.4146962 | AG88: 35.04300771 | AH88: =+AH85+AH65 -> 34.8393123 | AI88: =+AI85+AI65 -> 34.63771212 | AJ88: =+AJ85+AJ65 -> 34.43820612 | AK88: =+AK85+AK65 -> 34.2407936 | AL88: =+AL85+AL65 -> 34.04888576
D90: Non-controllable operating expenditure
D91: External bulk water charges (excl. temporary purchases) | AC91: =+Opex_Breakdown!AC31 -> 0.1932883495 | AD91: =+Opex_Breakdown!AD31 -> 0.1876585918 | AE91: =+Opex_Breakdown!AE31 -> 0.1821928075 | AF91: =+Opex_Breakdown!AF31 -> 0.1768862209 | AG91: =+Opex_Breakdown!AG31 -> 0.1717341951 | AH91: =+Opex_Breakdown!AH31 -> 0.1667322282 | AI91: =+Opex_Breakdown!AI31 -> 0.1618759497 | AJ91: =+Opex_Breakdown!AJ31 -> 0.1571611162 | AK91: =+Opex_Breakdown!AK31 -> 0.152583608 | AL91: =+Opex_Breakdown!AL31 -> 0.1481394252
D92: External temporary water purchases | AC92: =+Opex_Breakdown!AC32 -> 0 | AD92: =+Opex_Breakdown!AD32 -> 0 | AE92: =+Opex_Breakdown!AE32 -> 0 | AF92: =+Opex_Breakdown!AF32 -> 0 | AG92: =+Opex_Breakdown!AG32 -> 0 | AH92: =+Opex_Breakdown!AH32 -> 0 | AI92: =+Opex_Breakdown!AI32 -> 0 | AJ92: =+Opex_Breakdown!AJ32 -> 0 | AK92: =+Opex_Breakdown!AK32 -> 0 | AL92: =+Opex_Breakdown!AL32 -> 0
D93: Licence fees | AC93: =+Opex_Breakdown!AC33 -> 0.125281 | AD93: =+Opex_Breakdown!AD33 -> 0.125281 | AE93: =+Opex_Breakdown!AE33 -> 0.125281 | AF93: =+Opex_Breakdown!AF33 -> 0.125281 | AG93: =+Opex_Breakdown!AG33 -> 0.125281 | AH93: =+Opex_Breakdown!AH33 -> 0.125281 | AI93: =+Opex_Breakdown!AI33 -> 0.125281 | AJ93: =+Opex_Breakdown!AJ33 -> 0.125281 | AK93: =+Opex_Breakdown!AK33 -> 0.125281 | AL93: =+Opex_Breakdown!AL33 -> 0.125281
D94: Environment Contribution | AC94: =+Opex_Breakdown!AC34 -> 2.525495146 | AD94: =+Opex_Breakdown!AD34 -> 2.451937035 | AE94: =+Opex_Breakdown!AE34 -> 2.380521393 | AF94: =+Opex_Breakdown!AF34 -> 2.311185818 | AG94: =+Opex_Breakdown!AG34 -> 2.243869726 | AH94: =+Opex_Breakdown!AH34 -> 2.178514298 | AI94: =+Opex_Breakdown!AI34 -> 2.115062425 | AJ94: =+Opex_Breakdown!AJ34 -> 2.053458665 | AK94: =+Opex_Breakdown!AK34 -> 1.993649189 | AL94: =+Opex_Breakdown!AL34 -> 1.935581737
D95: Other non-controllable | AC95: =+Opex_Breakdown!AC35 -> 0 | AD95: =+Opex_Breakdown!AD35 -> 0 | AE95: =+Opex_Breakdown!AE35 -> 0 | AF95: =+Opex_Breakdown!AF35 -> 0 | AG95: =+Opex_Breakdown!AG35 -> 0 | AH95: =+Opex_Breakdown!AH35 -> 0 | AI95: =+Opex_Breakdown!AI35 -> 0 | AJ95: =+Opex_Breakdown!AJ35 -> 0 | AK95: =+Opex_Breakdown!AK35 -> 0 | AL95: =+Opex_Breakdown!AL35 -> 0
D96: Total non-controllable operating expenditure | AC96: =SUM(AC91:AC95) -> 2.844064495 | AD96: 2.764876626 | AE96: 2.6879952 | AF96: 2.613353039 | AG96: 2.540884922 | AH96: =SUM(AH91:AH95) -> 2.470527526 | AI96: =SUM(AI91:AI95) -> 2.402219375 | AJ96: =SUM(AJ91:AJ95) -> 2.335900781 | AK96: =SUM(AK91:AK95) -> 2.271513797 | AL96: =SUM(AL91:AL95) -> 2.209002162
D99: Total prescribed operating expenditure | AC99: =+AC96+AC88 -> 38.23274069 | AD99: 38.40978062 | AE99: 38.5037402 | AF99: 38.02804924 | AG99: =+AG96+AG88 -> 37.58389263 | AH99: 37.30983983 | AI99: 37.03993149 | AJ99: 36.7741069 | AK99: 36.5123074 | AL99: 36.25788792
AB102: To reconcile to 'Opex_Breakdown' tab row 39 >> | AC102: =+Opex_Breakdown!AC39 -> 38.23363043 | AD102: =+Opex_Breakdown!AD39 -> 38.41067036 | AE102: =+Opex_Breakdown!AE39 -> 38.50462994 | AF102: =+Opex_Breakdown!AF39 -> 38.02893898 | AG102: =+Opex_Breakdown!AG39 -> 37.58478237 | AH102: =+Opex_Breakdown!AH39 -> 37.31072957 | AI102: =+Opex_Breakdown!AI39 -> 37.04082123 | AJ102: =+Opex_Breakdown!AJ39 -> 36.77499664 | AK102: =+Opex_Breakdown!AK39 -> 36.51319714 | AL102: =+Opex_Breakdown!AL39 -> 36.25877766
AB103: Difference | AC103: =+AC102-AC99 -> 0.000889740458 | AD103: 0.000889740458 | AE103: 0.000889740458 | AF103: 0.000889740458 | AG103: 0.000889740458 | AH103: =+AH102-AH99 -> 0.000889740458 | AI103: =+AI102-AI99 -> 0.000889740458 | AJ103: =+AJ102-AJ99 -> 0.000889740458 | AK103: =+AK102-AK99 -> 0.000889740458 | AL103: =+AL102-AL99 -> 0.000889740458
AB104: Test | AC104: =IF(ROUND(AC102,2)=ROUND(AC99,2),0,1) -> 0 | AD104: 0 | AE104: 0 | AF104: 0 | AG104: 0 | AH104: 0 | AI104: 0 | AJ104: 0 | AK104: 0 | AL104: 0
AC143: =+AC$164 -> 2023-24 | AD143: 2024-25 | AE143: 2025-26 | AF143: 2026-27 | AG143: 2027-28 | AH143: 2028-29 | AI143: 2029-30 | AJ143: 2030-31 | AK143: 2031-32 | AL143: 2032-33
AB144: Total controllable opex | AC144: =+AC88 -> 35.3886762 | AD144: 35.64490399 | AE144: 35.815745 | AF144: 35.4146962 | AG144: 35.04300771 | AH144: 34.8393123 | AI144: 34.63771212 | AJ144: 34.43820612 | AK144: 34.2407936 | AL144: 34.04888576
AB145: Change - $ | AD145: =+AD144-AC144 -> 0.25622779 | AE145: 0.17084101 | AF145: -0.4010488 | AG145: -0.37168849 | AH145: -0.20369541 | AI145: -0.20160018 | AJ145: -0.199506 | AK145: -0.19741252 | AL145: -0.1919078384
AB146: Change - % | AC146: =IFERROR(AC145/AB144,"") ->  | AD146: 0.007240389229 | AE146: 0.004792859312 | AF146: -0.01119755571 | AG146: -0.01049531776 | AH146: -0.005812726227 | AI146: -0.00578657174 | AJ146: -0.005759791504 | AK146: -0.005732369431 | AL146: -0.005604655098
AC148: =+AC$164 -> 2023-24 | AD148: 2024-25 | AE148: 2025-26 | AF148: 2026-27 | AG148: 2027-28 | AH148: 2028-29 | AI148: 2029-30 | AJ148: 2030-31 | AK148: 2031-32 | AL148: 2032-33
AB149: Total non-controllable opex | AC149: =+AC96 -> 2.844064495 | AD149: 2.764876626 | AE149: 2.6879952 | AF149: 2.613353039 | AG149: 2.540884922 | AH149: 2.470527526 | AI149: 2.402219375 | AJ149: 2.335900781 | AK149: 2.271513797 | AL149: 2.209002162
AB150: Change - $ | AD150: =+AD149-AC149 -> -0.07918786879 | AE150: -0.07688142601 | AF150: -0.07464216118 | AG150: -0.07246811765 | AH150: -0.07035739577 | AI150: -0.06830815124 | AJ150: -0.06631859343 | AK150: -0.06438698392 | AL150: -0.06251163487
AB151: Change - % | AC151: =IFERROR(AC150/AB149,"") ->  | AD151: -0.0278432043 | AE151: -0.02780645808 | AF151: -0.02776871073 | AG151: -0.02772993796 | AH151: -0.02769011504 | AI151: -0.02764921683 | AJ151: -0.02760721778 | AK151: -0.02756409195 | AL151: -0.02751981298
AC153: =+AC$164 -> 2023-24 | AD153: 2024-25 | AE153: 2025-26 | AF153: 2026-27 | AG153: 2027-28 | AH153: 2028-29 | AI153: 2029-30 | AJ153: 2030-31 | AK153: 2031-32 | AL153: 2032-33
AB154: Total prescribed opex | AC154: =+AC144+AC149 -> 38.23274069 | AD154: 38.40978062 | AE154: 38.5037402 | AF154: 38.02804924 | AG154: 37.58389263 | AH154: 37.30983983 | AI154: 37.03993149 | AJ154: 36.7741069 | AK154: 36.5123074 | AL154: 36.25788792
AB155: Change - $ | AD155: =+AD154-AC154 -> 0.1770399212 | AE155: 0.09395958399 | AF155: -0.4756909612 | AG155: -0.4441566076 | AH155: -0.2740528058 | AI155: -0.2699083312 | AJ155: -0.2658245934 | AK155: -0.2617995039 | AL155: -0.2544194733
AB156: Change - % | AC156: =IFERROR(AC155/AB154,"") ->  | AD156: 0.004630584101 | AE156: 0.0024462411 | AF156: -0.01235440917 | AG156: -0.01167971054 | AH156: -0.007291762151 | AI156: -0.007234239882 | AJ156: -0.007176703161 | AK156: -0.007119126091 | AL156: -0.00696804698
AB159: Controllable vs. Non-controllable opex - % | AC159: =+AC$164 -> 2023-24 | AD159: 2024-25 | AE159: 2025-26 | AF159: 2026-27 | AG159: 2027-28 | AH159: 2028-29 | AI159: 2029-30 | AJ159: 2030-31 | AK159: 2031-32 | AL159: 2032-33
AB160: Controllable opex - % | AC160: =+AC88/AC99 -> 0.925611807 | AD160: 0.928016339 | AE160: 0.9301887249 | AF160: 0.9312782777 | AG160: 0.9323943119 | AH160: 0.9337834861 | AI160: 0.9351451453 | AJ160: 0.9364797414 | AK160: 0.9377877226 | AL160: 0.9390752664
AB161: Non-controllable opex - % | AC161: =+AC96/AC99 -> 0.07438819304 | AD161: 0.07198366099 | AE161: 0.06981127512 | AF161: 0.06872172229 | AG161: 0.06760568807 | AH161: 0.06621651386 | AI161: 0.06485485468 | AJ161: 0.06352025863 | AK161: 0.06221227742 | AL161: 0.06092473359
AC162: =SUM(AC160:AC161) -> 1 | AD162: 1 | AE162: 1 | AF162: 1 | AG162: 1 | AH162: 1 | AI162: 1 | AJ162: 1 | AK162: 1 | AL162: 1
AA164: =+AA6 -> 2021-22 | AB164: 2022-23 | AC164: 2023-24 | AD164: 2024-25 | AE164: 2025-26 | AF164: 2026-27 | AG164: 2027-28 | AH164: =+AH6 -> 2028-29 | AI164: =+AI6 -> 2029-30 | AJ164: =+AJ6 -> 2030-31 | AK164: =+AK6 -> 2031-32 | AL164: =+AL6 -> 2032-33
Z165: Third Reg period Opex | AA165: =+AA173-SUM(AA166:AA172) -> 35.9082866 | AB165: =+AB173-SUM(AB166:AB172) -> 35.53443612
Z166: Adjusted baseline opex | AC166: =+AC65 -> 35.21650785 | AD166: 34.97035444 | AE166: 34.57600989 | AF166: 34.26728818 | AG166: 34.00232752 | AH166: 33.85206584 | AI166: 33.71729144 | AJ166: 33.5781891 | AK166: 33.44232578 | AL166: 33.30666549
Z167: Forecast variations to baseline operating expenditure | AC167: =+AC85 -> 0.1721683541 | AD167: 0.6745495485 | AE167: 1.239735107 | AF167: 1.147408017 | AG167: 1.040680193 | AH167: 0.9872464603 | AI167: 0.9204206803 | AJ167: 0.8600170158 | AK167: 0.7984678169 | AL167: 0.7422202737
Z168: Licence fees | AA168: =+AA199 -> 0.1316566234 | AB168: =+AB199 -> 0.125281 | AC168: =+AC93 -> 0.125281 | AD168: 0.125281 | AE168: 0.125281 | AF168: 0.125281 | AG168: 0.125281 | AH168: 0.125281 | AI168: 0.125281 | AJ168: 0.125281 | AK168: 0.125281 | AL168: 0.125281
Z169: Environment Contribution | AA169: =+AA200 -> 2.733639644 | AB169: =+AB200 -> 2.60126 | AC169: =+AC94 -> 2.525495146 | AD169: 2.451937035 | AE169: 2.380521393 | AF169: 2.311185818 | AG169: 2.243869726 | AH169: 2.178514298 | AI169: 2.115062425 | AJ169: 2.053458665 | AK169: 1.993649189 | AL169: 1.935581737
Z170: External bulk water charges | AA170: =+AA197 -> 0.2057349622 | AB170: =+AB197 -> 0.199087 | AC170: =+AC91 -> 0.1932883495 | AD170: 0.1876585918 | AE170: 0.1821928075 | AF170: 0.1768862209 | AG170: 0.1717341951 | AH170: 0.1667322282 | AI170: 0.1618759497 | AJ170: 0.1571611162 | AK170: 0.152583608 | AL170: 0.1481394252
Z171: External temporary water purchases | AA171: =+AA198 -> 0 | AB171: =+AB198 -> 0 | AC171: =+AC92 -> 0 | AD171: 0 | AE171: 0 | AF171: 0 | AG171: 0 | AH171: 0 | AI171: 0 | AJ171: 0 | AK171: 0 | AL171: 0
Z172: Other non-controllable | AA172: =+AA201 -> 0 | AB172: =+AB201 -> 0 | AC172: =+AC95 -> 0 | AD172: 0 | AE172: 0 | AF172: 0 | AG172: 0 | AH172: 0 | AI172: 0 | AJ172: 0 | AK172: 0 | AL172: 0
Z173: Total prescribed opex | AA173: =+Opex_Breakdown!AA39 -> 38.97931783 | AB173: =+Opex_Breakdown!AB39 -> 38.46006412 | AC173: =SUM(AC166:AC172) -> 38.23274069 | AD173: 38.40978062 | AE173: 38.5037402 | AF173: 38.02804924 | AG173: 37.58389263 | AH173: 37.30983983 | AI173: 37.03993149 | AJ173: 36.7741069 | AK173: 36.5123074 | AL173: 36.25788792
AC175: =+AC$164 -> 2023-24 | AD175: 2024-25 | AE175: 2025-26 | AF175: 2026-27 | AG175: 2027-28 | AH175: 2028-29 | AI175: 2029-30 | AJ175: 2030-31 | AK175: 2031-32 | AL175: 2032-33
AB176: Adjusted baseline opex | AC176: =+AC166/AC$173 -> 0.9211086416 | AD176: 0.9104544176 | AE176: 0.8979909409 | AF176: 0.9011056015 | AG176: 0.9047047854 | AH176: 0.907322733 | AI176: 0.9102957289 | AJ176: 0.9130932586 | AK176: 0.9159192658 | AL176: 0.9186046787
AB177: Forecast variations to baseline operating expenditure | AC177: =+AC167/AC$173 -> 0.004503165376 | AD177: 0.01756192141 | AE177: 0.03219778393 | AF177: 0.03017267622 | AG177: 0.02768952654 | AH177: 0.02646075311 | AI177: 0.02484941638 | AJ177: 0.02338648273 | AK177: 0.0218684568 | AL177: 0.02047058768
AB178: Licence fees | AC178: =+AC168/AC$173 -> 0.003276798831 | AD178: 0.003261695276 | AE178: 0.003253735854 | AF178: 0.003294436673 | AG178: 0.003333369463 | AH178: 0.003357854137 | AI178: 0.00338232267 | AJ178: 0.003406772062 | AK178: 0.003431199202 | AL178: 0.003455275726
AB179: Environment Contribution | AC179: =+AC169/AC$173 -> 0.06605582283 | AD179: 0.06383626762 | AE179: 0.06182571824 | AF179: 0.0607758185 | AG179: 0.05970296234 | AH179: 0.05838980569 | AI179: 0.05710222291 | AJ179: 0.05583979702 | AK179: 0.0546021145 | AL179: 0.05338374207
AB180: External bulk water charges (excl. temporary purchases) | AC180: =+AC170/AC$173 -> 0.005055571377 | AD180: 0.004885698089 | AE180: 0.004731821028 | AF180: 0.004651467126 | AG180: 0.00456935626 | AH180: 0.004468854034 | AI180: 0.004370309101 | AJ180: 0.004273689546 | AK180: 0.004178963721 | AL180: 0.004085715791
AB181: External temporary water purchases | AC181: =+AC171/AC$173 -> 0 | AD181: 0 | AE181: 0 | AF181: 0 | AG181: 0 | AH181: 0 | AI181: 0 | AJ181: 0 | AK181: 0 | AL181: 0
AB182: Other non-controllable | AC182: =+AC172/AC$173 -> 0 | AD182: 0 | AE182: 0 | AF182: 0 | AG182: 0 | AH182: 0 | AI182: 0 | AJ182: 0 | AK182: 0 | AL182: 0
AB183: Total prescribed opex | AC183: =+AC173/AC$173 -> 1 | AD183: 1 | AE183: 1 | AF183: 1 | AG183: 1 | AH183: 1 | AI183: 1 | AJ183: 1 | AK183: 1 | AL183: 1
AC185: =+AC$164 -> 2023-24 | AD185: 2024-25 | AE185: 2025-26 | AF185: 2026-27 | AG185: 2027-28 | AH185: 2028-29 | AI185: 2029-30 | AJ185: 2030-31 | AK185: 2031-32 | AL185: 2032-33
AB186: Urban Water | AC186: =+SUMIF($H$69:$H$84,$AB186,AC$69:AC$84) -> 0.2044081 | AD186: 0.40598344 | AE186: 1.05060909 | AF186: 1.03026833 | AG186: 0.98723405 | AH186: 0.98562891 | AI186: 0.96215041 | AJ186: 0.94174342 | AK186: 0.92235452 | AL186: 0.90393293
AB187: Sewerage | AC187: 0 | AD187: 0 | AE187: 0 | AF187: 0 | AG187: 0 | AH187: 0 | AI187: 0 | AJ187: 0 | AK187: 0 | AL187: 0
AB188: Recycled Water | AC188: 0 | AD188: 0 | AE188: 0 | AF188: 0 | AG188: 0 | AH188: 0 | AI188: 0 | AJ188: 0 | AK188: 0 | AL188: 0
AB189: Bulk water - headworks | AC189: 0 | AD189: 0 | AE189: =+SUMIF($H$69:$H$84,$AB189,AE$69:AE$84) -> 0 | AF189: 0 | AG189: 0 | AH189: 0 | AI189: 0 | AJ189: 0 | AK189: 0 | AL189: 0
AB190: Domestic and stock | AC190: -0.03223974586 | AD190: 0.2685661085 | AE190: 0.1891260175 | AF190: 0.1171396868 | AG190: 0.05344614264 | AH190: 0.001617550253 | AI190: -0.04172972966 | AJ190: -0.0817264042 | AK190: -0.1238867031 | AL190: -0.1617126563
AB191: Surface water diversions | AC191: 0 | AD191: 0 | AE191: 0 | AF191: 0 | AG191: 0 | AH191: 0 | AI191: 0 | AJ191: 0 | AK191: 0 | AL191: 0
AB192: Groundwater diversions | AC192: 0 | AD192: 0 | AE192: 0 | AF192: 0 | AG192: 0 | AH192: 0 | AI192: 0 | AJ192: 0 | AK192: 0 | AL192: 0
AB193: Forecast variations to baseline operating expenditure | AC193: =SUM(AC186:AC192) -> 0.1721683541 | AD193: 0.6745495485 | AE193: 1.239735107 | AF193: 1.147408017 | AG193: 1.040680193 | AH193: 0.9872464603 | AI193: 0.9204206803 | AJ193: 0.8600170158 | AK193: 0.7984678169 | AL193: 0.7422202737
AA196: =+AA6 -> 2021-22 | AB196: 2022-23 | AC196: 2023-24 | AD196: 2024-25 | AE196: 2025-26 | AF196: 2026-27 | AG196: 2027-28 | AH196: =+AH6 -> 2028-29 | AI196: =+AI6 -> 2029-30 | AJ196: =+AJ6 -> 2030-31 | AK196: =+AK6 -> 2031-32 | AL196: =+AL6 -> 2032-33
Z197: External bulk water charges (excl. temporary purchases) | AA197: =+Opex_Breakdown!AA31 -> 0.2057349622 | AB197: =+Opex_Breakdown!AB31 -> 0.199087 | AC197: =+AC91 -> 0.1932883495 | AD197: 0.1876585918 | AE197: 0.1821928075 | AF197: 0.1768862209 | AG197: 0.1717341951 | AH197: 0.1667322282 | AI197: 0.1618759497 | AJ197: 0.1571611162 | AK197: 0.152583608 | AL197: 0.1481394252
Z198: External temporary water purchases | AA198: =+Opex_Breakdown!AA32 -> 0 | AB198: =+Opex_Breakdown!AB32 -> 0 | AC198: =+AC92 -> 0 | AD198: 0 | AE198: 0 | AF198: 0 | AG198: 0 | AH198: 0 | AI198: 0 | AJ198: 0 | AK198: 0 | AL198: 0
Z199: Licence fees | AA199: =+Opex_Breakdown!AA33 -> 0.1316566234 | AB199: =+Opex_Breakdown!AB33 -> 0.125281 | AC199: =+AC93 -> 0.125281 | AD199: 0.125281 | AE199: 0.125281 | AF199: 0.125281 | AG199: 0.125281 | AH199: 0.125281 | AI199: 0.125281 | AJ199: 0.125281 | AK199: 0.125281 | AL199: 0.125281
Z200: Environment Contribution | AA200: =+Opex_Breakdown!AA34 -> 2.733639644 | AB200: =+Opex_Breakdown!AB34 -> 2.60126 | AC200: =+AC94 -> 2.525495146 | AD200: 2.451937035 | AE200: 2.380521393 | AF200: 2.311185818 | AG200: 2.243869726 | AH200: 2.178514298 | AI200: 2.115062425 | AJ200: 2.053458665 | AK200: 1.993649189 | AL200: 1.935581737
Z201: Other non-controllable | AA201: =+Opex_Breakdown!AA35 -> 0 | AB201: =+Opex_Breakdown!AB35 -> 0 | AC201: =+AC95 -> 0 | AD201: 0 | AE201: 0 | AF201: 0 | AG201: 0 | AH201: 0 | AI201: 0 | AJ201: 0 | AK201: 0 | AL201: 0
Z202: Total Non-controllable operating expenditure | AA202: =+Opex_Breakdown!AA36 -> 3.071031229 | AB202: =+Opex_Breakdown!AB36 -> 2.925628 | AC202: =SUM(AC197:AC201) -> 2.844064495 | AD202: 2.764876626 | AE202: 2.6879952 | AF202: 2.613353039 | AG202: 2.540884922 | AH202: 2.470527526 | AI202: 2.402219375 | AJ202: 2.335900781 | AK202: 2.271513797 | AL202: 2.209002162
AB204: Check | AC204: =IF(ROUND(AC173,2)=ROUND(AC99,2),0,1) -> 0 | AD204: =IF(ROUND(AD173,2)=ROUND(AD99,2),0,1) -> 0 | AE204: 0 | AF204: 0 | AG204: 0 | AH204: 0 | AI204: 0 | AJ204: 0 | AK204: 0 | AL204: 0
AC205: =IF(ROUND(AC193,2)=ROUND(AC167,2),0,1) -> 0 | AD205: =IF(ROUND(AD193,2)=ROUND(AD167,2),0,1) -> 0 | AE205: 0 | AF205: 0 | AG205: 0 | AH205: 0 | AI205: 0 | AJ205: 0 | AK205: 0 | AL205: 0
AC206: =IF(ROUND(AC154,2)=ROUND(AC173,2),0,1) -> 0 | AD206: =IF(ROUND(AD154,2)=ROUND(AD173,2),0,1) -> 0 | AE206: 0 | AF206: 0 | AG206: 0 | AH206: 0 | AI206: 0 | AJ206: 0 | AK206: 0 | AL206: 0
AC207: =IF(ROUND(AC202,2)=ROUND(AC149,2),0,1) -> 0 | AD207: =IF(ROUND(AD202,2)=ROUND(AD149,2),0,1) -> 0 | AE207: 0 | AF207: 0 | AG207: 0 | AH207: 0 | AI207: 0 | AJ207: 0 | AK207: 0 | AL207: 0

Sheet Opex_Breakdown
A1: 80 | B1: Operating Expenditure - Breakdown
B2: =+Contents!H7 -> GWM Water
B3: Go to Table of Contents
L4: FIRST REG PERIOD | P4: SECOND REG PERIOD | U4: THIRD REG PERIOD | Z4: FOURTH REG PERIOD | AE4: FIFTH REG PERIOD | AJ4: SIXTH REG PERIOD
K6: 2006 | L6: 2007 | M6: 2008 | N6: 2009 | O6: 2010 | P6: 2011 | Q6: 2012 | R6: 2013 | S6: 2014 | T6: 2015 | U6: 2016 | V6: 2017 | W6: 2018 | X6: 2019 | Y6: 2020 | Z6: 2021 | AA6: 2022 | AB6: 2023 | AC6: 2024 | AD6: 2025 | AE6: 2026 | AF6: 2027 | AG6: 2028 | AH6: =AG6+1 -> 2029 | AI6: =AH6+1 -> 2030 | AJ6: =AI6+1 -> 2031 | AK6: =AJ6+1 -> 2032 | AL6: =AK6+1 -> 2033
B7: $m, 01/01/23 | K7: =+CONCATENATE(K6-1,"-",RIGHT(K6,2)) -> 2005-06 | L7: =+CONCATENATE(L6-1,"-",RIGHT(L6,2)) -> 2006-07 | M7: 2007-08 | N7: 2008-09 | O7: 2009-10 | P7: 2010-11 | Q7: 2011-12 | R7: 2012-13 | S7: 2013-14 | T7: 2014-15 | U7: 2015-16 | V7: 2016-17 | W7: 2017-18 | X7: =+CONCATENATE(X6-1,"-",RIGHT(X6,2)) -> 2018-19 | Y7: 2019-20 | Z7: 2020-21 | AA7: 2021-22 | AB7: 2022-23 | AC7: 2023-24 | AD7: 2024-25 | AE7: 2025-26 | AF7: 2026-27 | AG7: 2027-28 | AH7: 2028-29 | AI7: 2029-30 | AJ7: 2030-31 | AK7: 2031-32 | AL7: 2032-33
D10: Operating Expenditure Summary
E12: Urban Water | H12: (Urban) | W12: =+W59-W52-W56 -> 24.27876035 | X12: 25.06201353 | Y12: 23.43566871 | Z12: 22.63034563 | AA12: 22.14543683 | AB12: 18.77674112 | AC12: =+AC59-AC52-AC56 -> 18.71643807 | AD12: 18.61389562 | AE12: 18.75487268 | AF12: 18.61253522 | AG12: 18.51269045 | AH12: 18.41746927 | AI12: 18.32318599 | AJ12: 18.22984011 | AK12: 18.13743203 | AL12: 18.04937386
E13: Sewerage | H13: (Urban) | W13: =W70-W63-W67 -> 7.932074926 | X13: 8.323846113 | Y13: 8.744668712 | Z13: 8.17888765 | AA13: 8.856436693 | AB13: 8.40142856 | AC13: =AC70-AC63-AC67 -> 8.36011478 | AD13: 8.26956712 | AE13: 8.26962253 | AF13: 8.16061678 | AG13: 8.04348129 | AH13: 7.98019901 | AI13: 7.91755536 | AJ13: 7.8555506 | AK13: 7.79418454 | AL13: 7.73345739
E14: Recycled Water | H14: (Urban) | W14: =W81-W74-W78 -> 0.01180825462 | X14: 0.03545125491 | Y14: 0.0425140876 | Z14: 0.1136989708 | AA14: 0.1212065464 | AB14: 0.01083286 | AC14: =AC81-AC74-AC78 -> 0.01038584 | AD14: 0.00995025 | AE14: 0.00914952 | AF14: 0.00841434 | AG14: 0.00776792 | AH14: 0.00776966 | AI14: 0.00777147 | AJ14: 0.00777324 | AK14: 0.00777505 | AL14: 0.00777678
E15: Bulk water - headworks | H15: (Rural) | W15: =W92-W85-W89 -> -5.22490167 | X15: -6.95501381 | Y15: -4.226282209 | Z15: -7.541323328 | AA15: -3.805732272 | AB15: -0.9580179902 | AC15: =AC92-AC85-AC89 -> -0.9314288802 | AD15: -0.9318891502 | AE15: -0.8729508902 | AF15: -0.8757460202 | AG15: -0.8859346802 | AH15: -0.8839739402 | AI15: -0.8819739502 | AJ15: -0.8799352702 | AK15: -0.8778586402 | AL15: -0.8757445902
E16: Domestic and stock | H16: (Rural) | W16: =W103-W96-W99 -> 9.195842043 | X16: 9.548084618 | Y16: 9.129251999 | Z16: 9.09485506 | AA16: 7.902140775 | AB16: 8.54294095 | AC16: 8.47277262 | AD16: 8.92656367 | AE16: 8.89018736 | AF16: 8.74967556 | AG16: 8.61254593 | AH16: 8.56979386 | AI16: 8.52747412 | AJ16: 8.48558608 | AK16: 8.44412991 | AL16: 8.40310496
E17: Surface water diversions | H17: (Rural) | W17: =W114-W107-W110 -> 0.09635261714 | X17: 0.1527900904 | Y17: 0.1466311001 | Z17: 0.1052740669 | AA17: 0.09895985478 | AB17: 0.06782063 | AC17: 0.06772811 | AD17: 0.06733143 | AE17: 0.06775036 | AF17: 0.06721484 | AG17: 0.06660456 | AH17: =AH114-AH107-AH110 -> 0.06614475 | AI17: =AI114-AI107-AI110 -> 0.06568945 | AJ17: =AJ114-AJ107-AJ110 -> 0.06523883 | AK17: =AK114-AK107-AK110 -> 0.06479272 | AL17: =AL114-AL107-AL110 -> 0.06435135
E18: Groundwater diversions | H18: (Rural) | W18: =W125-W118-W121 -> 0.4680609332 | X18: 0.4094150722 | Y18: 0.4452500153 | Z18: 0.4944640648 | AA18: 0.5898381719 | AB18: 0.69268999 | AC18: 0.6935554 | AD18: 0.69037479 | AE18: 0.69800318 | AF18: 0.69287522 | AG18: 0.68674198 | AH18: =AH125-AH118-AH121 -> 0.68279943 | AI18: =AI125-AI118-AI121 -> 0.67889942 | AJ18: =AJ125-AJ118-AJ121 -> 0.67504227 | AK18: =AK125-AK118-AK121 -> 0.67122773 | AL18: =AL125-AL118-AL121 -> 0.66745575
E19: Total controllable operating expenditure | W19: =SUM(W12:W18) -> 36.75799745 | X19: 36.57658687 | Y19: 37.71770242 | Z19: 33.07620211 | AA19: 35.9082866 | AB19: 35.53443612 | AC19: 35.38956594 | AD19: 35.64579373 | AE19: 35.81663474 | AF19: 35.41558594 | AG19: 35.04389745 | AH19: =SUM(AH12:AH18) -> 34.84020204 | AI19: =SUM(AI12:AI18) -> 34.63860186 | AJ19: =SUM(AJ12:AJ18) -> 34.43909586 | AK19: =SUM(AK12:AK18) -> 34.24168334 | AL19: =SUM(AL12:AL18) -> 34.0497755
E22: Operations & Maintenance | W22: =W51+W62+W73+W84+W95+W106+W117 -> 13.66230691 | X22: 15.25788714 | Y22: 15.90068098 | Z22: 13.82345712 | AA22: 14.69131078 | AB22: 15.54275164 | AC22: 15.36300366 | AD22: 15.57057745 | AE22: 15.75304796 | AF22: 15.543515 | AG22: 15.30334284 | AH22: 15.20991234 | AI22: 15.11741974 | AJ22: 15.02586327 | AK22: 14.93524326 | AL22: 14.84555856
E23: Treatment | W23: =W53+W64+W75+W86 -> 6.600659544 | X23: 7.811606212 | Y23: 8.075760736 | Z23: 7.618893654 | AA23: 8.006417464 | AB23: 6.84582931 | AC23: 6.7822272 | AD23: 6.73072084 | AE23: 6.83223148 | AF23: 6.7496777 | AG23: 6.72294546 | AH23: =AH53+AH64+AH75+AH86 -> 6.69050579 | AI23: =AI53+AI64+AI75+AI86 -> 6.65840443 | AJ23: =AJ53+AJ64+AJ75+AJ86 -> 6.62664168 | AK23: =AK53+AK64+AK75+AK86 -> 6.59521673 | AL23: =AL53+AL64+AL75+AL86 -> 6.56413031
E24: Customer Service and billing | W24: =W54+W65+W76+W87+W97+W108+W119 -> 2.27124881 | X24: 2.279194098 | Y24: 1.237293155 | Z24: 1.148678388 | AA24: 1.000589655 | AB24: 0.83932624 | AC24: 0.83338882 | AD24: 0.81875407 | AE24: 0.81360079 | AF24: 0.80783401 | AG24: 0.80277582 | AH24: 0.79715688 | AI24: 0.79159741 | AJ24: 0.78609732 | AK24: 0.78065669 | AL24: 0.77527546
E25: GSL Payments | W25: =W55+W66+W77+W88+W98+W109+W120 -> 0.6051811517 | X25: 0.5332182737 | Y25: 0.2388957055 | Z25: 0.2316483705 | AA25: 0.1695934583 | AB25: 0.218160028 | AC25: 0.216444348 | AD25: 0.223502468 | AE25: 0.221155658 | AF25: 0.219498938 | AG25: 0.217210128 | AH25: 0.215558608 | AI25: 0.213924148 | AJ25: 0.212306838 | AK25: 0.210706578 | AL25: 0.209123458
E26: Corporate | W26: =W57+W68+W79+W90+W100+W111+W122 -> 11.8279761 | X26: 10.48764744 | Y26: 10.51328228 | Z26: 9.678654084 | AA26: 10.72416327 | AB26: 10.25028769 | AC26: 10.34012361 | AD26: 10.32959154 | AE26: 10.25504838 | AF26: 10.17611924 | AG26: 10.10782479 | AH26: 10.05414204 | AI26: 10.0010371 | AJ26: 9.948509952 | AK26: 9.896560432 | AL26: 9.848600194
E27: Other operating expenditure | W27: =W58+W69+W80+W91+W102+W113+W124 -> 1.790624941 | X27: 0.2070337012 | Y27: 1.751789556 | Z27: 0.5748704974 | AA27: 1.316211968 | AB27: 1.83808121 | AC27: 1.8543783 | AD27: 1.97264736 | AE27: 1.94155047 | AF27: 1.91894105 | AG27: 1.88979841 | AH27: 1.87292638 | AI27: 1.85621903 | AJ27: 1.8396768 | AK27: 1.82329965 | AL27: 1.80708752
E28: Total controllable operating expenditure | W28: =SUM(W22:W27) -> 36.75799745 | X28: 36.57658687 | Y28: 37.71770242 | Z28: 33.07620211 | AA28: 35.9082866 | AB28: 35.53443612 | AC28: 35.38956594 | AD28: 35.64579373 | AE28: 35.81663474 | AF28: 35.41558594 | AG28: 35.04389745 | AH28: =SUM(AH22:AH27) -> 34.84020204 | AI28: =SUM(AI22:AI27) -> 34.63860186 | AJ28: =SUM(AJ22:AJ27) -> 34.43909586 | AK28: =SUM(AK22:AK27) -> 34.24168334 | AL28: =SUM(AL22:AL27) -> 34.0497755
AC29: =IF(ROUND(AC19,2)=ROUND(AC28,2),0,1) -> 0 | AD29: =IF(ROUND(AD19,2)=ROUND(AD28,2),0,1) -> 0 | AE29: 0 | AF29: 0 | AG29: 0 | AH29: 0 | AI29: 0 | AJ29: 0 | AK29: 0 | AL29: 0
E31: External bulk water charges (excl. temporary purchases) | W31: =W52+W63+W74+W85+W96+W107+W118 -> 0.2138921356 | X31: 0.2117571819 | Y31: 0.2061406393 | Z31: 0.2050831904 | AA31: 0.2057349622 | AB31: 0.199087 | AC31: 0.1932883495 | AD31: 0.1876585918 | AE31: 0.1821928075 | AF31: 0.1768862209 | AG31: 0.1717341951 | AH31: 0.1667322282 | AI31: 0.1618759497 | AJ31: 0.1571611162 | AK31: 0.152583608 | AL31: 0.1481394252
E32: External temporary water purchases | W32: =+W128 -> 0 | X32: 0 | Y32: 0 | Z32: 0 | AA32: 0 | AB32: 0 | AC32: 0 | AD32: 0 | AE32: 0 | AF32: 0 | AG32: 0 | AH32: =+AH128 -> 0 | AI32: =+AI128 -> 0 | AJ32: =+AJ128 -> 0 | AK32: =+AK128 -> 0 | AL32: =+AL128 -> 0
E33: Licence fees | W33: =+W135 -> 0.1112711701 | X33: 0.1133365897 | Y33: 0.1075030675 | Z33: 0.1338279273 | AA33: 0.1316566234 | AB33: 0.125281 | AC33: 0.125281 | AD33: 0.125281 | AE33: 0.125281 | AF33: 0.125281 | AG33: 0.125281 | AH33: =+AH135 -> 0.125281 | AI33: =+AI135 -> 0.125281 | AJ33: =+AJ135 -> 0.125281 | AK33: =+AK135 -> 0.125281 | AL33: =+AL135 -> 0.125281
E34: Environment Contribution | W34: =W137 -> 1.888213586 | X34: 2.484602131 | Y34: 2.45193865 | Z34: 2.763841338 | AA34: 2.733639644 | AB34: 2.60126 | AC34: 2.525495146 | AD34: 2.451937035 | AE34: 2.380521393 | AF34: 2.311185818 | AG34: 2.243869726 | AH34: =AH137 -> 2.178514298 | AI34: =AI137 -> 2.115062425 | AJ34: =AJ137 -> 2.053458665 | AK34: =AK137 -> 1.993649189 | AL34: =AL137 -> 1.935581737
E35: Other non-controllable | W35: =+W150 -> 0 | X35: 0 | Y35: 0 | Z35: 0 | AA35: 0 | AB35: 0 | AC35: 0 | AD35: 0 | AE35: 0 | AF35: 0 | AG35: =+AG150 -> 0 | AH35: 0 | AI35: 0 | AJ35: 0 | AK35: 0 | AL35: 0
E36: Total non-controllable operating expenditure | W36: =SUM(W31:W35) -> 2.213376892 | X36: 2.809695903 | Y36: 2.765582357 | Z36: 3.102752456 | AA36: 3.071031229 | AB36: 2.925628 | AC36: 2.844064495 | AD36: 2.764876626 | AE36: 2.6879952 | AF36: 2.613353039 | AG36: 2.540884922 | AH36: =SUM(AH31:AH35) -> 2.470527526 | AI36: =SUM(AI31:AI35) -> 2.402219375 | AJ36: =SUM(AJ31:AJ35) -> 2.335900781 | AK36: =SUM(AK31:AK35) -> 2.271513797 | AL36: =SUM(AL31:AL35) -> 2.209002162
E39: Total prescribed operating expenditure | W39: =+W36+W19 -> 38.97137435 | X39: 39.38628277 | Y39: 40.48328477 | Z39: 36.17895457 | AA39: 38.97931783 | AB39: 38.46006412 | AC39: 38.23363043 | AD39: 38.41067036 | AE39: 38.50462994 | AF39: 38.02893898 | AG39: 37.58478237 | AH39: =+AH36+AH19 -> 37.31072957 | AI39: =+AI36+AI19 -> 37.04082123 | AJ39: =+AJ36+AJ19 -> 36.77499664 | AK39: =+AK36+AK19 -> 36.51319714 | AL39: =+AL36+AL19 -> 36.25877766
AB42: To reconcile to 'Opex_FO' tab row 99>> | AC42: =+Opex_FO!AC99 -> 38.23274069 | AD42: =+Opex_FO!AD99 -> 38.40978062 | AE42: =+Opex_FO!AE99 -> 38.5037402 | AF42: =+Opex_FO!AF99 -> 38.02804924 | AG42: =+Opex_FO!AG99 -> 37.58389263 | AH42: =+Opex_FO!AH99 -> 37.30983983 | AI42: =+Opex_FO!AI99 -> 37.03993149 | AJ42: =+Opex_FO!AJ99 -> 36.7741069 | AK42: =+Opex_FO!AK99 -> 36.5123074 | AL42: =+Opex_FO!AL99 -> 36.25788792
AB43: Difference | AC43: =+AC42-AC39 -> -0.000889740458 | AD43: -0.000889740458 | AE43: -0.000889740458 | AF43: -0.000889740458 | AG43: -0.000889740458 | AH43: =+AH42-AH39 -> -0.000889740458 | AI43: =+AI42-AI39 -> -0.000889740458 | AJ43: =+AJ42-AJ39 -> -0.000889740458 | AK43: =+AK42-AK39 -> -0.000889740458 | AL43: =+AL42-AL39 -> -0.000889740458
AB44: Test | AC44: =IF(ROUND(AC42,2)=ROUND(AC39,2),0,1) -> 0 | AD44: 0 | AE44: 0 | AF44: 0 | AG44: 0 | AH44: 0 | AI44: 0 | AJ44: 0 | AK44: 0 | AL44: 0
B48: Total operating expenditure
C50: Urban Water
D51: Operations & Maintenance | W51: 5.92252513 | X51: 7.007071723 | Y51: 6.407834356 | Z51: 5.626505146 | AA51: 5.712248546 | AB51: 6.0560456 | AC51: 5.99266441 | AD51: 5.92007497 | AE51: 5.99457282 | AF51: 5.94509161 | AG51: 5.85751583 | AH51: 5.81544755 | AI51: 5.77377641 | AJ51: 5.73250187 | AK51: 5.69162418 | AL51: 5.65114339
D52: External bulk charges (excl. temporary purchases) | W52: 0 | X52: 0 | Y52: 0 | Z52: 0 | AA52: 0.0005914307125 | AB52: 0 | AC52: 0 | AD52: 0 | AE52: 0 | AF52: 0 | AG52: 0 | AH52: 0 | AI52: 0 | AJ52: 0 | AK52: 0 | AL52: 0
D53: Treatment | W53: 5.018514749 | X53: 5.543301988 | Y53: 5.73892638 | Z53: 5.234403087 | AA53: 5.335827315 | AB53: 4.5388967 | AC53: 4.50553806 | AD53: 4.48808136 | AE53: 4.58015879 | AF53: 4.53658863 | AG53: 4.54723803 | AH53: 4.53025659 | AI53: 4.51345233 | AJ53: 4.49682512 | AK53: 4.48037498 | AL53: 4.46410188
D54: Customer Service and billing | W54: 1.512178521 | X54: 1.531009908 | Y54: 0.6949693252 | Z54: 0.5876217839 | AA54: 0.5212884108 | AB54: 0.42768238 | AC54: 0.42416546 | AD54: 0.41676049 | AE54: 0.41534828 | AF54: 0.41193992 | AG54: 0.41053387 | AH54: 0.40721197 | AI54: 0.40392474 | AJ54: 0.40067211 | AK54: 0.39745414 | AL54: 0.39427078
D55: GSL Payments | W55: 0.02283003825 | X55: 0.01439774118 | Y55: 0.0477791411 | Z55: 0.03187821612 | AA55: 0.003984903537 | AB55: 0.02417400804 | AC55: 0.02417400804 | AD55: 0.02417400804 | AE55: 0.02417400804 | AF55: 0.02417400804 | AG55: 0.02417400804 | AH55: 0.02417400804 | AI55: 0.02417400804 | AJ55: 0.02417400804 | AK55: 0.02417400804 | AL55: 0.02417400804
D56: Licence Fees | W56: 0.04931875543 | X56: 0.05208775701 | Y56: 0.04886503067 | Z56: 0.08083938915 | AA56: 0.05591242341 | AB56: 0.0532048 | AC56: 0.0532048 | AD56: 0.0532048 | AE56: 0.0532048 | AF56: 0.0532048 | AG56: 0.0532048 | AH56: 0.0532048 | AI56: 0.0532048 | AJ56: 0.0532048 | AK56: 0.0532048 | AL56: 0.0532048
D57: Corporate | W57: 6.744672132 | X57: 6.00252528 | Y57: 5.785619632 | Z57: 4.996379074 | AA57: 5.475706884 | AB57: 5.241758432 | AC57: 5.281712132 | AD57: 5.276620792 | AE57: 5.252434782 | AF57: 5.206557052 | AG57: 5.185044712 | AH57: 5.152195152 | AI57: 5.119674502 | AJ57: 5.087483002 | AK57: 5.055620722 | AL57: 5.027499804
D58: Other operating expenditure | H58: (Includes bulk water headworks allocation) | W58: 5.058039779 | X58: 4.963706888 | Y58: 4.760539877 | Z58: 6.153558319 | AA58: 5.09638077 | AB58: 2.488184 | AC58: 2.488184 | AD58: 2.488184 | AE58: 2.488184 | AF58: 2.488184 | AG58: 2.488184 | AH58: 2.488184 | AI58: 2.488184 | AJ58: 2.488184 | AK58: 2.488184 | AL58: 2.488184
C59: =+CONCATENATE("Total ",C50) -> Total Urban Water | W59: =+SUM(W51:W58) -> 24.3280791 | X59: 25.11410129 | Y59: 23.48453374 | Z59: 22.71118502 | AA59: 22.20194068 | AB59: 18.82994592 | AC59: =+SUM(AC51:AC58) -> 18.76964287 | AD59: 18.66710042 | AE59: 18.80807748 | AF59: 18.66574002 | AG59: 18.56589525 | AH59: 18.47067407 | AI59: 18.37639079 | AJ59: 18.28304491 | AK59: 18.19063683 | AL59: 18.10257866
C61: Sewerage
D62: =D51 -> Operations & Maintenance | W62: 2.585831695 | X62: 2.459525817 | Y62: 2.919957055 | Z62: 2.429120069 | AA62: 2.596657243 | AB62: 2.62934866 | AC62: 2.59851446 | AD62: 2.56151403 | AE62: 2.59841641 | AF62: 2.5624255 | AG62: 2.52624012 | AH62: 2.50430417 | AI62: 2.48259725 | AJ62: 2.46111915 | AK62: 2.43987009 | AL62: 2.41884956
D63: =D52 -> External bulk charges (excl. temporary purchases) | W63: 0 | X63: 0 | Y63: 0 | Z63: 0 | AA63: 0.0002314166158 | AB63: 0 | AC63: 0 | AD63: 0 | AE63: 0 | AF63: 0 | AG63: 0 | AH63: 0 | AI63: 0 | AJ63: 0 | AK63: 0 | AL63: 0
D64: Treatment | W64: 1.582144795 | X64: 2.268304224 | Y64: 2.336834356 | Z64: 2.384490566 | AA64: 2.670590149 | AB64: 2.30693261 | AC64: 2.27668914 | AD64: 2.24263948 | AE64: 2.25207269 | AF64: 2.21308907 | AG64: 2.17570743 | AH64: 2.1602492 | AI64: 2.1449521 | AJ64: 2.12981656 | AK64: 2.11484175 | AL64: 2.10002843
D65: Customer Service and billing | W65: 0.6051779 | X65: 0.6245529303 | Y65: 0.354 | Z65: 0.3655368782 | AA65: 0.3100316912 | AB65: 0.26890525 | AC65: 0.26647571 | AD65: 0.26093202 | AE65: 0.25767325 | AF65: 0.25531958 | AG65: 0.25214203 | AH65: 0.24984607 | AI65: 0.24757382 | AJ65: 0.24532523 | AK65: 0.24310035 | AL65: 0.24089915
D66: GSL Payments | W66: 0.00496280609 | X66: 0.003303134387 | Y66: 0.001085889571 | Z66: 0.002125214408 | AA66: 0.0001750468448 | AB66: 0 | AC66: 0 | AD66: 0 | AE66: 0 | AF66: 0 | AG66: 0 | AH66: 0 | AI66: 0 | AJ66: 0 | AK66: 0 | AL66: 0
D67: Licence Fees | W67: 0.06010242271 | X67: 0.06026058159 | Y67: 0.05755214724 | Z67: 0.0510051458 | AA67: 0.06961981985 | AB67: 0.0662484 | AC67: 0.0662484 | AD67: 0.0662484 | AE67: 0.0662484 | AF67: 0.0662484 | AG67: 0.0662484 | AH67: 0.0662484 | AI67: 0.0662484 | AJ67: 0.0662484 | AK67: 0.0662484 | AL67: 0.0662484
D68: Corporate | W68: 3.15395773 | X68: 2.968160008 | Y68: 3.132791411 | Z68: 2.997614923 | AA68: 3.278982562 | AB68: 3.19624204 | AC68: 3.21843547 | AD68: 3.20448159 | AE68: 3.16146018 | AF68: 3.12978263 | AG68: 3.08939171 | AH68: 3.06579957 | AI68: 3.04243219 | AJ68: 3.01928966 | AK68: 2.99637235 | AL68: 2.97368025
D69: Other operating expenditure | W69: 0 | X69: 0 | Y69: 0 | Z69: 0 | AA69: 0 | AB69: 0 | AC69: 0 | AD69: 0 | AE69: 0 | AF69: 0 | AG69: 0 | AH69: 0 | AI69: 0 | AJ69: 0 | AK69: 0 | AL69: 0
C70: =+CONCATENATE("Total ",C61) -> Total Sewerage | W70: =+SUM(W62:W69) -> 7.992177349 | X70: 8.384106695 | Y70: 8.802220859 | Z70: 8.229892796 | AA70: 8.926287929 | AB70: 8.46767696 | AC70: =+SUM(AC62:AC69) -> 8.42636318 | AD70: 8.33581552 | AE70: 8.33587093 | AF70: 8.22686518 | AG70: 8.10972969 | AH70: 8.04644741 | AI70: 7.98380376 | AJ70: 7.921799 | AK70: 7.86043294 | AL70: 7.79970579
C72: Recycled Water
D73: =D62 -> Operations & Maintenance | W73: 0.01089354589 | X73: 0.03028249143 | Y73: 0.03800613497 | Z73: 0.07438250429 | AA73: 0.07686400799 | AB73: 0.01009549 | AC73: 0.00963627 | AD73: 0.00919734 | AE73: 0.00839952 | AF73: 0.00766451 | AG73: 0.00702066 | AH73: 0.00702078 | AI73: 0.00702096 | AJ73: 0.0070211 | AK73: 0.00702135 | AL73: 0.0070215
D74: External bulk charges (excl. temporary purchases) | W74: 0 | X74: 0 | Y74: 0 | Z74: 0 | AA74: 2.164834606e-06 | AB74: 0 | AC74: 0 | AD74: 0 | AE74: 0 | AF74: 0 | AG74: 0 | AH74: 0 | AI74: 0 | AJ74: 0 | AK74: 0 | AL74: 0
D75: Treatment | W75: 0 | X75: 0 | Y75: 0 | Z75: 0 | AA75: 0 | AB75: 0 | AC75: 0 | AD75: 0 | AE75: 0 | AF75: 0 | AG75: 0 | AH75: 0 | AI75: 0 | AJ75: 0 | AK75: 0 | AL75: 0
D76: Customer Service and billing | W76: 5.680338462e-05 | X76: 0.0004167815542 | Y76: 0.0004649344785 | Z76: 0.004250428816 | AA76: 0.004015505471 | AB76: 6.056e-05 | AC76: 6.059e-05 | AD76: 5.991e-05 | AE76: 5.975e-05 | AF76: 5.977e-05 | AG76: 5.961e-05 | AH76: 5.965e-05 | AI76: 5.968e-05 | AJ76: 5.97e-05 | AK76: 5.973e-05 | AL76: 5.977e-05
D77: GSL Payments | W77: 2.892868778e-06 | X77: 5.787868561e-06 | Y77: 0 | Z77: 0 | AA77: 0 | AB77: 0 | AC77: 0 | AD77: 0 | AE77: 0 | AF77: 0 | AG77: 0 | AH77: 0 | AI77: 0 | AJ77: 0 | AK77: 0 | AL77: 0
D78: Licence Fees | W78: 3.60471552e-05 | X78: 7.62613514e-05 | Y78: 0 | Z78: 9.415447465e-05 | AA78: 0 | AB78: 0 | AC78: 0 | AD78: 0 | AE78: 0 | AF78: 0 | AG78: 0 | AH78: 0 | AI78: 0 | AJ78: 0 | AK78: 0 | AL78: 0
D79: Corporate | W79: 0.0008550124783 | X79: 0.00474619406 | Y79: 0.004043018154 | Z79: 0.03506603774 | AA79: 0.04032703295 | AB79: 0.00067681 | AC79: 0.00068898 | AD79: 0.000693 | AE79: 0.00069025 | AF79: 0.00069006 | AG79: 0.00068765 | AH79: 0.00068923 | AI79: 0.00069083 | AJ79: 0.00069244 | AK79: 0.00069397 | AL79: 0.00069551
D80: Other operating expenditure | W80: 0 | X80: 0 | Y80: 0 | Z80: 0 | AA80: 0 | AB80: 0 | AC80: 0 | AD80: 0 | AE80: 0 | AF80: 0 | AG80: 0 | AH80: 0 | AI80: 0 | AJ80: 0 | AK80: 0 | AL80: 0
C81: =+CONCATENATE("Total ",C72) -> Total Recycled Water | W81: =+SUM(W73:W80) -> 0.01184430178 | X81: =+SUM(X73:X80) -> 0.03552751626 | Y81: 0.0425140876 | Z81: 0.1137931253 | AA81: 0.1212087112 | AB81: 0.01083286 | AC81: 0.01038584 | AD81: 0.00995025 | AE81: 0.00914952 | AF81: 0.00841434 | AG81: 0.00776792 | AH81: 0.00776966 | AI81: 0.00777147 | AJ81: 0.00777324 | AK81: 0.00777505 | AL81: 0.00777678
C83: Bulk water - headworks
D84: =D73 -> Operations & Maintenance | W84: 2.058212134 | X84: 1.87831961 | Y84: 2.242361963 | Z84: 1.829809605 | AA84: 2.247619321 | AB84: 2.25773347 | AC84: 2.25663695 | AD84: 2.24935296 | AE84: 2.31610635 | AF84: 2.31468966 | AG84: 2.31136421 | AH84: 2.3105687 | AI84: 2.30978722 | AJ84: 2.30901952 | AK84: 2.30826542 | AL84: 2.30752494
D85: External bulk charges (excl. temporary purchases) | W85: 0 | X85: 0 | Y85: 0 | Z85: 0
D86: Treatment | W86: 0 | X86: 0 | Y86: 0 | Z86: 0 | AA86: 0 | AB86: 0 | AC86: 0 | AD86: 0 | AE86: 0 | AF86: 0 | AG86: 0 | AH86: 0 | AI86: 0 | AJ86: 0 | AK86: 0 | AL86: 0
D87: Customer Service and billing | W87: 0.1538355855 | X87: 0.1232144787 | Y87: 0.1878588957 | Z87: 0.1912692967 | AA87: 0.1652540473 | AB87: 0.14267805 | AC87: 0.14268706 | AD87: 0.14100165 | AE87: 0.14051951 | AF87: 0.14051474 | AG87: 0.14004031 | AH87: 0.14003919 | AI87: 0.14003917 | AJ87: 0.14004028 | AK87: 0.14004247 | AL87: 0.14004576
D88: GSL Payments | W88: 0 | X88: 0 | Y88: 0 | Z88: 0.001062607204 | AA88: 0 | AB88: 0 | AC88: 0 | AD88: 0 | AE88: 0 | AF88: 0 | AG88: 0 | AH88: 0 | AI88: 0 | AJ88: 0 | AK88: 0 | AL88: 0
D89: Licence Fees | W89: 0.001469392464 | X89: 0.0005118079023 | Y89: 0.001085889571 | Z89: 0.001461569361 | AA89: 0.006124380153 | AB89: 0.0058278 | AC89: 0.0058278 | AD89: 0.0058278 | AE89: 0.0058278 | AF89: 0.0058278 | AG89: 0.0058278 | AH89: 0.0058278 | AI89: 0.0058278 | AJ89: 0.0058278 | AK89: 0.0058278 | AL89: 0.0058278
D90: Corporate | W90: 1.928146671 | X90: 1.511819528 | Y90: 1.590828221 | Z90: 1.649166381 | AA90: 1.929146792 | AB90: 1.81161041 | AC90: 1.83928703 | AD90: 1.84779616 | AE90: 1.84046317 | AF90: 1.8390895 | AG90: 1.83270072 | AH90: 1.83545809 | AI90: 1.83823958 | AJ90: 1.84104485 | AK90: 1.84387339 | AL90: 1.84672463
D91: Other operating expenditure | H91: (Includes urban bulk water headworks allocation) | W91: -9.36509606 | X91: -10.46836743 | Y91: -8.247331288 | Z91: -11.21263122 | AA91: -8.147752432 | AB91: -5.17003992 | AC91: -5.17003992 | AD91: -5.17003992 | AE91: -5.17003992 | AF91: -5.17003992 | AG91: -5.17003992 | AH91: -5.17003992 | AI91: -5.17003992 | AJ91: -5.17003992 | AK91: -5.17003992 | AL91: -5.17003992
C92: =+CONCATENATE("Total ",C83) -> Total Bulk water - headworks | H92: (Net considered Rural cost) | W92: =+SUM(W84:W91) -> -5.223432277 | X92: =+SUM(X84:X91) -> -6.954502002 | Y92: -4.225196319 | Z92: -7.539861758 | AA92: -3.799607892 | AB92: -0.9521901902 | AC92: -0.9256010802 | AD92: -0.9260613502 | AE92: -0.8671230902 | AF92: -0.8699182202 | AG92: -0.8801068802 | AH92: -0.8781461402 | AI92: -0.8761461502 | AJ92: -0.8741074702 | AK92: -0.8720308402 | AL92: -0.8699167902
C94: Domestic and stock
D95: =D84 -> Operations & Maintenance | W95: 2.879287533 | X95: 3.677684175 | Y95: 4.07208589 | Z95: 3.657493997 | AA95: 3.823135725 | AB95: 4.24081411 | AC95: 4.15930499 | AD95: 4.48701338 | AE95: 4.47977437 | AF95: 4.36048346 | AG95: 4.250762 | AH95: 4.22442406 | AI95: 4.19835982 | AJ95: 4.17256847 | AK95: 4.14705003 | AL95: 4.12180389
D96: External bulk charges (excl. temporary purchases) | W96: 0.2138921356 | X96: 0.2117571819 | Y96: 0.2061406393 | Z96: 0.2050831904 | AA96: 0.20490995 | AB96: 0.199087 | AC96: 0.1932883495 | AD96: 0.1876585918 | AE96: 0.1821928075 | AF96: 0.1768862209 | AG96: 0.1717341951 | AH96: 0.1667322282 | AI96: 0.1618759497 | AJ96: 0.1571611162 | AK96: 0.152583608 | AL96: 0.1481394252
D97: Treatment | AA97: 0 | AB97: 0 | AC97: 0 | AD97: 0 | AE97: 0 | AF97: 0 | AG97: 0 | AH97: 0 | AI97: 0 | AJ97: 0 | AK97: 0 | AL97: 0
D98: Customer Service and billing | W98: 0.5331711333 | X98: 0.4658760819 | Y98: 0.1596257669 | Z98: 0.1625789022 | AA98: 0.1324472925 | AB98: 0.16270611 | AC98: 0.16119893 | AD98: 0.16883024 | AE98: 0.16679131 | AF98: 0.16533735 | AG98: 0.163349 | AH98: 0.16189506 | AI98: 0.1604561 | AJ98: 0.15903217 | AK98: 0.15762322 | AL98: 0.15622929
D99: GSL Payments | W99: 0.001749613765 | X99: 0.002429826448 | Y99: 0 | Z99: 0.001062607204 | AA99: 0 | AB99: 0 | AC99: 0 | AD99: 0 | AE99: 0 | AF99: 0 | AG99: 0 | AH99: 0 | AI99: 0 | AJ99: 0 | AK99: 0 | AL99: 0
D100: Licence Fees
D101: Corporate
D102: Other operating expenditure | W102: 5.783383377 | X102: 5.404524361 | Y102: 4.897540342 | Z102: 5.274782161 | AA102: 3.946557758 | AB102: 4.13942073 | AC102: 4.1522687 | AD102: 4.27072005 | AE102: 4.24362168 | AF102: 4.22385475 | AG102: 4.19843493 | AH102: 4.18347474 | AI102: 4.1686582 | AJ102: 4.15398544 | AK102: 4.13945666 | AL102: 4.12507178
C103: =+CONCATENATE("Total ",C94) -> Total Domestic and stock | W103: =+SUM(W95:W102) -> 9.411483793 | X103: 9.762271626 | Y103: 9.335392638 | Z103: 9.301000858 | AA103: 8.107050725 | AB103: 8.74202795 | AC103: 8.66606097 | AD103: 9.114222262 | AE103: 9.072380168 | AF103: 8.926561781 | AG103: 8.784280125 | AH103: 8.736526088 | AI103: 8.68935007 | AJ103: 8.642747196 | AK103: 8.596713518 | AL103: 8.551244385
C105: Surface water diversions
D106: =D95 -> Operations & Maintenance | W106: 0.009567131919 | X106: 0.03511858572 | Y106: 0.03366257669 | Z106: 0.01487650086 | AA106: 0.01235445888 | AB106: 0.02757511 | AC106: 0.02731132 | AD106: 0.02702351 | AE106: 0.02779805 | AF106: 0.02752976 | AG106: 0.02725361 | AH106: 0.02699518 | AI106: 0.02673947 | AJ106: 0.02648645 | AK106: 0.02623613 | AL106: 0.02598858
D107: =D96 -> External bulk charges (excl. temporary purchases) | W107: 0 | X107: 0 | Y107: 0 | Z107: 0 | AA107: 0 | AB107: 0 | AC107: 0 | AD107: 0 | AE107: 0 | AF107: 0 | AG107: 0 | AH107: 0 | AI107: 0 | AJ107: 0 | AK107: 0 | AL107: 0
D108: Treatment | AA108: 0 | AB108: 0 | AC108: 0 | AD108: 0 | AE108: 0 | AF108: 0 | AG108: 0 | AH108: 0 | AI108: 0 | AJ108: 0 | AK108: 0 | AL108: 0
D109: Customer Service and billing | W109: 0.01088570824 | X109: 0.01843573681 | Y109: 0.004343558282 | Z109: 0.002125214408 | AA109: 0.001491497481 | AB109: 0.00218905 | AC109: 0.00216856 | AD109: 0.00212271 | AE109: 0.00209549 | AF109: 0.00207565 | AG109: 0.0020491 | AH109: 0.00202973 | AI109: 0.00201056 | AJ109: 0.00199159 | AK109: 0.00197281 | AL109: 0.00195423
D110: GSL Payments | W110: 0 | X110: 0 | Y110: 0 | Z110: 0 | AA110: 0 | AB110: 0 | AC110: 0 | AD110: 0 | AE110: 0 | AF110: 0 | AG110: 0 | AH110: 0 | AI110: 0 | AJ110: 0 | AK110: 0 | AL110: 0
D111: Licence Fees | W111: 6.730472851e-05 | X111: 6.422226853e-05 | Y111: 0 | Z111: 7.595364773e-05 | AA111: 0 | AB111: 0 | AC111: 0 | AD111: 0 | AE111: 0 | AF111: 0 | AG111: 0 | AH111: 0 | AI111: 0 | AJ111: 0 | AK111: 0 | AL111: 0
D112: Corporate
D113: Other operating expenditure | W113: 0.07583247225 | X113: 0.09917154556 | Y113: 0.1086249652 | Z113: 0.08819639794 | AA113: 0.08511389842 | AB113: 0.03805647 | AC113: 0.03824823 | AD113: 0.03818521 | AE113: 0.03785682 | AF113: 0.03760943 | AG113: 0.03730185 | AH113: 0.03711984 | AI113: 0.03693942 | AJ113: 0.03676079 | AK113: 0.03658378 | AL113: 0.03640854
C114: =+CONCATENATE("Total ",C105) -> Total Surface water diversions | W114: =+SUM(W106:W113) -> 0.09635261714 | X114: 0.1527900904 | Y114: 0.1466311001 | Z114: 0.1052740669 | AA114: 0.09895985478 | AB114: 0.06782063 | AC114: 0.06772811 | AD114: 0.06733143 | AE114: 0.06775036 | AF114: 0.06721484 | AG114: 0.06660456 | AH114: =+SUM(AH106:AH113) -> 0.06614475 | AI114: =+SUM(AI106:AI113) -> 0.06568945 | AJ114: =+SUM(AJ106:AJ113) -> 0.06523883 | AK114: =+SUM(AK106:AK113) -> 0.06479272 | AL114: =+SUM(AL106:AL113) -> 0.06435135
C116: Groundwater diversions
D117: =D106 -> Operations & Maintenance | W117: 0.1959897405 | X117: 0.1698847368 | Y117: 0.1867730061 | Z117: 0.1912692967 | AA117: 0.2224314803 | AB117: 0.3211392 | AC117: 0.31893526 | AD117: 0.31640126 | AE117: 0.32798044 | AF117: 0.3256305 | AG117: 0.32318641 | AH117: 0.3211519 | AI117: 0.31913861 | AJ117: 0.31714671 | AK117: 0.31517606 | AL117: 0.3132267
D118: External bulk charges (excl. temporary purchases) | AA118: 0 | AB118: 0 | AC118: 0 | AD118: 0 | AE118: 0 | AF118: 0 | AG118: 0 | AH118: 0 | AI118: 0 | AJ118: 0 | AK118: 0 | AL118: 0
D119: Treatment | W119: 0 | X119: 0 | Y119: 0 | Z119: 0 | AA119: 0 | AB119: 0 | AC119: 0 | AD119: 0 | AE119: 0 | AF119: 0 | AG119: 0 | AH119: 0 | AI119: 0 | AJ119: 0 | AK119: 0 | AL119: 0
D120: Customer Service and billing | W120: 0.033328573 | X120: 0.03119979157 | Y120: 0.02606134969 | Z120: 0.03187821612 | AA120: 0.03149471794 | AB120: 0.02909086 | AC120: 0.02890285 | AD120: 0.02837551 | AE120: 0.02809485 | AF120: 0.02791193 | AG120: 0.02763802 | AH120: 0.02745981 | AI120: 0.02728348 | AJ120: 0.02710907 | AK120: 0.02693654 | AL120: 0.02676593
D121: GSL Payments | W121: 0 | X121: 0 | Y121: 0 | Z121: 0 | AA121: 0 | AB121: 0 | AC121: 0 | AD121: 0 | AE121: 0 | AF121: 0 | AG121: 0 | AH121: 0 | AI121: 0 | AJ121: 0 | AK121: 0 | AL121: 0
D122: Licence Fees | W122: 0.0002772476423 | X122: 0.0003322108102 | Y122: 0 | Z122: 0.0003517148658 | AA122: 0 | AB122: 0 | AC122: 0 | AD122: 0 | AE122: 0 | AF122: 0 | AG122: 0 | AH122: 0 | AI122: 0 | AJ122: 0 | AK122: 0 | AL122: 0
D123: Corporate
D124: Other operating expenditure | W124: 0.238465372 | X124: 0.2079983331 | Y124: 0.2324156595 | Z124: 0.270964837 | AA124: 0.3359119737 | AB124: 0.34245993 | AC124: 0.34571729 | AD124: 0.34559802 | AE124: 0.34192789 | AF124: 0.33933279 | AG124: 0.33591755 | AH124: 0.33418772 | AI124: 0.33247733 | AJ124: 0.33078649 | AK124: 0.32911513 | AL124: 0.32746312
C125: =+CONCATENATE("Total ",C116) -> Total Groundwater diversions | W125: =+SUM(W117:W124) -> 0.4680609332 | X125: 0.4094150722 | Y125: 0.4452500153 | Z125: 0.4944640648 | AA125: 0.5898381719 | AB125: 0.69268999 | AC125: 0.6935554 | AD125: 0.69037479 | AE125: 0.69800318 | AF125: 0.69287522 | AG125: 0.68674198 | AH125: =+SUM(AH117:AH124) -> 0.68279943 | AI125: =+SUM(AI117:AI124) -> 0.67889942 | AJ125: =+SUM(AJ117:AJ124) -> 0.67504227 | AK125: =+SUM(AK117:AK124) -> 0.67122773 | AL125: =+SUM(AL117:AL124) -> 0.66745575
C128: External temporary water purchases
C131: Licence fees
D132: Essential Services Commission | W132: 0.04023105882 | X132: 0.04181349911 | Y132: 0.03909202454 | Z132: 0.06369585181 | AA132: 0.06124380153 | AB132: 0.058278 | AC132: 0.058278 | AD132: 0.058278 | AE132: 0.058278 | AF132: 0.058278 | AG132: 0.058278 | AH132: 0.058278 | AI132: 0.058278 | AJ132: 0.058278 | AK132: 0.058278 | AL132: 0.058278
D133: Department of Human Services | W133: 0.01930821719 | X133: 0.01980639432 | Y133: 0.0184601227 | Z133: 0.01912692967 | AA133: 0.01916614249 | AB133: 0.018238 | AC133: 0.018238 | AD133: 0.018238 | AE133: 0.018238 | AF133: 0.018238 | AG133: 0.018238 | AH133: 0.018238 | AI133: 0.018238 | AJ133: 0.018238 | AK133: 0.018238 | AL133: 0.018238
D134: Environment Protection Authority | W134: 0.05173189412 | X134: 0.05171669627 | Y134: 0.04995092025 | Z134: 0.0510051458 | AA134: 0.05124667939 | AB134: 0.048765 | AC134: 0.048765 | AD134: 0.048765 | AE134: 0.048765 | AF134: 0.048765 | AG134: 0.048765 | AH134: 0.048765 | AI134: 0.048765 | AJ134: 0.048765 | AK134: 0.048765 | AL134: 0.048765
C135: =+CONCATENATE("Total ",C131) -> Total Licence fees | W135: =+SUM(W132:W134) -> 0.1112711701 | X135: =+SUM(X132:X134) -> 0.1133365897 | Y135: 0.1075030675 | Z135: 0.1338279273 | AA135: 0.1316566234 | AB135: 0.125281 | AC135: 0.125281 | AD135: 0.125281 | AE135: 0.125281 | AF135: 0.125281 | AG135: 0.125281 | AH135: 0.125281 | AI135: 0.125281 | AJ135: 0.125281 | AK135: 0.125281 | AL135: 0.125281
C137: Environment Contribution | W137: 1.888213586 | X137: 2.484602131 | Y137: 2.45193865 | Z137: 2.763841338 | AA137: 2.733639644 | AB137: 2.60126 | AC137: 2.525495146 | AD137: 2.451937035 | AE137: 2.380521393 | AF137: 2.311185818 | AG137: 2.243869726 | AH137: 2.178514298 | AI137: 2.115062425 | AJ137: 2.053458665 | AK137: 1.993649189 | AL137: 1.935581737
C139: Other non-controllable
D140: NOTE formula error in row 26 - Corporate moved to Other operating expenditure D&W, Surface water and Groundwater
D141: [Non-controllable 2]
D142: [Non-controllable 3]
D143: [Non-controllable 4]
D144: [Non-controllable 5]
D145: [Non-controllable 6]
D146: [Non-controllable 7]
D147: [Non-controllable 8]
D148: [Non-controllable 9]
D149: [Non-controllable 10]
W150: =SUM(W140:W149) -> 0 | X150: 0 | Y150: 0 | Z150: 0 | AA150: 0 | AB150: 0 | AC150: 0 | AD150: 0 | AE150: 0 | AF150: 0 | AG150: =SUM(AG140:AG149) -> 0 | AH150: 0 | AI150: 0 | AJ150: 0 | AK150: 0 | AL150: 0

Sheet Capex_FO input
B1: Capital Expenditure - Forecast Input | Q1: =Q36 -> Gross capital expenditure | AB1: =AB36 -> Government contributions | AM1: =AM36 -> Customer contributions | AX1: =AX36 -> Net capital expenditure | BI1: =BI36 -> Regulatory Depreciation | BT1: =BT36 -> Accumulated capex | CE1: =CE36 -> Gross capital expenditure | CP1: =CP36 -> Tax Depreciation
B2: =+Contents!H7 -> GWM Water | Q2: =Q37 -> $m, 01/01/23 | AB2: =AB37 -> $m, 01/01/23 | AM2: =AM37 -> $m, 01/01/23 | AX2: =AX37 -> $m, 01/01/23 | BI2: =BI37 -> $m, 01/01/23 | BT2: =BT37 -> $m, 01/01/23 | CE2: =CE37 -> Nominal,$ | CP2: =CP37 -> Nominal,$
B3: Go to Table of Contents | Q3: =Q39 -> 2023-24 | R3: =R39 -> 2024-25 | S3: 2025-26 | T3: 2026-27 | U3: 2027-28 | V3: 2028-29 | W3: 2029-30 | X3: 2030-31 | Y3: =Y39 -> 2031-32 | Z3: =Z39 -> 2032-33 | AB3: 2023-24 | AC3: 2024-25 | AD3: 2025-26 | AE3: 2026-27 | AF3: 2027-28 | AG3: 2028-29 | AH3: 2029-30 | AI3: 2030-31 | AJ3: 2031-32 | AK3: 2032-33 | AM3: 2023-24 | AN3: 2024-25 | AO3: 2025-26 | AP3: 2026-27 | AQ3: 2027-28 | AR3: 2028-29 | AS3: 2029-30 | AT3: 2030-31 | AU3: 2031-32 | AV3: 2032-33 | AX3: 2023-24 | AY3: 2024-25 | AZ3: 2025-26 | BA3: 2026-27 | BB3: 2027-28 | BC3: 2028-29 | BD3: 2029-30 | BE3: 2030-31 | BF3: 2031-32 | BG3: 2032-33 | BI3: 2023-24 | BJ3: 2024-25 | BK3: 2025-26 | BL3: 2026-27 | BM3: 2027-28 | BN3: 2028-29 | BO3: 2029-30 | BP3: 2030-31 | BQ3: 2031-32 | BR3: 2032-33 | BT3: 2023-24 | BU3: 2024-25 | BV3: 2025-26 | BW3: 2026-27 | BX3: 2027-28 | BY3: 2028-29 | BZ3: 2029-30 | CA3: 2030-31 | CB3: =CB39 -> 2031-32 | CC3: =CC39 -> 2032-33 | CE3: 2023-24 | CF3: 2024-25 | CG3: 2025-26 | CH3: 2026-27 | CI3: 2027-28 | CJ3: 2028-29 | CK3: 2029-30 | CL3: 2030-31 | CM3: =CM39 -> 2031-32 | CN3: =CN39 -> 2032-33 | CP3: 2023-24 | CQ3: 2024-25 | CR3: =CR39 -> 2025-26 | CS3: 2026-27 | CT3: 2027-28 | CU3: 2028-29 | CV3: 2029-30 | CW3: 2030-31 | CX3: =CX39 -> 2031-32 | CY3: =CY39 -> 2032-33
C7: Input Summary | F7: FIFTH REG PERIOD | K7: SIXTH REG PERIOD
D9: =+Q39 -> 2023-24 | E9: 2024-25 | F9: 2025-26 | G9: 2026-27 | H9: 2027-28 | I9: 2028-29 | J9: 2029-30 | K9: 2030-31 | L9: 2031-32 | M9: 2032-33
C10: By Cost Driver
C11: Net capital expenditure - Renewals | D11: =+SUMIF($F$42:$F$1019,"Renewals",AX$42:AX$1019) -> 18.40791046 | E11: 17.72783431 | F11: 14.87603305 | G11: 18.06104409 | H11: 16.70309397 | I11: 20.70187203 | J11: 16.73322509 | K11: 11.17049193 | L11: 10.64089418 | M11: 10.72032014
C12: Net capital expenditure - Growth | D12: =+SUMIF($F$42:$F$1019,"Growth",AX$42:AX$1019) -> 25.35649262 | E12: -2.984770899 | F12: -0.53736249 | G12: -0.41036249 | H12: -0.34686249 | I12: -0.34686249 | J12: 0.12150001 | K12: 0.12150001 | L12: 0.12150001 | M12: 0.12150001
C13: Net capital expenditure - Improvements / Compliance | D13: =+SUMIF($F$42:$F$1019,"Improvements / Compliance",AX$42:AX$1019) -> 14.71679059 | E13: 10.0542703 | F13: 12.03506035 | G13: 16.930061 | H13: 8.15960725 | I13: 14.25100224 | J13: 2.49100263 | K13: 1.39100242 | L13: 1.64250187 | M13: 1.39150105
C14: Government Contributions | D14: =+AB41 -> 24.71211234 | E14: =+AC41 -> 2.476328419 | F14: 0.72844289 | G14: 1.21994172 | H14: 0.97819474 | I14: 0 | J14: 0 | K14: 0 | L14: 0 | M14: 0
C15: Customer Contributions | D15: =+AM41 -> 0.05 | E15: =+AN41 -> 2.810175 | F15: 0.7223625 | G15: 0.5953625 | H15: 0.5318625 | I15: 0.5318625 | J15: 0.0635 | K15: 0.0635 | L15: 0.0635 | M15: 0.0635
C16: Total prescribed capex | D16: =SUM(D11:D15) -> 83.24330601 | E16: 30.08383713 | F16: 27.8245363 | G16: 36.39604682 | H16: 26.02589597 | I16: 35.13787428 | J16: 19.40922773 | K16: 12.74649436 | L16: 12.46839606 | M16: 12.2968212
C18: By Capital Type
C19: Top 10 Major Projects | D19: =+SUMIF($H$42:$H$1019,$C$19,Q$42:Q$1019) -> 56.52286511 | E19: 7.85 | F19: 8.93 | G19: 18.714 | H19: 9.3958 | I19: 0 | J19: 0 | K19: 0 | L19: 0 | M19: 0
C20: Significant projects | D20: =+SUMIF($H$42:$H$1019,$C$20,Q$42:Q$1019) -> 0 | E20: 0 | F20: 0 | G20: 0 | H20: 0 | I20: 0 | J20: 0 | K20: 0 | L20: 0 | M20: 0
C21: Capital Programs / Allocation | D21: =+SUMIF($H$42:$H$1019,$C$21,Q$42:Q$1019) -> 26.7204409 | E21: 22.23383713 | F21: 18.8945363 | G21: 17.68204682 | H21: 16.63009597 | I21: 35.13787428 | J21: 19.40922773 | K21: 12.74649436 | L21: 12.46839606 | M21: 12.2968212
C22: Other Capital expenditure | D22: =+SUMIF($H$42:$H$1019,$C$22,Q$42:Q$1019) -> 0 | E22: 0 | F22: 0 | G22: 0 | H22: 0 | I22: 0 | J22: 0 | K22: 0 | L22: 0 | M22: 0
C23: Total prescribed capex | D23: =SUM(D19:D22) -> 83.24330601 | E23: =SUM(E19:E22) -> 30.08383713 | F23: 27.8245363 | G23: 36.39604682 | H23: 26.02589597 | I23: 35.13787428 | J23: 19.40922773 | K23: 12.74649436 | L23: 12.46839606 | M23: 12.2968212
C25: Difference | D25: =+D23-D16 -> 0 | E25: =+E23-E16 -> 0 | F25: 0 | G25: 0 | H25: 0 | I25: 0 | J25: 0 | K25: 0 | L25: 0 | M25: 0
C26: Test | D26: =IF(ROUND(D23,2)=ROUND(D16,2),0,1) -> 0 | E26: =IF(ROUND(E23,2)=ROUND(E16,2),0,1) -> 0 | F26: 0 | G26: 0 | H26: 0 | I26: 0 | J26: 0 | K26: 0 | L26: 0 | M26: 0
C29: Total prescribed capex | D29: =+D23 -> 83.24330601 | E29: =+E23 -> 30.08383713 | F29: 27.8245363 | G29: 36.39604682 | H29: 26.02589597 | I29: 35.13787428 | J29: 19.40922773 | K29: 12.74649436 | L29: 12.46839606 | M29: 12.2968212
C32: Regulatory Depreciation | D32: =+BI41 -> 0.611586034 | E32: =+BJ41 -> 1.842260426 | F32: 2.979263173 | G32: 3.861589608 | H32: 4.900108419 | I32: 6.116432694 | J32: 7.0004614 | K32: 7.624721924 | L32: 7.833497048 | M32: 7.862081269
B35: =Expenditure_Detail!$B$6 -> $m, 01/01/23
Q36: Gross capital expenditure | AB36: Government contributions | AM36: Customer contributions | AX36: Net capital expenditure | BI36: Regulatory Depreciation | BT36: Accumulated capex | CE36: Gross capital expenditure | CP36: Tax Depreciation
Q37: =Expenditure_Detail!$B$6 -> $m, 01/01/23 | AB37: =Expenditure_Detail!$B$6 -> $m, 01/01/23 | AM37: =Expenditure_Detail!$B$6 -> $m, 01/01/23 | AX37: =Expenditure_Detail!$B$6 -> $m, 01/01/23 | BI37: =Expenditure_Detail!$B$6 -> $m, 01/01/23 | BT37: =Expenditure_Detail!$B$6 -> $m, 01/01/23 | CE37: Nominal,$ | CP37: Nominal,$
Q39: 2023-24 | R39: 2024-25 | S39: 2025-26 | T39: 2026-27 | U39: 2027-28 | V39: 2028-29 | W39: 2029-30 | X39: 2030-31 | Y39: 2031-32 | Z39: 2032-33 | AB39: 2023-24 | AC39: 2024-25 | AD39: 2025-26 | AE39: 2026-27 | AF39: 2027-28 | AG39: 2028-29 | AH39: 2029-30 | AI39: 2030-31 | AJ39: 2031-32 | AK39: 2032-33 | AM39: 2023-24 | AN39: 2024-25 | AO39: 2025-26 | AP39: 2026-27 | AQ39: 2027-28 | AR39: 2028-29 | AS39: 2029-30 | AT39: 2030-31 | AU39: 2031-32 | AV39: 2032-33 | AX39: 2023-24 | AY39: 2024-25 | AZ39: 2025-26 | BA39: 2026-27 | BB39: 2027-28 | BC39: 2028-29 | BD39: 2029-30 | BE39: 2030-31 | BF39: 2031-32 | BG39: 2032-33 | BI39: 2023-24 | BJ39: 2024-25 | BK39: 2025-26 | BL39: 2026-27 | BM39: 2027-28 | BN39: 2028-29 | BO39: 2029-30 | BP39: 2030-31 | BQ39: 2031-32 | BR39: 2032-33 | BT39: 2023-24 | BU39: 2024-25 | BV39: 2025-26 | BW39: 2026-27 | BX39: 2027-28 | BY39: 2028-29 | BZ39: 2029-30 | CA39: 2030-31 | CB39: 2031-32 | CC39: 2032-33 | CE39: 2023-24 | CF39: 2024-25 | CG39: 2025-26 | CH39: 2026-27 | CI39: 2027-28 | CJ39: 2028-29 | CK39: 2029-30 | CL39: 2030-31 | CM39: 2031-32 | CN39: 2032-33 | CP39: 2023-24 | CQ39: 2024-25 | CR39: 2025-26 | CS39: 2026-27 | CT39: 2027-28 | CU39: 2028-29 | CV39: 2029-30 | CW39: 2030-31 | CX39: 2031-32 | CY39: 2032-33
BI40: 1 | BJ40: 2 | BK40: 3 | BL40: 4 | BM40: 5 | BN40: 6 | BO40: 7 | BP40: 8 | BQ40: 9 | BR40: 10 | CP40: 1 | CQ40: 2 | CR40: 3 | CS40: 4 | CT40: 5 | CU40: 6 | CV40: 7 | CW40: 8 | CX40: 9 | CY40: 10
C41: Project/program Name | E41: Service | F41: Major cost driver | G41: Asset category | H41: Capital type | J41: Depreciation Method | K41: Year asset operational | L41: Asset life (Regulatory) | M41: Asset life (Tax) | Q41: =SUM(Q42:Q1019) -> 83.24330601 | R41: =SUM(R42:R1019) -> 30.08383713 | S41: 27.8245363 | T41: 36.39604682 | U41: 26.02589597 | V41: 35.13787428 | W41: 19.40922773 | X41: 12.74649436 | Y41: 12.46839606 | Z41: 12.2968212 | AB41: =SUM(AB42:AB1019) -> 24.71211234 | AC41: 2.476328419 | AD41: 0.72844289 | AE41: 1.21994172 | AF41: 0.97819474 | AG41: 0 | AH41: 0 | AI41: 0 | AJ41: 0 | AK41: 0 | AM41: =SUM(AM42:AM1019) -> 0.05 | AN41: 2.810175 | AO41: 0.7223625 | AP41: 0.5953625 | AQ41: 0.5318625 | AR41: 0.5318625 | AS41: 0.0635 | AT41: 0.0635 | AU41: 0.0635 | AV41: 0.0635 | AX41: =SUM(AX42:AX1019) -> 58.48119367 | AY41: 24.79733371 | AZ41: 26.37373091 | BA41: 34.5807426 | BB41: 24.51583873 | BC41: 34.60601178 | BD41: 19.34572773 | BE41: 12.68299436 | BF41: 12.40489606 | BG41: 12.2333212 | BI41: =SUM(BI42:BI1019) -> 0.611586034 | BJ41: 1.842260426 | BK41: 2.979263173 | BL41: 3.861589608 | BM41: 4.900108419 | BN41: 6.116432694 | BO41: 7.0004614 | BP41: 7.624721924 | BQ41: 7.833497048 | BR41: 7.862081269 | BT41: =SUM(BT42:BT1019) -> 24.19643996 | BU41: 43.15608761 | BV41: 31.5061738 | BW41: 17.08668432 | BX41: 48.45923347 | BY41: 38.95023224 | BZ41: 19.34572773 | CA41: 12.68299436 | CB41: 12.40489606 | CC41: 12.2333212 | CE41: =SUM(CE42:CE1019) -> 85.74060519 | CF41: 31.91594281 | CG41: 30.40462208 | CH41: 40.96407135 | CI41: 30.17114646 | CJ41: 41.95645948 | CK41: 23.87090193 | CL41: 16.1468777 | CM41: 16.26842882 | CN41: 16.52589942 | CP41: =SUM(CP42:CP1019) -> 0.8840059066 | CQ41: 2.151037907 | CR41: 2.871325532 | CS41: 3.681778944 | CT41: 4.580314847 | CU41: 5.460244691 | CV41: 6.213221314 | CW41: 6.790553692 | CX41: 7.366825257 | CY41: 7.963100305
C42: East Grampians Rural P/Line Extension | E42: Domestic and stock | F42: Growth | G42: Pipelines/network | H42: Top 10 Major Projects | J42: Straight line | K42: 2024-25 | L42: 50 | M42: 70 | Q42: 46.47286511 | R42: 0 | S42: 0 | T42: 0 | U42: 0 | V42: 0 | W42: 0 | X42: 0 | Y42: 0 | Z42: 0 | AB42: 24.27184466 | AC42: 0.9425959091 | AD42: 0 | AE42: 0 | AF42: 0 | AG42: 0 | AH42: 0 | AI42: 0 | AJ42: 0 | AK42: 0 | AM42: 0.05 | AN42: 2.810175 | AO42: 0.7223625 | AP42: 0.5953625 | AQ42: 0.5318625 | AR42: 0.5318625 | AS42: 0.0635 | AT42: 0.0635 | AU42: 0.0635 | AV42: 0.0635 | AX42: =+Q42-AB42-AM42 -> 22.15102045 | AY42: =+R42-AC42-AN42 -> -3.752770909 | AZ42: -0.7223625 | BA42: -0.5953625 | BB42: -0.5318625 | BC42: -0.5318625 | BD42: -0.0635 | BE42: -0.0635 | BF42: -0.0635 | BG42: -0.0635 | BI42: =IF($L42=0,0, IF($L42<=0.5,BT42, IF($J42="straight line", IF((LEFT(BI$39,4)*1)-INT($L42)<LEFT($BI$39,4)*1,0,((OFFSET(BT42,0,-INT($L42+0.5),1,1))/$L42)*(IF($L42-INT($L42)>0.5,$L42-0.5-INT($L42),IF($L42-INT($L42)<=0.5,$L42-0.5-INT($L42)+1,0)))) +BT42/$L42*0.5, IF($J42="Declining Balance",-$BI$38,0)))) -> 0 | BJ42: =IF($L42=0,0, IF($L42<=0.5,BU42, IF(AND($J42="straight line",$L42<1.51),(BT42-((BT42/$L42)*0.5))+BU42/$L42*0.5, IF($J42="straight line", IF((LEFT(BJ$39,4)*1)-INT($L42)<LEFT($BI$39,4)*1,0,((OFFSET(BU42,0,-INT($L42+0.5),1,1))/$L42)*(IF($L42-INT($L42)>0.5,$L42-0.5-INT($L42),IF($L42-INT($L42)<=0.5,$L42-0.5-INT($L42)+1,0)))) +BU42/$L42*0.5 +SUM(OFFSET(BU42,0,MAX(-INT($L42+(0.5-(10^-12))),-BJ$40)+1,1,MIN(INT($L42+(0.5-(10^-12))),BJ$40)-1))*1/$L42, IF($J42="Declining Balance",-$BI$38,0))))) -> 0.1839824954 | BK42: =IF($L42=0,0, IF($L42<=0.5,BV42, IF(AND($J42="straight line",$L42<1.51),(BU42-((BU42/$L42)*0.5))+BV42/$L42*0.5, IF($J42="straight line", IF((LEFT(BK$39,4)*1)-INT($L42)<LEFT($BI$39,4)*1,0,((OFFSET(BV42,0,-INT($L42+0.5),1,1))/$L42)*(IF($L42-INT($L42)>0.5,$L42-0.5-INT($L42),IF($L42-INT($L42)<=0.5,$L42-0.5-INT($L42)+1,0)))) +BV42/$L42*0.5 +SUM(OFFSET(BV42,0,MAX(-INT($L42+(0.5-(10^-12))),-BK$40)+1,1,MIN(INT($L42+(0.5-(10^-12))),BK$40)-1))*1/$L42, IF($J42="Declining Balance",-$BI$38,0))))) -> 0.3607413658 | BL42: =IF($L42=0,0, IF($L42<=0.5,BW42, IF(AND($J42="straight line",$L42<1.51),(BV42-((BV42/$L42)*0.5))+BW42/$L42*0.5, IF($J42="straight line", IF((LEFT(BL$39,4)*1)-INT($L42)<LEFT($BI$39,4)*1,0,((OFFSET(BW42,0,-INT($L42+0.5),1,1))/$L42)*(IF($L42-INT($L42)>0.5,$L42-0.5-INT($L42),IF($L42-INT($L42)<=0.5,$L42-0.5-INT($L42)+1,0)))) +BW42/$L42*0.5 +SUM(OFFSET(BW42,0,MAX(-INT($L42+(0.5-(10^-12))),-BL$40)+1,1,MIN(INT($L42+(0.5-(10^-12))),BL$40)-1))*1/$L42, IF($J42="Declining Balance",-$BI$38,0))))) -> 0.3475641158 | BM42: =IF($L42=0,0, IF($L42<=0.5,BX42, IF(AND($J42="straight line",$L42<1.51),(BW42-((BW42/$L42)*0.5))+BX42/$L42*0.5, IF($J42="straight line", IF((LEFT(BM$39,4)*1)-INT($L42)<LEFT($BI$39,4)*1,0,((OFFSET(BX42,0,-INT($L42+0.5),1,1))/$L42)*(IF($L42-INT($L42)>0.5,$L42-0.5-INT($L42),IF($L42-INT($L42)<=0.5,$L42-0.5-INT($L42)+1,0)))) +BX42/$L42*0.5 +SUM(OFFSET(BX42,0,MAX(-INT($L42+(0.5-(10^-12))),-BM$40)+1,1,MIN(INT($L42+(0.5-(10^-12))),BM$40)-1))*1/$L42, IF($J42="Declining Balance",-$BI$38,0))))) -> 0.3362918658 | BN42: =IF($L42=0,0, IF($L42<=0.5,BY42, IF(AND($J42="straight line",$L42<1.51),(BX42-((BX42/$L42)*0.5))+BY42/$L42*0.5, IF($J42="straight line", IF((LEFT(BN$39,4)*1)-INT($L42)<LEFT($BI$39,4)*1,0,((OFFSET(BY42,0,-INT($L42+0.5),1,1))/$L42)*(IF($L42-INT($L42)>0.5,$L42-0.5-INT($L42),IF($L42-INT($L42)<=0.5,$L42-0.5-INT($L42)+1,0)))) +BY42/$L42*0.5 +SUM(OFFSET(BY42,0,MAX(-INT($L42+(0.5-(10^-12))),-BN$40)+1,1,MIN(INT($L42+(0.5-(10^-12))),BN$40)-1))*1/$L42, IF($J42="Declining Balance",-$BI$38,0))))) -> 0.3256546158 | BO42: =IF($L42=0,0, IF($L42<=0.5,BZ42, IF(AND($J42="straight line",$L42<1.51),(BY42-((BY42/$L42)*0.5))+BZ42/$L42*0.5, IF($J42="straight line", IF((LEFT(BO$39,4)*1)-INT($L42)<LEFT($BI$39,4)*1,0,((OFFSET(BZ42,0,-INT($L42+0.5),1,1))/$L42)*(IF($L42-INT($L42)>0.5,$L42-0.5-INT($L42),IF($L42-INT($L42)<=0.5,$L42-0.5-INT($L42)+1,0)))) +BZ42/$L42*0.5 +SUM(OFFSET(BZ42,0,MAX(-INT($L42+(0.5-(10^-12))),-BO$40)+1,1,MIN(INT($L42+(0.5-(10^-12))),BO$40)-1))*1/$L42, IF($J42="Declining Balance",-$BI$38,0))))) -> 0.3197009908 | BP42: =IF($L42=0,0, IF($L42<=0.5,CA42, IF(AND($J42="straight line",$L42<1.51),(BZ42-((BZ42/$L42)*0.5))+CA42/$L42*0.5, IF($J42="straight line", IF((LEFT(BP$39,4)*1)-INT($L42)<LEFT($BI$39,4)*1,0,((OFFSET(CA42,0,-INT($L42+0.5),1,1))/$L42)*(IF($L42-INT($L42)>0.5,$L42-0.5-INT($L42),IF($L42-INT($L42)<=0.5,$L42-0.5-INT($L42)+1,0)))) +CA42/$L42*0.5 +SUM(OFFSET(CA42,0,MAX(-INT($L42+(0.5-(10^-12))),-BP$40)+1,1,MIN(INT($L42+(0.5-(10^-12))),BP$40)-1))*1/$L42, IF($J42="Declining Balance",-$BI$38,0))))) -> 0.3184309908 | BQ42: =IF($L42=0,0, IF($L42<=0.5,CB42, IF(AND($J42="straight line",$L42<1.51),(CA42-((CA42/$L42)*0.5))+CB42/$L42*0.5, IF($J42="straight line", IF((LEFT(BQ$39,4)*1)-INT($L42)<LEFT($BI$39,4)*1,0,((OFFSET(CB42,0,-INT($L42+0.5),1,1))/$L42)*(IF($L42-INT($L42)>0.5,$L42-0.5-INT($L42),IF($L42-INT($L42)<=0.5,$L42-0.5-INT($L42)+1,0)))) +CB42/$L42*0.5 +SUM(OFFSET(CB42,0,MAX(-INT($L42+(0.5-(10^-12))),-BQ$40)+1,1,MIN(INT($L42+(0.5-(10^-12))),BQ$40)-1))*1/$L42, IF($J42="Declining Balance",-$BI$38,0))))) -> 0.3171609908 | BR42: =IF($L42=0,0, IF($L42<=0.5,CC42, IF(AND($J42="straight line",$L42<1.51),(CB42-((CB42/$L42)*0.5))+CC42/$L42*0.5, IF($J42="straight line", IF((LEFT(BR$39,4)*1)-INT($L42)<LEFT($BI$39,4)*1,0,((OFFSET(CC42,0,-INT($L42+0.5),1,1))/$L42)*(IF($L42-INT($L42)>0.5,$L42-0.5-INT($L42),IF($L42-INT($L42)<=0.5,$L42-0.5-INT($L42)+1,0)))) +CC42/$L42*0.5 +SUM(OFFSET(CC42,0,MAX(-INT($L42+(0.5-(10^-12))),-BR$40)+1,1,MIN(INT($L42+(0.5-(10^-12))),BR$40)-1))*1/$L42, IF($J42="Declining Balance",-$BI$38,0))))) -> 0.3158909908 | BT42: =+IF($K42="Ongoing",AX42,IF(RIGHT($K42,2)=RIGHT(BT$39,2),SUM($AX42:AX42),0)+IF(RIGHT(BT$39,2)>RIGHT($K42,2),AX42,0)) -> 0 | BU42: =+IF($K42="Ongoing",AY42,IF(RIGHT($K42,2)=RIGHT(BU$39,2),SUM($AX42:AY42),0)+IF(RIGHT(BU$39,2)>RIGHT($K42,2),AY42,0)) -> 18.39824954 | BV42: =+IF($K42="Ongoing",AZ42,IF(RIGHT($K42,2)=RIGHT(BV$39,2),SUM($AX42:AZ42),0)+IF(RIGHT(BV$39,2)>RIGHT($K42,2),AZ42,0)) -> -0.7223625 | BW42: =+IF($K42="Ongoing",BA42,IF(RIGHT($K42,2)=RIGHT(BW$39,2),SUM($AX42:BA42),0)+IF(RIGHT(BW$39,2)>RIGHT($K42,2),BA42,0)) -> -0.5953625 | BX42: =+IF($K42="Ongoing",BB42,IF(RIGHT($K42,2)=RIGHT(BX$39,2),SUM($AX42:BB42),0)+IF(RIGHT(BX$39,2)>RIGHT($K42,2),BB42,0)) -> -0.5318625 | BY42: =+IF($K42="Ongoing",BC42,IF(RIGHT($K42,2)=RIGHT(BY$39,2),SUM($AX42:BC42),0)+IF(RIGHT(BY$39,2)>RIGHT($K42,2),BC42,0)) -> -0.5318625 | BZ42: =+IF($K42="Ongoing",BD42,IF(RIGHT($K42,2)=RIGHT(BZ$39,2),SUM($AX42:BD42),0)+IF(RIGHT(BZ$39,2)>RIGHT($K42,2),BD42,0)) -> -0.0635 | CA42: =+IF($K42="Ongoing",BE42,IF(RIGHT($K42,2)=RIGHT(CA$39,2),SUM($AX42:BE42),0)+IF(RIGHT(CA$39,2)>RIGHT($K42,2),BE42,0)) -> -0.0635 | CB42: =+IF($K42="Ongoing",BF42,IF(RIGHT($K42,2)=RIGHT(CB$39,2),SUM($AX42:BF42),0)+IF(RIGHT(CB$39,2)>RIGHT($K42,2),BF42,0)) -> -0.0635 | CC42: =+IF($K42="Ongoing",BG42,IF(RIGHT($K42,2)=RIGHT(CC$39,2),SUM($AX42:BG42),0)+IF(RIGHT(CC$39,2)>RIGHT($K42,2),BG42,0)) -> -0.0635 | CE42: =+Q42*KeyAssumptionsPriceControl_FO!AC$15 -> 47.86705106 | CF42: =+R42*KeyAssumptionsPriceControl_FO!AD$15 -> 0 | CG42: =+S42*KeyAssumptionsPriceControl_FO!AE$15 -> 0 | CH42: =+T42*KeyAssumptionsPriceControl_FO!AF$15 -> 0 | CI42: =+U42*KeyAssumptionsPriceControl_FO!AG$15 -> 0 | CJ42: =+V42*KeyAssumptionsPriceControl_FO!AH$15 -> 0 | CK42: =+W42*KeyAssumptionsPriceControl_FO!AI$15 -> 0 | CL42: =+X42*KeyAssumptionsPriceControl_FO!AJ$15 -> 0 | CM42: =+Y42*KeyAssumptionsPriceControl_FO!AK$15 -> 0 | CN42: =+Z42*KeyAssumptionsPriceControl_FO!AL$15 -> 0 | CP42: =IF($M42=0,0, IF($M42<=0.5,CE42, IF($J42="straight line", IF((LEFT(CP$39,4)*1)-INT($M42)<LEFT($CP$39,4)*1,0,((OFFSET(CE42,0,-INT($M42+0.5),1,1))/$M42)*(IF($M42-INT($M42)>0.5,$M42-0.5-INT($M42),IF($M42-INT($M42)<=0.5,$M42-0.5-INT($M42)+1,0)))) +CE42/$M42*0.5, IF($J42="Declining Balance",-$CP$38,0)))) -> 0.3419075076 | CQ42: =IF($M42=0,0, IF($M42<=0.5,CF42, IF(AND($J42="straight line",$M42<1.51),(CE42-((CE42/$M42)*0.5))+CF42/$M42*0.5, IF($J42="straight line", IF((LEFT(CQ$39,4)*1)-INT($M42)<LEFT($CP$39,4)*1,0,((OFFSET(CF42,0,-INT($M42+0.5),1,1))/$M42)*(IF($M42-INT($M42)>0.5,$M42-0.5-INT($M42),IF($M42-INT($M42)<=0.5,$M42-0.5-INT($M42)+1,0)))) +CF42/$M42*0.5 +SUM(OFFSET(CF42,0,MAX(-INT($M42+(0.5-(10^-12))),-CQ$40)+1,1,MIN(INT($M42+(0.5-(10^-12))),CQ$40)-1))*1/$M42, IF($J42="Declining Balance",-$CP$38,0))))) -> 0.6838150152 | CR42: =IF($M42=0,0, IF($M42<=0.5,CG42, IF(AND($J42="straight line",$M42<1.51),(CF42-((CF42/$M42)*0.5))+CG42/$M42*0.5, IF($J42="straight line", IF((LEFT(CR$39,4)*1)-INT($M42)<LEFT($CP$39,4)*1,0,((OFFSET(CG42,0,-INT($M42+0.5),1,1))/$M42)*(IF($M42-INT($M42)>0.5,$M42-0.5-INT($M42),IF($M42-INT($M42)<=0.5,$M42-0.5-INT($M42)+1,0)))) +CG42/$M42*0.5 +SUM(OFFSET(CG42,0,MAX(-INT($M42+(0.5-(10^-12))),-CR$40)+1,1,MIN(INT($M42+(0.5-(10^-12))),CR$40)-1))*1/$M42, IF($J42="Declining Balance",-$CP$38,0))))) -> 0.6838150152 | CS42: =IF($M42=0,0, IF($M42<=0.5,CH42, IF(AND($J42="straight line",$M42<1.51),(CG42-((CG42/$M42)*0.5))+CH42/$M42*0.5, IF($J42="straight line", IF((LEFT(CS$39,4)*1)-INT($M42)<LEFT($CP$39,4)*1,0,((OFFSET(CH42,0,-INT($M42+0.5),1,1))/$M42)*(IF($M42-INT($M42)>0.5,$M42-0.5-INT($M42),IF($M42-INT($M42)<=0.5,$M42-0.5-INT($M42)+1,0)))) +CH42/$M42*0.5 +SUM(OFFSET(CH42,0,MAX(-INT($M42+(0.5-(10^-12))),-CS$40)+1,1,MIN(INT($M42+(0.5-(10^-12))),CS$40)-1))*1/$M42, IF($J42="Declining Balance",-$CP$38,0))))) -> 0.6838150152 | CT42: =IF($M42=0,0, IF($M42<=0.5,CI42, IF(AND($J42="straight line",$M42<1.51),(CH42-((CH42/$M42)*0.5))+CI42/$M42*0.5, IF($J42="straight line", IF((LEFT(CT$39,4)*1)-INT($M42)<LEFT($CP$39,4)*1,0,((OFFSET(CI42,0,-INT($M42+0.5),1,1))/$M42)*(IF($M42-INT($M42)>0.5,$M42-0.5-INT($M42),IF($M42-INT($M42)<=0.5,$M42-0.5-INT($M42)+1,0)))) +CI42/$M42*0.5 +SUM(OFFSET(CI42,0,MAX(-INT($M42+(0.5-(10^-12))),-CT$40)+1,1,MIN(INT($M42+(0.5-(10^-12))),CT$40)-1))*1/$M42, IF($J42="Declining Balance",-$CP$38,0))))) -> 0.6838150152 | CU42: =IF($M42=0,0, IF($M42<=0.5,CJ42, IF(AND($J42="straight line",$M42<1.51),(CI42-((CI42/$M42)*0.5))+CJ42/$M42*0.5, IF($J42="straight line", IF((LEFT(CU$39,4)*1)-INT($M42)<LEFT($CP$39,4)*1,0,((OFFSET(CJ42,0,-INT($M42+0.5),1,1))/$M42)*(IF($M42-INT($M42)>0.5,$M42-0.5-INT($M42),IF($M42-INT($M42)<=0.5,$M42-0.5-INT($M42)+1,0)))) +CJ42/$M42*0.5 +SUM(OFFSET(CJ42,0,MAX(-INT($M42+(0.5-(10^-12))),-CU$40)+1,1,MIN(INT($M42+(0.5-(10^-12))),CU$40)-1))*1/$M42, IF($J42="Declining Balance",-$CP$38,0))))) -> 0.6838150152 | CV42: =IF($M42=0,0, IF($M42<=0.5,CK42, IF(AND($J42="straight line",$M42<1.51),(CJ42-((CJ42/$M42)*0.5))+CK42/$M42*0.5, IF($J42="straight line", IF((LEFT(CV$39,4)*1)-INT($M42)<LEFT($CP$39,4)*1,0,((OFFSET(CK42,0,-INT($M42+0.5),1,1))/$M42)*(IF($M42-INT($M42)>0.5,$M42-0.5-INT($M42),IF($M42-INT($M42)<=0.5,$M42-0.5-INT($M42)+1,0)))) +CK42/$M42*0.5 +SUM(OFFSET(CK42,0,MAX(-INT($M42+(0.5-(10^-12))),-CV$40)+1,1,MIN(INT($M42+(0.5-(10^-12))),CV$40)-1))*1/$M42, IF($J42="Declining Balance",-$CP$38,0))))) -> 0.6838150152 | CW42: =IF($M42=0,0, IF($M42<=0.5,CL42, IF(AND($J42="straight line",$M42<1.51),(CK42-((CK42/$M42)*0.5))+CL42/$M42*0.5, IF($J42="straight line", IF((LEFT(CW$39,4)*1)-INT($M42)<LEFT($CP$39,4)*1,0,((OFFSET(CL42,0,-INT($M42+0.5),1,1))/$M42)*(IF($M42-INT($M42)>0.5,$M42-0.5-INT($M42),IF($M42-INT($M42)<=0.5,$M42-0.5-INT($M42)+1,0)))) +CL42/$M42*0.5 +SUM(OFFSET(CL42,0,MAX(-INT($M42+(0.5-(10^-12))),-CW$40)+1,1,MIN(INT($M42+(0.5-(10^-12))),CW$40)-1))*1/$M42, IF($J42="Declining Balance",-$CP$38,0))))) -> 0.6838150152 | CX42: =IF($M42=0,0, IF($M42<=0.5,CM42, IF(AND($J42="straight line",$M42<1.51),(CL42-((CL42/$M42)*0.5))+CM42/$M42*0.5, IF($J42="straight line", IF((LEFT(CX$39,4)*1)-INT($M42)<LEFT($CP$39,4)*1,0,((OFFSET(CM42,0,-INT($M42+0.5),1,1))/$M42)*(IF($M42-INT($M42)>0.5,$M42-0.5-INT($M42),IF($M42-INT($M42)<=0.5,$M42-0.5-INT($M42)+1,0)))) +CM42/$M42*0.5 +SUM(OFFSET(CM42,0,MAX(-INT($M42+(0.5-(10^-12))),-CX$40)+1,1,MIN(INT($M42+(0.5-(10^-12))),CX$40)-1))*1/$M42, IF($J42="Declining Balance",-$CP$38,0))))) -> 0.6838150152 | CY42: =IF($M42=0,0, IF($M42<=0.5,CN42, IF(AND($J42="straight line",$M42<1.51),(CM42-((CM42/$M42)*0.5))+CN42/$M42*0.5, IF($J42="straight line", IF((LEFT(CY$39,4)*1)-INT($M42)<LEFT($CP$39,4)*1,0,((OFFSET(CN42,0,-INT($M42+0.5),1,1))/$M42)*(IF($M42-INT($M42)>0.5,$M42-0.5-INT($M42),IF($M42-INT($M42)<=0.5,$M42-0.5-INT($M42)+1,0)))) +CN42/$M42*0.5 +SUM(OFFSET(CN42,0,MAX(-INT($M42+(0.5-(10^-12))),-CY$40)+1,1,MIN(INT($M42+(0.5-(10^-12))),CY$40)-1))*1/$M42, IF($J42="Declining Balance",-$CP$38,0))))) -> 0.6838150152
C43: Upgrade WWTP & Reuse System - Dimboola | E43: Sewerage | F43: Improvements / Compliance | G43: Treatment | H43: Top 10 Major Projects | J43: Straight line | K43: 2027-28 | L43: 60 | M43: 80 | Q43: 0.2 | R43: 1.2 | S43: 3 | T43: 3.35 | U43: 0 | V43: 0 | W43: 0 | X43: 0 | Y43: 0 | Z43: 0 | AX43: =+Q43-AB43-AM43 -> 0.2 | AY43: 1.2 | AZ43: 3 | BA43: 3.35 | BB43: 0 | BC43: 0 | BD43: 0 | BE43: 0 | BF43: 0 | BG43: 0 | BI43: 0 | BJ43: 0 | BK43: 0 | BL43: 0 | BM43: 0.06458333333 | BN43: 0.1291666667 | BO43: 0.1291666667 | BP43: 0.1291666667 | BQ43: 0.1291666667 | BR43: 0.1291666667 | BT43: =+IF($K43="Ongoing",AX43,IF(RIGHT($K43,2)=RIGHT(BT$39,2),SUM($AX43:AX43),0)+IF(RIGHT(BT$39,2)>RIGHT($K43,2),AX43,0)) -> 0 | BU43: =+IF($K43="Ongoing",AY43,IF(RIGHT($K43,2)=RIGHT(BU$39,2),SUM($AX43:AY43),0)+IF(RIGHT(BU$39,2)>RIGHT($K43,2),AY43,0)) -> 0 | BV43: =+IF($K43="Ongoing",AZ43,IF(RIGHT($K43,2)=RIGHT(BV$39,2),SUM($AX43:AZ43),0)+IF(RIGHT(BV$39,2)>RIGHT($K43,2),AZ43,0)) -> 0 | BW43: =+IF($K43="Ongoing",BA43,IF(RIGHT($K43,2)=RIGHT(BW$39,2),SUM($AX43:BA43),0)+IF(RIGHT(BW$39,2)>RIGHT($K43,2),BA43,0)) -> 0 | BX43: =+IF($K43="Ongoing",BB43,IF(RIGHT($K43,2)=RIGHT(BX$39,2),SUM($AX43:BB43),0)+IF(RIGHT(BX$39,2)>RIGHT($K43,2),BB43,0)) -> 7.75 | BY43: =+IF($K43="Ongoing",BC43,IF(RIGHT($K43,2)=RIGHT(BY$39,2),SUM($AX43:BC43),0)+IF(RIGHT(BY$39,2)>RIGHT($K43,2),BC43,0)) -> 0 | BZ43: =+IF($K43="Ongoing",BD43,IF(RIGHT($K43,2)=RIGHT(BZ$39,2),SUM($AX43:BD43),0)+IF(RIGHT(BZ$39,2)>RIGHT($K43,2),BD43,0)) -> 0 | CA43: =+IF($K43="Ongoing",BE43,IF(RIGHT($K43,2)=RIGHT(CA$39,2),SUM($AX43:BE43),0)+IF(RIGHT(CA$39,2)>RIGHT($K43,2),BE43,0)) -> 0 | CB43: =+IF($K43="Ongoing",BF43,IF(RIGHT($K43,2)=RIGHT(CB$39,2),SUM($AX43:BF43),0)+IF(RIGHT(CB$39,2)>RIGHT($K43,2),BF43,0)) -> 0 | CC43: =+IF($K43="Ongoing",BG43,IF(RIGHT($K43,2)=RIGHT(CC$39,2),SUM($AX43:BG43),0)+IF(RIGHT(CC$39,2)>RIGHT($K43,2),BG43,0)) -> 0 | CE43: =+Q43*KeyAssumptionsPriceControl_FO!AC$15 -> 0.206 | CF43: =+R43*KeyAssumptionsPriceControl_FO!AD$15 -> 1.27308 | CG43: =+S43*KeyAssumptionsPriceControl_FO!AE$15 -> 3.278181 | CH43: =+T43*KeyAssumptionsPriceControl_FO!AF$15 -> 3.770454514 | CI43: =+U43*KeyAssumptionsPriceControl_FO!AG$15 -> 0 | CJ43: =+V43*KeyAssumptionsPriceControl_FO!AH$15 -> 0 | CK43: =+W43*KeyAssumptionsPriceControl_FO!AI$15 -> 0 | CL43: =+X43*KeyAssumptionsPriceControl_FO!AJ$15 -> 0 | CM43: =+Y43*KeyAssumptionsPriceControl_FO!AK$15 -> 0 | CN43: =+Z43*KeyAssumptionsPriceControl_FO!AL$15 -> 0 | CP43: 0.0012875 | CQ43: 0.01053175 | CR43: 0.03897713125 | CS43: 0.08303110321 | CT43: 0.1065964439 | CU43: 0.1065964439 | CV43: 0.1065964439 | CW43: 0.1065964439 | CX43: 0.1065964439 | CY43: 0.1065964439
C44: NMP Clean Water Stage 2 | E44: Domestic and stock | F44: Improvements / Compliance | G44: Treatment | H44: Top 10 Major Projects | J44: Straight line | K44: 2027-28 | L44: 50 | M44: 60 | Q44: 0 | R44: 0.1 | S44: 1.8 | T44: 7.33 | U44: 0 | V44: 0 | W44: 0 | X44: 0 | Y44: 0 | Z44: 0 | AX44: 0 | AY44: 0.1 | AZ44: 1.8 | BA44: 7.33 | BB44: 0 | BC44: 0 | BD44: 0 | BE44: 0 | BF44: 0 | BG44: 0 | BI44: 0 | BJ44: 0 | BK44: 0 | BL44: 0 | BM44: 0.0923 | BN44: 0.1846 | BO44: 0.1846 | BP44: 0.1846 | BQ44: 0.1846 | BR44: 0.1846 | BT44: =+IF($K44="Ongoing",AX44,IF(RIGHT($K44,2)=RIGHT(BT$39,2),SUM($AX44:AX44),0)+IF(RIGHT(BT$39,2)>RIGHT($K44,2),AX44,0)) -> 0 | BU44: =+IF($K44="Ongoing",AY44,IF(RIGHT($K44,2)=RIGHT(BU$39,2),SUM($AX44:AY44),0)+IF(RIGHT(BU$39,2)>RIGHT($K44,2),AY44,0)) -> 0 | BV44: =+IF($K44="Ongoing",AZ44,IF(RIGHT($K44,2)=RIGHT(BV$39,2),SUM($AX44:AZ44),0)+IF(RIGHT(BV$39,2)>RIGHT($K44,2),AZ44,0)) -> 0 | BW44: =+IF($K44="Ongoing",BA44,IF(RIGHT($K44,2)=RIGHT(BW$39,2),SUM($AX44:BA44),0)+IF(RIGHT(BW$39,2)>RIGHT($K44,2),BA44,0)) -> 0 | BX44: =+IF($K44="Ongoing",BB44,IF(RIGHT($K44,2)=RIGHT(BX$39,2),SUM($AX44:BB44),0)+IF(RIGHT(BX$39,2)>RIGHT($K44,2),BB44,0)) -> 9.23 | BY44: =+IF($K44="Ongoing",BC44,IF(RIGHT($K44,2)=RIGHT(BY$39,2),SUM($AX44:BC44),0)+IF(RIGHT(BY$39,2)>RIGHT($K44,2),BC44,0)) -> 0 | BZ44: =+IF($K44="Ongoing",BD44,IF(RIGHT($K44,2)=RIGHT(BZ$39,2),SUM($AX44:BD44),0)+IF(RIGHT(BZ$39,2)>RIGHT($K44,2),BD44,0)) -> 0 | CA44: =+IF($K44="Ongoing",BE44,IF(RIGHT($K44,2)=RIGHT(CA$39,2),SUM($AX44:BE44),0)+IF(RIGHT(CA$39,2)>RIGHT($K44,2),BE44,0)) -> 0 | CB44: =+IF($K44="Ongoing",BF44,IF(RIGHT($K44,2)=RIGHT(CB$39,2),SUM($AX44:BF44),0)+IF(RIGHT(CB$39,2)>RIGHT($K44,2),BF44,0)) -> 0 | CC44: =+IF($K44="Ongoing",BG44,IF(RIGHT($K44,2)=RIGHT(CC$39,2),SUM($AX44:BG44),0)+IF(RIGHT(CC$39,2)>RIGHT($K44,2),BG44,0)) -> 0 | CE44: =+Q44*KeyAssumptionsPriceControl_FO!AC$15 -> 0 | CF44: =+R44*KeyAssumptionsPriceControl_FO!AD$15 -> 0.10609 | CG44: =+S44*KeyAssumptionsPriceControl_FO!AE$15 -> 1.9669086 | CH44: =+T44*KeyAssumptionsPriceControl_FO!AF$15 -> 8.249979577 | CI44: =+U44*KeyAssumptionsPriceControl_FO!AG$15 -> 0 | CJ44: =+V44*KeyAssumptionsPriceControl_FO!AH$15 -> 0 | CK44: =+W44*KeyAssumptionsPriceControl_FO!AI$15 -> 0 | CL44: =+X44*KeyAssumptionsPriceControl_FO!AJ$15 -> 0 | CM44: =+Y44*KeyAssumptionsPriceControl_FO!AK$15 -> 0 | CN44: =+Z44*KeyAssumptionsPriceControl_FO!AL$15 -> 0 | CP44: 0 | CQ44: 0.0008840833333 | CR44: 0.01815907167 | CS44: 0.1032998065 | CT44: 0.1720496363 | CU44: 0.1720496363 | CV44: 0.1720496363 | CW44: 0.1720496363 | CX44: 0.1720496363 | CY44: 0.1720496363
C45: Water Quality Upgrade - Kaniva | E45: Urban Water | F45: Improvements / Compliance | G45: Treatment | H45: Top 10 Major Projects | J45: Straight line | K45: 2025-26 | L45: 50 | M45: 60 | Q45: 6 | R45: 2.528 | S45: 0 | T45: 0 | U45: 0 | V45: 0 | W45: 0 | X45: 0 | Y45: 0 | Z45: 0 | AX45: 6 | AY45: 2.528 | AZ45: 0 | BA45: 0 | BB45: 0 | BC45: 0 | BD45: 0 | BE45: 0 | BF45: 0 | BG45: 0 | BI45: 0 | BJ45: 0 | BK45: 0.08528 | BL45: 0.17056 | BM45: 0.17056 | BN45: 0.17056 | BO45: 0.17056 | BP45: 0.17056 | BQ45: 0.17056 | BR45: 0.17056 | BT45: =+IF($K45="Ongoing",AX45,IF(RIGHT($K45,2)=RIGHT(BT$39,2),SUM($AX45:AX45),0)+IF(RIGHT(BT$39,2)>RIGHT($K45,2),AX45,0)) -> 0 | BU45: =+IF($K45="Ongoing",AY45,IF(RIGHT($K45,2)=RIGHT(BU$39,2),SUM($AX45:AY45),0)+IF(RIGHT(BU$39,2)>RIGHT($K45,2),AY45,0)) -> 0 | BV45: =+IF($K45="Ongoing",AZ45,IF(RIGHT($K45,2)=RIGHT(BV$39,2),SUM($AX45:AZ45),0)+IF(RIGHT(BV$39,2)>RIGHT($K45,2),AZ45,0)) -> 8.528 | BW45: =+IF($K45="Ongoing",BA45,IF(RIGHT($K45,2)=RIGHT(BW$39,2),SUM($AX45:BA45),0)+IF(RIGHT(BW$39,2)>RIGHT($K45,2),BA45,0)) -> 0 | BX45: =+IF($K45="Ongoing",BB45,IF(RIGHT($K45,2)=RIGHT(BX$39,2),SUM($AX45:BB45),0)+IF(RIGHT(BX$39,2)>RIGHT($K45,2),BB45,0)) -> 0 | BY45: =+IF($K45="Ongoing",BC45,IF(RIGHT($K45,2)=RIGHT(BY$39,2),SUM($AX45:BC45),0)+IF(RIGHT(BY$39,2)>RIGHT($K45,2),BC45,0)) -> 0 | BZ45: =+IF($K45="Ongoing",BD45,IF(RIGHT($K45,2)=RIGHT(BZ$39,2),SUM($AX45:BD45),0)+IF(RIGHT(BZ$39,2)>RIGHT($K45,2),BD45,0)) -> 0 | CA45: =+IF($K45="Ongoing",BE45,IF(RIGHT($K45,2)=RIGHT(CA$39,2),SUM($AX45:BE45),0)+IF(RIGHT(CA$39,2)>RIGHT($K45,2),BE45,0)) -> 0 | CB45: =+IF($K45="Ongoing",BF45,IF(RIGHT($K45,2)=RIGHT(CB$39,2),SUM($AX45:BF45),0)+IF(RIGHT(CB$39,2)>RIGHT($K45,2),BF45,0)) -> 0 | CC45: =+IF($K45="Ongoing",BG45,IF(RIGHT($K45,2)=RIGHT(CC$39,2),SUM($AX45:BG45),0)+IF(RIGHT(CC$39,2)>RIGHT($K45,2),BG45,0)) -> 0 | CE45: =+Q45*KeyAssumptionsPriceControl_FO!AC$15 -> 6.18 | CF45: =+R45*KeyAssumptionsPriceControl_FO!AD$15 -> 2.6819552 | CG45: =+S45*KeyAssumptionsPriceControl_FO!AE$15 -> 0 | CH45: =+T45*KeyAssumptionsPriceControl_FO!AF$15 -> 0 | CI45: =+U45*KeyAssumptionsPriceControl_FO!AG$15 -> 0 | CJ45: =+V45*KeyAssumptionsPriceControl_FO!AH$15 -> 0 | CK45: =+W45*KeyAssumptionsPriceControl_FO!AI$15 -> 0 | CL45: =+X45*KeyAssumptionsPriceControl_FO!AJ$15 -> 0 | CM45: =+Y45*KeyAssumptionsPriceControl_FO!AK$15 -> 0 | CN45: =+Z45*KeyAssumptionsPriceControl_FO!AL$15 -> 0 | CP45: 0.0515 | CQ45: 0.1253496267 | CR45: 0.1476992533 | CS45: 0.1476992533 | CT45: 0.1476992533 | CU45: 0.1476992533 | CV45: 0.1476992533 | CW45: 0.1476992533 | CX45: 0.1476992533 | CY45: 0.1476992533
C46: Water Supply System Upgrade - Industrial Fire Flow | E46: Urban Water | F46: Improvements / Compliance | G46: Pipelines/network | H46: Top 10 Major Projects | J46: Straight line | K46: 2028-29 | L46: 50 | M46: 60 | Q46: 0.55 | R46: 1.916 | S46: 0.91 | T46: 1.524 | U46: 1.287 | V46: 0 | W46: 0 | X46: 0 | Y46: 0 | Z46: 0 | AB46: 0.44026768 | AC46: 1.53373251 | AD46: 0.72844289 | AE46: 1.21994172 | AF46: 0.97819474 | AG46: 0 | AH46: 0 | AI46: 0 | AJ46: 0 | AK46: 0 | AX46: 0.10973232 | AY46: 0.38226749 | AZ46: 0.18155711 | BA46: 0.30405828 | BB46: 0.30880526 | BC46: 0 | BD46: 0 | BE46: 0 | BF46: 0 | BG46: 0 | BI46: 0 | BJ46: 0 | BK46: 0 | BL46: 0 | BM46: 0 | BN46: 0.0128642046 | BO46: 0.0257284092 | BP46: 0.0257284092 | BQ46: 0.0257284092 | BR46: 0.0257284092 | BT46: =+IF($K46="Ongoing",AX46,IF(RIGHT($K46,2)=RIGHT(BT$39,2),SUM($AX46:AX46),0)+IF(RIGHT(BT$39,2)>RIGHT($K46,2),AX46,0)) -> 0 | BU46: =+IF($K46="Ongoing",AY46,IF(RIGHT($K46,2)=RIGHT(BU$39,2),SUM($AX46:AY46),0)+IF(RIGHT(BU$39,2)>RIGHT($K46,2),AY46,0)) -> 0 | BV46: =+IF($K46="Ongoing",AZ46,IF(RIGHT($K46,2)=RIGHT(BV$39,2),SUM($AX46:AZ46),0)+IF(RIGHT(BV$39,2)>RIGHT($K46,2),AZ46,0)) -> 0 | BW46: =+IF($K46="Ongoing",BA46,IF(RIGHT($K46,2)=RIGHT(BW$39,2),SUM($AX46:BA46),0)+IF(RIGHT(BW$39,2)>RIGHT($K46,2),BA46,0)) -> 0 | BX46: =+IF($K46="Ongoing",BB46,IF(RIGHT($K46,2)=RIGHT(BX$39,2),SUM($AX46:BB46),0)+IF(RIGHT(BX$39,2)>RIGHT($K46,2),BB46,0)) -> 0 | BY46: =+IF($K46="Ongoing",BC46,IF(RIGHT($K46,2)=RIGHT(BY$39,2),SUM($AX46:BC46),0)+IF(RIGHT(BY$39,2)>RIGHT($K46,2),BC46,0)) -> 1.28642046 | BZ46: =+IF($K46="Ongoing",BD46,IF(RIGHT($K46,2)=RIGHT(BZ$39,2),SUM($AX46:BD46),0)+IF(RIGHT(BZ$39,2)>RIGHT($K46,2),BD46,0)) -> 0 | CA46: =+IF($K46="Ongoing",BE46,IF(RIGHT($K46,2)=RIGHT(CA$39,2),SUM($AX46:BE46),0)+IF(RIGHT(CA$39,2)>RIGHT($K46,2),BE46,0)) -> 0 | CB46: =+IF($K46="Ongoing",BF46,IF(RIGHT($K46,2)=RIGHT(CB$39,2),SUM($AX46:BF46),0)+IF(RIGHT(CB$39,2)>RIGHT($K46,2),BF46,0)) -> 0 | CC46: =+IF($K46="Ongoing",BG46,IF(RIGHT($K46,2)=RIGHT(CC$39,2),SUM($AX46:BG46),0)+IF(RIGHT(CC$39,2)>RIGHT($K46,2),BG46,0)) -> 0 | CE46: =+Q46*KeyAssumptionsPriceControl_FO!AC$15 -> 0.5665 | CF46: =+R46*KeyAssumptionsPriceControl_FO!AD$15 -> 2.0326844 | CG46: =+S46*KeyAssumptionsPriceControl_FO!AE$15 -> 0.99438157 | CH46: =+T46*KeyAssumptionsPriceControl_FO!AF$15 -> 1.715275426 | CI46: =+U46*KeyAssumptionsPriceControl_FO!AG$15 -> 1.491985734 | CJ46: =+V46*KeyAssumptionsPriceControl_FO!AH$15 -> 0 | CK46: =+W46*KeyAssumptionsPriceControl_FO!AI$15 -> 0 | CL46: =+X46*KeyAssumptionsPriceControl_FO!AJ$15 -> 0 | CM46: =+Y46*KeyAssumptionsPriceControl_FO!AK$15 -> 0 | CN46: =+Z46*KeyAssumptionsPriceControl_FO!AL$15 -> 0 | CP46: 0.004720833333 | CQ46: 0.02638070333 | CR46: 0.05160625308 | CS46: 0.07418672805 | CT46: 0.1009139044 | CU46: 0.1133471188 | CV46: 0.1133471188 | CW46: 0.1133471188 | CX46: 0.1133471188 | CY46: 0.1133471188
C47: Water Quality Upgrade - Berriwillock and Culgoa | E47: Urban Water | F47: Improvements / Compliance | G47: Treatment | H47: Top 10 Major Projects | J47: Straight line | K47: 2027-28 | L47: 50 | M47: 60 | Q47: 0 | R47: 0.1 | S47: 2.6 | T47: 3.01 | U47: 0 | V47: 0 | W47: 0 | X47: 0 | Y47: 0 | Z47: 0 | AX47: 0 | AY47: 0.1 | AZ47: 2.6 | BA47: 3.01 | BB47: 0 | BC47: 0 | BD47: 0 | BE47: 0 | BF47: 0 | BG47: 0 | BI47: 0 | BJ47: 0 | BK47: 0 | BL47: 0 | BM47: 0.0571 | BN47: 0.1142 | BO47: 0.1142 | BP47: 0.1142 | BQ47: 0.1142 | BR47: 0.1142 | BT47: =+IF($K47="Ongoing",AX47,IF(RIGHT($K47,2)=RIGHT(BT$39,2),SUM($AX47:AX47),0)+IF(RIGHT(BT$39,2)>RIGHT($K47,2),AX47,0)) -> 0 | BU47: =+IF($K47="Ongoing",AY47,IF(RIGHT($K47,2)=RIGHT(BU$39,2),SUM($AX47:AY47),0)+IF(RIGHT(BU$39,2)>RIGHT($K47,2),AY47,0)) -> 0 | BV47: =+IF($K47="Ongoing",AZ47,IF(RIGHT($K47,2)=RIGHT(BV$39,2),SUM($AX47:AZ47),0)+IF(RIGHT(BV$39,2)>RIGHT($K47,2),AZ47,0)) -> 0 | BW47: =+IF($K47="Ongoing",BA47,IF(RIGHT($K47,2)=RIGHT(BW$39,2),SUM($AX47:BA47),0)+IF(RIGHT(BW$39,2)>RIGHT($K47,2),BA47,0)) -> 0 | BX47: =+IF($K47="Ongoing",BB47,IF(RIGHT($K47,2)=RIGHT(BX$39,2),SUM($AX47:BB47),0)+IF(RIGHT(BX$39,2)>RIGHT($K47,2),BB47,0)) -> 5.71 | BY47: =+IF($K47="Ongoing",BC47,IF(RIGHT($K47,2)=RIGHT(BY$39,2),SUM($AX47:BC47),0)+IF(RIGHT(BY$39,2)>RIGHT($K47,2),BC47,0)) -> 0 | BZ47: =+IF($K47="Ongoing",BD47,IF(RIGHT($K47,2)=RIGHT(BZ$39,2),SUM($AX47:BD47),0)+IF(RIGHT(BZ$39,2)>RIGHT($K47,2),BD47,0)) -> 0 | CA47: =+IF($K47="Ongoing",BE47,IF(RIGHT($K47,2)=RIGHT(CA$39,2),SUM($AX47:BE47),0)+IF(RIGHT(CA$39,2)>RIGHT($K47,2),BE47,0)) -> 0 | CB47: =+IF($K47="Ongoing",BF47,IF(RIGHT($K47,2)=RIGHT(CB$39,2),SUM($AX47:BF47),0)+IF(RIGHT(CB$39,2)>RIGHT($K47,2),BF47,0)) -> 0 | CC47: =+IF($K47="Ongoing",BG47,IF(RIGHT($K47,2)=RIGHT(CC$39,2),SUM($AX47:BG47),0)+IF(RIGHT(CC$39,2)>RIGHT($K47,2),BG47,0)) -> 0 | CE47: =+Q47*KeyAssumptionsPriceControl_FO!AC$15 -> 0 | CF47: =+R47*KeyAssumptionsPriceControl_FO!AD$15 -> 0.10609 | CG47: =+S47*KeyAssumptionsPriceControl_FO!AE$15 -> 2.8410902 | CH47: =+T47*KeyAssumptionsPriceControl_FO!AF$15 -> 3.387781518 | CI47: =+U47*KeyAssumptionsPriceControl_FO!AG$15 -> 0 | CJ47: =+V47*KeyAssumptionsPriceControl_FO!AH$15 -> 0 | CK47: =+W47*KeyAssumptionsPriceControl_FO!AI$15 -> 0 | CL47: =+X47*KeyAssumptionsPriceControl_FO!AJ$15 -> 0 | CM47: =+Y47*KeyAssumptionsPriceControl_FO!AK$15 -> 0 | CN47: =+Z47*KeyAssumptionsPriceControl_FO!AL$15 -> 0 | CP47: 0 | CQ47: 0.0008840833333 | CR47: 0.02544391833 | CS47: 0.07735118265 | CT47: 0.1055826953 | CU47: 0.1055826953 | CV47: 0.1055826953 | CW47: 0.1055826953 | CX47: 0.1055826953 | CY47: 0.1055826953
C48: Water Quality Upgrade - Moyston | E48: Urban Water | F48: Improvements / Compliance | G48: Treatment | H48: Top 10 Major Projects | J48: Straight line | K48: 2025-26 | L48: 50 | M48: 60 | Q48: 3.3 | R48: 1.506 | S48: 0 | T48: 0 | U48: 0 | V48: 0 | W48: 0 | X48: 0 | Y48: 0 | Z48: 0 | AX48: 3.3 | AY48: 1.506 | AZ48: 0 | BA48: 0 | BB48: 0 | BC48: 0 | BD48: 0 | BE48: 0 | BF48: 0 | BG48: 0 | BI48: 0 | BJ48: 0 | BK48: 0.04806 | BL48: 0.09612 | BM48: 0.09612 | BN48: 0.09612 | BO48: 0.09612 | BP48: 0.09612 | BQ48: 0.09612 | BR48: 0.09612 | BT48: =+IF($K48="Ongoing",AX48,IF(RIGHT($K48,2)=RIGHT(BT$39,2),SUM($AX48:AX48),0)+IF(RIGHT(BT$39,2)>RIGHT($K48,2),AX48,0)) -> 0 | BU48: =+IF($K48="Ongoing",AY48,IF(RIGHT($K48,2)=RIGHT(BU$39,2),SUM($AX48:AY48),0)+IF(RIGHT(BU$39,2)>RIGHT($K48,2),AY48,0)) -> 0 | BV48: =+IF($K48="Ongoing",AZ48,IF(RIGHT($K48,2)=RIGHT(BV$39,2),SUM($AX48:AZ48),0)+IF(RIGHT(BV$39,2)>RIGHT($K48,2),AZ48,0)) -> 4.806 | BW48: =+IF($K48="Ongoing",BA48,IF(RIGHT($K48,2)=RIGHT(BW$39,2),SUM($AX48:BA48),0)+IF(RIGHT(BW$39,2)>RIGHT($K48,2),BA48,0)) -> 0 | BX48: =+IF($K48="Ongoing",BB48,IF(RIGHT($K48,2)=RIGHT(BX$39,2),SUM($AX48:BB48),0)+IF(RIGHT(BX$39,2)>RIGHT($K48,2),BB48,0)) -> 0 | BY48: =+IF($K48="Ongoing",BC48,IF(RIGHT($K48,2)=RIGHT(BY$39,2),SUM($AX48:BC48),0)+IF(RIGHT(BY$39,2)>RIGHT($K48,2),BC48,0)) -> 0 | BZ48: =+IF($K48="Ongoing",BD48,IF(RIGHT($K48,2)=RIGHT(BZ$39,2),SUM($AX48:BD48),0)+IF(RIGHT(BZ$39,2)>RIGHT($K48,2),BD48,0)) -> 0 | CA48: =+IF($K48="Ongoing",BE48,IF(RIGHT($K48,2)=RIGHT(CA$39,2),SUM($AX48:BE48),0)+IF(RIGHT(CA$39,2)>RIGHT($K48,2),BE48,0)) -> 0 | CB48: =+IF($K48="Ongoing",BF48,IF(RIGHT($K48,2)=RIGHT(CB$39,2),SUM($AX48:BF48),0)+IF(RIGHT(CB$39,2)>RIGHT($K48,2),BF48,0)) -> 0 | CC48: =+IF($K48="Ongoing",BG48,IF(RIGHT($K48,2)=RIGHT(CC$39,2),SUM($AX48:BG48),0)+IF(RIGHT(CC$39,2)>RIGHT($K48,2),BG48,0)) -> 0 | CE48: =+Q48*KeyAssumptionsPriceControl_FO!AC$15 -> 3.399 | CF48: =+R48*KeyAssumptionsPriceControl_FO!AD$15 -> 1.5977154 | CG48: =+S48*KeyAssumptionsPriceControl_FO!AE$15 -> 0 | CH48: =+T48*KeyAssumptionsPriceControl_FO!AF$15 -> 0 | CI48: =+U48*KeyAssumptionsPriceControl_FO!AG$15 -> 0 | CJ48: =+V48*KeyAssumptionsPriceControl_FO!AH$15 -> 0 | CK48: =+W48*KeyAssumptionsPriceControl_FO!AI$15 -> 0 | CL48: =+X48*KeyAssumptionsPriceControl_FO!AJ$15 -> 0 | CM48: =+Y48*KeyAssumptionsPriceControl_FO!AK$15 -> 0 | CN48: =+Z48*KeyAssumptionsPriceControl_FO!AL$15 -> 0 | CP48: 0.028325 | CQ48: 0.069964295 | CR48: 0.08327859 | CS48: 0.08327859 | CT48: 0.08327859 | CU48: 0.08327859 | CV48: 0.08327859 | CW48: 0.08327859 | CX48: 0.08327859 | CY48: 0.08327859
C49: Headworks Structure Renewal - Rocklands Flume | E49: Bulk water - headworks | F49: Renewals | G49: Headworks | H49: Top 10 Major Projects | J49: Straight line | K49: 2027-28 | L49: 80 | M49: 100 | Q49: 0 | R49: 0 | S49: 0.12 | T49: 3 | U49: 3 | V49: 0 | W49: 0 | X49: 0 | Y49: 0 | Z49: 0 | AX49: 0 | AY49: 0 | AZ49: 0.12 | BA49: 3 | BB49: 3 | BC49: 0 | BD49: 0 | BE49: 0 | BF49: 0 | BG49: 0 | BI49: 0 | BJ49: 0 | BK49: 0 | BL49: 0 | BM49: 0.03825 | BN49: 0.0765 | BO49: 0.0765 | BP49: 0.0765 | BQ49: 0.0765 | BR49: 0.0765 | BT49: =+IF($K49="Ongoing",AX49,IF(RIGHT($K49,2)=RIGHT(BT$39,2),SUM($AX49:AX49),0)+IF(RIGHT(BT$39,2)>RIGHT($K49,2),AX49,0)) -> 0 | BU49: =+IF($K49="Ongoing",AY49,IF(RIGHT($K49,2)=RIGHT(BU$39,2),SUM($AX49:AY49),0)+IF(RIGHT(BU$39,2)>RIGHT($K49,2),AY49,0)) -> 0 | BV49: =+IF($K49="Ongoing",AZ49,IF(RIGHT($K49,2)=RIGHT(BV$39,2),SUM($AX49:AZ49),0)+IF(RIGHT(BV$39,2)>RIGHT($K49,2),AZ49,0)) -> 0 | BW49: =+IF($K49="Ongoing",BA49,IF(RIGHT($K49,2)=RIGHT(BW$39,2),SUM($AX49:BA49),0)+IF(RIGHT(BW$39,2)>RIGHT($K49,2),BA49,0)) -> 0 | BX49: =+IF($K49="Ongoing",BB49,IF(RIGHT($K49,2)=RIGHT(BX$39,2),SUM($AX49:BB49),0)+IF(RIGHT(BX$39,2)>RIGHT($K49,2),BB49,0)) -> 6.12 | BY49: =+IF($K49="Ongoing",BC49,IF(RIGHT($K49,2)=RIGHT(BY$39,2),SUM($AX49:BC49),0)+IF(RIGHT(BY$39,2)>RIGHT($K49,2),BC49,0)) -> 0 | BZ49: =+IF($K49="Ongoing",BD49,IF(RIGHT($K49,2)=RIGHT(BZ$39,2),SUM($AX49:BD49),0)+IF(RIGHT(BZ$39,2)>RIGHT($K49,2),BD49,0)) -> 0 | CA49: =+IF($K49="Ongoing",BE49,IF(RIGHT($K49,2)=RIGHT(CA$39,2),SUM($AX49:BE49),0)+IF(RIGHT(CA$39,2)>RIGHT($K49,2),BE49,0)) -> 0 | CB49: =+IF($K49="Ongoing",BF49,IF(RIGHT($K49,2)=RIGHT(CB$39,2),SUM($AX49:BF49),0)+IF(RIGHT(CB$39,2)>RIGHT($K49,2),BF49,0)) -> 0 | CC49: =+IF($K49="Ongoing",BG49,IF(RIGHT($K49,2)=RIGHT(CC$39,2),SUM($AX49:BG49),0)+IF(RIGHT(CC$39,2)>RIGHT($K49,2),BG49,0)) -> 0 | CE49: =+Q49*KeyAssumptionsPriceControl_FO!AC$15 -> 0 | CF49: =+R49*KeyAssumptionsPriceControl_FO!AD$15 -> 0 | CG49: =+S49*KeyAssumptionsPriceControl_FO!AE$15 -> 0.13112724 | CH49: =+T49*KeyAssumptionsPriceControl_FO!AF$15 -> 3.37652643 | CI49: =+U49*KeyAssumptionsPriceControl_FO!AG$15 -> 3.477822223 | CJ49: =+V49*KeyAssumptionsPriceControl_FO!AH$15 -> 0 | CK49: =+W49*KeyAssumptionsPriceControl_FO!AI$15 -> 0 | CL49: =+X49*KeyAssumptionsPriceControl_FO!AJ$15 -> 0 | CM49: =+Y49*KeyAssumptionsPriceControl_FO!AK$15 -> 0 | CN49: =+Z49*KeyAssumptionsPriceControl_FO!AL$15 -> 0 | CP49: 0 | CQ49: 0 | CR49: 0.0006556362 | CS49: 0.01819390455 | CT49: 0.05246564781 | CU49: 0.06985475893 | CV49: 0.06985475893 | CW49: 0.06985475893 | CX49: 0.06985475893 | CY49: 0.06985475893
C50: Mt Zero Water Treatment Plant – New Clear Water Storage | E50: Urban Water | F50: Improvements / Compliance | G50: Treatment | H50: Top 10 Major Projects | J50: Straight line | K50: 2028-29 | L50: 50 | M50: 60 | Q50: 0 | R50: 0 | S50: 0 | T50: 0 | U50: 3.0578 | V50: 0 | W50: 0 | X50: 0 | Y50: 0 | Z50: 0 | AX50: 0 | AY50: 0 | AZ50: 0 | BA50: 0 | BB50: 3.0578 | BC50: 0 | BD50: 0 | BE50: 0 | BF50: 0 | BG50: 0 | BI50: 0 | BJ50: 0 | BK50: 0 | BL50: 0 | BM50: 0 | BN50: 0.030578 | BO50: 0.061156 | BP50: 0.061156 | BQ50: 0.061156 | BR50: 0.061156 | BT50: =+IF($K50="Ongoing",AX50,IF(RIGHT($K50,2)=RIGHT(BT$39,2),SUM($AX50:AX50),0)+IF(RIGHT(BT$39,2)>RIGHT($K50,2),AX50,0)) -> 0 | BU50: =+IF($K50="Ongoing",AY50,IF(RIGHT($K50,2)=RIGHT(BU$39,2),SUM($AX50:AY50),0)+IF(RIGHT(BU$39,2)>RIGHT($K50,2),AY50,0)) -> 0 | BV50: =+IF($K50="Ongoing",AZ50,IF(RIGHT($K50,2)=RIGHT(BV$39,2),SUM($AX50:AZ50),0)+IF(RIGHT(BV$39,2)>RIGHT($K50,2),AZ50,0)) -> 0 | BW50: =+IF($K50="Ongoing",BA50,IF(RIGHT($K50,2)=RIGHT(BW$39,2),SUM($AX50:BA50),0)+IF(RIGHT(BW$39,2)>RIGHT($K50,2),BA50,0)) -> 0 | BX50: =+IF($K50="Ongoing",BB50,IF(RIGHT($K50,2)=RIGHT(BX$39,2),SUM($AX50:BB50),0)+IF(RIGHT(BX$39,2)>RIGHT($K50,2),BB50,0)) -> 0 | BY50: =+IF($K50="Ongoing",BC50,IF(RIGHT($K50,2)=RIGHT(BY$39,2),SUM($AX50:BC50),0)+IF(RIGHT(BY$39,2)>RIGHT($K50,2),BC50,0)) -> 3.0578 | BZ50: =+IF($K50="Ongoing",BD50,IF(RIGHT($K50,2)=RIGHT(BZ$39,2),SUM($AX50:BD50),0)+IF(RIGHT(BZ$39,2)>RIGHT($K50,2),BD50,0)) -> 0 | CA50: =+IF($K50="Ongoing",BE50,IF(RIGHT($K50,2)=RIGHT(CA$39,2),SUM($AX50:BE50),0)+IF(RIGHT(CA$39,2)>RIGHT($K50,2),BE50,0)) -> 0 | CB50: =+IF($K50="Ongoing",BF50,IF(RIGHT($K50,2)=RIGHT(CB$39,2),SUM($AX50:BF50),0)+IF(RIGHT(CB$39,2)>RIGHT($K50,2),BF50,0)) -> 0 | CC50: =+IF($K50="Ongoing",BG50,IF(RIGHT($K50,2)=RIGHT(CC$39,2),SUM($AX50:BG50),0)+IF(RIGHT(CC$39,2)>RIGHT($K50,2),BG50,0)) -> 0 | CE50: =+Q50*KeyAssumptionsPriceControl_FO!AC$15 -> 0 | CF50: =+R50*KeyAssumptionsPriceControl_FO!AD$15 -> 0 | CG50: =+S50*KeyAssumptionsPriceControl_FO!AE$15 -> 0 | CH50: =+T50*KeyAssumptionsPriceControl_FO!AF$15 -> 0 | CI50: =+U50*KeyAssumptionsPriceControl_FO!AG$15 -> 3.544828264 | CJ50: =+V50*KeyAssumptionsPriceControl_FO!AH$15 -> 0 | CK50: =+W50*KeyAssumptionsPriceControl_FO!AI$15 -> 0 | CL50: =+X50*KeyAssumptionsPriceControl_FO!AJ$15 -> 0 | CM50: =+Y50*KeyAssumptionsPriceControl_FO!AK$15 -> 0 | CN50: =+Z50*KeyAssumptionsPriceControl_FO!AL$15 -> 0 | CP50: 0 | CQ50: 0 | CR50: 0 | CS50: 0 | CT50: 0.02954023554 | CU50: 0.05908047107 | CV50: 0.05908047107 | CW50: 0.05908047107 | CX50: 0.05908047107 | CY50: 0.05908047107
C51: Water Treatment Plant Upgrades – Health Based Treatment Targets (HBT) | E51: Urban Water | F51: Improvements / Compliance | G51: Treatment | H51: Top 10 Major Projects | J51: Straight line | K51: 2027-28 | L51: 50 | M51: 60 | Q51: 0 | R51: 0.5 | S51: 0.5 | T51: 0.5 | U51: 2.051 | AX51: 0 | AY51: 0.5 | AZ51: 0.5 | BA51: 0.5 | BB51: 2.051 | BC51: 0 | BD51: 0 | BE51: 0 | BF51: 0 | BG51: 0 | BI51: 0 | BJ51: 0 | BK51: 0 | BL51: 0 | BM51: 0.03551 | BN51: 0.07102 | BO51: 0.07102 | BP51: 0.07102 | BQ51: 0.07102 | BR51: 0.07102 | BT51: =+IF($K51="Ongoing",AX51,IF(RIGHT($K51,2)=RIGHT(BT$39,2),SUM($AX51:AX51),0)+IF(RIGHT(BT$39,2)>RIGHT($K51,2),AX51,0)) -> 0 | BU51: =+IF($K51="Ongoing",AY51,IF(RIGHT($K51,2)=RIGHT(BU$39,2),SUM($AX51:AY51),0)+IF(RIGHT(BU$39,2)>RIGHT($K51,2),AY51,0)) -> 0 | BV51: =+IF($K51="Ongoing",AZ51,IF(RIGHT($K51,2)=RIGHT(BV$39,2),SUM($AX51:AZ51),0)+IF(RIGHT(BV$39,2)>RIGHT($K51,2),AZ51,0)) -> 0 | BW51: =+IF($K51="Ongoing",BA51,IF(RIGHT($K51,2)=RIGHT(BW$39,2),SUM($AX51:BA51),0)+IF(RIGHT(BW$39,2)>RIGHT($K51,2),BA51,0)) -> 0 | BX51: =+IF($K51="Ongoing",BB51,IF(RIGHT($K51,2)=RIGHT(BX$39,2),SUM($AX51:BB51),0)+IF(RIGHT(BX$39,2)>RIGHT($K51,2),BB51,0)) -> 3.551 | BY51: =+IF($K51="Ongoing",BC51,IF(RIGHT($K51,2)=RIGHT(BY$39,2),SUM($AX51:BC51),0)+IF(RIGHT(BY$39,2)>RIGHT($K51,2),BC51,0)) -> 0 | BZ51: =+IF($K51="Ongoing",BD51,IF(RIGHT($K51,2)=RIGHT(BZ$39,2),SUM($AX51:BD51),0)+IF(RIGHT(BZ$39,2)>RIGHT($K51,2),BD51,0)) -> 0 | CA51: =+IF($K51="Ongoing",BE51,IF(RIGHT($K51,2)=RIGHT(CA$39,2),SUM($AX51:BE51),0)+IF(RIGHT(CA$39,2)>RIGHT($K51,2),BE51,0)) -> 0 | CB51: =+IF($K51="Ongoing",BF51,IF(RIGHT($K51,2)=RIGHT(CB$39,2),SUM($AX51:BF51),0)+IF(RIGHT(CB$39,2)>RIGHT($K51,2),BF51,0)) -> 0 | CC51: =+IF($K51="Ongoing",BG51,IF(RIGHT($K51,2)=RIGHT(CC$39,2),SUM($AX51:BG51),0)+IF(RIGHT(CC$39,2)>RIGHT($K51,2),BG51,0)) -> 0 | CE51: =+Q51*KeyAssumptionsPriceControl_FO!AC$15 -> 0 | CF51: =+R51*KeyAssumptionsPriceControl_FO!AD$15 -> 0.53045 | CG51: =+S51*KeyAssumptionsPriceControl_FO!AE$15 -> 0.5463635 | CH51: =+T51*KeyAssumptionsPriceControl_FO!AF$15 -> 0.562754405 | CI51: =+U51*KeyAssumptionsPriceControl_FO!AG$15 -> 2.377671126 | CJ51: =+V51*KeyAssumptionsPriceControl_FO!AH$15 -> 0 | CK51: =+W51*KeyAssumptionsPriceControl_FO!AI$15 -> 0 | CL51: =+X51*KeyAssumptionsPriceControl_FO!AJ$15 -> 0 | CM51: =+Y51*KeyAssumptionsPriceControl_FO!AK$15 -> 0 | CN51: =+Z51*KeyAssumptionsPriceControl_FO!AL$15 -> 0 | CP51: 0 | CQ51: 0.004420416667 | CR51: 0.0133938625 | CS51: 0.02263651171 | CT51: 0.0471400578 | CU51: 0.06695398386 | CV51: 0.06695398386 | CW51: 0.06695398386 | CX51: 0.06695398386 | CY51: 0.06695398386
C53: Water Main Renewals | E53: Urban Water | F53: Renewals | G53: Pipelines/network | H53: Capital Programs / Allocation | J53: Straight line | K53: Ongoing | L53: 50 | M53: 60 | Q53: 3.95300054 | R53: 2.92464529 | S53: 2.44500098 | T53: 5.44600143 | U53: 3.29400096 | V53: 5.24803102 | W53: 5.24900053 | X53: 3.64900078 | Y53: 3.64900043 | Z53: 3.64900061 | AX53: 3.95300054 | AY53: 2.92464529 | AZ53: 2.44500098 | BA53: 5.44600143 | BB53: 3.29400096 | BC53: 5.24803102 | BD53: 5.24900053 | BE53: 3.64900078 | BF53: 3.64900043 | BG53: 3.64900061 | BI53: =IF($L53=0,0, IF($L53<=0.5,BT53, IF($J53="straight line", IF((LEFT(BI$39,4)*1)-INT($L53)<LEFT($BI$39,4)*1,0,((OFFSET(BT53,0,-INT($L53+0.5),1,1))/$L53)*(IF($L53-INT($L53)>0.5,$L53-0.5-INT($L53),IF($L53-INT($L53)<=0.5,$L53-0.5-INT($L53)+1,0)))) +BT53/$L53*0.5, IF($J53="Declining Balance",-$BI$38,0)))) -> 0.0395300054 | BJ53: =IF($L53=0,0, IF($L53<=0.5,BU53, IF(AND($J53="straight line",$L53<1.51),(BT53-((BT53/$L53)*0.5))+BU53/$L53*0.5, IF($J53="straight line", IF((LEFT(BJ$39,4)*1)-INT($L53)<LEFT($BI$39,4)*1,0,((OFFSET(BU53,0,-INT($L53+0.5),1,1))/$L53)*(IF($L53-INT($L53)>0.5,$L53-0.5-INT($L53),IF($L53-INT($L53)<=0.5,$L53-0.5-INT($L53)+1,0)))) +BU53/$L53*0.5 +SUM(OFFSET(BU53,0,MAX(-INT($L53+(0.5-(10^-12))),-BJ$40)+1,1,MIN(INT($L53+(0.5-(10^-12))),BJ$40)-1))*1/$L53, IF($J53="Declining Balance",-$BI$38,0))))) -> 0.1083064637 | BK53: =IF($L53=0,0, IF($L53<=0.5,BV53, IF(AND($J53="straight line",$L53<1.51),(BU53-((BU53/$L53)*0.5))+BV53/$L53*0.5, IF($J53="straight line", IF((LEFT(BK$39,4)*1)-INT($L53)<LEFT($BI$39,4)*1,0,((OFFSET(BV53,0,-INT($L53+0.5),1,1))/$L53)*(IF($L53-INT($L53)>0.5,$L53-0.5-INT($L53),IF($L53-INT($L53)<=0.5,$L53-0.5-INT($L53)+1,0)))) +BV53/$L53*0.5 +SUM(OFFSET(BV53,0,MAX(-INT($L53+(0.5-(10^-12))),-BK$40)+1,1,MIN(INT($L53+(0.5-(10^-12))),BK$40)-1))*1/$L53, IF($J53="Declining Balance",-$BI$38,0))))) -> 0.1620029264 | BL53: =IF($L53=0,0, IF($L53<=0.5,BW53, IF(AND($J53="straight line",$L53<1.51),(BV53-((BV53/$L53)*0.5))+BW53/$L53*0.5, IF($J53="straight line", IF((LEFT(BL$39,4)*1)-INT($L53)<LEFT($BI$39,4)*1,0,((OFFSET(BW53,0,-INT($L53+0.5),1,1))/$L53)*(IF($L53-INT($L53)>0.5,$L53-0.5-INT($L53),IF($L53-INT($L53)<=0.5,$L53-0.5-INT($L53)+1,0)))) +BW53/$L53*0.5 +SUM(OFFSET(BW53,0,MAX(-INT($L53+(0.5-(10^-12))),-BL$40)+1,1,MIN(INT($L53+(0.5-(10^-12))),BL$40)-1))*1/$L53, IF($J53="Declining Balance",-$BI$38,0))))) -> 0.2409129505 | BM53: =IF($L53=0,0, IF($L53<=0.5,BX53, IF(AND($J53="straight line",$L53<1.51),(BW53-((BW53/$L53)*0.5))+BX53/$L53*0.5, IF($J53="straight line", IF((LEFT(BM$39,4)*1)-INT($L53)<LEFT($BI$39,4)*1,0,((OFFSET(BX53,0,-INT($L53+0.5),1,1))/$L53)*(IF($L53-INT($L53)>0.5,$L53-0.5-INT($L53),IF($L53-INT($L53)<=0.5,$L53-0.5-INT($L53)+1,0)))) +BX53/$L53*0.5 +SUM(OFFSET(BX53,0,MAX(-INT($L53+(0.5-(10^-12))),-BM$40)+1,1,MIN(INT($L53+(0.5-(10^-12))),BM$40)-1))*1/$L53, IF($J53="Declining Balance",-$BI$38,0))))) -> 0.3283129744 | BN53: =IF($L53=0,0, IF($L53<=0.5,BY53, IF(AND($J53="straight line",$L53<1.51),(BX53-((BX53/$L53)*0.5))+BY53/$L53*0.5, IF($J53="straight line", IF((LEFT(BN$39,4)*1)-INT($L53)<LEFT($BI$39,4)*1,0,((OFFSET(BY53,0,-INT($L53+0.5),1,1))/$L53)*(IF($L53-INT($L53)>0.5,$L53-0.5-INT($L53),IF($L53-INT($L53)<=0.5,$L53-0.5-INT($L53)+1,0)))) +BY53/$L53*0.5 +SUM(OFFSET(BY53,0,MAX(-INT($L53+(0.5-(10^-12))),-BN$40)+1,1,MIN(INT($L53+(0.5-(10^-12))),BN$40)-1))*1/$L53, IF($J53="Declining Balance",-$BI$38,0))))) -> 0.4137332942 | BO53: =IF($L53=0,0, IF($L53<=0.5,BZ53, IF(AND($J53="straight line",$L53<1.51),(BY53-((BY53/$L53)*0.5))+BZ53/$L53*0.5, IF($J53="straight line", IF((LEFT(BO$39,4)*1)-INT($L53)<LEFT($BI$39,4)*1,0,((OFFSET(BZ53,0,-INT($L53+0.5),1,1))/$L53)*(IF($L53-INT($L53)>0.5,$L53-0.5-INT($L53),IF($L53-INT($L53)<=0.5,$L53-0.5-INT($L53)+1,0)))) +BZ53/$L53*0.5 +SUM(OFFSET(BZ53,0,MAX(-INT($L53+(0.5-(10^-12))),-BO$40)+1,1,MIN(INT($L53+(0.5-(10^-12))),BO$40)-1))*1/$L53, IF($J53="Declining Balance",-$BI$38,0))))) -> 0.5187036097 | BP53: =IF($L53=0,0, IF($L53<=0.5,CA53, IF(AND($J53="straight line",$L53<1.51),(BZ53-((BZ53/$L53)*0.5))+CA53/$L53*0.5, IF($J53="straight line", IF((LEFT(BP$39,4)*1)-INT($L53)<LEFT($BI$39,4)*1,0,((OFFSET(CA53,0,-INT($L53+0.5),1,1))/$L53)*(IF($L53-INT($L53)>0.5,$L53-0.5-INT($L53),IF($L53-INT($L53)<=0.5,$L53-0.5-INT($L53)+1,0)))) +CA53/$L53*0.5 +SUM(OFFSET(CA53,0,MAX(-INT($L53+(0.5-(10^-12))),-BP$40)+1,1,MIN(INT($L53+(0.5-(10^-12))),BP$40)-1))*1/$L53, IF($J53="Declining Balance",-$BI$38,0))))) -> 0.6076836228 | BQ53: =IF($L53=0,0, IF($L53<=0.5,CB53, IF(AND($J53="straight line",$L53<1.51),(CA53-((CA53/$L53)*0.5))+CB53/$L53*0.5, IF($J53="straight line", IF((LEFT(BQ$39,4)*1)-INT($L53)<LEFT($BI$39,4)*1,0,((OFFSET(CB53,0,-INT($L53+0.5),1,1))/$L53)*(IF($L53-INT($L53)>0.5,$L53-0.5-INT($L53),IF($L53-INT($L53)<=0.5,$L53-0.5-INT($L53)+1,0)))) +CB53/$L53*0.5 +SUM(OFFSET(CB53,0,MAX(-INT($L53+(0.5-(10^-12))),-BQ$40)+1,1,MIN(INT($L53+(0.5-(10^-12))),BQ$40)-1))*1/$L53, IF($J53="Declining Balance",-$BI$38,0))))) -> 0.6806636349 | BR53: =IF($L53=0,0, IF($L53<=0.5,CC53, IF(AND($J53="straight line",$L53<1.51),(CB53-((CB53/$L53)*0.5))+CC53/$L53*0.5, IF($J53="straight line", IF((LEFT(BR$39,4)*1)-INT($L53)<LEFT($BI$39,4)*1,0,((OFFSET(CC53,0,-INT($L53+0.5),1,1))/$L53)*(IF($L53-INT($L53)>0.5,$L53-0.5-INT($L53),IF($L53-INT($L53)<=0.5,$L53-0.5-INT($L53)+1,0)))) +CC53/$L53*0.5 +SUM(OFFSET(CC53,0,MAX(-INT($L53+(0.5-(10^-12))),-BR$40)+1,1,MIN(INT($L53+(0.5-(10^-12))),BR$40)-1))*1/$L53, IF($J53="Declining Balance",-$BI$38,0))))) -> 0.7536436453 | BT53: =+IF($K53="Ongoing",AX53,IF(RIGHT($K53,2)=RIGHT(BT$39,2),SUM($AX53:AX53),0)+IF(RIGHT(BT$39,2)>RIGHT($K53,2),AX53,0)) -> 3.95300054 | BU53: =+IF($K53="Ongoing",AY53,IF(RIGHT($K53,2)=RIGHT(BU$39,2),SUM($AX53:AY53),0)+IF(RIGHT(BU$39,2)>RIGHT($K53,2),AY53,0)) -> 2.92464529 | BV53: =+IF($K53="Ongoing",AZ53,IF(RIGHT($K53,2)=RIGHT(BV$39,2),SUM($AX53:AZ53),0)+IF(RIGHT(BV$39,2)>RIGHT($K53,2),AZ53,0)) -> 2.44500098 | BW53: =+IF($K53="Ongoing",BA53,IF(RIGHT($K53,2)=RIGHT(BW$39,2),SUM($AX53:BA53),0)+IF(RIGHT(BW$39,2)>RIGHT($K53,2),BA53,0)) -> 5.44600143 | BX53: =+IF($K53="Ongoing",BB53,IF(RIGHT($K53,2)=RIGHT(BX$39,2),SUM($AX53:BB53),0)+IF(RIGHT(BX$39,2)>RIGHT($K53,2),BB53,0)) -> 3.29400096 | BY53: =+IF($K53="Ongoing",BC53,IF(RIGHT($K53,2)=RIGHT(BY$39,2),SUM($AX53:BC53),0)+IF(RIGHT(BY$39,2)>RIGHT($K53,2),BC53,0)) -> 5.24803102 | BZ53: =+IF($K53="Ongoing",BD53,IF(RIGHT($K53,2)=RIGHT(BZ$39,2),SUM($AX53:BD53),0)+IF(RIGHT(BZ$39,2)>RIGHT($K53,2),BD53,0)) -> 5.24900053 | CA53: =+IF($K53="Ongoing",BE53,IF(RIGHT($K53,2)=RIGHT(CA$39,2),SUM($AX53:BE53),0)+IF(RIGHT(CA$39,2)>RIGHT($K53,2),BE53,0)) -> 3.64900078 | CB53: =+IF($K53="Ongoing",BF53,IF(RIGHT($K53,2)=RIGHT(CB$39,2),SUM($AX53:BF53),0)+IF(RIGHT(CB$39,2)>RIGHT($K53,2),BF53,0)) -> 3.64900043 | CC53: =+IF($K53="Ongoing",BG53,IF(RIGHT($K53,2)=RIGHT(CC$39,2),SUM($AX53:BG53),0)+IF(RIGHT(CC$39,2)>RIGHT($K53,2),BG53,0)) -> 3.64900061 | CE53: =+Q53*KeyAssumptionsPriceControl_FO!AC$15 -> 4.071590556 | CF53: =+R53*KeyAssumptionsPriceControl_FO!AD$15 -> 3.102756188 | CG53: =+S53*KeyAssumptionsPriceControl_FO!AE$15 -> 2.671718586 | CH53: =+T53*KeyAssumptionsPriceControl_FO!AF$15 -> 6.129522589 | CI53: =+U53*KeyAssumptionsPriceControl_FO!AG$15 -> 3.818649914 | CJ53: =+V53*KeyAssumptionsPriceControl_FO!AH$15 -> 6.266423492 | CK53: =+W53*KeyAssumptionsPriceControl_FO!AI$15 -> 6.455608571 | CL53: =+X53*KeyAssumptionsPriceControl_FO!AJ$15 -> 4.622445015 | CM53: =+Y53*KeyAssumptionsPriceControl_FO!AK$15 -> 4.761117909 | CN53: =+Z53*KeyAssumptionsPriceControl_FO!AL$15 -> 4.903951688 | CP53: =IF($M53=0,0, IF($M53<=0.5,CE53, IF($J53="straight line", IF((LEFT(CP$39,4)*1)-INT($M53)<LEFT($CP$39,4)*1,0,((OFFSET(CE53,0,-INT($M53+0.5),1,1))/$M53)*(IF($M53-INT($M53)>0.5,$M53-0.5-INT($M53),IF($M53-INT($M53)<=0.5,$M53-0.5-INT($M53)+1,0)))) +CE53/$M53*0.5, IF($J53="Declining Balance",-$CP$38,0)))) -> 0.0339299213 | CQ53: =IF($M53=0,0, IF($M53<=0.5,CF53, IF(AND($J53="straight line",$M53<1.51),(CE53-((CE53/$M53)*0.5))+CF53/$M53*0.5, IF($J53="straight line", IF((LEFT(CQ$39,4)*1)-INT($M53)<LEFT($CP$39,4)*1,0,((OFFSET(CF53,0,-INT($M53+0.5),1,1))/$M53)*(IF($M53-INT($M53)>0.5,$M53-0.5-INT($M53),IF($M53-INT($M53)<=0.5,$M53-0.5-INT($M53)+1,0)))) +CF53/$M53*0.5 +SUM(OFFSET(CF53,0,MAX(-INT($M53+(0.5-(10^-12))),-CQ$40)+1,1,MIN(INT($M53+(0.5-(10^-12))),CQ$40)-1))*1/$M53, IF($J53="Declining Balance",-$CP$38,0))))) -> 0.09371614417 | CR53: =IF($M53=0,0, IF($M53<=0.5,CG53, IF(AND($J53="straight line",$M53<1.51),(CF53-((CF53/$M53)*0.5))+CG53/$M53*0.5, IF($J53="straight line", IF((LEFT(CR$39,4)*1)-INT($M53)<LEFT($CP$39,4)*1,0,((OFFSET(CG53,0,-INT($M53+0.5),1,1))/$M53)*(IF($M53-INT($M53)>0.5,$M53-0.5-INT($M53),IF($M53-INT($M53)<=0.5,$M53-0.5-INT($M53)+1,0)))) +CG53/$M53*0.5 +SUM(OFFSET(CG53,0,MAX(-INT($M53+(0.5-(10^-12))),-CR$40)+1,1,MIN(INT($M53+(0.5-(10^-12))),CR$40)-1))*1/$M53, IF($J53="Declining Balance",-$CP$38,0))))) -> 0.1418367673 | CS53: =IF($M53=0,0, IF($M53<=0.5,CH53, IF(AND($J53="straight line",$M53<1.51),(CG53-((CG53/$M53)*0.5))+CH53/$M53*0.5, IF($J53="straight line", IF((LEFT(CS$39,4)*1)-INT($M53)<LEFT($CP$39,4)*1,0,((OFFSET(CH53,0,-INT($M53+0.5),1,1))/$M53)*(IF($M53-INT($M53)>0.5,$M53-0.5-INT($M53),IF($M53-INT($M53)<=0.5,$M53-0.5-INT($M53)+1,0)))) +CH53/$M53*0.5 +SUM(OFFSET(CH53,0,MAX(-INT($M53+(0.5-(10^-12))),-CS$40)+1,1,MIN(INT($M53+(0.5-(10^-12))),CS$40)-1))*1/$M53, IF($J53="Declining Balance",-$CP$38,0))))) -> 0.2151804437 | CT53: =IF($M53=0,0, IF($M53<=0.5,CI53, IF(AND($J53="straight line",$M53<1.51),(CH53-((CH53/$M53)*0.5))+CI53/$M53*0.5, IF($J53="straight line", IF((LEFT(CT$39,4)*1)-INT($M53)<LEFT($CP$39,4)*1,0,((OFFSET(CI53,0,-INT($M53+0.5),1,1))/$M53)*(IF($M53-INT($M53)>0.5,$M53-0.5-INT($M53),IF($M53-INT($M53)<=0.5,$M53-0.5-INT($M53)+1,0)))) +CI53/$M53*0.5 +SUM(OFFSET(CI53,0,MAX(-INT($M53+(0.5-(10^-12))),-CT$40)+1,1,MIN(INT($M53+(0.5-(10^-12))),CT$40)-1))*1/$M53, IF($J53="Declining Balance",-$CP$38,0))))) -> 0.2980818813 | CU53: =IF($M53=0,0, IF($M53<=0.5,CJ53, IF(AND($J53="straight line",$M53<1.51),(CI53-((CI53/$M53)*0.5))+CJ53/$M53*0.5, IF($J53="straight line", IF((LEFT(CU$39,4)*1)-INT($M53)<LEFT($CP$39,4)*1,0,((OFFSET(CJ53,0,-INT($M53+0.5),1,1))/$M53)*(IF($M53-INT($M53)>0.5,$M53-0.5-INT($M53),IF($M53-INT($M53)<=0.5,$M53-0.5-INT($M53)+1,0)))) +CJ53/$M53*0.5 +SUM(OFFSET(CJ53,0,MAX(-INT($M53+(0.5-(10^-12))),-CU$40)+1,1,MIN(INT($M53+(0.5-(10^-12))),CU$40)-1))*1/$M53, IF($J53="Declining Balance",-$CP$38,0))))) -> 0.3821241596 | CV53: =IF($M53=0,0, IF($M53<=0.5,CK53, IF(AND($J53="straight line",$M53<1.51),(CJ53-((CJ53/$M53)*0.5))+CK53/$M53*0.5, IF($J53="straight line", IF((LEFT(CV$39,4)*1)-INT($M53)<LEFT($CP$39,4)*1,0,((OFFSET(CK53,0,-INT($M53+0.5),1,1))/$M53)*(IF($M53-INT($M53)>0.5,$M53-0.5-INT($M53),IF($M53-INT($M53)<=0.5,$M53-0.5-INT($M53)+1,0)))) +CK53/$M53*0.5 +SUM(OFFSET(CK53,0,MAX(-INT($M53+(0.5-(10^-12))),-CV$40)+1,1,MIN(INT($M53+(0.5-(10^-12))),CV$40)-1))*1/$M53, IF($J53="Declining Balance",-$CP$38,0))))) -> 0.4881410935 | CW53: =IF($M53=0,0, IF($M53<=0.5,CL53, IF(AND($J53="straight line",$M53<1.51),(CK53-((CK53/$M53)*0.5))+CL53/$M53*0.5, IF($J53="straight line", IF((LEFT(CW$39,4)*1)-INT($M53)<LEFT($CP$39,4)*1,0,((OFFSET(CL53,0,-INT($M53+0.5),1,1))/$M53)*(IF($M53-INT($M53)>0.5,$M53-0.5-INT($M53),IF($M53-INT($M53)<=0.5,$M53-0.5-INT($M53)+1,0)))) +CL53/$M53*0.5 +SUM(OFFSET(CL53,0,MAX(-INT($M53+(0.5-(10^-12))),-CW$40)+1,1,MIN(INT($M53+(0.5-(10^-12))),CW$40)-1))*1/$M53, IF($J53="Declining Balance",-$CP$38,0))))) -> 0.5804582067 | CX53: =IF($M53=0,0, IF($M53<=0.5,CM53, IF(AND($J53="straight line",$M53<1.51),(CL53-((CL53/$M53)*0.5))+CM53/$M53*0.5, IF($J53="straight line", IF((LEFT(CX$39,4)*1)-INT($M53)<LEFT($CP$39,4)*1,0,((OFFSET(CM53,0,-INT($M53+0.5),1,1))/$M53)*(IF($M53-INT($M53)>0.5,$M53-0.5-INT($M53),IF($M53-INT($M53)<=0.5,$M53-0.5-INT($M53)+1,0)))) +CM53/$M53*0.5 +SUM(OFFSET(CM53,0,MAX(-INT($M53+(0.5-(10^-12))),-CX$40)+1,1,MIN(INT($M53+(0.5-(10^-12))),CX$40)-1))*1/$M53, IF($J53="Declining Balance",-$CP$38,0))))) -> 0.6586545644 | CY53: =IF($M53=0,0, IF($M53<=0.5,CN53, IF(AND($J53="straight line",$M53<1.51),(CM53-((CM53/$M53)*0.5))+CN53/$M53*0.5, IF($J53="straight line", IF((LEFT(CY$39,4)*1)-INT($M53)<LEFT($CP$39,4)*1,0,((OFFSET(CN53,0,-INT($M53+0.5),1,1))/$M53)*(IF($M53-INT($M53)>0.5,$M53-0.5-INT($M53),IF($M53-INT($M53)<=0.5,$M53-0.5-INT($M53)+1,0)))) +CN53/$M53*0.5 +SUM(OFFSET(CN53,0,MAX(-INT($M53+(0.5-(10^-12))),-CY$40)+1,1,MIN(INT($M53+(0.5-(10^-12))),CY$40)-1))*1/$M53, IF($J53="Declining Balance",-$CP$38,0))))) -> 0.7391968111
C54: Sewer Main Renewals | E54: Sewerage | F54: Renewals | G54: Pipelines/network | H54: Capital Programs / Allocation | J54: Straight line | K54: Ongoing | L54: 60 | M54: 80 | Q54: 1.54700001 | R54: 2.4110006 | S54: 2.57500084 | T54: 1.45000046 | U54: 1.45009526 | V54: 1.45000076 | W54: 1.45000032 | X54: 1.45000007 | Y54: 1.45000006 | Z54: 1.45000006 | AX54: 1.54700001 | AY54: 2.4110006 | AZ54: 2.57500084 | BA54: 1.45000046 | BB54: 1.45009526 | BC54: 1.45000076 | BD54: 1.45000032 | BE54: 1.45000007 | BF54: 1.45000006 | BG54: 1.45000006 | BI54: 0.01289166675 | BJ54: 0.04587500517 | BK54: 0.08742501717 | BL54: 0.1209666947 | BM54: 0.145134159 | BN54: 0.1693016258 | BO54: 0.1934683015 | BP54: 0.2176349714 | BQ54: 0.2418016392 | BR54: 0.2659683068 | BT54: =+IF($K54="Ongoing",AX54,IF(RIGHT($K54,2)=RIGHT(BT$39,2),SUM($AX54:AX54),0)+IF(RIGHT(BT$39,2)>RIGHT($K54,2),AX54,0)) -> 1.54700001 | BU54: =+IF($K54="Ongoing",AY54,IF(RIGHT($K54,2)=RIGHT(BU$39,2),SUM($AX54:AY54),0)+IF(RIGHT(BU$39,2)>RIGHT($K54,2),AY54,0)) -> 2.4110006 | BV54: =+IF($K54="Ongoing",AZ54,IF(RIGHT($K54,2)=RIGHT(BV$39,2),SUM($AX54:AZ54),0)+IF(RIGHT(BV$39,2)>RIGHT($K54,2),AZ54,0)) -> 2.57500084 | BW54: =+IF($K54="Ongoing",BA54,IF(RIGHT($K54,2)=RIGHT(BW$39,2),SUM($AX54:BA54),0)+IF(RIGHT(BW$39,2)>RIGHT($K54,2),BA54,0)) -> 1.45000046 | BX54: =+IF($K54="Ongoing",BB54,IF(RIGHT($K54,2)=RIGHT(BX$39,2),SUM($AX54:BB54),0)+IF(RIGHT(BX$39,2)>RIGHT($K54,2),BB54,0)) -> 1.45009526 | BY54: =+IF($K54="Ongoing",BC54,IF(RIGHT($K54,2)=RIGHT(BY$39,2),SUM($AX54:BC54),0)+IF(RIGHT(BY$39,2)>RIGHT($K54,2),BC54,0)) -> 1.45000076 | BZ54: =+IF($K54="Ongoing",BD54,IF(RIGHT($K54,2)=RIGHT(BZ$39,2),SUM($AX54:BD54),0)+IF(RIGHT(BZ$39,2)>RIGHT($K54,2),BD54,0)) -> 1.45000032 | CA54: =+IF($K54="Ongoing",BE54,IF(RIGHT($K54,2)=RIGHT(CA$39,2),SUM($AX54:BE54),0)+IF(RIGHT(CA$39,2)>RIGHT($K54,2),BE54,0)) -> 1.45000007 | CB54: =+IF($K54="Ongoing",BF54,IF(RIGHT($K54,2)=RIGHT(CB$39,2),SUM($AX54:BF54),0)+IF(RIGHT(CB$39,2)>RIGHT($K54,2),BF54,0)) -> 1.45000006 | CC54: =+IF($K54="Ongoing",BG54,IF(RIGHT($K54,2)=RIGHT(CC$39,2),SUM($AX54:BG54),0)+IF(RIGHT(CC$39,2)>RIGHT($K54,2),BG54,0)) -> 1.45000006 | CE54: =+Q54*KeyAssumptionsPriceControl_FO!AC$15 -> 1.59341001 | CF54: =+R54*KeyAssumptionsPriceControl_FO!AD$15 -> 2.557830537 | CG54: =+S54*KeyAssumptionsPriceControl_FO!AE$15 -> 2.813772943 | CH54: =+T54*KeyAssumptionsPriceControl_FO!AF$15 -> 1.631988292 | CI54: =+U54*KeyAssumptionsPriceControl_FO!AG$15 -> 1.68105784 | CJ54: =+V54*KeyAssumptionsPriceControl_FO!AH$15 -> 1.731376737 | CK54: =+W54*KeyAssumptionsPriceControl_FO!AI$15 -> 1.783317498 | CL54: =+X54*KeyAssumptionsPriceControl_FO!AJ$15 -> 1.836816707 | CM54: =+Y54*KeyAssumptionsPriceControl_FO!AK$15 -> 1.891921195 | CN54: =+Z54*KeyAssumptionsPriceControl_FO!AL$15 -> 1.948678831 | CP54: 0.009958812564 | CQ54: 0.03590406598 | CR54: 0.06947658773 | CS54: 0.09726259545 | CT54: 0.1179691338 | CU54: 0.1392968499 | CV54: 0.1612636889 | CW54: 0.1838895276 | CX54: 0.2071941395 | CY54: 0.2311978897
C55: Headworks Structure Renewals | E55: Bulk water - headworks | F55: Renewals | G55: Headworks | H55: Capital Programs / Allocation | J55: Straight line | K55: Ongoing | L55: 80 | M55: 100 | Q55: 0.51000001 | R55: 0.75000001 | S55: 0.64000001 | T55: 0.81000001 | U55: 0.84000001 | V55: 3.50000001 | W55: 3.36000001 | X55: 0.36080001 | Y55: 0.36080001 | Z55: 0.72000001 | AX55: 0.51000001 | AY55: 0.75000001 | AZ55: 0.64000001 | BA55: 0.81000001 | BB55: 0.84000001 | BC55: 3.50000001 | BD55: 3.36000001 | BE55: 0.36080001 | BF55: 0.36080001 | BG55: 0.72000001 | BI55: 0.003187500062 | BJ55: 0.01106250019 | BK55: 0.01975000031 | BL55: 0.02881250044 | BM55: 0.03912500056 | BN55: 0.06625000069 | BO55: 0.1091250008 | BP55: 0.1323800009 | BQ55: 0.1368900011 | BR55: 0.1436450012 | BT55: =+IF($K55="Ongoing",AX55,IF(RIGHT($K55,2)=RIGHT(BT$39,2),SUM($AX55:AX55),0)+IF(RIGHT(BT$39,2)>RIGHT($K55,2),AX55,0)) -> 0.51000001 | BU55: =+IF($K55="Ongoing",AY55,IF(RIGHT($K55,2)=RIGHT(BU$39,2),SUM($AX55:AY55),0)+IF(RIGHT(BU$39,2)>RIGHT($K55,2),AY55,0)) -> 0.75000001 | BV55: =+IF($K55="Ongoing",AZ55,IF(RIGHT($K55,2)=RIGHT(BV$39,2),SUM($AX55:AZ55),0)+IF(RIGHT(BV$39,2)>RIGHT($K55,2),AZ55,0)) -> 0.64000001 | BW55: =+IF($K55="Ongoing",BA55,IF(RIGHT($K55,2)=RIGHT(BW$39,2),SUM($AX55:BA55),0)+IF(RIGHT(BW$39,2)>RIGHT($K55,2),BA55,0)) -> 0.81000001 | BX55: =+IF($K55="Ongoing",BB55,IF(RIGHT($K55,2)=RIGHT(BX$39,2),SUM($AX55:BB55),0)+IF(RIGHT(BX$39,2)>RIGHT($K55,2),BB55,0)) -> 0.84000001 | BY55: =+IF($K55="Ongoing",BC55,IF(RIGHT($K55,2)=RIGHT(BY$39,2),SUM($AX55:BC55),0)+IF(RIGHT(BY$39,2)>RIGHT($K55,2),BC55,0)) -> 3.50000001 | BZ55: =+IF($K55="Ongoing",BD55,IF(RIGHT($K55,2)=RIGHT(BZ$39,2),SUM($AX55:BD55),0)+IF(RIGHT(BZ$39,2)>RIGHT($K55,2),BD55,0)) -> 3.36000001 | CA55: =+IF($K55="Ongoing",BE55,IF(RIGHT($K55,2)=RIGHT(CA$39,2),SUM($AX55:BE55),0)+IF(RIGHT(CA$39,2)>RIGHT($K55,2),BE55,0)) -> 0.36080001 | CB55: =+IF($K55="Ongoing",BF55,IF(RIGHT($K55,2)=RIGHT(CB$39,2),SUM($AX55:BF55),0)+IF(RIGHT(CB$39,2)>RIGHT($K55,2),BF55,0)) -> 0.36080001 | CC55: =+IF($K55="Ongoing",BG55,IF(RIGHT($K55,2)=RIGHT(CC$39,2),SUM($AX55:BG55),0)+IF(RIGHT(CC$39,2)>RIGHT($K55,2),BG55,0)) -> 0.72000001 | CE55: =+Q55*KeyAssumptionsPriceControl_FO!AC$15 -> 0.5253000103 | CF55: =+R55*KeyAssumptionsPriceControl_FO!AD$15 -> 0.7956750106 | CG55: =+S55*KeyAssumptionsPriceControl_FO!AE$15 -> 0.6993452909 | CH55: =+T55*KeyAssumptionsPriceControl_FO!AF$15 -> 0.9116621474 | CI55: =+U55*KeyAssumptionsPriceControl_FO!AG$15 -> 0.973790234 | CJ55: =+V55*KeyAssumptionsPriceControl_FO!AH$15 -> 4.17918305 | CK55: =+W55*KeyAssumptionsPriceControl_FO!AI$15 -> 4.1323762 | CL55: =+X55*KeyAssumptionsPriceControl_FO!AJ$15 -> 0.457050658 | CM55: =+Y55*KeyAssumptionsPriceControl_FO!AK$15 -> 0.4707621778 | CN55: =+Z55*KeyAssumptionsPriceControl_FO!AL$15 -> 0.9676198066 | CP55: 0.002626500051 | CQ55: 0.009231375156 | CR55: 0.01670647666 | CS55: 0.02476151386 | CT55: 0.03418877576 | CU55: 0.05995364218 | CV55: 0.1015114384 | CW55: 0.1244585727 | CX55: 0.1290976369 | CY55: 0.1362895468
AX56: 0 | AY56: 0 | AZ56: 0 | BA56: 0 | BB56: 0 | BC56: 0 | BD56: 0 | BE56: 0 | BF56: 0 | BG56: 0 | BI56: 0 | BJ56: 0 | BK56: 0 | BL56: 0 | BM56: 0 | BN56: 0 | BO56: 0 | BP56: 0 | BQ56: 0 | BR56: 0 | BT56: =+IF($K56="Ongoing",AX56,IF(RIGHT($K56,2)=RIGHT(BT$39,2),SUM($AX56:AX56),0)+IF(RIGHT(BT$39,2)>RIGHT($K56,2),AX56,0)) -> 0 | BU56: =+IF($K56="Ongoing",AY56,IF(RIGHT($K56,2)=RIGHT(BU$39,2),SUM($AX56:AY56),0)+IF(RIGHT(BU$39,2)>RIGHT($K56,2),AY56,0)) -> 0 | BV56: =+IF($K56="Ongoing",AZ56,IF(RIGHT($K56,2)=RIGHT(BV$39,2),SUM($AX56:AZ56),0)+IF(RIGHT(BV$39,2)>RIGHT($K56,2),AZ56,0)) -> 0 | BW56: =+IF($K56="Ongoing",BA56,IF(RIGHT($K56,2)=RIGHT(BW$39,2),SUM($AX56:BA56),0)+IF(RIGHT(BW$39,2)>RIGHT($K56,2),BA56,0)) -> 0 | BX56: =+IF($K56="Ongoing",BB56,IF(RIGHT($K56,2)=RIGHT(BX$39,2),SUM($AX56:BB56),0)+IF(RIGHT(BX$39,2)>RIGHT($K56,2),BB56,0)) -> 0 | BY56: =+IF($K56="Ongoing",BC56,IF(RIGHT($K56,2)=RIGHT(BY$39,2),SUM($AX56:BC56),0)+IF(RIGHT(BY$39,2)>RIGHT($K56,2),BC56,0)) -> 0 | BZ56: =+IF($K56="Ongoing",BD56,IF(RIGHT($K56,2)=RIGHT(BZ$39,2),SUM($AX56:BD56),0)+IF(RIGHT(BZ$39,2)>RIGHT($K56,2),BD56,0)) -> 0 | CA56: =+IF($K56="Ongoing",BE56,IF(RIGHT($K56,2)=RIGHT(CA$39,2),SUM($AX56:BE56),0)+IF(RIGHT(CA$39,2)>RIGHT($K56,2),BE56,0)) -> 0 | CB56: =+IF($K56="Ongoing",BF56,IF(RIGHT($K56,2)=RIGHT(CB$39,2),SUM($AX56:BF56),0)+IF(RIGHT(CB$39,2)>RIGHT($K56,2),BF56,0)) -> 0 | CC56: =+IF($K56="Ongoing",BG56,IF(RIGHT($K56,2)=RIGHT(CC$39,2),SUM($AX56:BG56),0)+IF(RIGHT(CC$39,2)>RIGHT($K56,2),BG56,0)) -> 0 | CE56: =+Q56*KeyAssumptionsPriceControl_FO!AC$15 -> 0 | CF56: =+R56*KeyAssumptionsPriceControl_FO!AD$15 -> 0 | CG56: =+S56*KeyAssumptionsPriceControl_FO!AE$15 -> 0 | CH56: =+T56*KeyAssumptionsPriceControl_FO!AF$15 -> 0 | CI56: =+U56*KeyAssumptionsPriceControl_FO!AG$15 -> 0 | CJ56: =+V56*KeyAssumptionsPriceControl_FO!AH$15 -> 0 | CK56: =+W56*KeyAssumptionsPriceControl_FO!AI$15 -> 0 | CL56: =+X56*KeyAssumptionsPriceControl_FO!AJ$15 -> 0 | CM56: =+Y56*KeyAssumptionsPriceControl_FO!AK$15 -> 0 | CN56: =+Z56*KeyAssumptionsPriceControl_FO!AL$15 -> 0 | CP56: 0 | CQ56: 0 | CR56: 0 | CS56: 0 | CT56: 0 | CU56: 0 | CV56: 0 | CW56: 0 | CX56: 0 | CY56: 0
C57: Mt Zero WTP Upgrades | E57: Urban Water | F57: Improvements / Compliance | G57: Treatment | H57: Capital Programs / Allocation | J57: Straight line | K57: 2024-25 | L57: 50 | M57: 60 | Q57: 0.024 | R57: 0.798 | S57: 0 | T57: 0 | U57: 0 | V57: 0 | W57: 0 | X57: 0 | Y57: 0 | Z57: 0 | AX57: 0.024 | AY57: 0.798 | AZ57: 0 | BA57: 0 | BB57: 0 | BC57: 0 | BD57: 0 | BE57: 0 | BF57: 0 | BG57: 0 | BI57: 0 | BJ57: 0.00822 | BK57: 0.01644 | BL57: 0.01644 | BM57: 0.01644 | BN57: 0.01644 | BO57: 0.01644 | BP57: 0.01644 | BQ57: 0.01644 | BR57: 0.01644 | BT57: =+IF($K57="Ongoing",AX57,IF(RIGHT($K57,2)=RIGHT(BT$39,2),SUM($AX57:AX57),0)+IF(RIGHT(BT$39,2)>RIGHT($K57,2),AX57,0)) -> 0 | BU57: =+IF($K57="Ongoing",AY57,IF(RIGHT($K57,2)=RIGHT(BU$39,2),SUM($AX57:AY57),0)+IF(RIGHT(BU$39,2)>RIGHT($K57,2),AY57,0)) -> 0.822 | BV57: =+IF($K57="Ongoing",AZ57,IF(RIGHT($K57,2)=RIGHT(BV$39,2),SUM($AX57:AZ57),0)+IF(RIGHT(BV$39,2)>RIGHT($K57,2),AZ57,0)) -> 0 | BW57: =+IF($K57="Ongoing",BA57,IF(RIGHT($K57,2)=RIGHT(BW$39,2),SUM($AX57:BA57),0)+IF(RIGHT(BW$39,2)>RIGHT($K57,2),BA57,0)) -> 0 | BX57: =+IF($K57="Ongoing",BB57,IF(RIGHT($K57,2)=RIGHT(BX$39,2),SUM($AX57:BB57),0)+IF(RIGHT(BX$39,2)>RIGHT($K57,2),BB57,0)) -> 0 | BY57: =+IF($K57="Ongoing",BC57,IF(RIGHT($K57,2)=RIGHT(BY$39,2),SUM($AX57:BC57),0)+IF(RIGHT(BY$39,2)>RIGHT($K57,2),BC57,0)) -> 0 | BZ57: =+IF($K57="Ongoing",BD57,IF(RIGHT($K57,2)=RIGHT(BZ$39,2),SUM($AX57:BD57),0)+IF(RIGHT(BZ$39,2)>RIGHT($K57,2),BD57,0)) -> 0 | CA57: =+IF($K57="Ongoing",BE57,IF(RIGHT($K57,2)=RIGHT(CA$39,2),SUM($AX57:BE57),0)+IF(RIGHT(CA$39,2)>RIGHT($K57,2),BE57,0)) -> 0 | CB57: =+IF($K57="Ongoing",BF57,IF(RIGHT($K57,2)=RIGHT(CB$39,2),SUM($AX57:BF57),0)+IF(RIGHT(CB$39,2)>RIGHT($K57,2),BF57,0)) -> 0 | CC57: =+IF($K57="Ongoing",BG57,IF(RIGHT($K57,2)=RIGHT(CC$39,2),SUM($AX57:BG57),0)+IF(RIGHT(CC$39,2)>RIGHT($K57,2),BG57,0)) -> 0 | CE57: =+Q57*KeyAssumptionsPriceControl_FO!AC$15 -> 0.02472 | CF57: =+R57*KeyAssumptionsPriceControl_FO!AD$15 -> 0.8465982 | CG57: =+S57*KeyAssumptionsPriceControl_FO!AE$15 -> 0 | CH57: =+T57*KeyAssumptionsPriceControl_FO!AF$15 -> 0 | CI57: =+U57*KeyAssumptionsPriceControl_FO!AG$15 -> 0 | CJ57: =+V57*KeyAssumptionsPriceControl_FO!AH$15 -> 0 | CK57: =+W57*KeyAssumptionsPriceControl_FO!AI$15 -> 0 | CL57: =+X57*KeyAssumptionsPriceControl_FO!AJ$15 -> 0 | CM57: =+Y57*KeyAssumptionsPriceControl_FO!AK$15 -> 0 | CN57: =+Z57*KeyAssumptionsPriceControl_FO!AL$15 -> 0 | CP57: 0.000206 | CQ57: 0.007466985 | CR57: 0.01452197 | CS57: 0.01452197 | CT57: 0.01452197 | CU57: 0.01452197 | CV57: 0.01452197 | CW57: 0.01452197 | CX57: 0.01452197 | CY57: 0.01452197
AX58: 0 | AY58: 0 | AZ58: 0 | BA58: 0 | BB58: 0 | BC58: 0 | BD58: 0 | BE58: 0 | BF58: 0 | BG58: 0 | BI58: 0 | BJ58: 0 | BK58: 0 | BL58: 0 | BM58: 0 | BN58: 0 | BO58: 0 | BP58: 0 | BQ58: 0 | BR58: 0 | BT58: =+IF($K58="Ongoing",AX58,IF(RIGHT($K58,2)=RIGHT(BT$39,2),SUM($AX58:AX58),0)+IF(RIGHT(BT$39,2)>RIGHT($K58,2),AX58,0)) -> 0 | BU58: =+IF($K58="Ongoing",AY58,IF(RIGHT($K58,2)=RIGHT(BU$39,2),SUM($AX58:AY58),0)+IF(RIGHT(BU$39,2)>RIGHT($K58,2),AY58,0)) -> 0 | BV58: =+IF($K58="Ongoing",AZ58,IF(RIGHT($K58,2)=RIGHT(BV$39,2),SUM($AX58:AZ58),0)+IF(RIGHT(BV$39,2)>RIGHT($K58,2),AZ58,0)) -> 0 | BW58: =+IF($K58="Ongoing",BA58,IF(RIGHT($K58,2)=RIGHT(BW$39,2),SUM($AX58:BA58),0)+IF(RIGHT(BW$39,2)>RIGHT($K58,2),BA58,0)) -> 0 | BX58: =+IF($K58="Ongoing",BB58,IF(RIGHT($K58,2)=RIGHT(BX$39,2),SUM($AX58:BB58),0)+IF(RIGHT(BX$39,2)>RIGHT($K58,2),BB58,0)) -> 0 | BY58: =+IF($K58="Ongoing",BC58,IF(RIGHT($K58,2)=RIGHT(BY$39,2),SUM($AX58:BC58),0)+IF(RIGHT(BY$39,2)>RIGHT($K58,2),BC58,0)) -> 0 | BZ58: =+IF($K58="Ongoing",BD58,IF(RIGHT($K58,2)=RIGHT(BZ$39,2),SUM($AX58:BD58),0)+IF(RIGHT(BZ$39,2)>RIGHT($K58,2),BD58,0)) -> 0 | CA58: =+IF($K58="Ongoing",BE58,IF(RIGHT($K58,2)=RIGHT(CA$39,2),SUM($AX58:BE58),0)+IF(RIGHT(CA$39,2)>RIGHT($K58,2),BE58,0)) -> 0 | CB58: =+IF($K58="Ongoing",BF58,IF(RIGHT($K58,2)=RIGHT(CB$39,2),SUM($AX58:BF58),0)+IF(RIGHT(CB$39,2)>RIGHT($K58,2),BF58,0)) -> 0 | CC58: =+IF($K58="Ongoing",BG58,IF(RIGHT($K58,2)=RIGHT(CC$39,2),SUM($AX58:BG58),0)+IF(RIGHT(CC$39,2)>RIGHT($K58,2),BG58,0)) -> 0 | CE58: =+Q58*KeyAssumptionsPriceControl_FO!AC$15 -> 0 | CF58: =+R58*KeyAssumptionsPriceControl_FO!AD$15 -> 0 | CG58: =+S58*KeyAssumptionsPriceControl_FO!AE$15 -> 0 | CH58: =+T58*KeyAssumptionsPriceControl_FO!AF$15 -> 0 | CI58: =+U58*KeyAssumptionsPriceControl_FO!AG$15 -> 0 | CJ58: =+V58*KeyAssumptionsPriceControl_FO!AH$15 -> 0 | CK58: =+W58*KeyAssumptionsPriceControl_FO!AI$15 -> 0 | CL58: =+X58*KeyAssumptionsPriceControl_FO!AJ$15 -> 0 | CM58: =+Y58*KeyAssumptionsPriceControl_FO!AK$15 -> 0 | CN58: =+Z58*KeyAssumptionsPriceControl_FO!AL$15 -> 0 | CP58: 0 | CQ58: 0 | CR58: 0 | CS58: 0 | CT58: 0 | CU58: 0 | CV58: 0 | CW58: 0 | CX58: 0 | CY58: 0
C59: WTP Upgrades and Modernisation | E59: Urban Water | F59: Improvements / Compliance | G59: Treatment | H59: Capital Programs / Allocation | J59: Straight line | K59: Ongoing | L59: 50 | M59: 60 | Q59: 1.039 | R59: 0.987 | S59: 0.55800046 | T59: 0.35000085 | U59: 0.38300013 | V59: 0.20000037 | W59: 0.30000076 | X59: 0.30000055 | Y59: 0.3 | Z59: 0.30000006 | AX59: 1.039 | AY59: 0.987 | AZ59: 0.55800046 | BA59: 0.35000085 | BB59: 0.38300013 | BC59: 0.20000037 | BD59: 0.30000076 | BE59: 0.30000055 | BF59: 0.3 | BG59: 0.30000006 | BI59: 0.01039 | BJ59: 0.03065 | BK59: 0.0461000046 | BL59: 0.0551800177 | BM59: 0.0625100275 | BN59: 0.0683400325 | BO59: 0.0733400438 | BP59: 0.0793400569 | BQ59: 0.0853400624 | BR59: 0.091340063 | BT59: =+IF($K59="Ongoing",AX59,IF(RIGHT($K59,2)=RIGHT(BT$39,2),SUM($AX59:AX59),0)+IF(RIGHT(BT$39,2)>RIGHT($K59,2),AX59,0)) -> 1.039 | BU59: =+IF($K59="Ongoing",AY59,IF(RIGHT($K59,2)=RIGHT(BU$39,2),SUM($AX59:AY59),0)+IF(RIGHT(BU$39,2)>RIGHT($K59,2),AY59,0)) -> 0.987 | BV59: =+IF($K59="Ongoing",AZ59,IF(RIGHT($K59,2)=RIGHT(BV$39,2),SUM($AX59:AZ59),0)+IF(RIGHT(BV$39,2)>RIGHT($K59,2),AZ59,0)) -> 0.55800046 | BW59: =+IF($K59="Ongoing",BA59,IF(RIGHT($K59,2)=RIGHT(BW$39,2),SUM($AX59:BA59),0)+IF(RIGHT(BW$39,2)>RIGHT($K59,2),BA59,0)) -> 0.35000085 | BX59: =+IF($K59="Ongoing",BB59,IF(RIGHT($K59,2)=RIGHT(BX$39,2),SUM($AX59:BB59),0)+IF(RIGHT(BX$39,2)>RIGHT($K59,2),BB59,0)) -> 0.38300013 | BY59: =+IF($K59="Ongoing",BC59,IF(RIGHT($K59,2)=RIGHT(BY$39,2),SUM($AX59:BC59),0)+IF(RIGHT(BY$39,2)>RIGHT($K59,2),BC59,0)) -> 0.20000037 | BZ59: =+IF($K59="Ongoing",BD59,IF(RIGHT($K59,2)=RIGHT(BZ$39,2),SUM($AX59:BD59),0)+IF(RIGHT(BZ$39,2)>RIGHT($K59,2),BD59,0)) -> 0.30000076 | CA59: =+IF($K59="Ongoing",BE59,IF(RIGHT($K59,2)=RIGHT(CA$39,2),SUM($AX59:BE59),0)+IF(RIGHT(CA$39,2)>RIGHT($K59,2),BE59,0)) -> 0.30000055 | CB59: =+IF($K59="Ongoing",BF59,IF(RIGHT($K59,2)=RIGHT(CB$39,2),SUM($AX59:BF59),0)+IF(RIGHT(CB$39,2)>RIGHT($K59,2),BF59,0)) -> 0.3 | CC59: =+IF($K59="Ongoing",BG59,IF(RIGHT($K59,2)=RIGHT(CC$39,2),SUM($AX59:BG59),0)+IF(RIGHT(CC$39,2)>RIGHT($K59,2),BG59,0)) -> 0.30000006 | CE59: =+Q59*KeyAssumptionsPriceControl_FO!AC$15 -> 1.07017 | CF59: =+R59*KeyAssumptionsPriceControl_FO!AD$15 -> 1.0471083 | CG59: =+S59*KeyAssumptionsPriceControl_FO!AE$15 -> 0.6097421687 | CH59: =+T59*KeyAssumptionsPriceControl_FO!AF$15 -> 0.3939290402 | CI59: =+U59*KeyAssumptionsPriceControl_FO!AG$15 -> 0.4440021212 | CJ59: =+V59*KeyAssumptionsPriceControl_FO!AH$15 -> 0.2388109011 | CK59: =+W59*KeyAssumptionsPriceControl_FO!AI$15 -> 0.3689630943 | CL59: =+X59*KeyAssumptionsPriceControl_FO!AJ$15 -> 0.3800317211 | CM59: =+Y59*KeyAssumptionsPriceControl_FO!AK$15 -> 0.3914319551 | CN59: =+Z59*KeyAssumptionsPriceControl_FO!AL$15 -> 0.4031749944 | CP59: 0.008918083333 | CQ59: 0.02656206917 | CR59: 0.04036915641 | CS59: 0.04873308315 | CT59: 0.05571584282 | CU59: 0.06140595134 | CV59: 0.06647073464 | CW59: 0.0727123581 | CX59: 0.07914122207 | CY59: 0.08576294665
C60: Upgrade WWTP & Reuse System - Donald | E60: Sewerage | F60: Improvements / Compliance | G60: Treatment | H60: Capital Programs / Allocation | J60: Straight line | K60: 2024-25 | L60: 60 | M60: 80 | Q60: 2.00000094 | R60: 0.552 | S60: 0 | T60: 0 | U60: 0 | V60: 0 | W60: 0 | X60: 0 | Y60: 0 | Z60: 0 | AX60: 2.00000094 | AY60: 0.552 | AZ60: 0 | BA60: 0 | BB60: 0 | BC60: 0 | BD60: 0 | BE60: 0 | BF60: 0 | BG60: 0 | BI60: 0 | BJ60: 0.0212666745 | BK60: 0.042533349 | BL60: 0.042533349 | BM60: 0.042533349 | BN60: 0.042533349 | BO60: 0.042533349 | BP60: 0.042533349 | BQ60: 0.042533349 | BR60: 0.042533349 | BT60: =+IF($K60="Ongoing",AX60,IF(RIGHT($K60,2)=RIGHT(BT$39,2),SUM($AX60:AX60),0)+IF(RIGHT(BT$39,2)>RIGHT($K60,2),AX60,0)) -> 0 | BU60: =+IF($K60="Ongoing",AY60,IF(RIGHT($K60,2)=RIGHT(BU$39,2),SUM($AX60:AY60),0)+IF(RIGHT(BU$39,2)>RIGHT($K60,2),AY60,0)) -> 2.55200094 | BV60: =+IF($K60="Ongoing",AZ60,IF(RIGHT($K60,2)=RIGHT(BV$39,2),SUM($AX60:AZ60),0)+IF(RIGHT(BV$39,2)>RIGHT($K60,2),AZ60,0)) -> 0 | BW60: =+IF($K60="Ongoing",BA60,IF(RIGHT($K60,2)=RIGHT(BW$39,2),SUM($AX60:BA60),0)+IF(RIGHT(BW$39,2)>RIGHT($K60,2),BA60,0)) -> 0 | BX60: =+IF($K60="Ongoing",BB60,IF(RIGHT($K60,2)=RIGHT(BX$39,2),SUM($AX60:BB60),0)+IF(RIGHT(BX$39,2)>RIGHT($K60,2),BB60,0)) -> 0 | BY60: =+IF($K60="Ongoing",BC60,IF(RIGHT($K60,2)=RIGHT(BY$39,2),SUM($AX60:BC60),0)+IF(RIGHT(BY$39,2)>RIGHT($K60,2),BC60,0)) -> 0 | BZ60: =+IF($K60="Ongoing",BD60,IF(RIGHT($K60,2)=RIGHT(BZ$39,2),SUM($AX60:BD60),0)+IF(RIGHT(BZ$39,2)>RIGHT($K60,2),BD60,0)) -> 0 | CA60: =+IF($K60="Ongoing",BE60,IF(RIGHT($K60,2)=RIGHT(CA$39,2),SUM($AX60:BE60),0)+IF(RIGHT(CA$39,2)>RIGHT($K60,2),BE60,0)) -> 0 | CB60: =+IF($K60="Ongoing",BF60,IF(RIGHT($K60,2)=RIGHT(CB$39,2),SUM($AX60:BF60),0)+IF(RIGHT(CB$39,2)>RIGHT($K60,2),BF60,0)) -> 0 | CC60: =+IF($K60="Ongoing",BG60,IF(RIGHT($K60,2)=RIGHT(CC$39,2),SUM($AX60:BG60),0)+IF(RIGHT(CC$39,2)>RIGHT($K60,2),BG60,0)) -> 0 | CE60: =+Q60*KeyAssumptionsPriceControl_FO!AC$15 -> 2.060000968 | CF60: =+R60*KeyAssumptionsPriceControl_FO!AD$15 -> 0.5856168 | CG60: =+S60*KeyAssumptionsPriceControl_FO!AE$15 -> 0 | CH60: =+T60*KeyAssumptionsPriceControl_FO!AF$15 -> 0 | CI60: =+U60*KeyAssumptionsPriceControl_FO!AG$15 -> 0 | CJ60: =+V60*KeyAssumptionsPriceControl_FO!AH$15 -> 0 | CK60: =+W60*KeyAssumptionsPriceControl_FO!AI$15 -> 0 | CL60: =+X60*KeyAssumptionsPriceControl_FO!AJ$15 -> 0 | CM60: =+Y60*KeyAssumptionsPriceControl_FO!AK$15 -> 0 | CN60: =+Z60*KeyAssumptionsPriceControl_FO!AL$15 -> 0 | CP60: 0.01287500605 | CQ60: 0.0294101171 | CR60: 0.0330702221 | CS60: 0.0330702221 | CT60: 0.0330702221 | CU60: 0.0330702221 | CV60: 0.0330702221 | CW60: 0.0330702221 | CX60: 0.0330702221 | CY60: 0.0330702221
C61: Horsham Smartwater Integrated Water Management | E61: Sewerage | F61: Growth | G61: Treatment | H61: Capital Programs / Allocation | J61: Straight line | K61: 2023-24 | L61: 60 | M61: 80 | Q61: 2.52047216 | R61: 0 | S61: 0 | T61: 0 | U61: 0 | V61: 0 | W61: 0 | X61: 0 | Y61: 0 | Z61: 0 | AX61: 2.52047216 | AY61: 0 | AZ61: 0 | BA61: 0 | BB61: 0 | BC61: 0 | BD61: 0 | BE61: 0 | BF61: 0 | BG61: 0 | BI61: 0.02100393467 | BJ61: 0.04200786933 | BK61: 0.04200786933 | BL61: 0.04200786933 | BM61: 0.04200786933 | BN61: 0.04200786933 | BO61: 0.04200786933 | BP61: 0.04200786933 | BQ61: 0.04200786933 | BR61: 0.04200786933 | BT61: =+IF($K61="Ongoing",AX61,IF(RIGHT($K61,2)=RIGHT(BT$39,2),SUM($AX61:AX61),0)+IF(RIGHT(BT$39,2)>RIGHT($K61,2),AX61,0)) -> 2.52047216 | BU61: =+IF($K61="Ongoing",AY61,IF(RIGHT($K61,2)=RIGHT(BU$39,2),SUM($AX61:AY61),0)+IF(RIGHT(BU$39,2)>RIGHT($K61,2),AY61,0)) -> 0 | BV61: =+IF($K61="Ongoing",AZ61,IF(RIGHT($K61,2)=RIGHT(BV$39,2),SUM($AX61:AZ61),0)+IF(RIGHT(BV$39,2)>RIGHT($K61,2),AZ61,0)) -> 0 | BW61: =+IF($K61="Ongoing",BA61,IF(RIGHT($K61,2)=RIGHT(BW$39,2),SUM($AX61:BA61),0)+IF(RIGHT(BW$39,2)>RIGHT($K61,2),BA61,0)) -> 0 | BX61: =+IF($K61="Ongoing",BB61,IF(RIGHT($K61,2)=RIGHT(BX$39,2),SUM($AX61:BB61),0)+IF(RIGHT(BX$39,2)>RIGHT($K61,2),BB61,0)) -> 0 | BY61: =+IF($K61="Ongoing",BC61,IF(RIGHT($K61,2)=RIGHT(BY$39,2),SUM($AX61:BC61),0)+IF(RIGHT(BY$39,2)>RIGHT($K61,2),BC61,0)) -> 0 | BZ61: =+IF($K61="Ongoing",BD61,IF(RIGHT($K61,2)=RIGHT(BZ$39,2),SUM($AX61:BD61),0)+IF(RIGHT(BZ$39,2)>RIGHT($K61,2),BD61,0)) -> 0 | CA61: =+IF($K61="Ongoing",BE61,IF(RIGHT($K61,2)=RIGHT(CA$39,2),SUM($AX61:BE61),0)+IF(RIGHT(CA$39,2)>RIGHT($K61,2),BE61,0)) -> 0 | CB61: =+IF($K61="Ongoing",BF61,IF(RIGHT($K61,2)=RIGHT(CB$39,2),SUM($AX61:BF61),0)+IF(RIGHT(CB$39,2)>RIGHT($K61,2),BF61,0)) -> 0 | CC61: =+IF($K61="Ongoing",BG61,IF(RIGHT($K61,2)=RIGHT(CC$39,2),SUM($AX61:BG61),0)+IF(RIGHT(CC$39,2)>RIGHT($K61,2),BG61,0)) -> 0 | CE61: =+Q61*KeyAssumptionsPriceControl_FO!AC$15 -> 2.596086325 | CF61: =+R61*KeyAssumptionsPriceControl_FO!AD$15 -> 0 | CG61: =+S61*KeyAssumptionsPriceControl_FO!AE$15 -> 0 | CH61: =+T61*KeyAssumptionsPriceControl_FO!AF$15 -> 0 | CI61: =+U61*KeyAssumptionsPriceControl_FO!AG$15 -> 0 | CJ61: =+V61*KeyAssumptionsPriceControl_FO!AH$15 -> 0 | CK61: =+W61*KeyAssumptionsPriceControl_FO!AI$15 -> 0 | CL61: =+X61*KeyAssumptionsPriceControl_FO!AJ$15 -> 0 | CM61: =+Y61*KeyAssumptionsPriceControl_FO!AK$15 -> 0 | CN61: =+Z61*KeyAssumptionsPriceControl_FO!AL$15 -> 0 | CP61: 0.01622553953 | CQ61: 0.03245107906 | CR61: 0.03245107906 | CS61: 0.03245107906 | CT61: 0.03245107906 | CU61: 0.03245107906 | CV61: 0.03245107906 | CW61: 0.03245107906 | CX61: 0.03245107906 | CY61: 0.03245107906
C62: Water Supply System Upgrades | E62: Urban Water | F62: Improvements / Compliance | G62: Pipelines/network | H62: Capital Programs / Allocation | J62: Straight line | K62: Ongoing | L62: 50 | M62: 60 | Q62: 0.55800099 | R62: 0.21000099 | S62: 0.47000099 | T62: 0.52000099 | U62: 0.71800099 | V62: 0.22000099 | W62: 0.85000099 | X62: 0.20000099 | Y62: 0.20000099 | Z62: 0.20000099 | AX62: 0.55800099 | AY62: 0.21000099 | AZ62: 0.47000099 | BA62: 0.52000099 | BB62: 0.71800099 | BC62: 0.22000099 | BD62: 0.85000099 | BE62: 0.20000099 | BF62: 0.20000099 | BG62: 0.20000099 | BI62: 0.0055800099 | BJ62: 0.0132600297 | BK62: 0.0200600495 | BL62: 0.0299600693 | BM62: 0.0423400891 | BN62: 0.0517201089 | BO62: 0.0624201287 | BP62: 0.0729201485 | BQ62: 0.0769201683 | BR62: 0.0809201881 | BT62: =+IF($K62="Ongoing",AX62,IF(RIGHT($K62,2)=RIGHT(BT$39,2),SUM($AX62:AX62),0)+IF(RIGHT(BT$39,2)>RIGHT($K62,2),AX62,0)) -> 0.55800099 | BU62: =+IF($K62="Ongoing",AY62,IF(RIGHT($K62,2)=RIGHT(BU$39,2),SUM($AX62:AY62),0)+IF(RIGHT(BU$39,2)>RIGHT($K62,2),AY62,0)) -> 0.21000099 | BV62: =+IF($K62="Ongoing",AZ62,IF(RIGHT($K62,2)=RIGHT(BV$39,2),SUM($AX62:AZ62),0)+IF(RIGHT(BV$39,2)>RIGHT($K62,2),AZ62,0)) -> 0.47000099 | BW62: =+IF($K62="Ongoing",BA62,IF(RIGHT($K62,2)=RIGHT(BW$39,2),SUM($AX62:BA62),0)+IF(RIGHT(BW$39,2)>RIGHT($K62,2),BA62,0)) -> 0.52000099 | BX62: =+IF($K62="Ongoing",BB62,IF(RIGHT($K62,2)=RIGHT(BX$39,2),SUM($AX62:BB62),0)+IF(RIGHT(BX$39,2)>RIGHT($K62,2),BB62,0)) -> 0.71800099 | BY62: =+IF($K62="Ongoing",BC62,IF(RIGHT($K62,2)=RIGHT(BY$39,2),SUM($AX62:BC62),0)+IF(RIGHT(BY$39,2)>RIGHT($K62,2),BC62,0)) -> 0.22000099 | BZ62: =+IF($K62="Ongoing",BD62,IF(RIGHT($K62,2)=RIGHT(BZ$39,2),SUM($AX62:BD62),0)+IF(RIGHT(BZ$39,2)>RIGHT($K62,2),BD62,0)) -> 0.85000099 | CA62: =+IF($K62="Ongoing",BE62,IF(RIGHT($K62,2)=RIGHT(CA$39,2),SUM($AX62:BE62),0)+IF(RIGHT(CA$39,2)>RIGHT($K62,2),BE62,0)) -> 0.20000099 | CB62: =+IF($K62="Ongoing",BF62,IF(RIGHT($K62,2)=RIGHT(CB$39,2),SUM($AX62:BF62),0)+IF(RIGHT(CB$39,2)>RIGHT($K62,2),BF62,0)) -> 0.20000099 | CC62: =+IF($K62="Ongoing",BG62,IF(RIGHT($K62,2)=RIGHT(CC$39,2),SUM($AX62:BG62),0)+IF(RIGHT(CC$39,2)>RIGHT($K62,2),BG62,0)) -> 0.20000099 | CE62: =+Q62*KeyAssumptionsPriceControl_FO!AC$15 -> 0.5747410197 | CF62: =+R62*KeyAssumptionsPriceControl_FO!AD$15 -> 0.2227900503 | CG62: =+S62*KeyAssumptionsPriceControl_FO!AE$15 -> 0.5135827718 | CH62: =+T62*KeyAssumptionsPriceControl_FO!AF$15 -> 0.5852656955 | CI62: =+U62*KeyAssumptionsPriceControl_FO!AG$15 -> 0.832359933 | CJ62: =+V62*KeyAssumptionsPriceControl_FO!AH$15 -> 0.2626926873 | CK62: =+W62*KeyAssumptionsPriceControl_FO!AI$15 -> 1.045394003 | CL62: =+X62*KeyAssumptionsPriceControl_FO!AJ$15 -> 0.2533552704 | CM62: =+Y62*KeyAssumptionsPriceControl_FO!AK$15 -> 0.2609559285 | CN62: =+Z62*KeyAssumptionsPriceControl_FO!AL$15 -> 0.2687846063 | CP62: 0.004789508498 | CQ62: 0.01143560075 | CR62: 0.01757204093 | CS62: 0.02672911149 | CT62: 0.0385426584 | CU62: 0.0476680969 | CV62: 0.05856881932 | CW62: 0.06939172993 | CX62: 0.07367765659 | CY62: 0.07809216105
C63: WWTP Desludging | E63: Sewerage | F63: Renewals | G63: Treatment | H63: Capital Programs / Allocation | J63: Straight line | K63: Ongoing | L63: 10 | M63: 0 | Q63: 0.8 | R63: 0.25 | S63: 0.35 | T63: 0 | U63: 0.5 | V63: 0 | W63: 0 | X63: 0 | Y63: 0 | Z63: 0 | AX63: 0.8 | AY63: 0.25 | AZ63: 0.35 | BA63: 0 | BB63: 0.5 | BC63: 0 | BD63: 0 | BE63: 0 | BF63: 0 | BG63: 0 | BI63: 0.04 | BJ63: 0.0925 | BK63: 0.1225 | BL63: 0.14 | BM63: 0.165 | BN63: 0.19 | BO63: 0.19 | BP63: 0.19 | BQ63: 0.19 | BR63: 0.19 | BT63: =+IF($K63="Ongoing",AX63,IF(RIGHT($K63,2)=RIGHT(BT$39,2),SUM($AX63:AX63),0)+IF(RIGHT(BT$39,2)>RIGHT($K63,2),AX63,0)) -> 0.8 | BU63: =+IF($K63="Ongoing",AY63,IF(RIGHT($K63,2)=RIGHT(BU$39,2),SUM($AX63:AY63),0)+IF(RIGHT(BU$39,2)>RIGHT($K63,2),AY63,0)) -> 0.25 | BV63: =+IF($K63="Ongoing",AZ63,IF(RIGHT($K63,2)=RIGHT(BV$39,2),SUM($AX63:AZ63),0)+IF(RIGHT(BV$39,2)>RIGHT($K63,2),AZ63,0)) -> 0.35 | BW63: =+IF($K63="Ongoing",BA63,IF(RIGHT($K63,2)=RIGHT(BW$39,2),SUM($AX63:BA63),0)+IF(RIGHT(BW$39,2)>RIGHT($K63,2),BA63,0)) -> 0 | BX63: =+IF($K63="Ongoing",BB63,IF(RIGHT($K63,2)=RIGHT(BX$39,2),SUM($AX63:BB63),0)+IF(RIGHT(BX$39,2)>RIGHT($K63,2),BB63,0)) -> 0.5 | BY63: =+IF($K63="Ongoing",BC63,IF(RIGHT($K63,2)=RIGHT(BY$39,2),SUM($AX63:BC63),0)+IF(RIGHT(BY$39,2)>RIGHT($K63,2),BC63,0)) -> 0 | BZ63: =+IF($K63="Ongoing",BD63,IF(RIGHT($K63,2)=RIGHT(BZ$39,2),SUM($AX63:BD63),0)+IF(RIGHT(BZ$39,2)>RIGHT($K63,2),BD63,0)) -> 0 | CA63: =+IF($K63="Ongoing",BE63,IF(RIGHT($K63,2)=RIGHT(CA$39,2),SUM($AX63:BE63),0)+IF(RIGHT(CA$39,2)>RIGHT($K63,2),BE63,0)) -> 0 | CB63: =+IF($K63="Ongoing",BF63,IF(RIGHT($K63,2)=RIGHT(CB$39,2),SUM($AX63:BF63),0)+IF(RIGHT(CB$39,2)>RIGHT($K63,2),BF63,0)) -> 0 | CC63: =+IF($K63="Ongoing",BG63,IF(RIGHT($K63,2)=RIGHT(CC$39,2),SUM($AX63:BG63),0)+IF(RIGHT(CC$39,2)>RIGHT($K63,2),BG63,0)) -> 0 | CE63: =+Q63*KeyAssumptionsPriceControl_FO!AC$15 -> 0.824 | CF63: =+R63*KeyAssumptionsPriceControl_FO!AD$15 -> 0.265225 | CG63: =+S63*KeyAssumptionsPriceControl_FO!AE$15 -> 0.38245445 | CH63: =+T63*KeyAssumptionsPriceControl_FO!AF$15 -> 0 | CI63: =+U63*KeyAssumptionsPriceControl_FO!AG$15 -> 0.5796370372 | CJ63: =+V63*KeyAssumptionsPriceControl_FO!AH$15 -> 0 | CK63: =+W63*KeyAssumptionsPriceControl_FO!AI$15 -> 0 | CL63: =+X63*KeyAssumptionsPriceControl_FO!AJ$15 -> 0 | CM63: =+Y63*KeyAssumptionsPriceControl_FO!AK$15 -> 0 | CN63: =+Z63*KeyAssumptionsPriceControl_FO!AL$15 -> 0 | CP63: 0 | CQ63: 0 | CR63: 0 | CS63: 0 | CT63: 0 | CU63: 0 | CV63: 0 | CW63: 0 | CX63: 0 | CY63: 0
C64: Dam Safety Works | E64: Bulk water - headworks | F64: Improvements / Compliance | G64: Headworks | H64: Capital Programs / Allocation | J64: Straight line | K64: Ongoing | L64: 80 | M64: 100 | Q64: 0.28 | R64: 0.20000002 | S64: 0.36 | T64: 0.275 | U64: 0.5 | V64: 7.89 | W64: 0.9 | X64: 0.45 | Y64: 0.45 | Z64: 0.45 | AX64: 0.28 | AY64: 0.20000002 | AZ64: 0.36 | BA64: 0.275 | BB64: 0.5 | BC64: 7.89 | BD64: 0.9 | BE64: 0.45 | BF64: 0.45 | BG64: 0.45 | BI64: 0.00175 | BJ64: 0.004750000125 | BK64: 0.00825000025 | BL64: 0.01221875025 | BM64: 0.01706250025 | BN64: 0.06950000025 | BO64: 0.1244375003 | BP64: 0.1328750003 | BQ64: 0.1385000003 | BR64: 0.1441250002 | BT64: =+IF($K64="Ongoing",AX64,IF(RIGHT($K64,2)=RIGHT(BT$39,2),SUM($AX64:AX64),0)+IF(RIGHT(BT$39,2)>RIGHT($K64,2),AX64,0)) -> 0.28 | BU64: =+IF($K64="Ongoing",AY64,IF(RIGHT($K64,2)=RIGHT(BU$39,2),SUM($AX64:AY64),0)+IF(RIGHT(BU$39,2)>RIGHT($K64,2),AY64,0)) -> 0.20000002 | BV64: =+IF($K64="Ongoing",AZ64,IF(RIGHT($K64,2)=RIGHT(BV$39,2),SUM($AX64:AZ64),0)+IF(RIGHT(BV$39,2)>RIGHT($K64,2),AZ64,0)) -> 0.36 | BW64: =+IF($K64="Ongoing",BA64,IF(RIGHT($K64,2)=RIGHT(BW$39,2),SUM($AX64:BA64),0)+IF(RIGHT(BW$39,2)>RIGHT($K64,2),BA64,0)) -> 0.275 | BX64: =+IF($K64="Ongoing",BB64,IF(RIGHT($K64,2)=RIGHT(BX$39,2),SUM($AX64:BB64),0)+IF(RIGHT(BX$39,2)>RIGHT($K64,2),BB64,0)) -> 0.5 | BY64: =+IF($K64="Ongoing",BC64,IF(RIGHT($K64,2)=RIGHT(BY$39,2),SUM($AX64:BC64),0)+IF(RIGHT(BY$39,2)>RIGHT($K64,2),BC64,0)) -> 7.89 | BZ64: =+IF($K64="Ongoing",BD64,IF(RIGHT($K64,2)=RIGHT(BZ$39,2),SUM($AX64:BD64),0)+IF(RIGHT(BZ$39,2)>RIGHT($K64,2),BD64,0)) -> 0.9 | CA64: =+IF($K64="Ongoing",BE64,IF(RIGHT($K64,2)=RIGHT(CA$39,2),SUM($AX64:BE64),0)+IF(RIGHT(CA$39,2)>RIGHT($K64,2),BE64,0)) -> 0.45 | CB64: =+IF($K64="Ongoing",BF64,IF(RIGHT($K64,2)=RIGHT(CB$39,2),SUM($AX64:BF64),0)+IF(RIGHT(CB$39,2)>RIGHT($K64,2),BF64,0)) -> 0.45 | CC64: =+IF($K64="Ongoing",BG64,IF(RIGHT($K64,2)=RIGHT(CC$39,2),SUM($AX64:BG64),0)+IF(RIGHT(CC$39,2)>RIGHT($K64,2),BG64,0)) -> 0.45 | CE64: =+Q64*KeyAssumptionsPriceControl_FO!AC$15 -> 0.2884 | CF64: =+R64*KeyAssumptionsPriceControl_FO!AD$15 -> 0.2121800212 | CG64: =+S64*KeyAssumptionsPriceControl_FO!AE$15 -> 0.39338172 | CH64: =+T64*KeyAssumptionsPriceControl_FO!AF$15 -> 0.3095149228 | CI64: =+U64*KeyAssumptionsPriceControl_FO!AG$15 -> 0.5796370372 | CJ64: =+V64*KeyAssumptionsPriceControl_FO!AH$15 -> 9.42107262 | CK64: =+W64*KeyAssumptionsPriceControl_FO!AI$15 -> 1.106886479 | CL64: =+X64*KeyAssumptionsPriceControl_FO!AJ$15 -> 0.5700465366 | CM64: =+Y64*KeyAssumptionsPriceControl_FO!AK$15 -> 0.5871479327 | CN64: =+Z64*KeyAssumptionsPriceControl_FO!AL$15 -> 0.6047623707 | CP64: 0.001442 | CQ64: 0.003944900106 | CR64: 0.006972708812 | CS64: 0.01048719203 | CT64: 0.01493295183 | CU64: 0.06493650011 | CV64: 0.1175762956 | CW64: 0.1259609607 | CX64: 0.131746933 | CY64: 0.1377064845
C65: Sewer System Upgrades | E65: Sewerage | F65: Improvements / Compliance | G65: Pipelines/network | H65: Capital Programs / Allocation | J65: Straight line | K65: Ongoing | L65: 60 | M65: 80 | Q65: 0.30005513 | R65: 0.30000091 | S65: 0.30000092 | T65: 0 | U65: 0.2 | V65: 0 | W65: 0 | X65: 0 | Y65: 0 | Z65: 0 | AX65: 0.30005513 | AY65: 0.30000091 | AZ65: 0.30000092 | BA65: 0 | BB65: 0.2 | BC65: 0 | BD65: 0 | BE65: 0 | BF65: 0 | BG65: 0 | BI65: 0.002500459417 | BJ65: 0.007500926417 | BK65: 0.01250094167 | BL65: 0.01500094933 | BM65: 0.016667616 | BN65: 0.01833428267 | BO65: 0.01833428267 | BP65: 0.01833428267 | BQ65: 0.01833428267 | BR65: 0.01833428267 | BT65: =+IF($K65="Ongoing",AX65,IF(RIGHT($K65,2)=RIGHT(BT$39,2),SUM($AX65:AX65),0)+IF(RIGHT(BT$39,2)>RIGHT($K65,2),AX65,0)) -> 0.30005513 | BU65: =+IF($K65="Ongoing",AY65,IF(RIGHT($K65,2)=RIGHT(BU$39,2),SUM($AX65:AY65),0)+IF(RIGHT(BU$39,2)>RIGHT($K65,2),AY65,0)) -> 0.30000091 | BV65: =+IF($K65="Ongoing",AZ65,IF(RIGHT($K65,2)=RIGHT(BV$39,2),SUM($AX65:AZ65),0)+IF(RIGHT(BV$39,2)>RIGHT($K65,2),AZ65,0)) -> 0.30000092 | BW65: =+IF($K65="Ongoing",BA65,IF(RIGHT($K65,2)=RIGHT(BW$39,2),SUM($AX65:BA65),0)+IF(RIGHT(BW$39,2)>RIGHT($K65,2),BA65,0)) -> 0 | BX65: =+IF($K65="Ongoing",BB65,IF(RIGHT($K65,2)=RIGHT(BX$39,2),SUM($AX65:BB65),0)+IF(RIGHT(BX$39,2)>RIGHT($K65,2),BB65,0)) -> 0.2 | BY65: =+IF($K65="Ongoing",BC65,IF(RIGHT($K65,2)=RIGHT(BY$39,2),SUM($AX65:BC65),0)+IF(RIGHT(BY$39,2)>RIGHT($K65,2),BC65,0)) -> 0 | BZ65: =+IF($K65="Ongoing",BD65,IF(RIGHT($K65,2)=RIGHT(BZ$39,2),SUM($AX65:BD65),0)+IF(RIGHT(BZ$39,2)>RIGHT($K65,2),BD65,0)) -> 0 | CA65: =+IF($K65="Ongoing",BE65,IF(RIGHT($K65,2)=RIGHT(CA$39,2),SUM($AX65:BE65),0)+IF(RIGHT(CA$39,2)>RIGHT($K65,2),BE65,0)) -> 0 | CB65: =+IF($K65="Ongoing",BF65,IF(RIGHT($K65,2)=RIGHT(CB$39,2),SUM($AX65:BF65),0)+IF(RIGHT(CB$39,2)>RIGHT($K65,2),BF65,0)) -> 0 | CC65: =+IF($K65="Ongoing",BG65,IF(RIGHT($K65,2)=RIGHT(CC$39,2),SUM($AX65:BG65),0)+IF(RIGHT(CC$39,2)>RIGHT($K65,2),BG65,0)) -> 0 | CE65: =+Q65*KeyAssumptionsPriceControl_FO!AC$15 -> 0.3090567839 | CF65: =+R65*KeyAssumptionsPriceControl_FO!AD$15 -> 0.3182709654 | CG65: =+S65*KeyAssumptionsPriceControl_FO!AE$15 -> 0.3278191053 | CH65: =+T65*KeyAssumptionsPriceControl_FO!AF$15 -> 0 | CI65: =+U65*KeyAssumptionsPriceControl_FO!AG$15 -> 0.2318548149 | CJ65: =+V65*KeyAssumptionsPriceControl_FO!AH$15 -> 0 | CK65: =+W65*KeyAssumptionsPriceControl_FO!AI$15 -> 0 | CL65: =+X65*KeyAssumptionsPriceControl_FO!AJ$15 -> 0 | CM65: =+Y65*KeyAssumptionsPriceControl_FO!AK$15 -> 0 | CN65: =+Z65*KeyAssumptionsPriceControl_FO!AL$15 -> 0 | CP65: 0.001931604899 | CQ65: 0.005852403333 | CR65: 0.009890466275 | CS65: 0.01193933568 | CT65: 0.01338842828 | CU65: 0.01483752087 | CV65: 0.01483752087 | CW65: 0.01483752087 | CX65: 0.01483752087 | CY65: 0.01483752087
C66: Sewerage Scheme - Goroke | E66: Sewerage | F66: Growth | G66: Treatment | H66: Capital Programs / Allocation | J66: Straight line | K66: 2024-25 | L66: 60 | M66: 80 | Q66: 0.5 | R66: 0.583 | S66: 0 | T66: 0 | U66: 0 | V66: 0 | W66: 0 | X66: 0 | Y66: 0 | Z66: 0 | AX66: 0.5 | AY66: 0.583 | AZ66: 0 | BA66: 0 | BB66: 0 | BC66: 0 | BD66: 0 | BE66: 0 | BF66: 0 | BG66: 0 | BI66: 0 | BJ66: 0.009025 | BK66: 0.01805 | BL66: 0.01805 | BM66: 0.01805 | BN66: 0.01805 | BO66: 0.01805 | BP66: 0.01805 | BQ66: 0.01805 | BR66: 0.01805 | BT66: =+IF($K66="Ongoing",AX66,IF(RIGHT($K66,2)=RIGHT(BT$39,2),SUM($AX66:AX66),0)+IF(RIGHT(BT$39,2)>RIGHT($K66,2),AX66,0)) -> 0 | BU66: =+IF($K66="Ongoing",AY66,IF(RIGHT($K66,2)=RIGHT(BU$39,2),SUM($AX66:AY66),0)+IF(RIGHT(BU$39,2)>RIGHT($K66,2),AY66,0)) -> 1.083 | BV66: =+IF($K66="Ongoing",AZ66,IF(RIGHT($K66,2)=RIGHT(BV$39,2),SUM($AX66:AZ66),0)+IF(RIGHT(BV$39,2)>RIGHT($K66,2),AZ66,0)) -> 0 | BW66: =+IF($K66="Ongoing",BA66,IF(RIGHT($K66,2)=RIGHT(BW$39,2),SUM($AX66:BA66),0)+IF(RIGHT(BW$39,2)>RIGHT($K66,2),BA66,0)) -> 0 | BX66: =+IF($K66="Ongoing",BB66,IF(RIGHT($K66,2)=RIGHT(BX$39,2),SUM($AX66:BB66),0)+IF(RIGHT(BX$39,2)>RIGHT($K66,2),BB66,0)) -> 0 | BY66: =+IF($K66="Ongoing",BC66,IF(RIGHT($K66,2)=RIGHT(BY$39,2),SUM($AX66:BC66),0)+IF(RIGHT(BY$39,2)>RIGHT($K66,2),BC66,0)) -> 0 | BZ66: =+IF($K66="Ongoing",BD66,IF(RIGHT($K66,2)=RIGHT(BZ$39,2),SUM($AX66:BD66),0)+IF(RIGHT(BZ$39,2)>RIGHT($K66,2),BD66,0)) -> 0 | CA66: =+IF($K66="Ongoing",BE66,IF(RIGHT($K66,2)=RIGHT(CA$39,2),SUM($AX66:BE66),0)+IF(RIGHT(CA$39,2)>RIGHT($K66,2),BE66,0)) -> 0 | CB66: =+IF($K66="Ongoing",BF66,IF(RIGHT($K66,2)=RIGHT(CB$39,2),SUM($AX66:BF66),0)+IF(RIGHT(CB$39,2)>RIGHT($K66,2),BF66,0)) -> 0 | CC66: =+IF($K66="Ongoing",BG66,IF(RIGHT($K66,2)=RIGHT(CC$39,2),SUM($AX66:BG66),0)+IF(RIGHT(CC$39,2)>RIGHT($K66,2),BG66,0)) -> 0 | CE66: =+Q66*KeyAssumptionsPriceControl_FO!AC$15 -> 0.515 | CF66: =+R66*KeyAssumptionsPriceControl_FO!AD$15 -> 0.6185047 | CG66: =+S66*KeyAssumptionsPriceControl_FO!AE$15 -> 0 | CH66: =+T66*KeyAssumptionsPriceControl_FO!AF$15 -> 0 | CI66: =+U66*KeyAssumptionsPriceControl_FO!AG$15 -> 0 | CJ66: =+V66*KeyAssumptionsPriceControl_FO!AH$15 -> 0 | CK66: =+W66*KeyAssumptionsPriceControl_FO!AI$15 -> 0 | CL66: =+X66*KeyAssumptionsPriceControl_FO!AJ$15 -> 0 | CM66: =+Y66*KeyAssumptionsPriceControl_FO!AK$15 -> 0 | CN66: =+Z66*KeyAssumptionsPriceControl_FO!AL$15 -> 0 | CP66: 0.00321875 | CQ66: 0.01030315437 | CR66: 0.01416880875 | CS66: 0.01416880875 | CT66: 0.01416880875 | CU66: 0.01416880875 | CV66: 0.01416880875 | CW66: 0.01416880875 | CX66: 0.01416880875 | CY66: 0.01416880875
C67: Urban Water Storage Desludging | E67: Urban Water | F67: Renewals | G67: Treatment | H67: Capital Programs / Allocation | J67: Straight line | K67: Ongoing | L67: 10 | M67: 0 | Q67: 0 | R67: 0 | S67: 0.908 | T67: 0 | U67: 0 | V67: 0 | W67: 0 | X67: 0 | Y67: 0 | Z67: 0 | AX67: 0 | AY67: 0 | AZ67: 0.908 | BA67: 0 | BB67: 0 | BC67: 0 | BD67: 0 | BE67: 0 | BF67: 0 | BG67: 0 | BI67: 0 | BJ67: 0 | BK67: 0.0454 | BL67: 0.0908 | BM67: 0.0908 | BN67: 0.0908 | BO67: 0.0908 | BP67: 0.0908 | BQ67: 0.0908 | BR67: 0.0908 | BT67: =+IF($K67="Ongoing",AX67,IF(RIGHT($K67,2)=RIGHT(BT$39,2),SUM($AX67:AX67),0)+IF(RIGHT(BT$39,2)>RIGHT($K67,2),AX67,0)) -> 0 | BU67: =+IF($K67="Ongoing",AY67,IF(RIGHT($K67,2)=RIGHT(BU$39,2),SUM($AX67:AY67),0)+IF(RIGHT(BU$39,2)>RIGHT($K67,2),AY67,0)) -> 0 | BV67: =+IF($K67="Ongoing",AZ67,IF(RIGHT($K67,2)=RIGHT(BV$39,2),SUM($AX67:AZ67),0)+IF(RIGHT(BV$39,2)>RIGHT($K67,2),AZ67,0)) -> 0.908 | BW67: =+IF($K67="Ongoing",BA67,IF(RIGHT($K67,2)=RIGHT(BW$39,2),SUM($AX67:BA67),0)+IF(RIGHT(BW$39,2)>RIGHT($K67,2),BA67,0)) -> 0 | BX67: =+IF($K67="Ongoing",BB67,IF(RIGHT($K67,2)=RIGHT(BX$39,2),SUM($AX67:BB67),0)+IF(RIGHT(BX$39,2)>RIGHT($K67,2),BB67,0)) -> 0 | BY67: =+IF($K67="Ongoing",BC67,IF(RIGHT($K67,2)=RIGHT(BY$39,2),SUM($AX67:BC67),0)+IF(RIGHT(BY$39,2)>RIGHT($K67,2),BC67,0)) -> 0 | BZ67: =+IF($K67="Ongoing",BD67,IF(RIGHT($K67,2)=RIGHT(BZ$39,2),SUM($AX67:BD67),0)+IF(RIGHT(BZ$39,2)>RIGHT($K67,2),BD67,0)) -> 0 | CA67: =+IF($K67="Ongoing",BE67,IF(RIGHT($K67,2)=RIGHT(CA$39,2),SUM($AX67:BE67),0)+IF(RIGHT(CA$39,2)>RIGHT($K67,2),BE67,0)) -> 0 | CB67: =+IF($K67="Ongoing",BF67,IF(RIGHT($K67,2)=RIGHT(CB$39,2),SUM($AX67:BF67),0)+IF(RIGHT(CB$39,2)>RIGHT($K67,2),BF67,0)) -> 0 | CC67: =+IF($K67="Ongoing",BG67,IF(RIGHT($K67,2)=RIGHT(CC$39,2),SUM($AX67:BG67),0)+IF(RIGHT(CC$39,2)>RIGHT($K67,2),BG67,0)) -> 0 | CE67: =+Q67*KeyAssumptionsPriceControl_FO!AC$15 -> 0 | CF67: =+R67*KeyAssumptionsPriceControl_FO!AD$15 -> 0 | CG67: =+S67*KeyAssumptionsPriceControl_FO!AE$15 -> 0.992196116 | CH67: =+T67*KeyAssumptionsPriceControl_FO!AF$15 -> 0 | CI67: =+U67*KeyAssumptionsPriceControl_FO!AG$15 -> 0 | CJ67: =+V67*KeyAssumptionsPriceControl_FO!AH$15 -> 0 | CK67: =+W67*KeyAssumptionsPriceControl_FO!AI$15 -> 0 | CL67: =+X67*KeyAssumptionsPriceControl_FO!AJ$15 -> 0 | CM67: =+Y67*KeyAssumptionsPriceControl_FO!AK$15 -> 0 | CN67: =+Z67*KeyAssumptionsPriceControl_FO!AL$15 -> 0 | CP67: 0 | CQ67: 0 | CR67: 0 | CS67: 0 | CT67: 0 | CU67: 0 | CV67: 0 | CW67: 0 | CX67: 0 | CY67: 0
C68: Waterway Structures Upgrades | E68: Bulk water - headworks | F68: Improvements / Compliance | G68: Headworks | H68: Capital Programs / Allocation | J68: Straight line | K68: Ongoing | L68: 80 | M68: 100 | Q68: 0.1 | R68: 0.175 | S68: 0.225 | T68: 0.175 | U68: 0.025 | V68: 0.025 | W68: 0.025 | X68: 0.025 | Y68: 0.025 | Z68: 0.025 | AX68: 0.1 | AY68: 0.175 | AZ68: 0.225 | BA68: 0.175 | BB68: 0.025 | BC68: 0.025 | BD68: 0.025 | BE68: 0.025 | BF68: 0.025 | BG68: 0.025 | BI68: 0.000625 | BJ68: 0.00234375 | BK68: 0.00484375 | BL68: 0.00734375 | BM68: 0.00859375 | BN68: 0.00890625 | BO68: 0.00921875 | BP68: 0.00953125 | BQ68: 0.00984375 | BR68: 0.01015625 | BT68: =+IF($K68="Ongoing",AX68,IF(RIGHT($K68,2)=RIGHT(BT$39,2),SUM($AX68:AX68),0)+IF(RIGHT(BT$39,2)>RIGHT($K68,2),AX68,0)) -> 0.1 | BU68: =+IF($K68="Ongoing",AY68,IF(RIGHT($K68,2)=RIGHT(BU$39,2),SUM($AX68:AY68),0)+IF(RIGHT(BU$39,2)>RIGHT($K68,2),AY68,0)) -> 0.175 | BV68: =+IF($K68="Ongoing",AZ68,IF(RIGHT($K68,2)=RIGHT(BV$39,2),SUM($AX68:AZ68),0)+IF(RIGHT(BV$39,2)>RIGHT($K68,2),AZ68,0)) -> 0.225 | BW68: =+IF($K68="Ongoing",BA68,IF(RIGHT($K68,2)=RIGHT(BW$39,2),SUM($AX68:BA68),0)+IF(RIGHT(BW$39,2)>RIGHT($K68,2),BA68,0)) -> 0.175 | BX68: =+IF($K68="Ongoing",BB68,IF(RIGHT($K68,2)=RIGHT(BX$39,2),SUM($AX68:BB68),0)+IF(RIGHT(BX$39,2)>RIGHT($K68,2),BB68,0)) -> 0.025 | BY68: =+IF($K68="Ongoing",BC68,IF(RIGHT($K68,2)=RIGHT(BY$39,2),SUM($AX68:BC68),0)+IF(RIGHT(BY$39,2)>RIGHT($K68,2),BC68,0)) -> 0.025 | BZ68: =+IF($K68="Ongoing",BD68,IF(RIGHT($K68,2)=RIGHT(BZ$39,2),SUM($AX68:BD68),0)+IF(RIGHT(BZ$39,2)>RIGHT($K68,2),BD68,0)) -> 0.025 | CA68: =+IF($K68="Ongoing",BE68,IF(RIGHT($K68,2)=RIGHT(CA$39,2),SUM($AX68:BE68),0)+IF(RIGHT(CA$39,2)>RIGHT($K68,2),BE68,0)) -> 0.025 | CB68: =+IF($K68="Ongoing",BF68,IF(RIGHT($K68,2)=RIGHT(CB$39,2),SUM($AX68:BF68),0)+IF(RIGHT(CB$39,2)>RIGHT($K68,2),BF68,0)) -> 0.025 | CC68: =+IF($K68="Ongoing",BG68,IF(RIGHT($K68,2)=RIGHT(CC$39,2),SUM($AX68:BG68),0)+IF(RIGHT(CC$39,2)>RIGHT($K68,2),BG68,0)) -> 0.025 | CE68: =+Q68*KeyAssumptionsPriceControl_FO!AC$15 -> 0.103 | CF68: =+R68*KeyAssumptionsPriceControl_FO!AD$15 -> 0.1856575 | CG68: =+S68*KeyAssumptionsPriceControl_FO!AE$15 -> 0.245863575 | CH68: =+T68*KeyAssumptionsPriceControl_FO!AF$15 -> 0.1969640418 | CI68: =+U68*KeyAssumptionsPriceControl_FO!AG$15 -> 0.02898185186 | CJ68: =+V68*KeyAssumptionsPriceControl_FO!AH$15 -> 0.02985130741 | CK68: =+W68*KeyAssumptionsPriceControl_FO!AI$15 -> 0.03074684664 | CL68: =+X68*KeyAssumptionsPriceControl_FO!AJ$15 -> 0.03166925203 | CM68: =+Y68*KeyAssumptionsPriceControl_FO!AK$15 -> 0.0326193296 | CN68: =+Z68*KeyAssumptionsPriceControl_FO!AL$15 -> 0.03359790948 | CP68: 0.000515 | CQ68: 0.0019582875 | CR68: 0.004115892875 | CS68: 0.006330030959 | CT68: 0.007459760427 | CU68: 0.007753926223 | CV68: 0.008056916993 | CW68: 0.008368997487 | CX68: 0.008690440395 | CY68: 0.00902152659
C69: WWater Developer Works Planning & Supervision | E69: Sewerage | F69: Growth | G69: Corporate | H69: Capital Programs / Allocation | J69: Straight line | K69: Ongoing | L69: 60 | M69: 80 | Q69: 0.06000001 | R69: 0.06000001 | S69: 0.06000001 | T69: 0.06000001 | U69: 0.06000001 | V69: 0.06000001 | W69: 0.06000001 | X69: 0.06000001 | Y69: 0.06000001 | Z69: 0.06000001 | AX69: 0.06000001 | AY69: 0.06000001 | AZ69: 0.06000001 | BA69: 0.06000001 | BB69: 0.06000001 | BC69: 0.06000001 | BD69: 0.06000001 | BE69: 0.06000001 | BF69: 0.06000001 | BG69: 0.06000001 | BI69: 0.0005000000833 | BJ69: 0.00150000025 | BK69: 0.002500000417 | BL69: 0.003500000583 | BM69: 0.00450000075 | BN69: 0.005500000917 | BO69: 0.006500001083 | BP69: 0.00750000125 | BQ69: 0.008500001417 | BR69: 0.009500001583 | BT69: =+IF($K69="Ongoing",AX69,IF(RIGHT($K69,2)=RIGHT(BT$39,2),SUM($AX69:AX69),0)+IF(RIGHT(BT$39,2)>RIGHT($K69,2),AX69,0)) -> 0.06000001 | BU69: =+IF($K69="Ongoing",AY69,IF(RIGHT($K69,2)=RIGHT(BU$39,2),SUM($AX69:AY69),0)+IF(RIGHT(BU$39,2)>RIGHT($K69,2),AY69,0)) -> 0.06000001 | BV69: =+IF($K69="Ongoing",AZ69,IF(RIGHT($K69,2)=RIGHT(BV$39,2),SUM($AX69:AZ69),0)+IF(RIGHT(BV$39,2)>RIGHT($K69,2),AZ69,0)) -> 0.06000001 | BW69: =+IF($K69="Ongoing",BA69,IF(RIGHT($K69,2)=RIGHT(BW$39,2),SUM($AX69:BA69),0)+IF(RIGHT(BW$39,2)>RIGHT($K69,2),BA69,0)) -> 0.06000001 | BX69: =+IF($K69="Ongoing",BB69,IF(RIGHT($K69,2)=RIGHT(BX$39,2),SUM($AX69:BB69),0)+IF(RIGHT(BX$39,2)>RIGHT($K69,2),BB69,0)) -> 0.06000001 | BY69: =+IF($K69="Ongoing",BC69,IF(RIGHT($K69,2)=RIGHT(BY$39,2),SUM($AX69:BC69),0)+IF(RIGHT(BY$39,2)>RIGHT($K69,2),BC69,0)) -> 0.06000001 | BZ69: =+IF($K69="Ongoing",BD69,IF(RIGHT($K69,2)=RIGHT(BZ$39,2),SUM($AX69:BD69),0)+IF(RIGHT(BZ$39,2)>RIGHT($K69,2),BD69,0)) -> 0.06000001 | CA69: =+IF($K69="Ongoing",BE69,IF(RIGHT($K69,2)=RIGHT(CA$39,2),SUM($AX69:BE69),0)+IF(RIGHT(CA$39,2)>RIGHT($K69,2),BE69,0)) -> 0.06000001 | CB69: =+IF($K69="Ongoing",BF69,IF(RIGHT($K69,2)=RIGHT(CB$39,2),SUM($AX69:BF69),0)+IF(RIGHT(CB$39,2)>RIGHT($K69,2),BF69,0)) -> 0.06000001 | CC69: =+IF($K69="Ongoing",BG69,IF(RIGHT($K69,2)=RIGHT(CC$39,2),SUM($AX69:BG69),0)+IF(RIGHT(CC$39,2)>RIGHT($K69,2),BG69,0)) -> 0.06000001 | CE69: =+Q69*KeyAssumptionsPriceControl_FO!AC$15 -> 0.0618000103 | CF69: =+R69*KeyAssumptionsPriceControl_FO!AD$15 -> 0.06365401061 | CG69: =+S69*KeyAssumptionsPriceControl_FO!AE$15 -> 0.06556363093 | CH69: =+T69*KeyAssumptionsPriceControl_FO!AF$15 -> 0.06753053986 | CI69: =+U69*KeyAssumptionsPriceControl_FO!AG$15 -> 0.06955645605 | CJ69: =+V69*KeyAssumptionsPriceControl_FO!AH$15 -> 0.07164314973 | CK69: =+W69*KeyAssumptionsPriceControl_FO!AI$15 -> 0.07379244422 | CL69: =+X69*KeyAssumptionsPriceControl_FO!AJ$15 -> 0.07600621755 | CM69: =+Y69*KeyAssumptionsPriceControl_FO!AK$15 -> 0.07828640408 | CN69: =+Z69*KeyAssumptionsPriceControl_FO!AL$15 -> 0.0806349962 | CP69: 0.0003862500644 | CQ69: 0.001170337695 | CR69: 0.001977947955 | CS69: 0.002809786522 | CT69: 0.003666580246 | CU69: 0.004549077783 | CV69: 0.005458050245 | CW69: 0.006394291881 | CX69: 0.007358620766 | CY69: 0.008351879518
C70: WWater Cont to Developer Works | E70: Sewerage | F70: Growth | G70: Corporate | H70: Capital Programs / Allocation | J70: Straight line | K70: Ongoing | L70: 60 | M70: 80 | Q70: 0.06 | R70: 0.06 | S70: 0.06 | T70: 0.06 | U70: 0.06 | V70: 0.06 | W70: 0.06 | X70: 0.06 | Y70: 0.06 | Z70: 0.06 | AX70: 0.06 | AY70: 0.06 | AZ70: 0.06 | BA70: 0.06 | BB70: 0.06 | BC70: 0.06 | BD70: 0.06 | BE70: 0.06 | BF70: 0.06 | BG70: 0.06 | BI70: 0.0005 | BJ70: 0.0015 | BK70: 0.0025 | BL70: 0.0035 | BM70: 0.0045 | BN70: 0.0055 | BO70: 0.0065 | BP70: 0.0075 | BQ70: 0.0085 | BR70: 0.0095 | BT70: =+IF($K70="Ongoing",AX70,IF(RIGHT($K70,2)=RIGHT(BT$39,2),SUM($AX70:AX70),0)+IF(RIGHT(BT$39,2)>RIGHT($K70,2),AX70,0)) -> 0.06 | BU70: =+IF($K70="Ongoing",AY70,IF(RIGHT($K70,2)=RIGHT(BU$39,2),SUM($AX70:AY70),0)+IF(RIGHT(BU$39,2)>RIGHT($K70,2),AY70,0)) -> 0.06 | BV70: =+IF($K70="Ongoing",AZ70,IF(RIGHT($K70,2)=RIGHT(BV$39,2),SUM($AX70:AZ70),0)+IF(RIGHT(BV$39,2)>RIGHT($K70,2),AZ70,0)) -> 0.06 | BW70: =+IF($K70="Ongoing",BA70,IF(RIGHT($K70,2)=RIGHT(BW$39,2),SUM($AX70:BA70),0)+IF(RIGHT(BW$39,2)>RIGHT($K70,2),BA70,0)) -> 0.06 | BX70: =+IF($K70="Ongoing",BB70,IF(RIGHT($K70,2)=RIGHT(BX$39,2),SUM($AX70:BB70),0)+IF(RIGHT(BX$39,2)>RIGHT($K70,2),BB70,0)) -> 0.06 | BY70: =+IF($K70="Ongoing",BC70,IF(RIGHT($K70,2)=RIGHT(BY$39,2),SUM($AX70:BC70),0)+IF(RIGHT(BY$39,2)>RIGHT($K70,2),BC70,0)) -> 0.06 | BZ70: =+IF($K70="Ongoing",BD70,IF(RIGHT($K70,2)=RIGHT(BZ$39,2),SUM($AX70:BD70),0)+IF(RIGHT(BZ$39,2)>RIGHT($K70,2),BD70,0)) -> 0.06 | CA70: =+IF($K70="Ongoing",BE70,IF(RIGHT($K70,2)=RIGHT(CA$39,2),SUM($AX70:BE70),0)+IF(RIGHT(CA$39,2)>RIGHT($K70,2),BE70,0)) -> 0.06 | CB70: =+IF($K70="Ongoing",BF70,IF(RIGHT($K70,2)=RIGHT(CB$39,2),SUM($AX70:BF70),0)+IF(RIGHT(CB$39,2)>RIGHT($K70,2),BF70,0)) -> 0.06 | CC70: =+IF($K70="Ongoing",BG70,IF(RIGHT($K70,2)=RIGHT(CC$39,2),SUM($AX70:BG70),0)+IF(RIGHT(CC$39,2)>RIGHT($K70,2),BG70,0)) -> 0.06 | CE70: =+Q70*KeyAssumptionsPriceControl_FO!AC$15 -> 0.0618 | CF70: =+R70*KeyAssumptionsPriceControl_FO!AD$15 -> 0.063654 | CG70: =+S70*KeyAssumptionsPriceControl_FO!AE$15 -> 0.06556362 | CH70: =+T70*KeyAssumptionsPriceControl_FO!AF$15 -> 0.0675305286 | CI70: =+U70*KeyAssumptionsPriceControl_FO!AG$15 -> 0.06955644446 | CJ70: =+V70*KeyAssumptionsPriceControl_FO!AH$15 -> 0.07164313779 | CK70: =+W70*KeyAssumptionsPriceControl_FO!AI$15 -> 0.07379243193 | CL70: =+X70*KeyAssumptionsPriceControl_FO!AJ$15 -> 0.07600620488 | CM70: =+Y70*KeyAssumptionsPriceControl_FO!AK$15 -> 0.07828639103 | CN70: =+Z70*KeyAssumptionsPriceControl_FO!AL$15 -> 0.08063498276 | CP70: 0.00038625 | CQ70: 0.0011703375 | CR70: 0.001977947625 | CS70: 0.002809786054 | CT70: 0.003666579635 | CU70: 0.004549077024 | CV70: 0.005458049335 | CW70: 0.006394290815 | CX70: 0.00735861954 | CY70: 0.008351878126
C71: Domestic and Stock Supply System Upgrades | E71: Domestic and stock | F71: Improvements / Compliance | G71: Pipelines/network | H71: Capital Programs / Allocation | J71: Straight line | K71: Ongoing | L71: 50 | M71: 60 | Q71: 0.046 | R71: 0.046 | S71: 0.046 | T71: 0.046 | U71: 0.046 | V71: 0.046 | W71: 0.046 | X71: 0.046 | Y71: 0.046 | Z71: 0.046 | AX71: 0.046 | AY71: 0.046 | AZ71: 0.046 | BA71: 0.046 | BB71: 0.046 | BC71: 0.046 | BD71: 0.046 | BE71: 0.046 | BF71: 0.046 | BG71: 0.046 | BI71: 0.00046 | BJ71: 0.00138 | BK71: 0.0023 | BL71: 0.00322 | BM71: 0.00414 | BN71: 0.00506 | BO71: 0.00598 | BP71: 0.0069 | BQ71: 0.00782 | BR71: 0.00874 | BT71: =+IF($K71="Ongoing",AX71,IF(RIGHT($K71,2)=RIGHT(BT$39,2),SUM($AX71:AX71),0)+IF(RIGHT(BT$39,2)>RIGHT($K71,2),AX71,0)) -> 0.046 | BU71: =+IF($K71="Ongoing",AY71,IF(RIGHT($K71,2)=RIGHT(BU$39,2),SUM($AX71:AY71),0)+IF(RIGHT(BU$39,2)>RIGHT($K71,2),AY71,0)) -> 0.046 | BV71: =+IF($K71="Ongoing",AZ71,IF(RIGHT($K71,2)=RIGHT(BV$39,2),SUM($AX71:AZ71),0)+IF(RIGHT(BV$39,2)>RIGHT($K71,2),AZ71,0)) -> 0.046 | BW71: =+IF($K71="Ongoing",BA71,IF(RIGHT($K71,2)=RIGHT(BW$39,2),SUM($AX71:BA71),0)+IF(RIGHT(BW$39,2)>RIGHT($K71,2),BA71,0)) -> 0.046 | BX71: =+IF($K71="Ongoing",BB71,IF(RIGHT($K71,2)=RIGHT(BX$39,2),SUM($AX71:BB71),0)+IF(RIGHT(BX$39,2)>RIGHT($K71,2),BB71,0)) -> 0.046 | BY71: =+IF($K71="Ongoing",BC71,IF(RIGHT($K71,2)=RIGHT(BY$39,2),SUM($AX71:BC71),0)+IF(RIGHT(BY$39,2)>RIGHT($K71,2),BC71,0)) -> 0.046 | BZ71: =+IF($K71="Ongoing",BD71,IF(RIGHT($K71,2)=RIGHT(BZ$39,2),SUM($AX71:BD71),0)+IF(RIGHT(BZ$39,2)>RIGHT($K71,2),BD71,0)) -> 0.046 | CA71: =+IF($K71="Ongoing",BE71,IF(RIGHT($K71,2)=RIGHT(CA$39,2),SUM($AX71:BE71),0)+IF(RIGHT(CA$39,2)>RIGHT($K71,2),BE71,0)) -> 0.046 | CB71: =+IF($K71="Ongoing",BF71,IF(RIGHT($K71,2)=RIGHT(CB$39,2),SUM($AX71:BF71),0)+IF(RIGHT(CB$39,2)>RIGHT($K71,2),BF71,0)) -> 0.046 | CC71: =+IF($K71="Ongoing",BG71,IF(RIGHT($K71,2)=RIGHT(CC$39,2),SUM($AX71:BG71),0)+IF(RIGHT(CC$39,2)>RIGHT($K71,2),BG71,0)) -> 0.046 | CE71: =+Q71*KeyAssumptionsPriceControl_FO!AC$15 -> 0.04738 | CF71: =+R71*KeyAssumptionsPriceControl_FO!AD$15 -> 0.0488014 | CG71: =+S71*KeyAssumptionsPriceControl_FO!AE$15 -> 0.050265442 | CH71: =+T71*KeyAssumptionsPriceControl_FO!AF$15 -> 0.05177340526 | CI71: =+U71*KeyAssumptionsPriceControl_FO!AG$15 -> 0.05332660742 | CJ71: =+V71*KeyAssumptionsPriceControl_FO!AH$15 -> 0.05492640564 | CK71: =+W71*KeyAssumptionsPriceControl_FO!AI$15 -> 0.05657419781 | CL71: =+X71*KeyAssumptionsPriceControl_FO!AJ$15 -> 0.05827142374 | CM71: =+Y71*KeyAssumptionsPriceControl_FO!AK$15 -> 0.06001956646 | CN71: =+Z71*KeyAssumptionsPriceControl_FO!AL$15 -> 0.06182015345 | CP71: 0.0003948333333 | CQ71: 0.001196345 | CR71: 0.002021902017 | CS71: 0.002872225744 | CT71: 0.003748059183 | CU71: 0.004650167625 | CV71: 0.00557933932 | CW71: 0.006536386167 | CX71: 0.007522144418 | CY71: 0.008537475418
C72: Water Developer Works Planning & Supervision | E72: Urban Water | F72: Growth | G72: Corporate | H72: Capital Programs / Allocation | J72: Straight line | K72: Ongoing | L72: 50 | M72: 60 | Q72: 0.04 | R72: 0.04 | S72: 0.04 | T72: 0.04 | U72: 0.04 | V72: 0.04 | W72: 0.04 | X72: 0.04 | Y72: 0.04 | Z72: 0.04 | AX72: 0.04 | AY72: 0.04 | AZ72: 0.04 | BA72: 0.04 | BB72: 0.04 | BC72: 0.04 | BD72: 0.04 | BE72: 0.04 | BF72: 0.04 | BG72: 0.04 | BI72: 0.0004 | BJ72: 0.0012 | BK72: 0.002 | BL72: 0.0028 | BM72: 0.0036 | BN72: 0.0044 | BO72: 0.0052 | BP72: 0.006 | BQ72: 0.0068 | BR72: 0.0076 | BT72: =+IF($K72="Ongoing",AX72,IF(RIGHT($K72,2)=RIGHT(BT$39,2),SUM($AX72:AX72),0)+IF(RIGHT(BT$39,2)>RIGHT($K72,2),AX72,0)) -> 0.04 | BU72: =+IF($K72="Ongoing",AY72,IF(RIGHT($K72,2)=RIGHT(BU$39,2),SUM($AX72:AY72),0)+IF(RIGHT(BU$39,2)>RIGHT($K72,2),AY72,0)) -> 0.04 | BV72: =+IF($K72="Ongoing",AZ72,IF(RIGHT($K72,2)=RIGHT(BV$39,2),SUM($AX72:AZ72),0)+IF(RIGHT(BV$39,2)>RIGHT($K72,2),AZ72,0)) -> 0.04 | BW72: =+IF($K72="Ongoing",BA72,IF(RIGHT($K72,2)=RIGHT(BW$39,2),SUM($AX72:BA72),0)+IF(RIGHT(BW$39,2)>RIGHT($K72,2),BA72,0)) -> 0.04 | BX72: =+IF($K72="Ongoing",BB72,IF(RIGHT($K72,2)=RIGHT(BX$39,2),SUM($AX72:BB72),0)+IF(RIGHT(BX$39,2)>RIGHT($K72,2),BB72,0)) -> 0.04 | BY72: =+IF($K72="Ongoing",BC72,IF(RIGHT($K72,2)=RIGHT(BY$39,2),SUM($AX72:BC72),0)+IF(RIGHT(BY$39,2)>RIGHT($K72,2),BC72,0)) -> 0.04 | BZ72: =+IF($K72="Ongoing",BD72,IF(RIGHT($K72,2)=RIGHT(BZ$39,2),SUM($AX72:BD72),0)+IF(RIGHT(BZ$39,2)>RIGHT($K72,2),BD72,0)) -> 0.04 | CA72: =+IF($K72="Ongoing",BE72,IF(RIGHT($K72,2)=RIGHT(CA$39,2),SUM($AX72:BE72),0)+IF(RIGHT(CA$39,2)>RIGHT($K72,2),BE72,0)) -> 0.04 | CB72: =+IF($K72="Ongoing",BF72,IF(RIGHT($K72,2)=RIGHT(CB$39,2),SUM($AX72:BF72),0)+IF(RIGHT(CB$39,2)>RIGHT($K72,2),BF72,0)) -> 0.04 | CC72: =+IF($K72="Ongoing",BG72,IF(RIGHT($K72,2)=RIGHT(CC$39,2),SUM($AX72:BG72),0)+IF(RIGHT(CC$39,2)>RIGHT($K72,2),BG72,0)) -> 0.04 | CE72: =+Q72*KeyAssumptionsPriceControl_FO!AC$15 -> 0.0412 | CF72: =+R72*KeyAssumptionsPriceControl_FO!AD$15 -> 0.042436 | CG72: =+S72*KeyAssumptionsPriceControl_FO!AE$15 -> 0.04370908 | CH72: =+T72*KeyAssumptionsPriceControl_FO!AF$15 -> 0.0450203524 | CI72: =+U72*KeyAssumptionsPriceControl_FO!AG$15 -> 0.04637096297 | CJ72: =+V72*KeyAssumptionsPriceControl_FO!AH$15 -> 0.04776209186 | CK72: =+W72*KeyAssumptionsPriceControl_FO!AI$15 -> 0.04919495462 | CL72: =+X72*KeyAssumptionsPriceControl_FO!AJ$15 -> 0.05067080326 | CM72: =+Y72*KeyAssumptionsPriceControl_FO!AK$15 -> 0.05219092735 | CN72: =+Z72*KeyAssumptionsPriceControl_FO!AL$15 -> 0.05375665517 | CP72: 0.0003433333333 | CQ72: 0.0010403 | CR72: 0.001758175667 | CS72: 0.002497587603 | CT72: 0.003259181898 | CU72: 0.004043624022 | CV72: 0.004851599409 | CW72: 0.005683814058 | CX72: 0.006540995146 | CY72: 0.007423891667
C73: Groundwater Meter Replace Program | E73: Groundwater diversions | F73: Renewals | G73: Pipelines/network | H73: Capital Programs / Allocation | J73: Straight line | K73: Ongoing | L73: 15 | M73: 15 | Q73: 0.04110068 | R73: 0.09022158 | S73: 0.01600025 | T73: 0.01700024 | U73: 0.01800011 | V73: 0.13100045 | W73: 0.02000083 | X73: 0.02000085 | Y73: 0.02000012 | Z73: 0.02000024 | AX73: 0.04110068 | AY73: 0.09022158 | AZ73: 0.01600025 | BA73: 0.01700024 | BB73: 0.01800011 | BC73: 0.13100045 | BD73: 0.02000083 | BE73: 0.02000085 | BF73: 0.02000012 | BG73: 0.02000024 | BI73: 0.001370022667 | BJ73: 0.005747431333 | BK73: 0.009288159 | BL73: 0.01038817533 | BM73: 0.01155485367 | BN73: 0.016521539 | BO73: 0.021554915 | BP73: 0.02288830433 | BQ73: 0.02422167 | BR73: 0.02555501533 | BT73: =+IF($K73="Ongoing",AX73,IF(RIGHT($K73,2)=RIGHT(BT$39,2),SUM($AX73:AX73),0)+IF(RIGHT(BT$39,2)>RIGHT($K73,2),AX73,0)) -> 0.04110068 | BU73: =+IF($K73="Ongoing",AY73,IF(RIGHT($K73,2)=RIGHT(BU$39,2),SUM($AX73:AY73),0)+IF(RIGHT(BU$39,2)>RIGHT($K73,2),AY73,0)) -> 0.09022158 | BV73: =+IF($K73="Ongoing",AZ73,IF(RIGHT($K73,2)=RIGHT(BV$39,2),SUM($AX73:AZ73),0)+IF(RIGHT(BV$39,2)>RIGHT($K73,2),AZ73,0)) -> 0.01600025 | BW73: =+IF($K73="Ongoing",BA73,IF(RIGHT($K73,2)=RIGHT(BW$39,2),SUM($AX73:BA73),0)+IF(RIGHT(BW$39,2)>RIGHT($K73,2),BA73,0)) -> 0.01700024 | BX73: =+IF($K73="Ongoing",BB73,IF(RIGHT($K73,2)=RIGHT(BX$39,2),SUM($AX73:BB73),0)+IF(RIGHT(BX$39,2)>RIGHT($K73,2),BB73,0)) -> 0.01800011 | BY73: =+IF($K73="Ongoing",BC73,IF(RIGHT($K73,2)=RIGHT(BY$39,2),SUM($AX73:BC73),0)+IF(RIGHT(BY$39,2)>RIGHT($K73,2),BC73,0)) -> 0.13100045 | BZ73: =+IF($K73="Ongoing",BD73,IF(RIGHT($K73,2)=RIGHT(BZ$39,2),SUM($AX73:BD73),0)+IF(RIGHT(BZ$39,2)>RIGHT($K73,2),BD73,0)) -> 0.02000083 | CA73: =+IF($K73="Ongoing",BE73,IF(RIGHT($K73,2)=RIGHT(CA$39,2),SUM($AX73:BE73),0)+IF(RIGHT(CA$39,2)>RIGHT($K73,2),BE73,0)) -> 0.02000085 | CB73: =+IF($K73="Ongoing",BF73,IF(RIGHT($K73,2)=RIGHT(CB$39,2),SUM($AX73:BF73),0)+IF(RIGHT(CB$39,2)>RIGHT($K73,2),BF73,0)) -> 0.02000012 | CC73: =+IF($K73="Ongoing",BG73,IF(RIGHT($K73,2)=RIGHT(CC$39,2),SUM($AX73:BG73),0)+IF(RIGHT(CC$39,2)>RIGHT($K73,2),BG73,0)) -> 0.02000024 | CE73: =+Q73*KeyAssumptionsPriceControl_FO!AC$15 -> 0.0423337004 | CF73: =+R73*KeyAssumptionsPriceControl_FO!AD$15 -> 0.09571607422 | CG73: =+S73*KeyAssumptionsPriceControl_FO!AE$15 -> 0.01748390518 | CH73: =+T73*KeyAssumptionsPriceControl_FO!AF$15 -> 0.01913391989 | CI73: =+U73*KeyAssumptionsPriceControl_FO!AG$15 -> 0.02086706086 | CJ73: =+V73*KeyAssumptionsPriceControl_FO!AH$15 -> 0.1564213882 | CK73: =+W73*KeyAssumptionsPriceControl_FO!AI$15 -> 0.0245984981 | CL73: =+X73*KeyAssumptionsPriceControl_FO!AJ$15 -> 0.02533647838 | CM73: =+Y73*KeyAssumptionsPriceControl_FO!AK$15 -> 0.02609562025 | CN73: =+Z73*KeyAssumptionsPriceControl_FO!AL$15 -> 0.02687865013 | CP73: 0.001411123347 | CQ73: 0.006012782501 | CR73: 0.009786115148 | CS73: 0.01100670932 | CT73: 0.01234007534 | CU73: 0.01824969031 | CV73: 0.02428368652 | CW73: 0.02594818573 | CX73: 0.02766258902 | CY73: 0.02942839803
C74: Water Major OH&S Upgrades | E74: Urban Water | F74: Improvements / Compliance | G74: Corporate | H74: Capital Programs / Allocation | J74: Straight line | K74: Ongoing | L74: 25 | M74: 25 | Q74: 0.03 | R74: 0.03 | S74: 0.03 | T74: 0.03 | U74: 0.03 | V74: 0.03 | W74: 0.03 | X74: 0.03 | Y74: 0.03 | Z74: 0.03 | AX74: 0.03 | AY74: 0.03 | AZ74: 0.03 | BA74: 0.03 | BB74: 0.03 | BC74: 0.03 | BD74: 0.03 | BE74: 0.03 | BF74: 0.03 | BG74: 0.03 | BI74: 0.0006 | BJ74: 0.0018 | BK74: 0.003 | BL74: 0.0042 | BM74: 0.0054 | BN74: 0.0066 | BO74: 0.0078 | BP74: 0.009 | BQ74: 0.0102 | BR74: 0.0114 | BT74: =+IF($K74="Ongoing",AX74,IF(RIGHT($K74,2)=RIGHT(BT$39,2),SUM($AX74:AX74),0)+IF(RIGHT(BT$39,2)>RIGHT($K74,2),AX74,0)) -> 0.03 | BU74: =+IF($K74="Ongoing",AY74,IF(RIGHT($K74,2)=RIGHT(BU$39,2),SUM($AX74:AY74),0)+IF(RIGHT(BU$39,2)>RIGHT($K74,2),AY74,0)) -> 0.03 | BV74: =+IF($K74="Ongoing",AZ74,IF(RIGHT($K74,2)=RIGHT(BV$39,2),SUM($AX74:AZ74),0)+IF(RIGHT(BV$39,2)>RIGHT($K74,2),AZ74,0)) -> 0.03 | BW74: =+IF($K74="Ongoing",BA74,IF(RIGHT($K74,2)=RIGHT(BW$39,2),SUM($AX74:BA74),0)+IF(RIGHT(BW$39,2)>RIGHT($K74,2),BA74,0)) -> 0.03 | BX74: =+IF($K74="Ongoing",BB74,IF(RIGHT($K74,2)=RIGHT(BX$39,2),SUM($AX74:BB74),0)+IF(RIGHT(BX$39,2)>RIGHT($K74,2),BB74,0)) -> 0.03 | BY74: =+IF($K74="Ongoing",BC74,IF(RIGHT($K74,2)=RIGHT(BY$39,2),SUM($AX74:BC74),0)+IF(RIGHT(BY$39,2)>RIGHT($K74,2),BC74,0)) -> 0.03 | BZ74: =+IF($K74="Ongoing",BD74,IF(RIGHT($K74,2)=RIGHT(BZ$39,2),SUM($AX74:BD74),0)+IF(RIGHT(BZ$39,2)>RIGHT($K74,2),BD74,0)) -> 0.03 | CA74: =+IF($K74="Ongoing",BE74,IF(RIGHT($K74,2)=RIGHT(CA$39,2),SUM($AX74:BE74),0)+IF(RIGHT(CA$39,2)>RIGHT($K74,2),BE74,0)) -> 0.03 | CB74: =+IF($K74="Ongoing",BF74,IF(RIGHT($K74,2)=RIGHT(CB$39,2),SUM($AX74:BF74),0)+IF(RIGHT(CB$39,2)>RIGHT($K74,2),BF74,0)) -> 0.03 | CC74: =+IF($K74="Ongoing",BG74,IF(RIGHT($K74,2)=RIGHT(CC$39,2),SUM($AX74:BG74),0)+IF(RIGHT(CC$39,2)>RIGHT($K74,2),BG74,0)) -> 0.03 | CE74: =+Q74*KeyAssumptionsPriceControl_FO!AC$15 -> 0.0309 | CF74: =+R74*KeyAssumptionsPriceControl_FO!AD$15 -> 0.031827 | CG74: =+S74*KeyAssumptionsPriceControl_FO!AE$15 -> 0.03278181 | CH74: =+T74*KeyAssumptionsPriceControl_FO!AF$15 -> 0.0337652643 | CI74: =+U74*KeyAssumptionsPriceControl_FO!AG$15 -> 0.03477822223 | CJ74: =+V74*KeyAssumptionsPriceControl_FO!AH$15 -> 0.0358215689 | CK74: =+W74*KeyAssumptionsPriceControl_FO!AI$15 -> 0.03689621596 | CL74: =+X74*KeyAssumptionsPriceControl_FO!AJ$15 -> 0.03800310244 | CM74: =+Y74*KeyAssumptionsPriceControl_FO!AK$15 -> 0.03914319551 | CN74: =+Z74*KeyAssumptionsPriceControl_FO!AL$15 -> 0.04031749138 | CP74: 0.000618 | CQ74: 0.00187254 | CR74: 0.0031647162 | CS74: 0.004495657686 | CT74: 0.005866527417 | CU74: 0.007278523239 | CV74: 0.008732878936 | CW74: 0.0102308653 | CX74: 0.01177379126 | CY74: 0.013363005
C75: Water Cont to Developer Works | E75: Urban Water | F75: Growth | G75: Corporate | H75: Capital Programs / Allocation | J75: Straight line | K75: Ongoing | L75: 50 | M75: 60 | Q75: 0.025 | R75: 0.025 | S75: 0.025 | T75: 0.025 | U75: 0.025 | V75: 0.025 | W75: 0.025 | X75: 0.025 | Y75: 0.025 | Z75: 0.025 | AX75: 0.025 | AY75: 0.025 | AZ75: 0.025 | BA75: 0.025 | BB75: 0.025 | BC75: 0.025 | BD75: 0.025 | BE75: 0.025 | BF75: 0.025 | BG75: 0.025 | BI75: 0.00025 | BJ75: 0.00075 | BK75: 0.00125 | BL75: 0.00175 | BM75: 0.00225 | BN75: 0.00275 | BO75: 0.00325 | BP75: 0.00375 | BQ75: 0.00425 | BR75: 0.00475 | BT75: =+IF($K75="Ongoing",AX75,IF(RIGHT($K75,2)=RIGHT(BT$39,2),SUM($AX75:AX75),0)+IF(RIGHT(BT$39,2)>RIGHT($K75,2),AX75,0)) -> 0.025 | BU75: =+IF($K75="Ongoing",AY75,IF(RIGHT($K75,2)=RIGHT(BU$39,2),SUM($AX75:AY75),0)+IF(RIGHT(BU$39,2)>RIGHT($K75,2),AY75,0)) -> 0.025 | BV75: =+IF($K75="Ongoing",AZ75,IF(RIGHT($K75,2)=RIGHT(BV$39,2),SUM($AX75:AZ75),0)+IF(RIGHT(BV$39,2)>RIGHT($K75,2),AZ75,0)) -> 0.025 | BW75: =+IF($K75="Ongoing",BA75,IF(RIGHT($K75,2)=RIGHT(BW$39,2),SUM($AX75:BA75),0)+IF(RIGHT(BW$39,2)>RIGHT($K75,2),BA75,0)) -> 0.025 | BX75: =+IF($K75="Ongoing",BB75,IF(RIGHT($K75,2)=RIGHT(BX$39,2),SUM($AX75:BB75),0)+IF(RIGHT(BX$39,2)>RIGHT($K75,2),BB75,0)) -> 0.025 | BY75: =+IF($K75="Ongoing",BC75,IF(RIGHT($K75,2)=RIGHT(BY$39,2),SUM($AX75:BC75),0)+IF(RIGHT(BY$39,2)>RIGHT($K75,2),BC75,0)) -> 0.025 | BZ75: =+IF($K75="Ongoing",BD75,IF(RIGHT($K75,2)=RIGHT(BZ$39,2),SUM($AX75:BD75),0)+IF(RIGHT(BZ$39,2)>RIGHT($K75,2),BD75,0)) -> 0.025 | CA75: =+IF($K75="Ongoing",BE75,IF(RIGHT($K75,2)=RIGHT(CA$39,2),SUM($AX75:BE75),0)+IF(RIGHT(CA$39,2)>RIGHT($K75,2),BE75,0)) -> 0.025 | CB75: =+IF($K75="Ongoing",BF75,IF(RIGHT($K75,2)=RIGHT(CB$39,2),SUM($AX75:BF75),0)+IF(RIGHT(CB$39,2)>RIGHT($K75,2),BF75,0)) -> 0.025 | CC75: =+IF($K75="Ongoing",BG75,IF(RIGHT($K75,2)=RIGHT(CC$39,2),SUM($AX75:BG75),0)+IF(RIGHT(CC$39,2)>RIGHT($K75,2),BG75,0)) -> 0.025 | CE75: =+Q75*KeyAssumptionsPriceControl_FO!AC$15 -> 0.02575 | CF75: =+R75*KeyAssumptionsPriceControl_FO!AD$15 -> 0.0265225 | CG75: =+S75*KeyAssumptionsPriceControl_FO!AE$15 -> 0.027318175 | CH75: =+T75*KeyAssumptionsPriceControl_FO!AF$15 -> 0.02813772025 | CI75: =+U75*KeyAssumptionsPriceControl_FO!AG$15 -> 0.02898185186 | CJ75: =+V75*KeyAssumptionsPriceControl_FO!AH$15 -> 0.02985130741 | CK75: =+W75*KeyAssumptionsPriceControl_FO!AI$15 -> 0.03074684664 | CL75: =+X75*KeyAssumptionsPriceControl_FO!AJ$15 -> 0.03166925203 | CM75: =+Y75*KeyAssumptionsPriceControl_FO!AK$15 -> 0.0326193296 | CN75: =+Z75*KeyAssumptionsPriceControl_FO!AL$15 -> 0.03359790948 | CP75: 0.0002145833333 | CQ75: 0.0006501875 | CR75: 0.001098859792 | CS75: 0.001560992252 | CT75: 0.002036988686 | CU75: 0.002527265014 | CV75: 0.003032249631 | CW75: 0.003552383786 | CX75: 0.004088121966 | CY75: 0.004639932292
C76: Domestic and Stock Water Pump Stations Upgrades | E76: Domestic and stock | F76: Improvements / Compliance | G76: Pipelines/network | H76: Capital Programs / Allocation | J76: Straight line | K76: Ongoing | L76: 35 | M76: 40 | Q76: 0.02 | R76: 0.02 | S76: 0.02 | T76: 0.02 | U76: 0.02 | V76: 0.02 | W76: 0.02 | X76: 0.02 | Y76: 0.021 | Z76: 0.02 | AX76: 0.02 | AY76: 0.02 | AZ76: 0.02 | BA76: 0.02 | BB76: 0.02 | BC76: 0.02 | BD76: 0.02 | BE76: 0.02 | BF76: 0.021 | BG76: 0.02 | BI76: 0.0002857142857 | BJ76: 0.0008571428571 | BK76: 0.001428571429 | BL76: 0.002 | BM76: 0.002571428571 | BN76: 0.003142857143 | BO76: 0.003714285714 | BP76: 0.004285714286 | BQ76: 0.004871428571 | BR76: 0.005457142857 | BT76: =+IF($K76="Ongoing",AX76,IF(RIGHT($K76,2)=RIGHT(BT$39,2),SUM($AX76:AX76),0)+IF(RIGHT(BT$39,2)>RIGHT($K76,2),AX76,0)) -> 0.02 | BU76: =+IF($K76="Ongoing",AY76,IF(RIGHT($K76,2)=RIGHT(BU$39,2),SUM($AX76:AY76),0)+IF(RIGHT(BU$39,2)>RIGHT($K76,2),AY76,0)) -> 0.02 | BV76: =+IF($K76="Ongoing",AZ76,IF(RIGHT($K76,2)=RIGHT(BV$39,2),SUM($AX76:AZ76),0)+IF(RIGHT(BV$39,2)>RIGHT($K76,2),AZ76,0)) -> 0.02 | BW76: =+IF($K76="Ongoing",BA76,IF(RIGHT($K76,2)=RIGHT(BW$39,2),SUM($AX76:BA76),0)+IF(RIGHT(BW$39,2)>RIGHT($K76,2),BA76,0)) -> 0.02 | BX76: =+IF($K76="Ongoing",BB76,IF(RIGHT($K76,2)=RIGHT(BX$39,2),SUM($AX76:BB76),0)+IF(RIGHT(BX$39,2)>RIGHT($K76,2),BB76,0)) -> 0.02 | BY76: =+IF($K76="Ongoing",BC76,IF(RIGHT($K76,2)=RIGHT(BY$39,2),SUM($AX76:BC76),0)+IF(RIGHT(BY$39,2)>RIGHT($K76,2),BC76,0)) -> 0.02 | BZ76: =+IF($K76="Ongoing",BD76,IF(RIGHT($K76,2)=RIGHT(BZ$39,2),SUM($AX76:BD76),0)+IF(RIGHT(BZ$39,2)>RIGHT($K76,2),BD76,0)) -> 0.02 | CA76: =+IF($K76="Ongoing",BE76,IF(RIGHT($K76,2)=RIGHT(CA$39,2),SUM($AX76:BE76),0)+IF(RIGHT(CA$39,2)>RIGHT($K76,2),BE76,0)) -> 0.02 | CB76: =+IF($K76="Ongoing",BF76,IF(RIGHT($K76,2)=RIGHT(CB$39,2),SUM($AX76:BF76),0)+IF(RIGHT(CB$39,2)>RIGHT($K76,2),BF76,0)) -> 0.021 | CC76: =+IF($K76="Ongoing",BG76,IF(RIGHT($K76,2)=RIGHT(CC$39,2),SUM($AX76:BG76),0)+IF(RIGHT(CC$39,2)>RIGHT($K76,2),BG76,0)) -> 0.02 | CE76: =+Q76*KeyAssumptionsPriceControl_FO!AC$15 -> 0.0206 | CF76: =+R76*KeyAssumptionsPriceControl_FO!AD$15 -> 0.021218 | CG76: =+S76*KeyAssumptionsPriceControl_FO!AE$15 -> 0.02185454 | CH76: =+T76*KeyAssumptionsPriceControl_FO!AF$15 -> 0.0225101762 | CI76: =+U76*KeyAssumptionsPriceControl_FO!AG$15 -> 0.02318548149 | CJ76: =+V76*KeyAssumptionsPriceControl_FO!AH$15 -> 0.02388104593 | CK76: =+W76*KeyAssumptionsPriceControl_FO!AI$15 -> 0.02459747731 | CL76: =+X76*KeyAssumptionsPriceControl_FO!AJ$15 -> 0.02533540163 | CM76: =+Y76*KeyAssumptionsPriceControl_FO!AK$15 -> 0.02740023686 | CN76: =+Z76*KeyAssumptionsPriceControl_FO!AL$15 -> 0.02687832759 | CP76: 0.0002575 | CQ76: 0.000780225 | CR76: 0.00131863175 | CS76: 0.001873190703 | CT76: 0.002444386424 | CU76: 0.003032718016 | CV76: 0.003638699557 | CW76: 0.004262860543 | CX76: 0.004922056025 | CY76: 0.00560053808
C77: WWTP Instrument - Testing Equipment | E77: Sewerage | F77: Improvements / Compliance | G77: Treatment | H77: Capital Programs / Allocation | J77: Straight line | K77: Ongoing | L77: 25 | M77: 25 | Q77: 0.02 | R77: 0.02 | S77: 0.02 | T77: 0.02 | U77: 0.02 | V77: 0.02 | W77: 0.02 | X77: 0.02 | Y77: 0.02 | Z77: 0.02 | AX77: 0.02 | AY77: 0.02 | AZ77: 0.02 | BA77: 0.02 | BB77: 0.02 | BC77: 0.02 | BD77: 0.02 | BE77: 0.02 | BF77: 0.02 | BG77: 0.02 | BI77: 0.0004 | BJ77: 0.0012 | BK77: 0.002 | BL77: 0.0028 | BM77: 0.0036 | BN77: 0.0044 | BO77: 0.0052 | BP77: 0.006 | BQ77: 0.0068 | BR77: 0.0076 | BT77: =+IF($K77="Ongoing",AX77,IF(RIGHT($K77,2)=RIGHT(BT$39,2),SUM($AX77:AX77),0)+IF(RIGHT(BT$39,2)>RIGHT($K77,2),AX77,0)) -> 0.02 | BU77: =+IF($K77="Ongoing",AY77,IF(RIGHT($K77,2)=RIGHT(BU$39,2),SUM($AX77:AY77),0)+IF(RIGHT(BU$39,2)>RIGHT($K77,2),AY77,0)) -> 0.02 | BV77: =+IF($K77="Ongoing",AZ77,IF(RIGHT($K77,2)=RIGHT(BV$39,2),SUM($AX77:AZ77),0)+IF(RIGHT(BV$39,2)>RIGHT($K77,2),AZ77,0)) -> 0.02 | BW77: =+IF($K77="Ongoing",BA77,IF(RIGHT($K77,2)=RIGHT(BW$39,2),SUM($AX77:BA77),0)+IF(RIGHT(BW$39,2)>RIGHT($K77,2),BA77,0)) -> 0.02 | BX77: =+IF($K77="Ongoing",BB77,IF(RIGHT($K77,2)=RIGHT(BX$39,2),SUM($AX77:BB77),0)+IF(RIGHT(BX$39,2)>RIGHT($K77,2),BB77,0)) -> 0.02 | BY77: =+IF($K77="Ongoing",BC77,IF(RIGHT($K77,2)=RIGHT(BY$39,2),SUM($AX77:BC77),0)+IF(RIGHT(BY$39,2)>RIGHT($K77,2),BC77,0)) -> 0.02 | BZ77: =+IF($K77="Ongoing",BD77,IF(RIGHT($K77,2)=RIGHT(BZ$39,2),SUM($AX77:BD77),0)+IF(RIGHT(BZ$39,2)>RIGHT($K77,2),BD77,0)) -> 0.02 | CA77: =+IF($K77="Ongoing",BE77,IF(RIGHT($K77,2)=RIGHT(CA$39,2),SUM($AX77:BE77),0)+IF(RIGHT(CA$39,2)>RIGHT($K77,2),BE77,0)) -> 0.02 | CB77: =+IF($K77="Ongoing",BF77,IF(RIGHT($K77,2)=RIGHT(CB$39,2),SUM($AX77:BF77),0)+IF(RIGHT(CB$39,2)>RIGHT($K77,2),BF77,0)) -> 0.02 | CC77: =+IF($K77="Ongoing",BG77,IF(RIGHT($K77,2)=RIGHT(CC$39,2),SUM($AX77:BG77),0)+IF(RIGHT(CC$39,2)>RIGHT($K77,2),BG77,0)) -> 0.02 | CE77: =+Q77*KeyAssumptionsPriceControl_FO!AC$15 -> 0.0206 | CF77: =+R77*KeyAssumptionsPriceControl_FO!AD$15 -> 0.021218 | CG77: =+S77*KeyAssumptionsPriceControl_FO!AE$15 -> 0.02185454 | CH77: =+T77*KeyAssumptionsPriceControl_FO!AF$15 -> 0.0225101762 | CI77: =+U77*KeyAssumptionsPriceControl_FO!AG$15 -> 0.02318548149 | CJ77: =+V77*KeyAssumptionsPriceControl_FO!AH$15 -> 0.02388104593 | CK77: =+W77*KeyAssumptionsPriceControl_FO!AI$15 -> 0.02459747731 | CL77: =+X77*KeyAssumptionsPriceControl_FO!AJ$15 -> 0.02533540163 | CM77: =+Y77*KeyAssumptionsPriceControl_FO!AK$15 -> 0.02609546368 | CN77: =+Z77*KeyAssumptionsPriceControl_FO!AL$15 -> 0.02687832759 | CP77: 0.000412 | CQ77: 0.00124836 | CR77: 0.0021098108 | CS77: 0.002997105124 | CT77: 0.003911018278 | CU77: 0.004852348826 | CV77: 0.005821919291 | CW77: 0.00682057687 | CX77: 0.007849194176 | CY77: 0.008908670001
C78: Groundwater Monitoring Bores | E78: Groundwater diversions | F78: Improvements / Compliance | G78: Pipelines/network | H78: Capital Programs / Allocation | J78: Straight line | K78: Ongoing | L78: 15 | M78: 20 | Q78: 0.09000086 | R78: 0 | S78: 0 | T78: 0 | U78: 0 | V78: 0 | W78: 0 | X78: 0 | Y78: 0 | Z78: 0 | AX78: 0.09000086 | AY78: 0 | AZ78: 0 | BA78: 0 | BB78: 0 | BC78: 0 | BD78: 0 | BE78: 0 | BF78: 0 | BG78: 0 | BI78: 0.003000028667 | BJ78: 0.006000057333 | BK78: 0.006000057333 | BL78: 0.006000057333 | BM78: 0.006000057333 | BN78: 0.006000057333 | BO78: 0.006000057333 | BP78: 0.006000057333 | BQ78: 0.006000057333 | BR78: 0.006000057333 | BT78: =+IF($K78="Ongoing",AX78,IF(RIGHT($K78,2)=RIGHT(BT$39,2),SUM($AX78:AX78),0)+IF(RIGHT(BT$39,2)>RIGHT($K78,2),AX78,0)) -> 0.09000086 | BU78: =+IF($K78="Ongoing",AY78,IF(RIGHT($K78,2)=RIGHT(BU$39,2),SUM($AX78:AY78),0)+IF(RIGHT(BU$39,2)>RIGHT($K78,2),AY78,0)) -> 0 | BV78: =+IF($K78="Ongoing",AZ78,IF(RIGHT($K78,2)=RIGHT(BV$39,2),SUM($AX78:AZ78),0)+IF(RIGHT(BV$39,2)>RIGHT($K78,2),AZ78,0)) -> 0 | BW78: =+IF($K78="Ongoing",BA78,IF(RIGHT($K78,2)=RIGHT(BW$39,2),SUM($AX78:BA78),0)+IF(RIGHT(BW$39,2)>RIGHT($K78,2),BA78,0)) -> 0 | BX78: =+IF($K78="Ongoing",BB78,IF(RIGHT($K78,2)=RIGHT(BX$39,2),SUM($AX78:BB78),0)+IF(RIGHT(BX$39,2)>RIGHT($K78,2),BB78,0)) -> 0 | BY78: =+IF($K78="Ongoing",BC78,IF(RIGHT($K78,2)=RIGHT(BY$39,2),SUM($AX78:BC78),0)+IF(RIGHT(BY$39,2)>RIGHT($K78,2),BC78,0)) -> 0 | BZ78: =+IF($K78="Ongoing",BD78,IF(RIGHT($K78,2)=RIGHT(BZ$39,2),SUM($AX78:BD78),0)+IF(RIGHT(BZ$39,2)>RIGHT($K78,2),BD78,0)) -> 0 | CA78: =+IF($K78="Ongoing",BE78,IF(RIGHT($K78,2)=RIGHT(CA$39,2),SUM($AX78:BE78),0)+IF(RIGHT(CA$39,2)>RIGHT($K78,2),BE78,0)) -> 0 | CB78: =+IF($K78="Ongoing",BF78,IF(RIGHT($K78,2)=RIGHT(CB$39,2),SUM($AX78:BF78),0)+IF(RIGHT(CB$39,2)>RIGHT($K78,2),BF78,0)) -> 0 | CC78: =+IF($K78="Ongoing",BG78,IF(RIGHT($K78,2)=RIGHT(CC$39,2),SUM($AX78:BG78),0)+IF(RIGHT(CC$39,2)>RIGHT($K78,2),BG78,0)) -> 0 | CE78: =+Q78*KeyAssumptionsPriceControl_FO!AC$15 -> 0.0927008858 | CF78: =+R78*KeyAssumptionsPriceControl_FO!AD$15 -> 0 | CG78: =+S78*KeyAssumptionsPriceControl_FO!AE$15 -> 0 | CH78: =+T78*KeyAssumptionsPriceControl_FO!AF$15 -> 0 | CI78: =+U78*KeyAssumptionsPriceControl_FO!AG$15 -> 0 | CJ78: =+V78*KeyAssumptionsPriceControl_FO!AH$15 -> 0 | CK78: =+W78*KeyAssumptionsPriceControl_FO!AI$15 -> 0 | CL78: =+X78*KeyAssumptionsPriceControl_FO!AJ$15 -> 0 | CM78: =+Y78*KeyAssumptionsPriceControl_FO!AK$15 -> 0 | CN78: =+Z78*KeyAssumptionsPriceControl_FO!AL$15 -> 0 | CP78: 0.002317522145 | CQ78: 0.00463504429 | CR78: 0.00463504429 | CS78: 0.00463504429 | CT78: 0.00463504429 | CU78: 0.00463504429 | CV78: 0.00463504429 | CW78: 0.00463504429 | CX78: 0.00463504429 | CY78: 0.00463504429
C79: Surface Water Diversion Metering | E79: Surface water diversions | F79: Renewals | G79: Pipelines/network | H79: Capital Programs / Allocation | J79: Straight line | K79: Ongoing | L79: 15 | M79: 15 | Q79: 0.007529 | R79: 0.01233701 | S79: 0.007987 | T79: 0.00822701 | U79: 0.00829 | V79: 0.008538 | W79: 0.008794 | X79: 0.009 | Y79: 0.009 | Z79: 0.009 | AX79: 0.007529 | AY79: 0.01233701 | AZ79: 0.007987 | BA79: 0.00822701 | BB79: 0.00829 | BC79: 0.008538 | BD79: 0.008794 | BE79: 0.009 | BF79: 0.009 | BG79: 0.009 | BI79: 0.0002509666667 | BJ79: 0.000913167 | BK79: 0.001590634 | BL79: 0.002131101 | BM79: 0.002681668 | BN79: 0.003242601333 | BO79: 0.003820334667 | BP79: 0.004413468 | BQ79: 0.005013468 | BR79: 0.005613468 | BT79: =+IF($K79="Ongoing",AX79,IF(RIGHT($K79,2)=RIGHT(BT$39,2),SUM($AX79:AX79),0)+IF(RIGHT(BT$39,2)>RIGHT($K79,2),AX79,0)) -> 0.007529 | BU79: =+IF($K79="Ongoing",AY79,IF(RIGHT($K79,2)=RIGHT(BU$39,2),SUM($AX79:AY79),0)+IF(RIGHT(BU$39,2)>RIGHT($K79,2),AY79,0)) -> 0.01233701 | BV79: =+IF($K79="Ongoing",AZ79,IF(RIGHT($K79,2)=RIGHT(BV$39,2),SUM($AX79:AZ79),0)+IF(RIGHT(BV$39,2)>RIGHT($K79,2),AZ79,0)) -> 0.007987 | BW79: =+IF($K79="Ongoing",BA79,IF(RIGHT($K79,2)=RIGHT(BW$39,2),SUM($AX79:BA79),0)+IF(RIGHT(BW$39,2)>RIGHT($K79,2),BA79,0)) -> 0.00822701 | BX79: =+IF($K79="Ongoing",BB79,IF(RIGHT($K79,2)=RIGHT(BX$39,2),SUM($AX79:BB79),0)+IF(RIGHT(BX$39,2)>RIGHT($K79,2),BB79,0)) -> 0.00829 | BY79: =+IF($K79="Ongoing",BC79,IF(RIGHT($K79,2)=RIGHT(BY$39,2),SUM($AX79:BC79),0)+IF(RIGHT(BY$39,2)>RIGHT($K79,2),BC79,0)) -> 0.008538 | BZ79: =+IF($K79="Ongoing",BD79,IF(RIGHT($K79,2)=RIGHT(BZ$39,2),SUM($AX79:BD79),0)+IF(RIGHT(BZ$39,2)>RIGHT($K79,2),BD79,0)) -> 0.008794 | CA79: =+IF($K79="Ongoing",BE79,IF(RIGHT($K79,2)=RIGHT(CA$39,2),SUM($AX79:BE79),0)+IF(RIGHT(CA$39,2)>RIGHT($K79,2),BE79,0)) -> 0.009 | CB79: =+IF($K79="Ongoing",BF79,IF(RIGHT($K79,2)=RIGHT(CB$39,2),SUM($AX79:BF79),0)+IF(RIGHT(CB$39,2)>RIGHT($K79,2),BF79,0)) -> 0.009 | CC79: =+IF($K79="Ongoing",BG79,IF(RIGHT($K79,2)=RIGHT(CC$39,2),SUM($AX79:BG79),0)+IF(RIGHT(CC$39,2)>RIGHT($K79,2),BG79,0)) -> 0.009 | CE79: =+Q79*KeyAssumptionsPriceControl_FO!AC$15 -> 0.00775487 | CF79: =+R79*KeyAssumptionsPriceControl_FO!AD$15 -> 0.01308833391 | CG79: =+S79*KeyAssumptionsPriceControl_FO!AE$15 -> 0.008727610549 | CH79: =+T79*KeyAssumptionsPriceControl_FO!AF$15 -> 0.009259572235 | CI79: =+U79*KeyAssumptionsPriceControl_FO!AG$15 -> 0.009610382076 | CJ79: =+V79*KeyAssumptionsPriceControl_FO!AH$15 -> 0.01019481851 | CK79: =+W79*KeyAssumptionsPriceControl_FO!AI$15 -> 0.01081551077 | CL79: =+X79*KeyAssumptionsPriceControl_FO!AJ$15 -> 0.01140093073 | CM79: =+Y79*KeyAssumptionsPriceControl_FO!AK$15 -> 0.01174295865 | CN79: =+Z79*KeyAssumptionsPriceControl_FO!AL$15 -> 0.01209524741 | CP79: 0.0002584956667 | CQ79: 0.0009532691303 | CR79: 0.001680467279 | CS79: 0.002280040038 | CT79: 0.002909038515 | CU79: 0.003569211868 | CV79: 0.004269556178 | CW79: 0.005010104228 | CX79: 0.005781567207 | CY79: 0.006576174076
C80: Wastewater System Upgrades | E80: Sewerage | F80: Improvements / Compliance | G80: Treatment | H80: Capital Programs / Allocation | J80: Straight line | K80: Ongoing | L80: 60 | M80: 80 | Q80: 0.60000035 | R80: 0.40000089 | S80: 1.92450087 | T80: 1.00000088 | U80: 0.80000087 | V80: 5.80000088 | W80: 0.30000088 | X80: 0.30000088 | Y80: 0.55050088 | Z80: 0.3005 | AX80: 0.60000035 | AY80: 0.40000089 | AZ80: 1.92450087 | BA80: 1.00000088 | BB80: 0.80000087 | BC80: 5.80000088 | BD80: 0.30000088 | BE80: 0.30000088 | BF80: 0.55050088 | BG80: 0.3005 | BI80: 0.005000002917 | BJ80: 0.01333334658 | BK80: 0.03270419458 | BL80: 0.0570750425 | BM80: 0.07207505708 | BN80: 0.1270750717 | BO80: 0.1779084197 | BP80: 0.1829084343 | BQ80: 0.189995949 | BR80: 0.197087623 | BT80: =+IF($K80="Ongoing",AX80,IF(RIGHT($K80,2)=RIGHT(BT$39,2),SUM($AX80:AX80),0)+IF(RIGHT(BT$39,2)>RIGHT($K80,2),AX80,0)) -> 0.60000035 | BU80: =+IF($K80="Ongoing",AY80,IF(RIGHT($K80,2)=RIGHT(BU$39,2),SUM($AX80:AY80),0)+IF(RIGHT(BU$39,2)>RIGHT($K80,2),AY80,0)) -> 0.40000089 | BV80: =+IF($K80="Ongoing",AZ80,IF(RIGHT($K80,2)=RIGHT(BV$39,2),SUM($AX80:AZ80),0)+IF(RIGHT(BV$39,2)>RIGHT($K80,2),AZ80,0)) -> 1.92450087 | BW80: =+IF($K80="Ongoing",BA80,IF(RIGHT($K80,2)=RIGHT(BW$39,2),SUM($AX80:BA80),0)+IF(RIGHT(BW$39,2)>RIGHT($K80,2),BA80,0)) -> 1.00000088 | BX80: =+IF($K80="Ongoing",BB80,IF(RIGHT($K80,2)=RIGHT(BX$39,2),SUM($AX80:BB80),0)+IF(RIGHT(BX$39,2)>RIGHT($K80,2),BB80,0)) -> 0.80000087 | BY80: =+IF($K80="Ongoing",BC80,IF(RIGHT($K80,2)=RIGHT(BY$39,2),SUM($AX80:BC80),0)+IF(RIGHT(BY$39,2)>RIGHT($K80,2),BC80,0)) -> 5.80000088 | BZ80: =+IF($K80="Ongoing",BD80,IF(RIGHT($K80,2)=RIGHT(BZ$39,2),SUM($AX80:BD80),0)+IF(RIGHT(BZ$39,2)>RIGHT($K80,2),BD80,0)) -> 0.30000088 | CA80: =+IF($K80="Ongoing",BE80,IF(RIGHT($K80,2)=RIGHT(CA$39,2),SUM($AX80:BE80),0)+IF(RIGHT(CA$39,2)>RIGHT($K80,2),BE80,0)) -> 0.30000088 | CB80: =+IF($K80="Ongoing",BF80,IF(RIGHT($K80,2)=RIGHT(CB$39,2),SUM($AX80:BF80),0)+IF(RIGHT(CB$39,2)>RIGHT($K80,2),BF80,0)) -> 0.55050088 | CC80: =+IF($K80="Ongoing",BG80,IF(RIGHT($K80,2)=RIGHT(CC$39,2),SUM($AX80:BG80),0)+IF(RIGHT(CC$39,2)>RIGHT($K80,2),BG80,0)) -> 0.3005 | CE80: =+Q80*KeyAssumptionsPriceControl_FO!AC$15 -> 0.6180003605 | CF80: =+R80*KeyAssumptionsPriceControl_FO!AD$15 -> 0.4243609442 | CG80: =+S80*KeyAssumptionsPriceControl_FO!AE$15 -> 2.102954062 | CH80: =+T80*KeyAssumptionsPriceControl_FO!AF$15 -> 1.1255098 | CI80: =+U80*KeyAssumptionsPriceControl_FO!AG$15 -> 0.927420268 | CJ80: =+V80*KeyAssumptionsPriceControl_FO!AH$15 -> 6.925504371 | CK80: =+W80*KeyAssumptionsPriceControl_FO!AI$15 -> 0.3689632419 | CL80: =+X80*KeyAssumptionsPriceControl_FO!AJ$15 -> 0.3800321392 | CM80: =+Y80*KeyAssumptionsPriceControl_FO!AK$15 -> 0.7182787859 | CN80: =+Z80*KeyAssumptionsPriceControl_FO!AL$15 -> 0.403846872 | CP80: 0.003862502253 | CQ80: 0.01037726041 | CR80: 0.0261729792 | CS80: 0.04635087834 | CT80: 0.05918169127 | CU80: 0.1082624703 | CV80: 0.1538528928 | CW80: 0.158534114 | CX80: 0.1653985573 | CY80: 0.1724118426
AX81: 0 | AY81: 0 | AZ81: 0 | BA81: 0 | BB81: 0 | BC81: 0 | BD81: 0 | BE81: 0 | BF81: 0 | BG81: 0 | BI81: 0 | BJ81: 0 | BK81: 0 | BL81: 0 | BM81: 0 | BN81: 0 | BO81: 0 | BP81: 0 | BQ81: 0 | BR81: 0 | BT81: =+IF($K81="Ongoing",AX81,IF(RIGHT($K81,2)=RIGHT(BT$39,2),SUM($AX81:AX81),0)+IF(RIGHT(BT$39,2)>RIGHT($K81,2),AX81,0)) -> 0 | BU81: =+IF($K81="Ongoing",AY81,IF(RIGHT($K81,2)=RIGHT(BU$39,2),SUM($AX81:AY81),0)+IF(RIGHT(BU$39,2)>RIGHT($K81,2),AY81,0)) -> 0 | BV81: =+IF($K81="Ongoing",AZ81,IF(RIGHT($K81,2)=RIGHT(BV$39,2),SUM($AX81:AZ81),0)+IF(RIGHT(BV$39,2)>RIGHT($K81,2),AZ81,0)) -> 0 | BW81: =+IF($K81="Ongoing",BA81,IF(RIGHT($K81,2)=RIGHT(BW$39,2),SUM($AX81:BA81),0)+IF(RIGHT(BW$39,2)>RIGHT($K81,2),BA81,0)) -> 0 | BX81: =+IF($K81="Ongoing",BB81,IF(RIGHT($K81,2)=RIGHT(BX$39,2),SUM($AX81:BB81),0)+IF(RIGHT(BX$39,2)>RIGHT($K81,2),BB81,0)) -> 0 | BY81: =+IF($K81="Ongoing",BC81,IF(RIGHT($K81,2)=RIGHT(BY$39,2),SUM($AX81:BC81),0)+IF(RIGHT(BY$39,2)>RIGHT($K81,2),BC81,0)) -> 0 | BZ81: =+IF($K81="Ongoing",BD81,IF(RIGHT($K81,2)=RIGHT(BZ$39,2),SUM($AX81:BD81),0)+IF(RIGHT(BZ$39,2)>RIGHT($K81,2),BD81,0)) -> 0 | CA81: =+IF($K81="Ongoing",BE81,IF(RIGHT($K81,2)=RIGHT(CA$39,2),SUM($AX81:BE81),0)+IF(RIGHT(CA$39,2)>RIGHT($K81,2),BE81,0)) -> 0 | CB81: =+IF($K81="Ongoing",BF81,IF(RIGHT($K81,2)=RIGHT(CB$39,2),SUM($AX81:BF81),0)+IF(RIGHT(CB$39,2)>RIGHT($K81,2),BF81,0)) -> 0 | CC81: =+IF($K81="Ongoing",BG81,IF(RIGHT($K81,2)=RIGHT(CC$39,2),SUM($AX81:BG81),0)+IF(RIGHT(CC$39,2)>RIGHT($K81,2),BG81,0)) -> 0 | CE81: =+Q81*KeyAssumptionsPriceControl_FO!AC$15 -> 0 | CF81: =+R81*KeyAssumptionsPriceControl_FO!AD$15 -> 0 | CG81: =+S81*KeyAssumptionsPriceControl_FO!AE$15 -> 0 | CH81: =+T81*KeyAssumptionsPriceControl_FO!AF$15 -> 0 | CI81: =+U81*KeyAssumptionsPriceControl_FO!AG$15 -> 0 | CJ81: =+V81*KeyAssumptionsPriceControl_FO!AH$15 -> 0 | CK81: =+W81*KeyAssumptionsPriceControl_FO!AI$15 -> 0 | CL81: =+X81*KeyAssumptionsPriceControl_FO!AJ$15 -> 0 | CM81: =+Y81*KeyAssumptionsPriceControl_FO!AK$15 -> 0 | CN81: =+Z81*KeyAssumptionsPriceControl_FO!AL$15 -> 0 | CP81: 0 | CQ81: 0 | CR81: 0 | CS81: 0 | CT81: 0 | CU81: 0 | CV81: 0 | CW81: 0 | CX81: 0 | CY81: 0
C82: Water Treatment Plant Major Infr Asset Renewals | E82: Urban Water | F82: Renewals | G82: Treatment | H82: Capital Programs / Allocation | J82: Straight line | K82: Ongoing | L82: 50 | M82: 60 | Q82: 1.24700097 | R82: 2.13400089 | S82: 0.44000073 | T82: 0.35000063 | U82: 0.38000078 | V82: 0.77200046 | W82: 0.63900006 | X82: 0.68100001 | Y82: 0.61200083 | Z82: 0.61200015 | AX82: 1.24700097 | AY82: =+R82-AC82-AN82 -> 2.13400089 | AZ82: 0.44000073 | BA82: 0.35000063 | BB82: 0.38000078 | BC82: 0.77200046 | BD82: 0.63900006 | BE82: 0.68100001 | BF82: 0.61200083 | BG82: 0.61200015 | BI82: 0.0124700097 | BJ82: 0.0462800283 | BK82: 0.0720200445 | BL82: 0.0799200581 | BM82: 0.0872200722 | BN82: 0.0987400846 | BO82: 0.1128500898 | BP82: 0.1260500905 | BQ82: 0.1389800989 | BR82: 0.1512201087 | BT82: =+IF($K82="Ongoing",AX82,IF(RIGHT($K82,2)=RIGHT(BT$39,2),SUM($AX82:AX82),0)+IF(RIGHT(BT$39,2)>RIGHT($K82,2),AX82,0)) -> 1.24700097 | BU82: =+IF($K82="Ongoing",AY82,IF(RIGHT($K82,2)=RIGHT(BU$39,2),SUM($AX82:AY82),0)+IF(RIGHT(BU$39,2)>RIGHT($K82,2),AY82,0)) -> 2.13400089 | BV82: =+IF($K82="Ongoing",AZ82,IF(RIGHT($K82,2)=RIGHT(BV$39,2),SUM($AX82:AZ82),0)+IF(RIGHT(BV$39,2)>RIGHT($K82,2),AZ82,0)) -> 0.44000073 | BW82: =+IF($K82="Ongoing",BA82,IF(RIGHT($K82,2)=RIGHT(BW$39,2),SUM($AX82:BA82),0)+IF(RIGHT(BW$39,2)>RIGHT($K82,2),BA82,0)) -> 0.35000063 | BX82: =+IF($K82="Ongoing",BB82,IF(RIGHT($K82,2)=RIGHT(BX$39,2),SUM($AX82:BB82),0)+IF(RIGHT(BX$39,2)>RIGHT($K82,2),BB82,0)) -> 0.38000078 | BY82: =+IF($K82="Ongoing",BC82,IF(RIGHT($K82,2)=RIGHT(BY$39,2),SUM($AX82:BC82),0)+IF(RIGHT(BY$39,2)>RIGHT($K82,2),BC82,0)) -> 0.77200046 | BZ82: =+IF($K82="Ongoing",BD82,IF(RIGHT($K82,2)=RIGHT(BZ$39,2),SUM($AX82:BD82),0)+IF(RIGHT(BZ$39,2)>RIGHT($K82,2),BD82,0)) -> 0.63900006 | CA82: =+IF($K82="Ongoing",BE82,IF(RIGHT($K82,2)=RIGHT(CA$39,2),SUM($AX82:BE82),0)+IF(RIGHT(CA$39,2)>RIGHT($K82,2),BE82,0)) -> 0.68100001 | CB82: =+IF($K82="Ongoing",BF82,IF(RIGHT($K82,2)=RIGHT(CB$39,2),SUM($AX82:BF82),0)+IF(RIGHT(CB$39,2)>RIGHT($K82,2),BF82,0)) -> 0.61200083 | CC82: =+IF($K82="Ongoing",BG82,IF(RIGHT($K82,2)=RIGHT(CC$39,2),SUM($AX82:BG82),0)+IF(RIGHT(CC$39,2)>RIGHT($K82,2),BG82,0)) -> 0.61200015 | CE82: =+Q82*KeyAssumptionsPriceControl_FO!AC$15 -> 1.284410999 | CF82: =+R82*KeyAssumptionsPriceControl_FO!AD$15 -> 2.263961544 | CG82: =+S82*KeyAssumptionsPriceControl_FO!AE$15 -> 0.4808006777 | CH82: =+T82*KeyAssumptionsPriceControl_FO!AF$15 -> 0.3939287926 | CI82: =+U82*KeyAssumptionsPriceControl_FO!AG$15 -> 0.4405250525 | CJ82: =+V82*KeyAssumptionsPriceControl_FO!AH$15 -> 0.9218089222 | CK82: =+W82*KeyAssumptionsPriceControl_FO!AI$15 -> 0.7858894738 | CL82: =+X82*KeyAssumptionsPriceControl_FO!AJ$15 -> 0.8626704381 | CM82: =+Y82*KeyAssumptionsPriceControl_FO!AK$15 -> 0.7985222715 | CN82: =+Z82*KeyAssumptionsPriceControl_FO!AL$15 -> 0.8224770257 | CP82: 0.01070342499 | CQ82: 0.04027319619 | CR82: 0.0631462147 | CS82: 0.07043562695 | CT82: 0.077389409 | CU82: 0.08874219212 | CV82: 0.1029730121 | CW82: 0.1167110114 | CX82: 0.1305542839 | CY82: 0.1440626114
C83: Urban Water Storages Renewals | E83: Urban Water | F83: Renewals | G83: Headworks | H83: Capital Programs / Allocation | J83: Straight line | K83: Ongoing | L83: 50 | M83: 60 | Q83: 0.408 | R83: 0.47 | S83: 0.63 | T83: 0.15 | U83: 0.5 | V83: 0.05 | W83: 0.1 | X83: 0.3 | Y83: 0.05 | Z83: 0.05 | AX83: =+Q83-AB83-AM83 -> 0.408 | AY83: 0.47 | AZ83: 0.63 | BA83: 0.15 | BB83: 0.5 | BC83: 0.05 | BD83: 0.1 | BE83: 0.3 | BF83: 0.05 | BG83: 0.05 | BI83: 0.00408 | BJ83: 0.01286 | BK83: 0.02386 | BL83: 0.03166 | BM83: 0.03816 | BN83: 0.04366 | BO83: 0.04516 | BP83: 0.04916 | BQ83: 0.05266 | BR83: 0.05366 | BT83: =+IF($K83="Ongoing",AX83,IF(RIGHT($K83,2)=RIGHT(BT$39,2),SUM($AX83:AX83),0)+IF(RIGHT(BT$39,2)>RIGHT($K83,2),AX83,0)) -> 0.408 | BU83: =+IF($K83="Ongoing",AY83,IF(RIGHT($K83,2)=RIGHT(BU$39,2),SUM($AX83:AY83),0)+IF(RIGHT(BU$39,2)>RIGHT($K83,2),AY83,0)) -> 0.47 | BV83: =+IF($K83="Ongoing",AZ83,IF(RIGHT($K83,2)=RIGHT(BV$39,2),SUM($AX83:AZ83),0)+IF(RIGHT(BV$39,2)>RIGHT($K83,2),AZ83,0)) -> 0.63 | BW83: =+IF($K83="Ongoing",BA83,IF(RIGHT($K83,2)=RIGHT(BW$39,2),SUM($AX83:BA83),0)+IF(RIGHT(BW$39,2)>RIGHT($K83,2),BA83,0)) -> 0.15 | BX83: =+IF($K83="Ongoing",BB83,IF(RIGHT($K83,2)=RIGHT(BX$39,2),SUM($AX83:BB83),0)+IF(RIGHT(BX$39,2)>RIGHT($K83,2),BB83,0)) -> 0.5 | BY83: =+IF($K83="Ongoing",BC83,IF(RIGHT($K83,2)=RIGHT(BY$39,2),SUM($AX83:BC83),0)+IF(RIGHT(BY$39,2)>RIGHT($K83,2),BC83,0)) -> 0.05 | BZ83: =+IF($K83="Ongoing",BD83,IF(RIGHT($K83,2)=RIGHT(BZ$39,2),SUM($AX83:BD83),0)+IF(RIGHT(BZ$39,2)>RIGHT($K83,2),BD83,0)) -> 0.1 | CA83: =+IF($K83="Ongoing",BE83,IF(RIGHT($K83,2)=RIGHT(CA$39,2),SUM($AX83:BE83),0)+IF(RIGHT(CA$39,2)>RIGHT($K83,2),BE83,0)) -> 0.3 | CB83: =+IF($K83="Ongoing",BF83,IF(RIGHT($K83,2)=RIGHT(CB$39,2),SUM($AX83:BF83),0)+IF(RIGHT(CB$39,2)>RIGHT($K83,2),BF83,0)) -> 0.05 | CC83: =+IF($K83="Ongoing",BG83,IF(RIGHT($K83,2)=RIGHT(CC$39,2),SUM($AX83:BG83),0)+IF(RIGHT(CC$39,2)>RIGHT($K83,2),BG83,0)) -> 0.05 | CE83: =+Q83*KeyAssumptionsPriceControl_FO!AC$15 -> 0.42024 | CF83: =+R83*KeyAssumptionsPriceControl_FO!AD$15 -> 0.498623 | CG83: =+S83*KeyAssumptionsPriceControl_FO!AE$15 -> 0.68841801 | CH83: =+T83*KeyAssumptionsPriceControl_FO!AF$15 -> 0.1688263215 | CI83: =+U83*KeyAssumptionsPriceControl_FO!AG$15 -> 0.5796370372 | CJ83: =+V83*KeyAssumptionsPriceControl_FO!AH$15 -> 0.05970261483 | CK83: =+W83*KeyAssumptionsPriceControl_FO!AI$15 -> 0.1229873865 | CL83: =+X83*KeyAssumptionsPriceControl_FO!AJ$15 -> 0.3800310244 | CM83: =+Y83*KeyAssumptionsPriceControl_FO!AK$15 -> 0.06523865919 | CN83: =+Z83*KeyAssumptionsPriceControl_FO!AL$15 -> 0.06719581897 | CP83: 0.003502 | CQ83: 0.01115919167 | CR83: 0.02105120008 | CS83: 0.02819490285 | CT83: 0.0344320975 | CU83: 0.03975992793 | CV83: 0.04128234461 | CW83: 0.0454741647 | CX83: 0.0491847454 | CY83: 0.05028836605
C84: Water Storage Tank Renewals | E84: Urban Water | F84: Renewals | G84: Pipelines/network | H84: Capital Programs / Allocation | J84: Straight line | K84: Ongoing | L84: 50 | M84: 60 | Q84: 0.67100101 | R84: 0.4925785 | S84: 0.2860005 | T84: 0.12500001 | U84: 0.08900051 | V84: 0.21000001 | W84: 0.02300001 | X84: 0.52300001 | Y84: 0.41449513 | Z84: 0.21467141 | AX84: 0.67100101 | AY84: 0.4925785 | AZ84: 0.2860005 | BA84: 0.12500001 | BB84: 0.08900051 | BC84: 0.21000001 | BD84: 0.02300001 | BE84: 0.52300001 | BF84: 0.41449513 | BG84: 0.21467141 | BI84: 0.0067100101 | BJ84: 0.0183458052 | BK84: 0.0261315952 | BL84: 0.0302416003 | BM84: 0.0323816055 | BN84: 0.0353716107 | BO84: 0.0377016109 | BP84: 0.0431616111 | BQ84: 0.0525365625 | BR84: 0.0588282279 | BT84: =+IF($K84="Ongoing",AX84,IF(RIGHT($K84,2)=RIGHT(BT$39,2),SUM($AX84:AX84),0)+IF(RIGHT(BT$39,2)>RIGHT($K84,2),AX84,0)) -> 0.67100101 | BU84: =+IF($K84="Ongoing",AY84,IF(RIGHT($K84,2)=RIGHT(BU$39,2),SUM($AX84:AY84),0)+IF(RIGHT(BU$39,2)>RIGHT($K84,2),AY84,0)) -> 0.4925785 | BV84: =+IF($K84="Ongoing",AZ84,IF(RIGHT($K84,2)=RIGHT(BV$39,2),SUM($AX84:AZ84),0)+IF(RIGHT(BV$39,2)>RIGHT($K84,2),AZ84,0)) -> 0.2860005 | BW84: =+IF($K84="Ongoing",BA84,IF(RIGHT($K84,2)=RIGHT(BW$39,2),SUM($AX84:BA84),0)+IF(RIGHT(BW$39,2)>RIGHT($K84,2),BA84,0)) -> 0.12500001 | BX84: =+IF($K84="Ongoing",BB84,IF(RIGHT($K84,2)=RIGHT(BX$39,2),SUM($AX84:BB84),0)+IF(RIGHT(BX$39,2)>RIGHT($K84,2),BB84,0)) -> 0.08900051 | BY84: =+IF($K84="Ongoing",BC84,IF(RIGHT($K84,2)=RIGHT(BY$39,2),SUM($AX84:BC84),0)+IF(RIGHT(BY$39,2)>RIGHT($K84,2),BC84,0)) -> 0.21000001 | BZ84: =+IF($K84="Ongoing",BD84,IF(RIGHT($K84,2)=RIGHT(BZ$39,2),SUM($AX84:BD84),0)+IF(RIGHT(BZ$39,2)>RIGHT($K84,2),BD84,0)) -> 0.02300001 | CA84: =+IF($K84="Ongoing",BE84,IF(RIGHT($K84,2)=RIGHT(CA$39,2),SUM($AX84:BE84),0)+IF(RIGHT(CA$39,2)>RIGHT($K84,2),BE84,0)) -> 0.52300001 | CB84: =+IF($K84="Ongoing",BF84,IF(RIGHT($K84,2)=RIGHT(CB$39,2),SUM($AX84:BF84),0)+IF(RIGHT(CB$39,2)>RIGHT($K84,2),BF84,0)) -> 0.41449513 | CC84: =+IF($K84="Ongoing",BG84,IF(RIGHT($K84,2)=RIGHT(CC$39,2),SUM($AX84:BG84),0)+IF(RIGHT(CC$39,2)>RIGHT($K84,2),BG84,0)) -> 0.21467141 | CE84: =+Q84*KeyAssumptionsPriceControl_FO!AC$15 -> 0.6911310403 | CF84: =+R84*KeyAssumptionsPriceControl_FO!AD$15 -> 0.5225765306 | CG84: =+S84*KeyAssumptionsPriceControl_FO!AE$15 -> 0.3125204684 | CH84: =+T84*KeyAssumptionsPriceControl_FO!AF$15 -> 0.1406886125 | CI84: =+U84*KeyAssumptionsPriceControl_FO!AG$15 -> 0.1031759838 | CJ84: =+V84*KeyAssumptionsPriceControl_FO!AH$15 -> 0.2507509942 | CK84: =+W84*KeyAssumptionsPriceControl_FO!AI$15 -> 0.0282871112 | CL84: =+X84*KeyAssumptionsPriceControl_FO!AJ$15 -> 0.6625207652 | CM84: =+Y84*KeyAssumptionsPriceControl_FO!AK$15 -> 0.5408221305 | CN84: =+Z84*KeyAssumptionsPriceControl_FO!AL$15 -> 0.2885004241 | CP84: 0.005759425336 | CQ84: 0.01587365509 | CR84: 0.02283279675 | CS84: 0.02660953909 | CT84: 0.02864174406 | CU84: 0.03159113555 | CV84: 0.03391645309 | CW84: 0.03967318539 | CX84: 0.04970104286 | CY84: 0.05661206415
C85: Water Bore Renewals | E85: Urban Water | F85: Renewals | G85: Pipelines/network | H85: Capital Programs / Allocation | J85: Straight line | K85: Ongoing | L85: 50 | M85: 60 | Q85: 0.10000071 | R85: 0.15 | S85: 0.25000064 | T85: 0.30000062 | U85: 0.30000079 | V85: 0.30000014 | W85: 0.06328459 | X85: 0.06336716 | Y85: 0.06300082 | Z85: 0.06300061 | AX85: 0.10000071 | AY85: 0.15 | AZ85: 0.25000064 | BA85: 0.30000062 | BB85: 0.30000079 | BC85: 0.30000014 | BD85: 0.06328459 | BE85: 0.06336716 | BF85: 0.06300082 | BG85: 0.06300061 | BI85: =IF($L85=0,0, IF($L85<=0.5,BT85, IF($J85="straight line", IF((LEFT(BI$39,4)*1)-INT($L85)<LEFT($BI$39,4)*1,0,((OFFSET(BT85,0,-INT($L85+0.5),1,1))/$L85)*(IF($L85-INT($L85)>0.5,$L85-0.5-INT($L85),IF($L85-INT($L85)<=0.5,$L85-0.5-INT($L85)+1,0)))) +BT85/$L85*0.5, IF($J85="Declining Balance",-$BI$38,0)))) -> 0.0010000071 | BJ85: =IF($L85=0,0, IF($L85<=0.5,BU85, IF(AND($J85="straight line",$L85<1.51),(BT85-((BT85/$L85)*0.5))+BU85/$L85*0.5, IF($J85="straight line", IF((LEFT(BJ$39,4)*1)-INT($L85)<LEFT($BI$39,4)*1,0,((OFFSET(BU85,0,-INT($L85+0.5),1,1))/$L85)*(IF($L85-INT($L85)>0.5,$L85-0.5-INT($L85),IF($L85-INT($L85)<=0.5,$L85-0.5-INT($L85)+1,0)))) +BU85/$L85*0.5 +SUM(OFFSET(BU85,0,MAX(-INT($L85+(0.5-(10^-12))),-BJ$40)+1,1,MIN(INT($L85+(0.5-(10^-12))),BJ$40)-1))*1/$L85, IF($J85="Declining Balance",-$BI$38,0))))) -> 0.0035000142 | BK85: =IF($L85=0,0, IF($L85<=0.5,BV85, IF(AND($J85="straight line",$L85<1.51),(BU85-((BU85/$L85)*0.5))+BV85/$L85*0.5, IF($J85="straight line", IF((LEFT(BK$39,4)*1)-INT($L85)<LEFT($BI$39,4)*1,0,((OFFSET(BV85,0,-INT($L85+0.5),1,1))/$L85)*(IF($L85-INT($L85)>0.5,$L85-0.5-INT($L85),IF($L85-INT($L85)<=0.5,$L85-0.5-INT($L85)+1,0)))) +BV85/$L85*0.5 +SUM(OFFSET(BV85,0,MAX(-INT($L85+(0.5-(10^-12))),-BK$40)+1,1,MIN(INT($L85+(0.5-(10^-12))),BK$40)-1))*1/$L85, IF($J85="Declining Balance",-$BI$38,0))))) -> 0.0075000206 | BL85: =IF($L85=0,0, IF($L85<=0.5,BW85, IF(AND($J85="straight line",$L85<1.51),(BV85-((BV85/$L85)*0.5))+BW85/$L85*0.5, IF($J85="straight line", IF((LEFT(BL$39,4)*1)-INT($L85)<LEFT($BI$39,4)*1,0,((OFFSET(BW85,0,-INT($L85+0.5),1,1))/$L85)*(IF($L85-INT($L85)>0.5,$L85-0.5-INT($L85),IF($L85-INT($L85)<=0.5,$L85-0.5-INT($L85)+1,0)))) +BW85/$L85*0.5 +SUM(OFFSET(BW85,0,MAX(-INT($L85+(0.5-(10^-12))),-BL$40)+1,1,MIN(INT($L85+(0.5-(10^-12))),BL$40)-1))*1/$L85, IF($J85="Declining Balance",-$BI$38,0))))) -> 0.0130000332 | BM85: =IF($L85=0,0, IF($L85<=0.5,BX85, IF(AND($J85="straight line",$L85<1.51),(BW85-((BW85/$L85)*0.5))+BX85/$L85*0.5, IF($J85="straight line", IF((LEFT(BM$39,4)*1)-INT($L85)<LEFT($BI$39,4)*1,0,((OFFSET(BX85,0,-INT($L85+0.5),1,1))/$L85)*(IF($L85-INT($L85)>0.5,$L85-0.5-INT($L85),IF($L85-INT($L85)<=0.5,$L85-0.5-INT($L85)+1,0)))) +BX85/$L85*0.5 +SUM(OFFSET(BX85,0,MAX(-INT($L85+(0.5-(10^-12))),-BM$40)+1,1,MIN(INT($L85+(0.5-(10^-12))),BM$40)-1))*1/$L85, IF($J85="Declining Balance",-$BI$38,0))))) -> 0.0190000473 | BN85: =IF($L85=0,0, IF($L85<=0.5,BY85, IF(AND($J85="straight line",$L85<1.51),(BX85-((BX85/$L85)*0.5))+BY85/$L85*0.5, IF($J85="straight line", IF((LEFT(BN$39,4)*1)-INT($L85)<LEFT($BI$39,4)*1,0,((OFFSET(BY85,0,-INT($L85+0.5),1,1))/$L85)*(IF($L85-INT($L85)>0.5,$L85-0.5-INT($L85),IF($L85-INT($L85)<=0.5,$L85-0.5-INT($L85)+1,0)))) +BY85/$L85*0.5 +SUM(OFFSET(BY85,0,MAX(-INT($L85+(0.5-(10^-12))),-BN$40)+1,1,MIN(INT($L85+(0.5-(10^-12))),BN$40)-1))*1/$L85, IF($J85="Declining Balance",-$BI$38,0))))) -> 0.0250000566 | BO85: =IF($L85=0,0, IF($L85<=0.5,BZ85, IF(AND($J85="straight line",$L85<1.51),(BY85-((BY85/$L85)*0.5))+BZ85/$L85*0.5, IF($J85="straight line", IF((LEFT(BO$39,4)*1)-INT($L85)<LEFT($BI$39,4)*1,0,((OFFSET(BZ85,0,-INT($L85+0.5),1,1))/$L85)*(IF($L85-INT($L85)>0.5,$L85-0.5-INT($L85),IF($L85-INT($L85)<=0.5,$L85-0.5-INT($L85)+1,0)))) +BZ85/$L85*0.5 +SUM(OFFSET(BZ85,0,MAX(-INT($L85+(0.5-(10^-12))),-BO$40)+1,1,MIN(INT($L85+(0.5-(10^-12))),BO$40)-1))*1/$L85, IF($J85="Declining Balance",-$BI$38,0))))) -> 0.0286329039 | BP85: =IF($L85=0,0, IF($L85<=0.5,CA85, IF(AND($J85="straight line",$L85<1.51),(BZ85-((BZ85/$L85)*0.5))+CA85/$L85*0.5, IF($J85="straight line", IF((LEFT(BP$39,4)*1)-INT($L85)<LEFT($BI$39,4)*1,0,((OFFSET(CA85,0,-INT($L85+0.5),1,1))/$L85)*(IF($L85-INT($L85)>0.5,$L85-0.5-INT($L85),IF($L85-INT($L85)<=0.5,$L85-0.5-INT($L85)+1,0)))) +CA85/$L85*0.5 +SUM(OFFSET(CA85,0,MAX(-INT($L85+(0.5-(10^-12))),-BP$40)+1,1,MIN(INT($L85+(0.5-(10^-12))),BP$40)-1))*1/$L85, IF($J85="Declining Balance",-$BI$38,0))))) -> 0.0298994214 | BQ85: =IF($L85=0,0, IF($L85<=0.5,CB85, IF(AND($J85="straight line",$L85<1.51),(CA85-((CA85/$L85)*0.5))+CB85/$L85*0.5, IF($J85="straight line", IF((LEFT(BQ$39,4)*1)-INT($L85)<LEFT($BI$39,4)*1,0,((OFFSET(CB85,0,-INT($L85+0.5),1,1))/$L85)*(IF($L85-INT($L85)>0.5,$L85-0.5-INT($L85),IF($L85-INT($L85)<=0.5,$L85-0.5-INT($L85)+1,0)))) +CB85/$L85*0.5 +SUM(OFFSET(CB85,0,MAX(-INT($L85+(0.5-(10^-12))),-BQ$40)+1,1,MIN(INT($L85+(0.5-(10^-12))),BQ$40)-1))*1/$L85, IF($J85="Declining Balance",-$BI$38,0))))) -> 0.0311631012 | BR85: =IF($L85=0,0, IF($L85<=0.5,CC85, IF(AND($J85="straight line",$L85<1.51),(CB85-((CB85/$L85)*0.5))+CC85/$L85*0.5, IF($J85="straight line", IF((LEFT(BR$39,4)*1)-INT($L85)<LEFT($BI$39,4)*1,0,((OFFSET(CC85,0,-INT($L85+0.5),1,1))/$L85)*(IF($L85-INT($L85)>0.5,$L85-0.5-INT($L85),IF($L85-INT($L85)<=0.5,$L85-0.5-INT($L85)+1,0)))) +CC85/$L85*0.5 +SUM(OFFSET(CC85,0,MAX(-INT($L85+(0.5-(10^-12))),-BR$40)+1,1,MIN(INT($L85+(0.5-(10^-12))),BR$40)-1))*1/$L85, IF($J85="Declining Balance",-$BI$38,0))))) -> 0.0324231155 | BT85: =+IF($K85="Ongoing",AX85,IF(RIGHT($K85,2)=RIGHT(BT$39,2),SUM($AX85:AX85),0)+IF(RIGHT(BT$39,2)>RIGHT($K85,2),AX85,0)) -> 0.10000071 | BU85: =+IF($K85="Ongoing",AY85,IF(RIGHT($K85,2)=RIGHT(BU$39,2),SUM($AX85:AY85),0)+IF(RIGHT(BU$39,2)>RIGHT($K85,2),AY85,0)) -> 0.15 | BV85: =+IF($K85="Ongoing",AZ85,IF(RIGHT($K85,2)=RIGHT(BV$39,2),SUM($AX85:AZ85),0)+IF(RIGHT(BV$39,2)>RIGHT($K85,2),AZ85,0)) -> 0.25000064 | BW85: =+IF($K85="Ongoing",BA85,IF(RIGHT($K85,2)=RIGHT(BW$39,2),SUM($AX85:BA85),0)+IF(RIGHT(BW$39,2)>RIGHT($K85,2),BA85,0)) -> 0.30000062 | BX85: =+IF($K85="Ongoing",BB85,IF(RIGHT($K85,2)=RIGHT(BX$39,2),SUM($AX85:BB85),0)+IF(RIGHT(BX$39,2)>RIGHT($K85,2),BB85,0)) -> 0.30000079 | BY85: =+IF($K85="Ongoing",BC85,IF(RIGHT($K85,2)=RIGHT(BY$39,2),SUM($AX85:BC85),0)+IF(RIGHT(BY$39,2)>RIGHT($K85,2),BC85,0)) -> 0.30000014 | BZ85: =+IF($K85="Ongoing",BD85,IF(RIGHT($K85,2)=RIGHT(BZ$39,2),SUM($AX85:BD85),0)+IF(RIGHT(BZ$39,2)>RIGHT($K85,2),BD85,0)) -> 0.06328459 | CA85: =+IF($K85="Ongoing",BE85,IF(RIGHT($K85,2)=RIGHT(CA$39,2),SUM($AX85:BE85),0)+IF(RIGHT(CA$39,2)>RIGHT($K85,2),BE85,0)) -> 0.06336716 | CB85: =+IF($K85="Ongoing",BF85,IF(RIGHT($K85,2)=RIGHT(CB$39,2),SUM($AX85:BF85),0)+IF(RIGHT(CB$39,2)>RIGHT($K85,2),BF85,0)) -> 0.06300082 | CC85: =+IF($K85="Ongoing",BG85,IF(RIGHT($K85,2)=RIGHT(CC$39,2),SUM($AX85:BG85),0)+IF(RIGHT(CC$39,2)>RIGHT($K85,2),BG85,0)) -> 0.06300061 | CE85: =+Q85*KeyAssumptionsPriceControl_FO!AC$15 -> 0.1030007313 | CF85: =+R85*KeyAssumptionsPriceControl_FO!AD$15 -> 0.159135 | CG85: =+S85*KeyAssumptionsPriceControl_FO!AE$15 -> 0.2731824493 | CH85: =+T85*KeyAssumptionsPriceControl_FO!AF$15 -> 0.3376533408 | CI85: =+U85*KeyAssumptionsPriceControl_FO!AG$15 -> 0.3477831381 | CJ85: =+V85*KeyAssumptionsPriceControl_FO!AH$15 -> 0.3582158561 | CK85: =+W85*KeyAssumptionsPriceControl_FO!AI$15 -> 0.07783206333 | CL85: =+X85*KeyAssumptionsPriceControl_FO!AJ$15 -> 0.08027162243 | CM85: =+Y85*KeyAssumptionsPriceControl_FO!AK$15 -> 0.0822017805 | CN85: =+Z85*KeyAssumptionsPriceControl_FO!AL$15 -> 0.08466755169 | CP85: =IF($M85=0,0, IF($M85<=0.5,CE85, IF($J85="straight line", IF((LEFT(CP$39,4)*1)-INT($M85)<LEFT($CP$39,4)*1,0,((OFFSET(CE85,0,-INT($M85+0.5),1,1))/$M85)*(IF($M85-INT($M85)>0.5,$M85-0.5-INT($M85),IF($M85-INT($M85)<=0.5,$M85-0.5-INT($M85)+1,0)))) +CE85/$M85*0.5, IF($J85="Declining Balance",-$CP$38,0)))) -> 0.0008583394275 | CQ85: =IF($M85=0,0, IF($M85<=0.5,CF85, IF(AND($J85="straight line",$M85<1.51),(CE85-((CE85/$M85)*0.5))+CF85/$M85*0.5, IF($J85="straight line", IF((LEFT(CQ$39,4)*1)-INT($M85)<LEFT($CP$39,4)*1,0,((OFFSET(CF85,0,-INT($M85+0.5),1,1))/$M85)*(IF($M85-INT($M85)>0.5,$M85-0.5-INT($M85),IF($M85-INT($M85)<=0.5,$M85-0.5-INT($M85)+1,0)))) +CF85/$M85*0.5 +SUM(OFFSET(CF85,0,MAX(-INT($M85+(0.5-(10^-12))),-CQ$40)+1,1,MIN(INT($M85+(0.5-(10^-12))),CQ$40)-1))*1/$M85, IF($J85="Declining Balance",-$CP$38,0))))) -> 0.003042803855 | CR85: =IF($M85=0,0, IF($M85<=0.5,CG85, IF(AND($J85="straight line",$M85<1.51),(CF85-((CF85/$M85)*0.5))+CG85/$M85*0.5, IF($J85="straight line", IF((LEFT(CR$39,4)*1)-INT($M85)<LEFT($CP$39,4)*1,0,((OFFSET(CG85,0,-INT($M85+0.5),1,1))/$M85)*(IF($M85-INT($M85)>0.5,$M85-0.5-INT($M85),IF($M85-INT($M85)<=0.5,$M85-0.5-INT($M85)+1,0)))) +CG85/$M85*0.5 +SUM(OFFSET(CG85,0,MAX(-INT($M85+(0.5-(10^-12))),-CR$40)+1,1,MIN(INT($M85+(0.5-(10^-12))),CR$40)-1))*1/$M85, IF($J85="Declining Balance",-$CP$38,0))))) -> 0.006645449266 | CS85: =IF($M85=0,0, IF($M85<=0.5,CH85, IF(AND($J85="straight line",$M85<1.51),(CG85-((CG85/$M85)*0.5))+CH85/$M85*0.5, IF($J85="straight line", IF((LEFT(CS$39,4)*1)-INT($M85)<LEFT($CP$39,4)*1,0,((OFFSET(CH85,0,-INT($M85+0.5),1,1))/$M85)*(IF($M85-INT($M85)>0.5,$M85-0.5-INT($M85),IF($M85-INT($M85)<=0.5,$M85-0.5-INT($M85)+1,0)))) +CH85/$M85*0.5 +SUM(OFFSET(CH85,0,MAX(-INT($M85+(0.5-(10^-12))),-CS$40)+1,1,MIN(INT($M85+(0.5-(10^-12))),CS$40)-1))*1/$M85, IF($J85="Declining Balance",-$CP$38,0))))) -> 0.01173574752 | CT85: =IF($M85=0,0, IF($M85<=0.5,CI85, IF(AND($J85="straight line",$M85<1.51),(CH85-((CH85/$M85)*0.5))+CI85/$M85*0.5, IF($J85="straight line", IF((LEFT(CT$39,4)*1)-INT($M85)<LEFT($CP$39,4)*1,0,((OFFSET(CI85,0,-INT($M85+0.5),1,1))/$M85)*(IF($M85-INT($M85)>0.5,$M85-0.5-INT($M85),IF($M85-INT($M85)<=0.5,$M85-0.5-INT($M85)+1,0)))) +CI85/$M85*0.5 +SUM(OFFSET(CI85,0,MAX(-INT($M85+(0.5-(10^-12))),-CT$40)+1,1,MIN(INT($M85+(0.5-(10^-12))),CT$40)-1))*1/$M85, IF($J85="Declining Balance",-$CP$38,0))))) -> 0.01744771818 | CU85: =IF($M85=0,0, IF($M85<=0.5,CJ85, IF(AND($J85="straight line",$M85<1.51),(CI85-((CI85/$M85)*0.5))+CJ85/$M85*0.5, IF($J85="straight line", IF((LEFT(CU$39,4)*1)-INT($M85)<LEFT($CP$39,4)*1,0,((OFFSET(CJ85,0,-INT($M85+0.5),1,1))/$M85)*(IF($M85-INT($M85)>0.5,$M85-0.5-INT($M85),IF($M85-INT($M85)<=0.5,$M85-0.5-INT($M85)+1,0)))) +CJ85/$M85*0.5 +SUM(OFFSET(CJ85,0,MAX(-INT($M85+(0.5-(10^-12))),-CU$40)+1,1,MIN(INT($M85+(0.5-(10^-12))),CU$40)-1))*1/$M85, IF($J85="Declining Balance",-$CP$38,0))))) -> 0.02333104313 | CV85: =IF($M85=0,0, IF($M85<=0.5,CK85, IF(AND($J85="straight line",$M85<1.51),(CJ85-((CJ85/$M85)*0.5))+CK85/$M85*0.5, IF($J85="straight line", IF((LEFT(CV$39,4)*1)-INT($M85)<LEFT($CP$39,4)*1,0,((OFFSET(CK85,0,-INT($M85+0.5),1,1))/$M85)*(IF($M85-INT($M85)>0.5,$M85-0.5-INT($M85),IF($M85-INT($M85)<=0.5,$M85-0.5-INT($M85)+1,0)))) +CK85/$M85*0.5 +SUM(OFFSET(CK85,0,MAX(-INT($M85+(0.5-(10^-12))),-CV$40)+1,1,MIN(INT($M85+(0.5-(10^-12))),CV$40)-1))*1/$M85, IF($J85="Declining Balance",-$CP$38,0))))) -> 0.02696477579 | CW85: =IF($M85=0,0, IF($M85<=0.5,CL85, IF(AND($J85="straight line",$M85<1.51),(CK85-((CK85/$M85)*0.5))+CL85/$M85*0.5, IF($J85="straight line", IF((LEFT(CW$39,4)*1)-INT($M85)<LEFT($CP$39,4)*1,0,((OFFSET(CL85,0,-INT($M85+0.5),1,1))/$M85)*(IF($M85-INT($M85)>0.5,$M85-0.5-INT($M85),IF($M85-INT($M85)<=0.5,$M85-0.5-INT($M85)+1,0)))) +CL85/$M85*0.5 +SUM(OFFSET(CL85,0,MAX(-INT($M85+(0.5-(10^-12))),-CW$40)+1,1,MIN(INT($M85+(0.5-(10^-12))),CW$40)-1))*1/$M85, IF($J85="Declining Balance",-$CP$38,0))))) -> 0.0282823065 | CX85: =IF($M85=0,0, IF($M85<=0.5,CM85, IF(AND($J85="straight line",$M85<1.51),(CL85-((CL85/$M85)*0.5))+CM85/$M85*0.5, IF($J85="straight line", IF((LEFT(CX$39,4)*1)-INT($M85)<LEFT($CP$39,4)*1,0,((OFFSET(CM85,0,-INT($M85+0.5),1,1))/$M85)*(IF($M85-INT($M85)>0.5,$M85-0.5-INT($M85),IF($M85-INT($M85)<=0.5,$M85-0.5-INT($M85)+1,0)))) +CM85/$M85*0.5 +SUM(OFFSET(CM85,0,MAX(-INT($M85+(0.5-(10^-12))),-CX$40)+1,1,MIN(INT($M85+(0.5-(10^-12))),CX$40)-1))*1/$M85, IF($J85="Declining Balance",-$CP$38,0))))) -> 0.02963625153 | CY85: =IF($M85=0,0, IF($M85<=0.5,CN85, IF(AND($J85="straight line",$M85<1.51),(CM85-((CM85/$M85)*0.5))+CN85/$M85*0.5, IF($J85="straight line", IF((LEFT(CY$39,4)*1)-INT($M85)<LEFT($CP$39,4)*1,0,((OFFSET(CN85,0,-INT($M85+0.5),1,1))/$M85)*(IF($M85-INT($M85)>0.5,$M85-0.5-INT($M85),IF($M85-INT($M85)<=0.5,$M85-0.5-INT($M85)+1,0)))) +CN85/$M85*0.5 +SUM(OFFSET(CN85,0,MAX(-INT($M85+(0.5-(10^-12))),-CY$40)+1,1,MIN(INT($M85+(0.5-(10^-12))),CY$40)-1))*1/$M85, IF($J85="Declining Balance",-$CP$38,0))))) -> 0.0310268293
C86: Water Pump Station Asset Renewals | E86: Urban Water | F86: Renewals | G86: Pipelines/network | H86: Capital Programs / Allocation | J86: Straight line | K86: Ongoing | L86: 35 | M86: 40 | Q86: 0.18504065 | R86: 0.31021729 | S86: 0.08072451 | T86: 0.08004448 | U86: 0.08000223 | V86: 0.0800969 | W86: 0.08002766 | X86: 0.08009372 | Y86: 0.08019422 | Z86: 0.08002851 | AX86: 0.18504065 | AY86: 0.31021729 | AZ86: 0.08072451 | BA86: 0.08004448 | BB86: 0.08000223 | BC86: 0.0800969 | BD86: 0.08002766 | BE86: 0.08009372 | BF86: 0.08019422 | BG86: 0.08002851 | BI86: 0.002643437857 | BJ86: 0.009718551286 | BK86: 0.01530343414 | BL86: 0.017600134 | BM86: 0.01988651557 | BN86: 0.022173646 | BO86: 0.02446113971 | BP86: 0.026748588 | BQ86: 0.02903841571 | BR86: 0.03132731186 | BT86: =+IF($K86="Ongoing",AX86,IF(RIGHT($K86,2)=RIGHT(BT$39,2),SUM($AX86:AX86),0)+IF(RIGHT(BT$39,2)>RIGHT($K86,2),AX86,0)) -> 0.18504065 | BU86: =+IF($K86="Ongoing",AY86,IF(RIGHT($K86,2)=RIGHT(BU$39,2),SUM($AX86:AY86),0)+IF(RIGHT(BU$39,2)>RIGHT($K86,2),AY86,0)) -> 0.31021729 | BV86: =+IF($K86="Ongoing",AZ86,IF(RIGHT($K86,2)=RIGHT(BV$39,2),SUM($AX86:AZ86),0)+IF(RIGHT(BV$39,2)>RIGHT($K86,2),AZ86,0)) -> 0.08072451 | BW86: =+IF($K86="Ongoing",BA86,IF(RIGHT($K86,2)=RIGHT(BW$39,2),SUM($AX86:BA86),0)+IF(RIGHT(BW$39,2)>RIGHT($K86,2),BA86,0)) -> 0.08004448 | BX86: =+IF($K86="Ongoing",BB86,IF(RIGHT($K86,2)=RIGHT(BX$39,2),SUM($AX86:BB86),0)+IF(RIGHT(BX$39,2)>RIGHT($K86,2),BB86,0)) -> 0.08000223 | BY86: =+IF($K86="Ongoing",BC86,IF(RIGHT($K86,2)=RIGHT(BY$39,2),SUM($AX86:BC86),0)+IF(RIGHT(BY$39,2)>RIGHT($K86,2),BC86,0)) -> 0.0800969 | BZ86: =+IF($K86="Ongoing",BD86,IF(RIGHT($K86,2)=RIGHT(BZ$39,2),SUM($AX86:BD86),0)+IF(RIGHT(BZ$39,2)>RIGHT($K86,2),BD86,0)) -> 0.08002766 | CA86: =+IF($K86="Ongoing",BE86,IF(RIGHT($K86,2)=RIGHT(CA$39,2),SUM($AX86:BE86),0)+IF(RIGHT(CA$39,2)>RIGHT($K86,2),BE86,0)) -> 0.08009372 | CB86: =+IF($K86="Ongoing",BF86,IF(RIGHT($K86,2)=RIGHT(CB$39,2),SUM($AX86:BF86),0)+IF(RIGHT(CB$39,2)>RIGHT($K86,2),BF86,0)) -> 0.08019422 | CC86: =+IF($K86="Ongoing",BG86,IF(RIGHT($K86,2)=RIGHT(CC$39,2),SUM($AX86:BG86),0)+IF(RIGHT(CC$39,2)>RIGHT($K86,2),BG86,0)) -> 0.08002851 | CE86: =+Q86*KeyAssumptionsPriceControl_FO!AC$15 -> 0.1905918695 | CF86: =+R86*KeyAssumptionsPriceControl_FO!AD$15 -> 0.329109523 | CG86: =+S86*KeyAssumptionsPriceControl_FO!AE$15 -> 0.08820985164 | CH86: =+T86*KeyAssumptionsPriceControl_FO!AF$15 -> 0.09009076743 | CI86: =+U86*KeyAssumptionsPriceControl_FO!AG$15 -> 0.09274451113 | CJ86: =+V86*KeyAssumptionsPriceControl_FO!AH$15 -> 0.09563988739 | CK86: =+W86*KeyAssumptionsPriceControl_FO!AI$15 -> 0.09842392755 | CL86: =+X86*KeyAssumptionsPriceControl_FO!AJ$15 -> 0.1014603282 | CM86: =+Y86*KeyAssumptionsPriceControl_FO!AK$15 -> 0.1046352678 | CN86: =+Z86*KeyAssumptionsPriceControl_FO!AL$15 -> 0.1075516254 | CP86: 0.002382398369 | CQ86: 0.008878665775 | CR86: 0.01409515796 | CS86: 0.0163239157 | CT86: 0.01860935668 | CU86: 0.02096416166 | CV86: 0.02338995935 | CW86: 0.02588851254 | CX86: 0.02846470749 | CY86: 0.03111704366
C87: Domestic Water Meter Replacements | E87: Urban Water | F87: Renewals | G87: Pipelines/network | H87: Capital Programs / Allocation | J87: Straight line | K87: Ongoing | L87: 15 | M87: 15 | Q87: 0.06 | R87: 0.06 | S87: 0.06 | T87: 0.06 | U87: 0.06 | V87: 0.06 | W87: 0.06 | X87: 0.06 | Y87: 0.06 | Z87: 0.06 | AX87: 0.06 | AY87: 0.06 | AZ87: 0.06 | BA87: 0.06 | BB87: 0.06 | BC87: 0.06 | BD87: 0.06 | BE87: 0.06 | BF87: 0.06 | BG87: 0.06 | BI87: 0.002 | BJ87: 0.006 | BK87: 0.01 | BL87: 0.014 | BM87: 0.018 | BN87: 0.022 | BO87: 0.026 | BP87: 0.03 | BQ87: 0.034 | BR87: 0.038 | BT87: =+IF($K87="Ongoing",AX87,IF(RIGHT($K87,2)=RIGHT(BT$39,2),SUM($AX87:AX87),0)+IF(RIGHT(BT$39,2)>RIGHT($K87,2),AX87,0)) -> 0.06 | BU87: =+IF($K87="Ongoing",AY87,IF(RIGHT($K87,2)=RIGHT(BU$39,2),SUM($AX87:AY87),0)+IF(RIGHT(BU$39,2)>RIGHT($K87,2),AY87,0)) -> 0.06 | BV87: =+IF($K87="Ongoing",AZ87,IF(RIGHT($K87,2)=RIGHT(BV$39,2),SUM($AX87:AZ87),0)+IF(RIGHT(BV$39,2)>RIGHT($K87,2),AZ87,0)) -> 0.06 | BW87: =+IF($K87="Ongoing",BA87,IF(RIGHT($K87,2)=RIGHT(BW$39,2),SUM($AX87:BA87),0)+IF(RIGHT(BW$39,2)>RIGHT($K87,2),BA87,0)) -> 0.06 | BX87: =+IF($K87="Ongoing",BB87,IF(RIGHT($K87,2)=RIGHT(BX$39,2),SUM($AX87:BB87),0)+IF(RIGHT(BX$39,2)>RIGHT($K87,2),BB87,0)) -> 0.06 | BY87: =+IF($K87="Ongoing",BC87,IF(RIGHT($K87,2)=RIGHT(BY$39,2),SUM($AX87:BC87),0)+IF(RIGHT(BY$39,2)>RIGHT($K87,2),BC87,0)) -> 0.06 | BZ87: =+IF($K87="Ongoing",BD87,IF(RIGHT($K87,2)=RIGHT(BZ$39,2),SUM($AX87:BD87),0)+IF(RIGHT(BZ$39,2)>RIGHT($K87,2),BD87,0)) -> 0.06 | CA87: =+IF($K87="Ongoing",BE87,IF(RIGHT($K87,2)=RIGHT(CA$39,2),SUM($AX87:BE87),0)+IF(RIGHT(CA$39,2)>RIGHT($K87,2),BE87,0)) -> 0.06 | CB87: =+IF($K87="Ongoing",BF87,IF(RIGHT($K87,2)=RIGHT(CB$39,2),SUM($AX87:BF87),0)+IF(RIGHT(CB$39,2)>RIGHT($K87,2),BF87,0)) -> 0.06 | CC87: =+IF($K87="Ongoing",BG87,IF(RIGHT($K87,2)=RIGHT(CC$39,2),SUM($AX87:BG87),0)+IF(RIGHT(CC$39,2)>RIGHT($K87,2),BG87,0)) -> 0.06 | CE87: =+Q87*KeyAssumptionsPriceControl_FO!AC$15 -> 0.0618 | CF87: =+R87*KeyAssumptionsPriceControl_FO!AD$15 -> 0.063654 | CG87: =+S87*KeyAssumptionsPriceControl_FO!AE$15 -> 0.06556362 | CH87: =+T87*KeyAssumptionsPriceControl_FO!AF$15 -> 0.0675305286 | CI87: =+U87*KeyAssumptionsPriceControl_FO!AG$15 -> 0.06955644446 | CJ87: =+V87*KeyAssumptionsPriceControl_FO!AH$15 -> 0.07164313779 | CK87: =+W87*KeyAssumptionsPriceControl_FO!AI$15 -> 0.07379243193 | CL87: =+X87*KeyAssumptionsPriceControl_FO!AJ$15 -> 0.07600620488 | CM87: =+Y87*KeyAssumptionsPriceControl_FO!AK$15 -> 0.07828639103 | CN87: =+Z87*KeyAssumptionsPriceControl_FO!AL$15 -> 0.08063498276 | CP87: 0.00206 | CQ87: 0.0062418 | CR87: 0.010549054 | CS87: 0.01498552562 | CT87: 0.01955509139 | CU87: 0.02426174413 | CV87: 0.02910959645 | CW87: 0.03410288435 | CX87: 0.03924597088 | CY87: 0.04454335
C88: Plant & Equipment | E88: Urban Water | F88: Renewals | G88: Corporate | H88: Capital Programs / Allocation | J88: Straight line | K88: Ongoing | L88: 20 | M88: 25 | Q88: 0.035 | R88: 0.035 | S88: 0.035 | T88: 0.035 | U88: 0.035 | V88: 0.035 | W88: 0.035 | X88: 0.035 | Y88: 0.035 | Z88: 0.035 | AX88: 0.035 | AY88: 0.035 | AZ88: 0.035 | BA88: 0.035 | BB88: 0.035 | BC88: 0.035 | BD88: 0.035 | BE88: 0.035 | BF88: 0.035 | BG88: 0.035 | BI88: 0.000875 | BJ88: 0.002625 | BK88: 0.004375 | BL88: 0.006125 | BM88: 0.007875 | BN88: 0.009625 | BO88: 0.011375 | BP88: 0.013125 | BQ88: 0.014875 | BR88: 0.016625 | BT88: =+IF($K88="Ongoing",AX88,IF(RIGHT($K88,2)=RIGHT(BT$39,2),SUM($AX88:AX88),0)+IF(RIGHT(BT$39,2)>RIGHT($K88,2),AX88,0)) -> 0.035 | BU88: =+IF($K88="Ongoing",AY88,IF(RIGHT($K88,2)=RIGHT(BU$39,2),SUM($AX88:AY88),0)+IF(RIGHT(BU$39,2)>RIGHT($K88,2),AY88,0)) -> 0.035 | BV88: =+IF($K88="Ongoing",AZ88,IF(RIGHT($K88,2)=RIGHT(BV$39,2),SUM($AX88:AZ88),0)+IF(RIGHT(BV$39,2)>RIGHT($K88,2),AZ88,0)) -> 0.035 | BW88: =+IF($K88="Ongoing",BA88,IF(RIGHT($K88,2)=RIGHT(BW$39,2),SUM($AX88:BA88),0)+IF(RIGHT(BW$39,2)>RIGHT($K88,2),BA88,0)) -> 0.035 | BX88: =+IF($K88="Ongoing",BB88,IF(RIGHT($K88,2)=RIGHT(BX$39,2),SUM($AX88:BB88),0)+IF(RIGHT(BX$39,2)>RIGHT($K88,2),BB88,0)) -> 0.035 | BY88: =+IF($K88="Ongoing",BC88,IF(RIGHT($K88,2)=RIGHT(BY$39,2),SUM($AX88:BC88),0)+IF(RIGHT(BY$39,2)>RIGHT($K88,2),BC88,0)) -> 0.035 | BZ88: =+IF($K88="Ongoing",BD88,IF(RIGHT($K88,2)=RIGHT(BZ$39,2),SUM($AX88:BD88),0)+IF(RIGHT(BZ$39,2)>RIGHT($K88,2),BD88,0)) -> 0.035 | CA88: =+IF($K88="Ongoing",BE88,IF(RIGHT($K88,2)=RIGHT(CA$39,2),SUM($AX88:BE88),0)+IF(RIGHT(CA$39,2)>RIGHT($K88,2),BE88,0)) -> 0.035 | CB88: =+IF($K88="Ongoing",BF88,IF(RIGHT($K88,2)=RIGHT(CB$39,2),SUM($AX88:BF88),0)+IF(RIGHT(CB$39,2)>RIGHT($K88,2),BF88,0)) -> 0.035 | CC88: =+IF($K88="Ongoing",BG88,IF(RIGHT($K88,2)=RIGHT(CC$39,2),SUM($AX88:BG88),0)+IF(RIGHT(CC$39,2)>RIGHT($K88,2),BG88,0)) -> 0.035 | CE88: =+Q88*KeyAssumptionsPriceControl_FO!AC$15 -> 0.03605 | CF88: =+R88*KeyAssumptionsPriceControl_FO!AD$15 -> 0.0371315 | CG88: =+S88*KeyAssumptionsPriceControl_FO!AE$15 -> 0.038245445 | CH88: =+T88*KeyAssumptionsPriceControl_FO!AF$15 -> 0.03939280835 | CI88: =+U88*KeyAssumptionsPriceControl_FO!AG$15 -> 0.0405745926 | CJ88: =+V88*KeyAssumptionsPriceControl_FO!AH$15 -> 0.04179183038 | CK88: =+W88*KeyAssumptionsPriceControl_FO!AI$15 -> 0.04304558529 | CL88: =+X88*KeyAssumptionsPriceControl_FO!AJ$15 -> 0.04433695285 | CM88: =+Y88*KeyAssumptionsPriceControl_FO!AK$15 -> 0.04566706143 | CN88: =+Z88*KeyAssumptionsPriceControl_FO!AL$15 -> 0.04703707328 | CP88: 0.000721 | CQ88: 0.00218463 | CR88: 0.0036921689 | CS88: 0.005244933967 | CT88: 0.006844281986 | CU88: 0.008491610446 | CV88: 0.01018835876 | CW88: 0.01193600952 | CX88: 0.01373608981 | CY88: 0.0155901725
C89: Bulk Water Meter Replacements | E89: Urban Water | F89: Renewals | G89: Pipelines/network | H89: Capital Programs / Allocation | J89: Straight line | K89: Ongoing | L89: 25 | M89: 25 | Q89: 0.092 | R89: 0.02 | S89: 0.02 | T89: 0.02 | U89: 0.02 | V89: 0.02 | W89: 0.02 | X89: 0.02 | Y89: 0.02 | Z89: 0.02 | AX89: 0.092 | AY89: 0.02 | AZ89: 0.02 | BA89: 0.02 | BB89: 0.02 | BC89: 0.02 | BD89: 0.02 | BE89: 0.02 | BF89: 0.02 | BG89: 0.02 | BI89: 0.00184 | BJ89: 0.00408 | BK89: 0.00488 | BL89: 0.00568 | BM89: 0.00648 | BN89: 0.00728 | BO89: 0.00808 | BP89: 0.00888 | BQ89: 0.00968 | BR89: 0.01048 | BT89: =+IF($K89="Ongoing",AX89,IF(RIGHT($K89,2)=RIGHT(BT$39,2),SUM($AX89:AX89),0)+IF(RIGHT(BT$39,2)>RIGHT($K89,2),AX89,0)) -> 0.092 | BU89: =+IF($K89="Ongoing",AY89,IF(RIGHT($K89,2)=RIGHT(BU$39,2),SUM($AX89:AY89),0)+IF(RIGHT(BU$39,2)>RIGHT($K89,2),AY89,0)) -> 0.02 | BV89: =+IF($K89="Ongoing",AZ89,IF(RIGHT($K89,2)=RIGHT(BV$39,2),SUM($AX89:AZ89),0)+IF(RIGHT(BV$39,2)>RIGHT($K89,2),AZ89,0)) -> 0.02 | BW89: =+IF($K89="Ongoing",BA89,IF(RIGHT($K89,2)=RIGHT(BW$39,2),SUM($AX89:BA89),0)+IF(RIGHT(BW$39,2)>RIGHT($K89,2),BA89,0)) -> 0.02 | BX89: =+IF($K89="Ongoing",BB89,IF(RIGHT($K89,2)=RIGHT(BX$39,2),SUM($AX89:BB89),0)+IF(RIGHT(BX$39,2)>RIGHT($K89,2),BB89,0)) -> 0.02 | BY89: =+IF($K89="Ongoing",BC89,IF(RIGHT($K89,2)=RIGHT(BY$39,2),SUM($AX89:BC89),0)+IF(RIGHT(BY$39,2)>RIGHT($K89,2),BC89,0)) -> 0.02 | BZ89: =+IF($K89="Ongoing",BD89,IF(RIGHT($K89,2)=RIGHT(BZ$39,2),SUM($AX89:BD89),0)+IF(RIGHT(BZ$39,2)>RIGHT($K89,2),BD89,0)) -> 0.02 | CA89: =+IF($K89="Ongoing",BE89,IF(RIGHT($K89,2)=RIGHT(CA$39,2),SUM($AX89:BE89),0)+IF(RIGHT(CA$39,2)>RIGHT($K89,2),BE89,0)) -> 0.02 | CB89: =+IF($K89="Ongoing",BF89,IF(RIGHT($K89,2)=RIGHT(CB$39,2),SUM($AX89:BF89),0)+IF(RIGHT(CB$39,2)>RIGHT($K89,2),BF89,0)) -> 0.02 | CC89: =+IF($K89="Ongoing",BG89,IF(RIGHT($K89,2)=RIGHT(CC$39,2),SUM($AX89:BG89),0)+IF(RIGHT(CC$39,2)>RIGHT($K89,2),BG89,0)) -> 0.02 | CE89: =+Q89*KeyAssumptionsPriceControl_FO!AC$15 -> 0.09476 | CF89: =+R89*KeyAssumptionsPriceControl_FO!AD$15 -> 0.021218 | CG89: =+S89*KeyAssumptionsPriceControl_FO!AE$15 -> 0.02185454 | CH89: =+T89*KeyAssumptionsPriceControl_FO!AF$15 -> 0.0225101762 | CI89: =+U89*KeyAssumptionsPriceControl_FO!AG$15 -> 0.02318548149 | CJ89: =+V89*KeyAssumptionsPriceControl_FO!AH$15 -> 0.02388104593 | CK89: =+W89*KeyAssumptionsPriceControl_FO!AI$15 -> 0.02459747731 | CL89: =+X89*KeyAssumptionsPriceControl_FO!AJ$15 -> 0.02533540163 | CM89: =+Y89*KeyAssumptionsPriceControl_FO!AK$15 -> 0.02609546368 | CN89: =+Z89*KeyAssumptionsPriceControl_FO!AL$15 -> 0.02687832759 | CP89: 0.0018952 | CQ89: 0.00421476 | CR89: 0.0050762108 | CS89: 0.005963505124 | CT89: 0.006877418278 | CU89: 0.007818748826 | CV89: 0.008788319291 | CW89: 0.00978697687 | CX89: 0.01081559418 | CY89: 0.01187507
AX90: 0 | AY90: 0 | AZ90: 0 | BA90: 0 | BB90: 0 | BC90: 0 | BD90: 0 | BE90: 0 | BF90: 0 | BG90: 0 | BI90: 0 | BJ90: 0 | BK90: 0 | BL90: 0 | BM90: 0 | BN90: 0 | BO90: 0 | BP90: 0 | BQ90: 0 | BR90: 0 | BT90: =+IF($K90="Ongoing",AX90,IF(RIGHT($K90,2)=RIGHT(BT$39,2),SUM($AX90:AX90),0)+IF(RIGHT(BT$39,2)>RIGHT($K90,2),AX90,0)) -> 0 | BU90: =+IF($K90="Ongoing",AY90,IF(RIGHT($K90,2)=RIGHT(BU$39,2),SUM($AX90:AY90),0)+IF(RIGHT(BU$39,2)>RIGHT($K90,2),AY90,0)) -> 0 | BV90: =+IF($K90="Ongoing",AZ90,IF(RIGHT($K90,2)=RIGHT(BV$39,2),SUM($AX90:AZ90),0)+IF(RIGHT(BV$39,2)>RIGHT($K90,2),AZ90,0)) -> 0 | BW90: =+IF($K90="Ongoing",BA90,IF(RIGHT($K90,2)=RIGHT(BW$39,2),SUM($AX90:BA90),0)+IF(RIGHT(BW$39,2)>RIGHT($K90,2),BA90,0)) -> 0 | BX90: =+IF($K90="Ongoing",BB90,IF(RIGHT($K90,2)=RIGHT(BX$39,2),SUM($AX90:BB90),0)+IF(RIGHT(BX$39,2)>RIGHT($K90,2),BB90,0)) -> 0 | BY90: =+IF($K90="Ongoing",BC90,IF(RIGHT($K90,2)=RIGHT(BY$39,2),SUM($AX90:BC90),0)+IF(RIGHT(BY$39,2)>RIGHT($K90,2),BC90,0)) -> 0 | BZ90: =+IF($K90="Ongoing",BD90,IF(RIGHT($K90,2)=RIGHT(BZ$39,2),SUM($AX90:BD90),0)+IF(RIGHT(BZ$39,2)>RIGHT($K90,2),BD90,0)) -> 0 | CA90: =+IF($K90="Ongoing",BE90,IF(RIGHT($K90,2)=RIGHT(CA$39,2),SUM($AX90:BE90),0)+IF(RIGHT(CA$39,2)>RIGHT($K90,2),BE90,0)) -> 0 | CB90: =+IF($K90="Ongoing",BF90,IF(RIGHT($K90,2)=RIGHT(CB$39,2),SUM($AX90:BF90),0)+IF(RIGHT(CB$39,2)>RIGHT($K90,2),BF90,0)) -> 0 | CC90: =+IF($K90="Ongoing",BG90,IF(RIGHT($K90,2)=RIGHT(CC$39,2),SUM($AX90:BG90),0)+IF(RIGHT(CC$39,2)>RIGHT($K90,2),BG90,0)) -> 0 | CE90: =+Q90*KeyAssumptionsPriceControl_FO!AC$15 -> 0 | CF90: =+R90*KeyAssumptionsPriceControl_FO!AD$15 -> 0 | CG90: =+S90*KeyAssumptionsPriceControl_FO!AE$15 -> 0 | CH90: =+T90*KeyAssumptionsPriceControl_FO!AF$15 -> 0 | CI90: =+U90*KeyAssumptionsPriceControl_FO!AG$15 -> 0 | CJ90: =+V90*KeyAssumptionsPriceControl_FO!AH$15 -> 0 | CK90: =+W90*KeyAssumptionsPriceControl_FO!AI$15 -> 0 | CL90: =+X90*KeyAssumptionsPriceControl_FO!AJ$15 -> 0 | CM90: =+Y90*KeyAssumptionsPriceControl_FO!AK$15 -> 0 | CN90: =+Z90*KeyAssumptionsPriceControl_FO!AL$15 -> 0 | CP90: 0 | CQ90: 0 | CR90: 0 | CS90: 0 | CT90: 0 | CU90: 0 | CV90: 0 | CW90: 0 | CX90: 0 | CY90: 0
AX91: 0 | AY91: 0 | AZ91: 0 | BA91: 0 | BB91: 0 | BC91: 0 | BD91: 0 | BE91: 0 | BF91: 0 | BG91: 0 | BI91: 0 | BJ91: 0 | BK91: 0 | BL91: 0 | BM91: 0 | BN91: 0 | BO91: 0 | BP91: 0 | BQ91: 0 | BR91: 0 | BT91: =+IF($K91="Ongoing",AX91,IF(RIGHT($K91,2)=RIGHT(BT$39,2),SUM($AX91:AX91),0)+IF(RIGHT(BT$39,2)>RIGHT($K91,2),AX91,0)) -> 0 | BU91: =+IF($K91="Ongoing",AY91,IF(RIGHT($K91,2)=RIGHT(BU$39,2),SUM($AX91:AY91),0)+IF(RIGHT(BU$39,2)>RIGHT($K91,2),AY91,0)) -> 0 | BV91: =+IF($K91="Ongoing",AZ91,IF(RIGHT($K91,2)=RIGHT(BV$39,2),SUM($AX91:AZ91),0)+IF(RIGHT(BV$39,2)>RIGHT($K91,2),AZ91,0)) -> 0 | BW91: =+IF($K91="Ongoing",BA91,IF(RIGHT($K91,2)=RIGHT(BW$39,2),SUM($AX91:BA91),0)+IF(RIGHT(BW$39,2)>RIGHT($K91,2),BA91,0)) -> 0 | BX91: =+IF($K91="Ongoing",BB91,IF(RIGHT($K91,2)=RIGHT(BX$39,2),SUM($AX91:BB91),0)+IF(RIGHT(BX$39,2)>RIGHT($K91,2),BB91,0)) -> 0 | BY91: =+IF($K91="Ongoing",BC91,IF(RIGHT($K91,2)=RIGHT(BY$39,2),SUM($AX91:BC91),0)+IF(RIGHT(BY$39,2)>RIGHT($K91,2),BC91,0)) -> 0 | BZ91: =+IF($K91="Ongoing",BD91,IF(RIGHT($K91,2)=RIGHT(BZ$39,2),SUM($AX91:BD91),0)+IF(RIGHT(BZ$39,2)>RIGHT($K91,2),BD91,0)) -> 0 | CA91: =+IF($K91="Ongoing",BE91,IF(RIGHT($K91,2)=RIGHT(CA$39,2),SUM($AX91:BE91),0)+IF(RIGHT(CA$39,2)>RIGHT($K91,2),BE91,0)) -> 0 | CB91: =+IF($K91="Ongoing",BF91,IF(RIGHT($K91,2)=RIGHT(CB$39,2),SUM($AX91:BF91),0)+IF(RIGHT(CB$39,2)>RIGHT($K91,2),BF91,0)) -> 0 | CC91: =+IF($K91="Ongoing",BG91,IF(RIGHT($K91,2)=RIGHT(CC$39,2),SUM($AX91:BG91),0)+IF(RIGHT(CC$39,2)>RIGHT($K91,2),BG91,0)) -> 0 | CE91: =+Q91*KeyAssumptionsPriceControl_FO!AC$15 -> 0 | CF91: =+R91*KeyAssumptionsPriceControl_FO!AD$15 -> 0 | CG91: =+S91*KeyAssumptionsPriceControl_FO!AE$15 -> 0 | CH91: =+T91*KeyAssumptionsPriceControl_FO!AF$15 -> 0 | CI91: =+U91*KeyAssumptionsPriceControl_FO!AG$15 -> 0 | CJ91: =+V91*KeyAssumptionsPriceControl_FO!AH$15 -> 0 | CK91: =+W91*KeyAssumptionsPriceControl_FO!AI$15 -> 0 | CL91: =+X91*KeyAssumptionsPriceControl_FO!AJ$15 -> 0 | CM91: =+Y91*KeyAssumptionsPriceControl_FO!AK$15 -> 0 | CN91: =+Z91*KeyAssumptionsPriceControl_FO!AL$15 -> 0 | CP91: 0 | CQ91: 0 | CR91: 0 | CS91: 0 | CT91: 0 | CU91: 0 | CV91: 0 | CW91: 0 | CX91: 0 | CY91: 0
AX92: 0 | AY92: 0 | AZ92: 0 | BA92: 0 | BB92: 0 | BC92: 0 | BD92: 0 | BE92: 0 | BF92: 0 | BG92: 0 | BI92: 0 | BJ92: 0 | BK92: 0 | BL92: 0 | BM92: 0 | BN92: 0 | BO92: 0 | BP92: 0 | BQ92: 0 | BR92: 0 | BT92: =+IF($K92="Ongoing",AX92,IF(RIGHT($K92,2)=RIGHT(BT$39,2),SUM($AX92:AX92),0)+IF(RIGHT(BT$39,2)>RIGHT($K92,2),AX92,0)) -> 0 | BU92: =+IF($K92="Ongoing",AY92,IF(RIGHT($K92,2)=RIGHT(BU$39,2),SUM($AX92:AY92),0)+IF(RIGHT(BU$39,2)>RIGHT($K92,2),AY92,0)) -> 0 | BV92: =+IF($K92="Ongoing",AZ92,IF(RIGHT($K92,2)=RIGHT(BV$39,2),SUM($AX92:AZ92),0)+IF(RIGHT(BV$39,2)>RIGHT($K92,2),AZ92,0)) -> 0 | BW92: =+IF($K92="Ongoing",BA92,IF(RIGHT($K92,2)=RIGHT(BW$39,2),SUM($AX92:BA92),0)+IF(RIGHT(BW$39,2)>RIGHT($K92,2),BA92,0)) -> 0 | BX92: =+IF($K92="Ongoing",BB92,IF(RIGHT($K92,2)=RIGHT(BX$39,2),SUM($AX92:BB92),0)+IF(RIGHT(BX$39,2)>RIGHT($K92,2),BB92,0)) -> 0 | BY92: =+IF($K92="Ongoing",BC92,IF(RIGHT($K92,2)=RIGHT(BY$39,2),SUM($AX92:BC92),0)+IF(RIGHT(BY$39,2)>RIGHT($K92,2),BC92,0)) -> 0 | BZ92: =+IF($K92="Ongoing",BD92,IF(RIGHT($K92,2)=RIGHT(BZ$39,2),SUM($AX92:BD92),0)+IF(RIGHT(BZ$39,2)>RIGHT($K92,2),BD92,0)) -> 0 | CA92: =+IF($K92="Ongoing",BE92,IF(RIGHT($K92,2)=RIGHT(CA$39,2),SUM($AX92:BE92),0)+IF(RIGHT(CA$39,2)>RIGHT($K92,2),BE92,0)) -> 0 | CB92: =+IF($K92="Ongoing",BF92,IF(RIGHT($K92,2)=RIGHT(CB$39,2),SUM($AX92:BF92),0)+IF(RIGHT(CB$39,2)>RIGHT($K92,2),BF92,0)) -> 0 | CC92: =+IF($K92="Ongoing",BG92,IF(RIGHT($K92,2)=RIGHT(CC$39,2),SUM($AX92:BG92),0)+IF(RIGHT(CC$39,2)>RIGHT($K92,2),BG92,0)) -> 0 | CE92: =+Q92*KeyAssumptionsPriceControl_FO!AC$15 -> 0 | CF92: =+R92*KeyAssumptionsPriceControl_FO!AD$15 -> 0 | CG92: =+S92*KeyAssumptionsPriceControl_FO!AE$15 -> 0 | CH92: =+T92*KeyAssumptionsPriceControl_FO!AF$15 -> 0 | CI92: =+U92*KeyAssumptionsPriceControl_FO!AG$15 -> 0 | CJ92: =+V92*KeyAssumptionsPriceControl_FO!AH$15 -> 0 | CK92: =+W92*KeyAssumptionsPriceControl_FO!AI$15 -> 0 | CL92: =+X92*KeyAssumptionsPriceControl_FO!AJ$15 -> 0 | CM92: =+Y92*KeyAssumptionsPriceControl_FO!AK$15 -> 0 | CN92: =+Z92*KeyAssumptionsPriceControl_FO!AL$15 -> 0 | CP92: 0 | CQ92: 0 | CR92: 0 | CS92: 0 | CT92: 0 | CU92: 0 | CV92: 0 | CW92: 0 | CX92: 0 | CY92: 0
C93: Waste Water Treatment Plant Major Infr Asset Renewals | E93: Sewerage | F93: Renewals | G93: Treatment | H93: Capital Programs / Allocation | J93: Straight line | K93: Ongoing | L93: 60 | M93: 80 | Q93: 0.74500002 | R93: 1.45000094 | S93: 0.74454194 | T93: 0.85054194 | U93: 0.65000094 | V93: 0.76454194 | W93: 0.35000094 | X93: 0.35000094 | Y93: 0.35000094 | Z93: 0.35000094 | AX93: 0.74500002 | AY93: 1.45000094 | AZ93: 0.74454194 | BA93: 0.85054194 | BB93: 0.65000094 | BC93: 0.76454194 | BD93: 0.35000094 | BE93: 0.35000094 | BF93: 0.35000094 | BG93: 0.35000094 | BI93: 0.0062083335 | BJ93: 0.02450000817 | BK93: 0.0427878655 | BL93: 0.05608023117 | BM93: 0.06858475517 | BN93: 0.0803726125 | BO93: 0.08966046983 | BP93: 0.09549381883 | BQ93: 0.1013271678 | BR93: 0.1071605168 | BT93: =+IF($K93="Ongoing",AX93,IF(RIGHT($K93,2)=RIGHT(BT$39,2),SUM($AX93:AX93),0)+IF(RIGHT(BT$39,2)>RIGHT($K93,2),AX93,0)) -> 0.74500002 | BU93: =+IF($K93="Ongoing",AY93,IF(RIGHT($K93,2)=RIGHT(BU$39,2),SUM($AX93:AY93),0)+IF(RIGHT(BU$39,2)>RIGHT($K93,2),AY93,0)) -> 1.45000094 | BV93: =+IF($K93="Ongoing",AZ93,IF(RIGHT($K93,2)=RIGHT(BV$39,2),SUM($AX93:AZ93),0)+IF(RIGHT(BV$39,2)>RIGHT($K93,2),AZ93,0)) -> 0.74454194 | BW93: =+IF($K93="Ongoing",BA93,IF(RIGHT($K93,2)=RIGHT(BW$39,2),SUM($AX93:BA93),0)+IF(RIGHT(BW$39,2)>RIGHT($K93,2),BA93,0)) -> 0.85054194 | BX93: =+IF($K93="Ongoing",BB93,IF(RIGHT($K93,2)=RIGHT(BX$39,2),SUM($AX93:BB93),0)+IF(RIGHT(BX$39,2)>RIGHT($K93,2),BB93,0)) -> 0.65000094 | BY93: =+IF($K93="Ongoing",BC93,IF(RIGHT($K93,2)=RIGHT(BY$39,2),SUM($AX93:BC93),0)+IF(RIGHT(BY$39,2)>RIGHT($K93,2),BC93,0)) -> 0.76454194 | BZ93: =+IF($K93="Ongoing",BD93,IF(RIGHT($K93,2)=RIGHT(BZ$39,2),SUM($AX93:BD93),0)+IF(RIGHT(BZ$39,2)>RIGHT($K93,2),BD93,0)) -> 0.35000094 | CA93: =+IF($K93="Ongoing",BE93,IF(RIGHT($K93,2)=RIGHT(CA$39,2),SUM($AX93:BE93),0)+IF(RIGHT(CA$39,2)>RIGHT($K93,2),BE93,0)) -> 0.35000094 | CB93: =+IF($K93="Ongoing",BF93,IF(RIGHT($K93,2)=RIGHT(CB$39,2),SUM($AX93:BF93),0)+IF(RIGHT(CB$39,2)>RIGHT($K93,2),BF93,0)) -> 0.35000094 | CC93: =+IF($K93="Ongoing",BG93,IF(RIGHT($K93,2)=RIGHT(CC$39,2),SUM($AX93:BG93),0)+IF(RIGHT(CC$39,2)>RIGHT($K93,2),BG93,0)) -> 0.35000094 | CE93: =+Q93*KeyAssumptionsPriceControl_FO!AC$15 -> 0.7673500206 | CF93: =+R93*KeyAssumptionsPriceControl_FO!AD$15 -> 1.538305997 | CG93: =+S93*KeyAssumptionsPriceControl_FO!AE$15 -> 0.8135810805 | CH93: =+T93*KeyAssumptionsPriceControl_FO!AF$15 -> 0.9572924467 | CI93: =+U93*KeyAssumptionsPriceControl_FO!AG$15 -> 0.753529238 | CJ93: =+V93*KeyAssumptionsPriceControl_FO!AH$15 -> 0.9129030592 | CK93: =+W93*KeyAssumptionsPriceControl_FO!AI$15 -> 0.430457009 | CL93: =+X93*KeyAssumptionsPriceControl_FO!AJ$15 -> 0.4433707192 | CM93: =+Y93*KeyAssumptionsPriceControl_FO!AK$15 -> 0.4566718408 | CN93: =+Z93*KeyAssumptionsPriceControl_FO!AL$15 -> 0.4703719961 | CP93: 0.004795937629 | CQ93: 0.01920628774 | CR93: 0.03390558198 | CS93: 0.04497354152 | CT93: 0.05566617705 | CU93: 0.06608137891 | CV93: 0.07447737934 | CW93: 0.07993880264 | CX93: 0.08556406864 | CY93: 0.09135809262
C94: Sewer Pump Station Asset Renewals | E94: Sewerage | F94: Renewals | G94: Pipelines/network | H94: Capital Programs / Allocation | J94: Straight line | K94: Ongoing | L94: 35 | M94: 40 | Q94: 0.88 | R94: 0.66 | S94: 0.66 | T94: 0.66 | U94: 0.44 | V94: 0.66 | W94: 0.3 | X94: 0.05 | Y94: 0.05 | Z94: 0.05 | AX94: 0.88 | AY94: 0.66 | AZ94: 0.66 | BA94: 0.66 | BB94: 0.44 | BC94: 0.66 | BD94: 0.3 | BE94: 0.05 | BF94: 0.05 | BG94: 0.05 | BI94: 0.01257142857 | BJ94: 0.03457142857 | BK94: 0.05342857143 | BL94: 0.07228571429 | BM94: 0.088 | BN94: 0.1037142857 | BO94: 0.1174285714 | BP94: 0.1224285714 | BQ94: 0.1238571429 | BR94: 0.1252857143 | BT94: =+IF($K94="Ongoing",AX94,IF(RIGHT($K94,2)=RIGHT(BT$39,2),SUM($AX94:AX94),0)+IF(RIGHT(BT$39,2)>RIGHT($K94,2),AX94,0)) -> 0.88 | BU94: =+IF($K94="Ongoing",AY94,IF(RIGHT($K94,2)=RIGHT(BU$39,2),SUM($AX94:AY94),0)+IF(RIGHT(BU$39,2)>RIGHT($K94,2),AY94,0)) -> 0.66 | BV94: =+IF($K94="Ongoing",AZ94,IF(RIGHT($K94,2)=RIGHT(BV$39,2),SUM($AX94:AZ94),0)+IF(RIGHT(BV$39,2)>RIGHT($K94,2),AZ94,0)) -> 0.66 | BW94: =+IF($K94="Ongoing",BA94,IF(RIGHT($K94,2)=RIGHT(BW$39,2),SUM($AX94:BA94),0)+IF(RIGHT(BW$39,2)>RIGHT($K94,2),BA94,0)) -> 0.66 | BX94: =+IF($K94="Ongoing",BB94,IF(RIGHT($K94,2)=RIGHT(BX$39,2),SUM($AX94:BB94),0)+IF(RIGHT(BX$39,2)>RIGHT($K94,2),BB94,0)) -> 0.44 | BY94: =+IF($K94="Ongoing",BC94,IF(RIGHT($K94,2)=RIGHT(BY$39,2),SUM($AX94:BC94),0)+IF(RIGHT(BY$39,2)>RIGHT($K94,2),BC94,0)) -> 0.66 | BZ94: =+IF($K94="Ongoing",BD94,IF(RIGHT($K94,2)=RIGHT(BZ$39,2),SUM($AX94:BD94),0)+IF(RIGHT(BZ$39,2)>RIGHT($K94,2),BD94,0)) -> 0.3 | CA94: =+IF($K94="Ongoing",BE94,IF(RIGHT($K94,2)=RIGHT(CA$39,2),SUM($AX94:BE94),0)+IF(RIGHT(CA$39,2)>RIGHT($K94,2),BE94,0)) -> 0.05 | CB94: =+IF($K94="Ongoing",BF94,IF(RIGHT($K94,2)=RIGHT(CB$39,2),SUM($AX94:BF94),0)+IF(RIGHT(CB$39,2)>RIGHT($K94,2),BF94,0)) -> 0.05 | CC94: =+IF($K94="Ongoing",BG94,IF(RIGHT($K94,2)=RIGHT(CC$39,2),SUM($AX94:BG94),0)+IF(RIGHT(CC$39,2)>RIGHT($K94,2),BG94,0)) -> 0.05 | CE94: =+Q94*KeyAssumptionsPriceControl_FO!AC$15 -> 0.9064 | CF94: =+R94*KeyAssumptionsPriceControl_FO!AD$15 -> 0.700194 | CG94: =+S94*KeyAssumptionsPriceControl_FO!AE$15 -> 0.72119982 | CH94: =+T94*KeyAssumptionsPriceControl_FO!AF$15 -> 0.7428358146 | CI94: =+U94*KeyAssumptionsPriceControl_FO!AG$15 -> 0.5100805927 | CJ94: =+V94*KeyAssumptionsPriceControl_FO!AH$15 -> 0.7880745157 | CK94: =+W94*KeyAssumptionsPriceControl_FO!AI$15 -> 0.3689621596 | CL94: =+X94*KeyAssumptionsPriceControl_FO!AJ$15 -> 0.06333850407 | CM94: =+Y94*KeyAssumptionsPriceControl_FO!AK$15 -> 0.06523865919 | CN94: =+Z94*KeyAssumptionsPriceControl_FO!AL$15 -> 0.06719581897 | CP94: 0.01133 | CQ94: 0.031412425 | CR94: 0.04917984775 | CS94: 0.06748029318 | CT94: 0.08314174827 | CU94: 0.09936868713 | CV94: 0.1138316456 | CW94: 0.1192354039 | CX94: 0.1208426184 | CY94: 0.1224980494
C95: Wastewater Major OH&S Upgrades | E95: Sewerage | F95: Renewals | G95: Corporate | H95: Capital Programs / Allocation | J95: Straight line | K95: Ongoing | L95: 25 | M95: 25 | Q95: 0.05 | R95: 0.05 | S95: 0.05 | T95: 0.05 | U95: 0.05 | V95: 0.05 | W95: 0.05 | X95: 0.05 | Y95: 0.05 | Z95: 0.05 | AX95: 0.05 | AY95: 0.05 | AZ95: 0.05 | BA95: 0.05 | BB95: 0.05 | BC95: 0.05 | BD95: 0.05 | BE95: 0.05 | BF95: 0.05 | BG95: 0.05 | BI95: 0.001 | BJ95: 0.003 | BK95: 0.005 | BL95: 0.007 | BM95: 0.009 | BN95: 0.011 | BO95: 0.013 | BP95: 0.015 | BQ95: 0.017 | BR95: 0.019 | BT95: =+IF($K95="Ongoing",AX95,IF(RIGHT($K95,2)=RIGHT(BT$39,2),SUM($AX95:AX95),0)+IF(RIGHT(BT$39,2)>RIGHT($K95,2),AX95,0)) -> 0.05 | BU95: =+IF($K95="Ongoing",AY95,IF(RIGHT($K95,2)=RIGHT(BU$39,2),SUM($AX95:AY95),0)+IF(RIGHT(BU$39,2)>RIGHT($K95,2),AY95,0)) -> 0.05 | BV95: =+IF($K95="Ongoing",AZ95,IF(RIGHT($K95,2)=RIGHT(BV$39,2),SUM($AX95:AZ95),0)+IF(RIGHT(BV$39,2)>RIGHT($K95,2),AZ95,0)) -> 0.05 | BW95: =+IF($K95="Ongoing",BA95,IF(RIGHT($K95,2)=RIGHT(BW$39,2),SUM($AX95:BA95),0)+IF(RIGHT(BW$39,2)>RIGHT($K95,2),BA95,0)) -> 0.05 | BX95: =+IF($K95="Ongoing",BB95,IF(RIGHT($K95,2)=RIGHT(BX$39,2),SUM($AX95:BB95),0)+IF(RIGHT(BX$39,2)>RIGHT($K95,2),BB95,0)) -> 0.05 | BY95: =+IF($K95="Ongoing",BC95,IF(RIGHT($K95,2)=RIGHT(BY$39,2),SUM($AX95:BC95),0)+IF(RIGHT(BY$39,2)>RIGHT($K95,2),BC95,0)) -> 0.05 | BZ95: =+IF($K95="Ongoing",BD95,IF(RIGHT($K95,2)=RIGHT(BZ$39,2),SUM($AX95:BD95),0)+IF(RIGHT(BZ$39,2)>RIGHT($K95,2),BD95,0)) -> 0.05 | CA95: =+IF($K95="Ongoing",BE95,IF(RIGHT($K95,2)=RIGHT(CA$39,2),SUM($AX95:BE95),0)+IF(RIGHT(CA$39,2)>RIGHT($K95,2),BE95,0)) -> 0.05 | CB95: =+IF($K95="Ongoing",BF95,IF(RIGHT($K95,2)=RIGHT(CB$39,2),SUM($AX95:BF95),0)+IF(RIGHT(CB$39,2)>RIGHT($K95,2),BF95,0)) -> 0.05 | CC95: =+IF($K95="Ongoing",BG95,IF(RIGHT($K95,2)=RIGHT(CC$39,2),SUM($AX95:BG95),0)+IF(RIGHT(CC$39,2)>RIGHT($K95,2),BG95,0)) -> 0.05 | CE95: =+Q95*KeyAssumptionsPriceControl_FO!AC$15 -> 0.0515 | CF95: =+R95*KeyAssumptionsPriceControl_FO!AD$15 -> 0.053045 | CG95: =+S95*KeyAssumptionsPriceControl_FO!AE$15 -> 0.05463635 | CH95: =+T95*KeyAssumptionsPriceControl_FO!AF$15 -> 0.0562754405 | CI95: =+U95*KeyAssumptionsPriceControl_FO!AG$15 -> 0.05796370372 | CJ95: =+V95*KeyAssumptionsPriceControl_FO!AH$15 -> 0.05970261483 | CK95: =+W95*KeyAssumptionsPriceControl_FO!AI$15 -> 0.06149369327 | CL95: =+X95*KeyAssumptionsPriceControl_FO!AJ$15 -> 0.06333850407 | CM95: =+Y95*KeyAssumptionsPriceControl_FO!AK$15 -> 0.06523865919 | CN95: =+Z95*KeyAssumptionsPriceControl_FO!AL$15 -> 0.06719581897 | CP95: 0.00103 | CQ95: 0.0031209 | CR95: 0.005274527 | CS95: 0.00749276281 | CT95: 0.009777545694 | CU95: 0.01213087207 | CV95: 0.01455479823 | CW95: 0.01705144217 | CX95: 0.01962298544 | CY95: 0.022271675
AX96: 0 | AY96: 0 | AZ96: 0 | BA96: 0 | BB96: 0 | BC96: 0 | BD96: 0 | BE96: 0 | BF96: 0 | BG96: 0 | BI96: 0 | BJ96: 0 | BK96: 0 | BL96: 0 | BM96: 0 | BN96: 0 | BO96: 0 | BP96: 0 | BQ96: 0 | BR96: 0 | BT96: =+IF($K96="Ongoing",AX96,IF(RIGHT($K96,2)=RIGHT(BT$39,2),SUM($AX96:AX96),0)+IF(RIGHT(BT$39,2)>RIGHT($K96,2),AX96,0)) -> 0 | BU96: =+IF($K96="Ongoing",AY96,IF(RIGHT($K96,2)=RIGHT(BU$39,2),SUM($AX96:AY96),0)+IF(RIGHT(BU$39,2)>RIGHT($K96,2),AY96,0)) -> 0 | BV96: =+IF($K96="Ongoing",AZ96,IF(RIGHT($K96,2)=RIGHT(BV$39,2),SUM($AX96:AZ96),0)+IF(RIGHT(BV$39,2)>RIGHT($K96,2),AZ96,0)) -> 0 | BW96: =+IF($K96="Ongoing",BA96,IF(RIGHT($K96,2)=RIGHT(BW$39,2),SUM($AX96:BA96),0)+IF(RIGHT(BW$39,2)>RIGHT($K96,2),BA96,0)) -> 0 | BX96: =+IF($K96="Ongoing",BB96,IF(RIGHT($K96,2)=RIGHT(BX$39,2),SUM($AX96:BB96),0)+IF(RIGHT(BX$39,2)>RIGHT($K96,2),BB96,0)) -> 0 | BY96: =+IF($K96="Ongoing",BC96,IF(RIGHT($K96,2)=RIGHT(BY$39,2),SUM($AX96:BC96),0)+IF(RIGHT(BY$39,2)>RIGHT($K96,2),BC96,0)) -> 0 | BZ96: =+IF($K96="Ongoing",BD96,IF(RIGHT($K96,2)=RIGHT(BZ$39,2),SUM($AX96:BD96),0)+IF(RIGHT(BZ$39,2)>RIGHT($K96,2),BD96,0)) -> 0 | CA96: =+IF($K96="Ongoing",BE96,IF(RIGHT($K96,2)=RIGHT(CA$39,2),SUM($AX96:BE96),0)+IF(RIGHT(CA$39,2)>RIGHT($K96,2),BE96,0)) -> 0 | CB96: =+IF($K96="Ongoing",BF96,IF(RIGHT($K96,2)=RIGHT(CB$39,2),SUM($AX96:BF96),0)+IF(RIGHT(CB$39,2)>RIGHT($K96,2),BF96,0)) -> 0 | CC96: =+IF($K96="Ongoing",BG96,IF(RIGHT($K96,2)=RIGHT(CC$39,2),SUM($AX96:BG96),0)+IF(RIGHT(CC$39,2)>RIGHT($K96,2),BG96,0)) -> 0 | CE96: =+Q96*KeyAssumptionsPriceControl_FO!AC$15 -> 0 | CF96: =+R96*KeyAssumptionsPriceControl_FO!AD$15 -> 0 | CG96: =+S96*KeyAssumptionsPriceControl_FO!AE$15 -> 0 | CH96: =+T96*KeyAssumptionsPriceControl_FO!AF$15 -> 0 | CI96: =+U96*KeyAssumptionsPriceControl_FO!AG$15 -> 0 | CJ96: =+V96*KeyAssumptionsPriceControl_FO!AH$15 -> 0 | CK96: =+W96*KeyAssumptionsPriceControl_FO!AI$15 -> 0 | CL96: =+X96*KeyAssumptionsPriceControl_FO!AJ$15 -> 0 | CM96: =+Y96*KeyAssumptionsPriceControl_FO!AK$15 -> 0 | CN96: =+Z96*KeyAssumptionsPriceControl_FO!AL$15 -> 0 | CP96: 0 | CQ96: 0 | CR96: 0 | CS96: 0 | CT96: 0 | CU96: 0 | CV96: 0 | CW96: 0 | CX96: 0 | CY96: 0
AX97: 0 | AY97: 0 | AZ97: 0 | BA97: 0 | BB97: 0 | BC97: 0 | BD97: 0 | BE97: 0 | BF97: 0 | BG97: 0 | BI97: 0 | BJ97: 0 | BK97: 0 | BL97: 0 | BM97: 0 | BN97: 0 | BO97: 0 | BP97: 0 | BQ97: 0 | BR97: 0 | BT97: =+IF($K97="Ongoing",AX97,IF(RIGHT($K97,2)=RIGHT(BT$39,2),SUM($AX97:AX97),0)+IF(RIGHT(BT$39,2)>RIGHT($K97,2),AX97,0)) -> 0 | BU97: =+IF($K97="Ongoing",AY97,IF(RIGHT($K97,2)=RIGHT(BU$39,2),SUM($AX97:AY97),0)+IF(RIGHT(BU$39,2)>RIGHT($K97,2),AY97,0)) -> 0 | BV97: =+IF($K97="Ongoing",AZ97,IF(RIGHT($K97,2)=RIGHT(BV$39,2),SUM($AX97:AZ97),0)+IF(RIGHT(BV$39,2)>RIGHT($K97,2),AZ97,0)) -> 0 | BW97: =+IF($K97="Ongoing",BA97,IF(RIGHT($K97,2)=RIGHT(BW$39,2),SUM($AX97:BA97),0)+IF(RIGHT(BW$39,2)>RIGHT($K97,2),BA97,0)) -> 0 | BX97: =+IF($K97="Ongoing",BB97,IF(RIGHT($K97,2)=RIGHT(BX$39,2),SUM($AX97:BB97),0)+IF(RIGHT(BX$39,2)>RIGHT($K97,2),BB97,0)) -> 0 | BY97: =+IF($K97="Ongoing",BC97,IF(RIGHT($K97,2)=RIGHT(BY$39,2),SUM($AX97:BC97),0)+IF(RIGHT(BY$39,2)>RIGHT($K97,2),BC97,0)) -> 0 | BZ97: =+IF($K97="Ongoing",BD97,IF(RIGHT($K97,2)=RIGHT(BZ$39,2),SUM($AX97:BD97),0)+IF(RIGHT(BZ$39,2)>RIGHT($K97,2),BD97,0)) -> 0 | CA97: =+IF($K97="Ongoing",BE97,IF(RIGHT($K97,2)=RIGHT(CA$39,2),SUM($AX97:BE97),0)+IF(RIGHT(CA$39,2)>RIGHT($K97,2),BE97,0)) -> 0 | CB97: =+IF($K97="Ongoing",BF97,IF(RIGHT($K97,2)=RIGHT(CB$39,2),SUM($AX97:BF97),0)+IF(RIGHT(CB$39,2)>RIGHT($K97,2),BF97,0)) -> 0 | CC97: =+IF($K97="Ongoing",BG97,IF(RIGHT($K97,2)=RIGHT(CC$39,2),SUM($AX97:BG97),0)+IF(RIGHT(CC$39,2)>RIGHT($K97,2),BG97,0)) -> 0 | CE97: =+Q97*KeyAssumptionsPriceControl_FO!AC$15 -> 0 | CF97: =+R97*KeyAssumptionsPriceControl_FO!AD$15 -> 0 | CG97: =+S97*KeyAssumptionsPriceControl_FO!AE$15 -> 0 | CH97: =+T97*KeyAssumptionsPriceControl_FO!AF$15 -> 0 | CI97: =+U97*KeyAssumptionsPriceControl_FO!AG$15 -> 0 | CJ97: =+V97*KeyAssumptionsPriceControl_FO!AH$15 -> 0 | CK97: =+W97*KeyAssumptionsPriceControl_FO!AI$15 -> 0 | CL97: =+X97*KeyAssumptionsPriceControl_FO!AJ$15 -> 0 | CM97: =+Y97*KeyAssumptionsPriceControl_FO!AK$15 -> 0 | CN97: =+Z97*KeyAssumptionsPriceControl_FO!AL$15 -> 0 | CP97: 0 | CQ97: 0 | CR97: 0 | CS97: 0 | CT97: 0 | CU97: 0 | CV97: 0 | CW97: 0 | CX97: 0 | CY97: 0
C98: Reuse Schemes | E98: Recycled Water | F98: Renewals | G98: Treatment | H98: Capital Programs / Allocation | J98: Straight line | K98: Ongoing | L98: 50 | M98: 60 | Q98: 0 | R98: 0.779 | S98: 0.779 | T98: 0.272 | U98: 0 | V98: 2.5 | W98: 1 | X98: 0 | Y98: 0 | Z98: 0 | AX98: 0 | AY98: 0.779 | AZ98: 0.779 | BA98: 0.272 | BB98: 0 | BC98: 2.5 | BD98: 1 | BE98: 0 | BF98: 0 | BG98: 0 | BI98: 0 | BJ98: 0.00779 | BK98: 0.02337 | BL98: 0.03388 | BM98: 0.0366 | BN98: 0.0616 | BO98: 0.0966 | BP98: 0.1066 | BQ98: 0.1066 | BR98: 0.1066 | BT98: =+IF($K98="Ongoing",AX98,IF(RIGHT($K98,2)=RIGHT(BT$39,2),SUM($AX98:AX98),0)+IF(RIGHT(BT$39,2)>RIGHT($K98,2),AX98,0)) -> 0 | BU98: =+IF($K98="Ongoing",AY98,IF(RIGHT($K98,2)=RIGHT(BU$39,2),SUM($AX98:AY98),0)+IF(RIGHT(BU$39,2)>RIGHT($K98,2),AY98,0)) -> 0.779 | BV98: =+IF($K98="Ongoing",AZ98,IF(RIGHT($K98,2)=RIGHT(BV$39,2),SUM($AX98:AZ98),0)+IF(RIGHT(BV$39,2)>RIGHT($K98,2),AZ98,0)) -> 0.779 | BW98: =+IF($K98="Ongoing",BA98,IF(RIGHT($K98,2)=RIGHT(BW$39,2),SUM($AX98:BA98),0)+IF(RIGHT(BW$39,2)>RIGHT($K98,2),BA98,0)) -> 0.272 | BX98: =+IF($K98="Ongoing",BB98,IF(RIGHT($K98,2)=RIGHT(BX$39,2),SUM($AX98:BB98),0)+IF(RIGHT(BX$39,2)>RIGHT($K98,2),BB98,0)) -> 0 | BY98: =+IF($K98="Ongoing",BC98,IF(RIGHT($K98,2)=RIGHT(BY$39,2),SUM($AX98:BC98),0)+IF(RIGHT(BY$39,2)>RIGHT($K98,2),BC98,0)) -> 2.5 | BZ98: =+IF($K98="Ongoing",BD98,IF(RIGHT($K98,2)=RIGHT(BZ$39,2),SUM($AX98:BD98),0)+IF(RIGHT(BZ$39,2)>RIGHT($K98,2),BD98,0)) -> 1 | CA98: =+IF($K98="Ongoing",BE98,IF(RIGHT($K98,2)=RIGHT(CA$39,2),SUM($AX98:BE98),0)+IF(RIGHT(CA$39,2)>RIGHT($K98,2),BE98,0)) -> 0 | CB98: =+IF($K98="Ongoing",BF98,IF(RIGHT($K98,2)=RIGHT(CB$39,2),SUM($AX98:BF98),0)+IF(RIGHT(CB$39,2)>RIGHT($K98,2),BF98,0)) -> 0 | CC98: =+IF($K98="Ongoing",BG98,IF(RIGHT($K98,2)=RIGHT(CC$39,2),SUM($AX98:BG98),0)+IF(RIGHT(CC$39,2)>RIGHT($K98,2),BG98,0)) -> 0 | CE98: =+Q98*KeyAssumptionsPriceControl_FO!AC$15 -> 0 | CF98: =+R98*KeyAssumptionsPriceControl_FO!AD$15 -> 0.8264411 | CG98: =+S98*KeyAssumptionsPriceControl_FO!AE$15 -> 0.851234333 | CH98: =+T98*KeyAssumptionsPriceControl_FO!AF$15 -> 0.3061383963 | CI98: =+U98*KeyAssumptionsPriceControl_FO!AG$15 -> 0 | CJ98: =+V98*KeyAssumptionsPriceControl_FO!AH$15 -> 2.985130741 | CK98: =+W98*KeyAssumptionsPriceControl_FO!AI$15 -> 1.229873865 | CL98: =+X98*KeyAssumptionsPriceControl_FO!AJ$15 -> 0 | CM98: =+Y98*KeyAssumptionsPriceControl_FO!AK$15 -> 0 | CN98: =+Z98*KeyAssumptionsPriceControl_FO!AL$15 -> 0 | CP98: 0 | CQ98: 0.006887009167 | CR98: 0.02086763778 | CS98: 0.03051241052 | CT98: 0.03306356382 | CU98: 0.05793965333 | CV98: 0.09306469172 | CW98: 0.1033136406 | CX98: 0.1033136406 | CY98: 0.1033136406
AX99: 0 | AY99: 0 | AZ99: 0 | BA99: 0 | BB99: 0 | BC99: 0 | BD99: 0 | BE99: 0 | BF99: 0 | BG99: 0 | BI99: 0 | BJ99: 0 | BK99: 0 | BL99: 0 | BM99: 0 | BN99: 0 | BO99: 0 | BP99: 0 | BQ99: 0 | BR99: 0 | BT99: =+IF($K99="Ongoing",AX99,IF(RIGHT($K99,2)=RIGHT(BT$39,2),SUM($AX99:AX99),0)+IF(RIGHT(BT$39,2)>RIGHT($K99,2),AX99,0)) -> 0 | BU99: =+IF($K99="Ongoing",AY99,IF(RIGHT($K99,2)=RIGHT(BU$39,2),SUM($AX99:AY99),0)+IF(RIGHT(BU$39,2)>RIGHT($K99,2),AY99,0)) -> 0 | BV99: =+IF($K99="Ongoing",AZ99,IF(RIGHT($K99,2)=RIGHT(BV$39,2),SUM($AX99:AZ99),0)+IF(RIGHT(BV$39,2)>RIGHT($K99,2),AZ99,0)) -> 0 | BW99: =+IF($K99="Ongoing",BA99,IF(RIGHT($K99,2)=RIGHT(BW$39,2),SUM($AX99:BA99),0)+IF(RIGHT(BW$39,2)>RIGHT($K99,2),BA99,0)) -> 0 | BX99: =+IF($K99="Ongoing",BB99,IF(RIGHT($K99,2)=RIGHT(BX$39,2),SUM($AX99:BB99),0)+IF(RIGHT(BX$39,2)>RIGHT($K99,2),BB99,0)) -> 0 | BY99: =+IF($K99="Ongoing",BC99,IF(RIGHT($K99,2)=RIGHT(BY$39,2),SUM($AX99:BC99),0)+IF(RIGHT(BY$39,2)>RIGHT($K99,2),BC99,0)) -> 0 | BZ99: =+IF($K99="Ongoing",BD99,IF(RIGHT($K99,2)=RIGHT(BZ$39,2),SUM($AX99:BD99),0)+IF(RIGHT(BZ$39,2)>RIGHT($K99,2),BD99,0)) -> 0 | CA99: =+IF($K99="Ongoing",BE99,IF(RIGHT($K99,2)=RIGHT(CA$39,2),SUM($AX99:BE99),0)+IF(RIGHT(CA$39,2)>RIGHT($K99,2),BE99,0)) -> 0 | CB99: =+IF($K99="Ongoing",BF99,IF(RIGHT($K99,2)=RIGHT(CB$39,2),SUM($AX99:BF99),0)+IF(RIGHT(CB$39,2)>RIGHT($K99,2),BF99,0)) -> 0 | CC99: =+IF($K99="Ongoing",BG99,IF(RIGHT($K99,2)=RIGHT(CC$39,2),SUM($AX99:BG99),0)+IF(RIGHT(CC$39,2)>RIGHT($K99,2),BG99,0)) -> 0 | CE99: =+Q99*KeyAssumptionsPriceControl_FO!AC$15 -> 0 | CF99: =+R99*KeyAssumptionsPriceControl_FO!AD$15 -> 0 | CG99: =+S99*KeyAssumptionsPriceControl_FO!AE$15 -> 0 | CH99: =+T99*KeyAssumptionsPriceControl_FO!AF$15 -> 0 | CI99: =+U99*KeyAssumptionsPriceControl_FO!AG$15 -> 0 | CJ99: =+V99*KeyAssumptionsPriceControl_FO!AH$15 -> 0 | CK99: =+W99*KeyAssumptionsPriceControl_FO!AI$15 -> 0 | CL99: =+X99*KeyAssumptionsPriceControl_FO!AJ$15 -> 0 | CM99: =+Y99*KeyAssumptionsPriceControl_FO!AK$15 -> 0 | CN99: =+Z99*KeyAssumptionsPriceControl_FO!AL$15 -> 0 | CP99: 0 | CQ99: 0 | CR99: 0 | CS99: 0 | CT99: 0 | CU99: 0 | CV99: 0 | CW99: 0 | CX99: 0 | CY99: 0
AX100: 0 | AY100: 0 | AZ100: 0 | BA100: 0 | BB100: 0 | BC100: 0 | BD100: 0 | BE100: 0 | BF100: 0 | BG100: 0 | BI100: 0 | BJ100: 0 | BK100: 0 | BL100: 0 | BM100: 0 | BN100: 0 | BO100: 0 | BP100: 0 | BQ100: 0 | BR100: 0 | BT100: =+IF($K100="Ongoing",AX100,IF(RIGHT($K100,2)=RIGHT(BT$39,2),SUM($AX100:AX100),0)+IF(RIGHT(BT$39,2)>RIGHT($K100,2),AX100,0)) -> 0 | BU100: =+IF($K100="Ongoing",AY100,IF(RIGHT($K100,2)=RIGHT(BU$39,2),SUM($AX100:AY100),0)+IF(RIGHT(BU$39,2)>RIGHT($K100,2),AY100,0)) -> 0 | BV100: =+IF($K100="Ongoing",AZ100,IF(RIGHT($K100,2)=RIGHT(BV$39,2),SUM($AX100:AZ100),0)+IF(RIGHT(BV$39,2)>RIGHT($K100,2),AZ100,0)) -> 0 | BW100: =+IF($K100="Ongoing",BA100,IF(RIGHT($K100,2)=RIGHT(BW$39,2),SUM($AX100:BA100),0)+IF(RIGHT(BW$39,2)>RIGHT($K100,2),BA100,0)) -> 0 | BX100: =+IF($K100="Ongoing",BB100,IF(RIGHT($K100,2)=RIGHT(BX$39,2),SUM($AX100:BB100),0)+IF(RIGHT(BX$39,2)>RIGHT($K100,2),BB100,0)) -> 0 | BY100: =+IF($K100="Ongoing",BC100,IF(RIGHT($K100,2)=RIGHT(BY$39,2),SUM($AX100:BC100),0)+IF(RIGHT(BY$39,2)>RIGHT($K100,2),BC100,0)) -> 0 | BZ100: =+IF($K100="Ongoing",BD100,IF(RIGHT($K100,2)=RIGHT(BZ$39,2),SUM($AX100:BD100),0)+IF(RIGHT(BZ$39,2)>RIGHT($K100,2),BD100,0)) -> 0 | CA100: =+IF($K100="Ongoing",BE100,IF(RIGHT($K100,2)=RIGHT(CA$39,2),SUM($AX100:BE100),0)+IF(RIGHT(CA$39,2)>RIGHT($K100,2),BE100,0)) -> 0 | CB100: =+IF($K100="Ongoing",BF100,IF(RIGHT($K100,2)=RIGHT(CB$39,2),SUM($AX100:BF100),0)+IF(RIGHT(CB$39,2)>RIGHT($K100,2),BF100,0)) -> 0 | CC100: =+IF($K100="Ongoing",BG100,IF(RIGHT($K100,2)=RIGHT(CC$39,2),SUM($AX100:BG100),0)+IF(RIGHT(CC$39,2)>RIGHT($K100,2),BG100,0)) -> 0 | CE100: =+Q100*KeyAssumptionsPriceControl_FO!AC$15 -> 0 | CF100: =+R100*KeyAssumptionsPriceControl_FO!AD$15 -> 0 | CG100: =+S100*KeyAssumptionsPriceControl_FO!AE$15 -> 0 | CH100: =+T100*KeyAssumptionsPriceControl_FO!AF$15 -> 0 | CI100: =+U100*KeyAssumptionsPriceControl_FO!AG$15 -> 0 | CJ100: =+V100*KeyAssumptionsPriceControl_FO!AH$15 -> 0 | CK100: =+W100*KeyAssumptionsPriceControl_FO!AI$15 -> 0 | CL100: =+X100*KeyAssumptionsPriceControl_FO!AJ$15 -> 0 | CM100: =+Y100*KeyAssumptionsPriceControl_FO!AK$15 -> 0 | CN100: =+Z100*KeyAssumptionsPriceControl_FO!AL$15 -> 0 | CP100: 0 | CQ100: 0 | CR100: 0 | CS100: 0 | CT100: 0 | CU100: 0 | CV100: 0 | CW100: 0 | CX100: 0 | CY100: 0
C101: Decommissioning of Redundant Assets | E101: Domestic and stock | F101: Renewals | G101: Pipelines/network | H101: Capital Programs / Allocation | J101: Straight line | K101: Ongoing | L101: 10 | M101: 0 | Q101: 0.86800099 | R101: 0.74000099 | S101: 0.67100099 | T101: 0.53000099 | U101: 0.12500099 | V101: 0.82000056 | W101: 0.92000099 | X101: 0.27000099 | Y101: 0.03000099 | Z101: 0.03000099 | AX101: 0.86800099 | AY101: 0.74000099 | AZ101: 0.67100099 | BA101: 0.53000099 | BB101: 0.12500099 | BC101: 0.82000056 | BD101: 0.92000099 | BE101: 0.27000099 | BF101: 0.03000099 | BG101: 0.03000099 | BI101: 0.0434000495 | BJ101: 0.1238001485 | BK101: 0.1943502475 | BL101: 0.2544003465 | BM101: 0.2871504455 | BN101: 0.334400523 | BO101: 0.4214006005 | BP101: 0.4809006995 | BQ101: 0.4959007985 | BR101: 0.4989008975 | BT101: =+IF($K101="Ongoing",AX101,IF(RIGHT($K101,2)=RIGHT(BT$39,2),SUM($AX101:AX101),0)+IF(RIGHT(BT$39,2)>RIGHT($K101,2),AX101,0)) -> 0.86800099 | BU101: =+IF($K101="Ongoing",AY101,IF(RIGHT($K101,2)=RIGHT(BU$39,2),SUM($AX101:AY101),0)+IF(RIGHT(BU$39,2)>RIGHT($K101,2),AY101,0)) -> 0.74000099 | BV101: =+IF($K101="Ongoing",AZ101,IF(RIGHT($K101,2)=RIGHT(BV$39,2),SUM($AX101:AZ101),0)+IF(RIGHT(BV$39,2)>RIGHT($K101,2),AZ101,0)) -> 0.67100099 | BW101: =+IF($K101="Ongoing",BA101,IF(RIGHT($K101,2)=RIGHT(BW$39,2),SUM($AX101:BA101),0)+IF(RIGHT(BW$39,2)>RIGHT($K101,2),BA101,0)) -> 0.53000099 | BX101: =+IF($K101="Ongoing",BB101,IF(RIGHT($K101,2)=RIGHT(BX$39,2),SUM($AX101:BB101),0)+IF(RIGHT(BX$39,2)>RIGHT($K101,2),BB101,0)) -> 0.12500099 | BY101: =+IF($K101="Ongoing",BC101,IF(RIGHT($K101,2)=RIGHT(BY$39,2),SUM($AX101:BC101),0)+IF(RIGHT(BY$39,2)>RIGHT($K101,2),BC101,0)) -> 0.82000056 | BZ101: =+IF($K101="Ongoing",BD101,IF(RIGHT($K101,2)=RIGHT(BZ$39,2),SUM($AX101:BD101),0)+IF(RIGHT(BZ$39,2)>RIGHT($K101,2),BD101,0)) -> 0.92000099 | CA101: =+IF($K101="Ongoing",BE101,IF(RIGHT($K101,2)=RIGHT(CA$39,2),SUM($AX101:BE101),0)+IF(RIGHT(CA$39,2)>RIGHT($K101,2),BE101,0)) -> 0.27000099 | CB101: =+IF($K101="Ongoing",BF101,IF(RIGHT($K101,2)=RIGHT(CB$39,2),SUM($AX101:BF101),0)+IF(RIGHT(CB$39,2)>RIGHT($K101,2),BF101,0)) -> 0.03000099 | CC101: =+IF($K101="Ongoing",BG101,IF(RIGHT($K101,2)=RIGHT(CC$39,2),SUM($AX101:BG101),0)+IF(RIGHT(CC$39,2)>RIGHT($K101,2),BG101,0)) -> 0.03000099 | CE101: =+Q101*KeyAssumptionsPriceControl_FO!AC$15 -> 0.8940410197 | CF101: =+R101*KeyAssumptionsPriceControl_FO!AD$15 -> 0.7850670503 | CG101: =+S101*KeyAssumptionsPriceControl_FO!AE$15 -> 0.7332208988 | CH101: =+T101*KeyAssumptionsPriceControl_FO!AF$15 -> 0.5965207836 | CI101: =+U101*KeyAssumptionsPriceControl_FO!AG$15 -> 0.144910407 | CJ101: =+V101*KeyAssumptionsPriceControl_FO!AH$15 -> 0.9791235518 | CK101: =+W101*KeyAssumptionsPriceControl_FO!AI$15 -> 1.131485174 | CL101: =+X101*KeyAssumptionsPriceControl_FO!AJ$15 -> 0.3420291761 | CM101: =+Y101*KeyAssumptionsPriceControl_FO!AK$15 -> 0.03914448724 | CN101: =+Z101*KeyAssumptionsPriceControl_FO!AL$15 -> 0.04031882186 | CP101: 0 | CQ101: 0 | CR101: 0 | CS101: 0 | CT101: 0 | CU101: 0 | CV101: 0 | CW101: 0 | CX101: 0 | CY101: 0
C102: D&S Meter Replacements | E102: Domestic and stock | F102: Renewals | G102: Pipelines/network | H102: Capital Programs / Allocation | J102: Straight line | K102: Ongoing | L102: 15 | M102: 15 | Q102: 0.20543175 | R102: 0.28814763 | S102: 0.28814763 | T102: 0.3708635 | U102: 1.0325905 | V102: 1.0325905 | W102: 0.20543175 | X102: 0.20543175 | Y102: 0.04 | Z102: 0.04 | AX102: 0.20543175 | AY102: 0.28814763 | AZ102: 0.28814763 | BA102: 0.3708635 | BB102: 1.0325905 | BC102: 1.0325905 | BD102: 0.20543175 | BE102: 0.20543175 | BF102: 0.04 | BG102: 0.04 | BI102: 0.006847725 | BJ102: 0.023300371 | BK102: 0.042510213 | BL102: 0.06447725067 | BM102: 0.1112590507 | BN102: 0.1800984173 | BO102: 0.2213658257 | BP102: 0.2350612757 | BQ102: 0.243242334 | BR102: 0.2459090007 | BT102: =+IF($K102="Ongoing",AX102,IF(RIGHT($K102,2)=RIGHT(BT$39,2),SUM($AX102:AX102),0)+IF(RIGHT(BT$39,2)>RIGHT($K102,2),AX102,0)) -> 0.20543175 | BU102: =+IF($K102="Ongoing",AY102,IF(RIGHT($K102,2)=RIGHT(BU$39,2),SUM($AX102:AY102),0)+IF(RIGHT(BU$39,2)>RIGHT($K102,2),AY102,0)) -> 0.28814763 | BV102: =+IF($K102="Ongoing",AZ102,IF(RIGHT($K102,2)=RIGHT(BV$39,2),SUM($AX102:AZ102),0)+IF(RIGHT(BV$39,2)>RIGHT($K102,2),AZ102,0)) -> 0.28814763 | BW102: =+IF($K102="Ongoing",BA102,IF(RIGHT($K102,2)=RIGHT(BW$39,2),SUM($AX102:BA102),0)+IF(RIGHT(BW$39,2)>RIGHT($K102,2),BA102,0)) -> 0.3708635 | BX102: =+IF($K102="Ongoing",BB102,IF(RIGHT($K102,2)=RIGHT(BX$39,2),SUM($AX102:BB102),0)+IF(RIGHT(BX$39,2)>RIGHT($K102,2),BB102,0)) -> 1.0325905 | BY102: =+IF($K102="Ongoing",BC102,IF(RIGHT($K102,2)=RIGHT(BY$39,2),SUM($AX102:BC102),0)+IF(RIGHT(BY$39,2)>RIGHT($K102,2),BC102,0)) -> 1.0325905 | BZ102: =+IF($K102="Ongoing",BD102,IF(RIGHT($K102,2)=RIGHT(BZ$39,2),SUM($AX102:BD102),0)+IF(RIGHT(BZ$39,2)>RIGHT($K102,2),BD102,0)) -> 0.20543175 | CA102: =+IF($K102="Ongoing",BE102,IF(RIGHT($K102,2)=RIGHT(CA$39,2),SUM($AX102:BE102),0)+IF(RIGHT(CA$39,2)>RIGHT($K102,2),BE102,0)) -> 0.20543175 | CB102: =+IF($K102="Ongoing",BF102,IF(RIGHT($K102,2)=RIGHT(CB$39,2),SUM($AX102:BF102),0)+IF(RIGHT(CB$39,2)>RIGHT($K102,2),BF102,0)) -> 0.04 | CC102: =+IF($K102="Ongoing",BG102,IF(RIGHT($K102,2)=RIGHT(CC$39,2),SUM($AX102:BG102),0)+IF(RIGHT(CC$39,2)>RIGHT($K102,2),BG102,0)) -> 0.04 | CE102: =+Q102*KeyAssumptionsPriceControl_FO!AC$15 -> 0.2115947025 | CF102: =+R102*KeyAssumptionsPriceControl_FO!AD$15 -> 0.3056958207 | CG102: =+S102*KeyAssumptionsPriceControl_FO!AE$15 -> 0.3148666953 | CH102: =+T102*KeyAssumptionsPriceControl_FO!AF$15 -> 0.4174101366 | CI102: =+U102*KeyAssumptionsPriceControl_FO!AG$15 -> 1.197055396 | CJ102: =+V102*KeyAssumptionsPriceControl_FO!AH$15 -> 1.232967058 | CK102: =+W102*KeyAssumptionsPriceControl_FO!AI$15 -> 0.2526551405 | CL102: =+X102*KeyAssumptionsPriceControl_FO!AJ$15 -> 0.2602347947 | CM102: =+Y102*KeyAssumptionsPriceControl_FO!AK$15 -> 0.05219092735 | CN102: =+Z102*KeyAssumptionsPriceControl_FO!AL$15 -> 0.05375665517 | CP102: 0.00705315675 | CQ102: 0.02429617419 | CR102: 0.04498159139 | CS102: 0.06939081912 | CT102: 0.1232063369 | CU102: 0.2042070853 | CV102: 0.2537278253 | CW102: 0.2708241564 | CX102: 0.2812383472 | CY102: 0.2847699333
